Workbook

Sheet Legend
B1: METRIC | C1: DEFINITION | D1: Line | E1: COMMENT
B2: 010 Series | C2: Initial entitlement for service-connected disability (=>8 issues) | D2: Comp | E2: Rating Bundle: Claims for disability compensation, dependency and indemnity compensation, and Veterans’ pension benefits, including both original and supplemental claims. Rating Bundle claims normally require a rating decision during processing. The Rating Bundle Group is made up of 7 series and 1 group of End Products, plus 4 Agent Orange End Products, which are used to define VA Priority goals for Accuracy and reduction of claims over 125 days old
B3: 110 Series | C3: Initial entitlement for service-connected disability (<=7 issues) | D3: Comp
B4: 020 Series | C4: Increased evaluation and/or additional claimed conditions | D4: Comp
B5: 140 Series | C5: Initial claims from surviving spouses, children or parents | D5: Comp
B6: 180 Series | C6: Initial entitlement for Pension - Veteran | D6: Pension
B7: 120 Series | C7: Increased entitlement and/or reconsideration for Pension | D7: Pension
B8: 310 Group | C8: Future examination for disabilities (excludes EP 314) | D8: Comp
B9: 320 Series | C9: Increased entitlement due to hospitalization or surgery | D9: Comp
B10: EP 405 | C10: Reopened or new Agent Orange claims between 9/01/10 and 10/24/2011 | D10: Comp
B11: EP 409 | C11: Agent Orange claims where an interim decision was provided; No longer used as of 10/24/2011 | D11: Comp
B12: EP 681 | C12: Used to control claims under the Nehmer Agent Orange stipulation | D12: Comp
B13: EP 687 | C13: Previously used for Nehmer Agent Orange presumptive issues | D13: Comp
B14: EP 040 | C14: Decision Review Request - AMA Supplemental Claims | D14: Comp
B15: EP 335 | C15: Blue Water Navy Agent Orange (effective 1/1/2010) | D15: Comp | E15: Not-Rating: Claims for disability compensation, dependency and indemnity compensation, and Veterans’ pension benefits, which can but normally do not require a rating decision (i.e. claim to add dependent to award).
B18: ADP | C18: Average Days Pending, or total number of days pending divided by total number of claims pending
B19: ADC | C19: Average Days to Complete or total number of days to complete divided by total number of claims completed
B21: MTD | C21: Month to Date. Captures claim activity from the first day of the reporting month through the report date
B22: FYTD | C22: Fiscal Year to Date. Captures claim activity from the first day of the current fiscal year through the report date
B24: SOJ | C24: Station of Jurisdiction, or the Regional Office assigned to work the claim
B25: SOO | C25: Station of Origin, or the Regional Office with geographic oversight of the claim
B27: Pending Development | C27: Claims that are awaiting development initiation, which may involve gathering supporting evidence, medical exams, and military documentation.
B29: Pending Evidence | C29: Claims that are in the process of gathering supporting evidence and possibly medical exams.
B31: Pending Decision | C31: Claims that are awaiting an evidence review and decision by a rating specialist
B33: Pending Award | C33: Claims that are awaiting a first-level review of the evidence gathered and the decision.
B35: Pending Authorization | C35: Claims that are awaiting a final review of all aspects of the claim, which results in a notification to the claimant on the outcome of their claim.

Sheet Transformation
B2: Compensation and Pension Rating Bundle Metrics
B3: National View | H3: # Pending | I3: # Pending > 125 | J3: % Pending > 125 days
B4: ="Reporting through "&TEXT(D_DT[],"MMMM DD, YYYY") -> Reporting through December 25, 2021
B5: Compensation and Pension Rating Bundle | G5: Total | H5: =SUM(H6,H11,H22) -> 624186 | I5: =SUM(I6,I11,I22) -> 257614 | J5: =IF(H5=0, 0,I5/H5) -> 0.4127199264
B6: Original Entitlement | G6: Total | H6: =SUM(H7:H10) -> 155167 | I6: =SUM(I7:I10) -> 62119 | J6: =IF(H6=0, 0,I6/H6) -> 0.4003364117
A7: 010 | B7: Initial entitlement for service-connected disability (>=8 issues) | G7: EP 010 | H7: =IFERROR(SUMIFS(D_D[INV],D_D[MT],3,D_D[EP],$A7),0) -> 47782 | I7: =IFERROR(SUMIFS(D_D[BL],D_D[MT],3,D_D[EP],$A7),0) -> 20977 | J7: 0.4390146917
A8: 110 | B8: Initial entitlement for service-connected disability (<=7 issues) | G8: EP 110 | H8: =IFERROR(SUMIFS(D_D[INV],D_D[MT],3,D_D[EP],$A8),0) -> 91370 | I8: =IFERROR(SUMIFS(D_D[BL],D_D[MT],3,D_D[EP],$A8),0) -> 37548 | J8: 0.4109445113
A9: 180 | B9: Initial entitlement - Veteran's Pension | G9: EP 180 | H9: =IFERROR(SUMIFS(D_D[INV],D_D[MT],3,D_D[EP],$A9),0) -> 4404 | I9: =IFERROR(SUMIFS(D_D[BL],D_D[MT],3,D_D[EP],$A9),0) -> 401 | J9: 0.09105358765
A10: 140 | B10: Initial claims from surviving spouses, children or parents | G10: EP 140 | H10: =IFERROR(SUMIFS(D_D[INV],D_D[MT],3,D_D[EP],$A10),0) -> 11611 | I10: =IFERROR(SUMIFS(D_D[BL],D_D[MT],3,D_D[EP],$A10),0) -> 3193 | J10: 0.2749978469
B11: Supplemental Entitlement | G11: Total | H11: =SUM(H12:H21) -> 448981 | I11: =SUM(I12:I21) -> 177254 | J11: 0.3947917618
A12: 120 | B12: Increased entitlement and/or reconsideration for Pension | G12: EP 120 | H12: =IFERROR(SUMIFS(D_D[INV],D_D[MT],3,D_D[EP],$A12),0) -> 2161 | I12: =IFERROR(SUMIFS(D_D[BL],D_D[MT],3,D_D[EP],$A12),0) -> 198 | J12: 0.09162424803
A13: 020 | B13: Increased evaluation and/or additional claimed conditions | G13: EP 020 | H13: =IFERROR(SUMIFS(D_D[INV],D_D[MT],3,D_D[EP],$A13),0) -> 246736 | I13: =IFERROR(SUMIFS(D_D[BL],D_D[MT],3,D_D[EP],$A13),0) -> 70033 | J13: 0.2838377861
A14: 310G | B14: Future examination for disabilities | G14: EP 310 | H14: =IFERROR(SUMIFS(D_D[INV],D_D[MT],3,D_D[EP],$A14),0) -> 15526 | I14: =IFERROR(SUMIFS(D_D[BL],D_D[MT],3,D_D[EP],$A14),0) -> 4484 | J14: 0.288805874
A15: 320 | B15: Increased entitlement due to hospitalization or surgery | G15: EP 320 | H15: =IFERROR(SUMIFS(D_D[INV],D_D[MT],3,D_D[EP],$A15),0) -> 1390 | I15: =IFERROR(SUMIFS(D_D[BL],D_D[MT],3,D_D[EP],$A15),0) -> 52 | J15: 0.03741007194
A16: 681 | B16: Used to control claims under the Nehmer Agent Orange stipulation | G16: EP 681 | H16: =IFERROR(SUMIFS(D_D[INV],D_D[MT],3,D_D[EP],$A16),0) -> 1005 | I16: =IFERROR(SUMIFS(D_D[BL],D_D[MT],3,D_D[EP],$A16),0) -> 711 | J16: 0.7074626866
A17: 687 | B17: Blue Water Navy Agent Orange Nehmer Reviews | G17: EP 687 | H17: =IFERROR(SUMIFS(D_D[INV],D_D[MT],3,D_D[EP],$A17),0) -> 11393 | I17: =IFERROR(SUMIFS(D_D[BL],D_D[MT],3,D_D[EP],$A17),0) -> 11382 | J17: =IF(H17=0, 0,I17/H17) -> 0.9990344949
A18: 688 | B18: NDAA Agent Orange Nehmer Reviews (3 new authorized disabilities) | G18: EP 688 | H18: =IFERROR(SUMIFS(D_D[INV],D_D[MT],3,D_D[EP],$A18),0) -> 64241 | I18: =IFERROR(SUMIFS(D_D[BL],D_D[MT],3,D_D[EP],$A18),0) -> 62985 | J18: =IF(H18=0, 0,I18/H18) -> 0.9804486232
A19: 405 | B19: Reopened or new Agent Orange claims between 9/01/10 and 10/24/2011 | G19: EP 405 | H19: =IFERROR(SUMIFS(D_D[INV],D_D[MT],3,D_D[EP],$A19),0) -> 0 | I19: =IFERROR(SUMIFS(D_D[BL],D_D[MT],3,D_D[EP],$A19),0) -> 0 | J19: =IF(H19=0, 0,I19/H19) -> 0
A20: 040 | B20: Decision Review Request - AMA Supplemental Claims | G20: EP 040 | H20: =IFERROR(SUMIFS(D_D[INV],D_D[MT],3.1,D_D[EP],$A20),0) -> 106529 | I20: =IFERROR(SUMIFS(D_D[BL],D_D[MT],3.1,D_D[EP],$A20),0) -> 27409 | J20: =IF(H20=0, 0,I20/H20) -> 0.2572914418
A21: 409 | B21: Agent Orange claims where an interim decision was provided; No longer used as of 10/24/2011 | G21: EP 409 | H21: =IFERROR(SUMIFS(D_D[INV],D_D[MT],3,D_D[EP],$A21),0) -> 0 | I21: =IFERROR(SUMIFS(D_D[BL],D_D[MT],3,D_D[EP],$A21),0) -> 0 | J21: =IF(H21=0, 0,I21/H21) -> 0
B22: Compensation Other – Diary – Becomes Part of Rating Bundle on 1/1/2020 | G22: Total | H22: =SUM(H23) -> 20038 | I22: =SUM(I23) -> 18241 | J22: =IF(H22=0, 0,I22/H22) -> 0.9103203913
A23: 335 | B23: Blue Water Navy - Agent Orange | G23: EP 335 | H23: =IFERROR(SUMIFS(D_D[INV],D_D[MT],3,D_D[EP],$A23),0) -> 20038 | I23: =IFERROR(SUMIFS(D_D[BL],D_D[MT],3,D_D[EP],$A23),0) -> 18241 | J23: 0.9103203913
B25: Education Metrics | G25: ="Pending on " &TEXT(D_DT[]-1,"MM/DD/YY") -> Pending on 12/24/21 | H25: ="Pending on " &TEXT(D_DT[]-8,"MM/DD/YY") -> Pending on 12/17/21 | I25: # Change | J25: % Change
A26: 1 | B26: Total Chapter 33 Original Claims * | G26: 2519 | H26: 2160 | I26: =H26-G26 -> -359 | J26: =IFERROR(I26/H26,0) -> -0.1662037037
A27: 307 | B27: Buffalo | G27: 1524 | H27: 1044 | I27: 480 | J27: =IFERROR(I27/H27,0) -> 0.4597701149
A28: 316 | B28: Atlanta | G28: =IFERROR(SUMIFS(D_D[INV],D_D[MT],9,D_D[CAT],1,D_D[LOC],$A28),0) -> 0 | H28: =IFERROR(SUMIFS(D_D[BL],D_D[MT],9,D_D[CAT],1,D_D[LOC],$A28),0) -> 0 | I28: =IFERROR(SUMIFS(D_D[ADP],D_D[MT],9,D_D[CAT],1,D_D[LOC],$A28),0) -> 0 | J28: =IF(H28=0, 0,I28/H28) -> 0
A29: 331 | B29: St Louis | G29: =IFERROR(SUMIFS(D_D[INV],D_D[MT],9,D_D[CAT],1,D_D[LOC],$A29),0) -> 0 | H29: =IFERROR(SUMIFS(D_D[BL],D_D[MT],9,D_D[CAT],1,D_D[LOC],$A29),0) -> 0 | I29: =IFERROR(SUMIFS(D_D[ADP],D_D[MT],9,D_D[CAT],1,D_D[LOC],$A29),0) -> 0 | J29: =IFERROR(I29/H29,0) -> 0
A30: 351 | B30: Muskogee | G30: 995 | H30: 1116 | I30: -121 | J30: =IFERROR(I30/H30,0) -> -0.1084229391
A31: 1 | B31: Total Education Claims - All Education Programs ** | G31: 53485 | H31: 37488 | I31: =H31-G31 -> -15997 | J31: =IFERROR(I31/H31,0) -> -0.4267232181
A32: 307 | B32: Buffalo | G32: 23996 | H32: 13432 | I32: 10564 | J32: =IFERROR(I32/H32,0) -> 0.7864800476
A33: 316 | B33: Atlanta | G33: =IFERROR(SUMIFS(D_D[INV],D_D[MT],9,D_D[CAT],2,D_D[LOC],$A33),0) -> 0 | H33: =IFERROR(SUMIFS(D_D[BL],D_D[MT],9,D_D[CAT],2,D_D[LOC],$A33),0) -> 0 | I33: =IFERROR(SUMIFS(D_D[ADP],D_D[MT],9,D_D[CAT],2,D_D[LOC],$A33),0) -> 0 | J33: =IF(H33=0, 0,I33/H33) -> 0
A34: 331 | B34: St Louis | G34: =IFERROR(SUMIFS(D_D[INV],D_D[MT],9,D_D[CAT],2,D_D[LOC],$A34),0) -> 0 | H34: =IFERROR(SUMIFS(D_D[BL],D_D[MT],9,D_D[CAT],2,D_D[LOC],$A34),0) -> 0 | I34: =IFERROR(SUMIFS(D_D[ADP],D_D[MT],9,D_D[CAT],2,D_D[LOC],$A34),0) -> 0 | J34: =IFERROR(I34/H34,0) -> 0
A35: 351 | B35: Muskogee | G35: 29489 | H35: 24056 | I35: 5433 | J35: =IFERROR(I35/H35,0) -> 0.2258480213
B37: *Chapter 33 is the Post-9/11GI Bill.
B38: **Represents all Education Benefit Programs, including Chapter 33 claims.

Sheet Rating Bundle - SOJ
C2: DISTRICT SELECTOR | D2: Compensation and Pension Rating Bundle Metrics | L2: Report through
D3: Station of Jurisdiction View | L3: =D_DT[] -> 2021-12-25
D4: The Station of Jurisdiction (SOJ) is the regional office assigned to work the claim | L4: ADP = Average Days Pending | O4: MTD = Month to Date
D5: Each Special Mission has distinct claim counts | L5: ADC = Average Days to Complete | O5: FYTD = Fiscal Year to Date
D6: When Special Mission is set to Pension, BDD, or Quickstart, the District Selector has no impact
L7: Accuracy is available in Compensation and Pension Special Missions
D8: CLAIM METRICS | L8: ACCURACY METRICS
C9: SPECIAL MISSION SELECTOR | D9: # Pending | E9: # Pending > 125 Days | F9: % Pending > 125 Days | G9: ADP | H9: # Completed MTD | I9: ADC MTD | J9: # Completed FYTD | K9: ADC FYTD | L9: Rating 3 Month Issue | M9: Rating 3 Month Claim | N9: Rating 12 Month | P9: Authorization 12 Month
N10: % | O10: Margin of Error +/- | P10: % | Q10: Margin of Error +/-
N11: Correct | P11: Correct
A12: 100 | C12: =Driver!$C$20& " Total" -> USA - All Missions Total | D12: =IF(ISNA($A12),"",IFERROR(SUMIFS(D_D[INV],D_D[MT],5,D_D[CAT],SMS, D_D[EP],-1,D_D[LOC],$A12),0)) -> 624186 | E12: =IF(ISNA($A12),"",IFERROR(SUMIFS(D_D[BL],D_D[MT],5,D_D[CAT],SMS, D_D[EP],-1,D_D[LOC],$A12),0)) -> 257614 | F12: =IF(ISNA($A12),"",IFERROR(E12/D12,0)) -> 0.4127199264 | G12: =IF(ISNA($A12),"",IFERROR(SUMIFS(D_D[ADP],D_D[MT],5,D_D[CAT],SMS, D_D[EP],-1,D_D[LOC],$A12),0)) -> 153.88 | H12: =IF(ISNA($A12),"",IFERROR(SUMIFS(D_D[PROD_MTD],D_D[MT],5,D_D[CAT],SMS, D_D[EP],-1,D_D[LOC],$A12),0)) -> 109647 | I12: =IF(ISNA($A12),"",IFERROR(SUMIFS(D_D[ADCM],D_D[MT],5,D_D[CAT],SMS, D_D[EP],-1,D_D[LOC],$A12),0)) -> 121.75 | J12: =IF(ISNA($A12),"",IFERROR(SUMIFS(D_D[PROD_FYTD],D_D[MT],5,D_D[CAT],SMS, D_D[EP],-1,D_D[LOC],$A12),0)) -> 362489 | K12: =IF(ISNA($A12),"",IFERROR(SUMIFS(D_D[ADCF],D_D[MT],5,D_D[CAT],SMS, D_D[EP],-1,D_D[LOC],$A12),0)) -> 123.67 | L12: =IF(ISNA($A12-99),"",IFERROR(SUMIFS(D_D[INV],D_D[MT],8,D_D[CAT],SMS,D_D[LOC],$A12-99),0)) -> 0 | M12: =IF(ISNA($A12-99),"",IFERROR(SUMIFS(D_D[BL],D_D[MT],8,D_D[CAT],SMS,D_D[LOC],$A12-99),0)) -> 0 | N12: =IF(ISNA($A12-99),"",IFERROR(SUMIFS(D_D[ADP],D_D[MT],8,D_D[CAT],SMS,D_D[LOC],$A12-99),0)) -> 0 | O12: =IF(ISNA($A12-99),"",IFERROR(SUMIFS(D_D[PROD_MTD],D_D[MT],8,D_D[CAT],SMS,D_D[LOC],$A12-99),0)) -> 0 | P12: =IF(ISNA($A12-99),"",IFERROR(SUMIFS(D_D[PROD_FYTD],D_D[MT],8,D_D[CAT],SMS,D_D[LOC],$A12-99),0)) -> 0 | Q12: =IF(ISNA($A12-99),"",IFERROR(SUMIFS(D_D[ADCM],D_D[MT],8,D_D[CAT],SMS,D_D[LOC],$A12-99),0)) -> 0
A13: =INDEX(RO,(MATCH($C13,RO_D,0))) -> 395 | B13: 1 | C13: =IFERROR(INDEX(INDIRECT(DS_RO_N),B13),"") -> Pacific District | D13: =IF(ISNA($A13),"",IFERROR(SUMIFS(D_D[INV],D_D[MT],5,D_D[CAT],SMS, D_D[EP],-1,D_D[LOC],$A13),0)) -> 14237 | E13: =IF(ISNA($A13),"",IFERROR(SUMIFS(D_D[BL],D_D[MT],5,D_D[CAT],SMS, D_D[EP],-1,D_D[LOC],$A13),0)) -> 5255 | F13: =IF(ISNA($A13),"",IFERROR(E13/D13,0)) -> 0.3691086605 | G13: =IF(ISNA($A13),"",IFERROR(SUMIFS(D_D[ADP],D_D[MT],5,D_D[CAT],SMS, D_D[EP],-1,D_D[LOC],$A13),0)) -> 134.87 | H13: =IF(ISNA($A13),"",IFERROR(SUMIFS(D_D[PROD_MTD],D_D[MT],5,D_D[CAT],SMS, D_D[EP],-1,D_D[LOC],$A13),0)) -> 22881 | I13: =IF(ISNA($A13),"",IFERROR(SUMIFS(D_D[ADCM],D_D[MT],5,D_D[CAT],SMS, D_D[EP],-1,D_D[LOC],$A13),0)) -> 121.53 | J13: =IF(ISNA($A13),"",IFERROR(SUMIFS(D_D[PROD_FYTD],D_D[MT],5,D_D[CAT],SMS, D_D[EP],-1,D_D[LOC],$A13),0)) -> 77223 | K13: =IF(ISNA($A13),"",IFERROR(SUMIFS(D_D[ADCF],D_D[MT],5,D_D[CAT],SMS, D_D[EP],-1,D_D[LOC],$A13),0)) -> 122.63 | L13: =IF(ISNA($A13),"",IFERROR(SUMIFS(D_D[INV],D_D[MT],8,D_D[CAT],SMS,D_D[LOC],$A13),0)) -> 0 | M13: =IF(ISNA($A13),"",IFERROR(SUMIFS(D_D[BL],D_D[MT],8,D_D[CAT],SMS,D_D[LOC],$A13),0)) -> 0 | N13: =IF(ISNA($A13),"",IFERROR(SUMIFS(D_D[ADP],D_D[MT],8,D_D[CAT],SMS,D_D[LOC],$A13),0)) -> 0 | O13: =IF(ISNA($A13),"",IFERROR(SUMIFS(D_D[PROD_MTD],D_D[MT],8,D_D[CAT],SMS,D_D[LOC],$A13),0)) -> 0 | P13: =IF(ISNA($A13),"",IFERROR(SUMIFS(D_D[PROD_FYTD],D_D[MT],8,D_D[CAT],SMS,D_D[LOC],$A13),0)) -> 0 | Q13: =IF(ISNA($A13),"",IFERROR(SUMIFS(D_D[ADCM],D_D[MT],8,D_D[CAT],SMS,D_D[LOC],$A13),0)) -> 0
A14: 340 | B14: 2 | C14: =IFERROR(INDEX(INDIRECT(DS_RO_N),B14),"") -> Albuquerque | D14: =IF(ISNA($A14),"",IFERROR(SUMIFS(D_D[INV],D_D[MT],5,D_D[CAT],SMS, D_D[EP],-1,D_D[LOC],$A14),0)) -> 454 | E14: =IF(ISNA($A14),"",IFERROR(SUMIFS(D_D[BL],D_D[MT],5,D_D[CAT],SMS, D_D[EP],-1,D_D[LOC],$A14),0)) -> 146 | F14: =IF(ISNA($A14),"",IFERROR(E14/D14,0)) -> 0.3215859031 | G14: =IF(ISNA($A14),"",IFERROR(SUMIFS(D_D[ADP],D_D[MT],5,D_D[CAT],SMS, D_D[EP],-1,D_D[LOC],$A14),0)) -> 124.47 | H14: =IF(ISNA($A14),"",IFERROR(SUMIFS(D_D[PROD_MTD],D_D[MT],5,D_D[CAT],SMS, D_D[EP],-1,D_D[LOC],$A14),0)) -> 715 | I14: =IF(ISNA($A14),"",IFERROR(SUMIFS(D_D[ADCM],D_D[MT],5,D_D[CAT],SMS, D_D[EP],-1,D_D[LOC],$A14),0)) -> 146.71 | J14: =IF(ISNA($A14),"",IFERROR(SUMIFS(D_D[PROD_FYTD],D_D[MT],5,D_D[CAT],SMS, D_D[EP],-1,D_D[LOC],$A14),0)) -> 2252 | K14: =IF(ISNA($A14),"",IFERROR(SUMIFS(D_D[ADCF],D_D[MT],5,D_D[CAT],SMS, D_D[EP],-1,D_D[LOC],$A14),0)) -> 158.01 | L14: =IF(ISNA($A14),"",IFERROR(SUMIFS(D_D[INV],D_D[MT],8,D_D[CAT],SMS,D_D[LOC],$A14),0)) -> 0 | M14: =IF(ISNA($A14),"",IFERROR(SUMIFS(D_D[BL],D_D[MT],8,D_D[CAT],SMS,D_D[LOC],$A14),0)) -> 0 | N14: =IF(ISNA($A14),"",IFERROR(SUMIFS(D_D[ADP],D_D[MT],8,D_D[CAT],SMS,D_D[LOC],$A14),0)) -> 0 | O14: =IF(ISNA($A14),"",IFERROR(SUMIFS(D_D[PROD_MTD],D_D[MT],8,D_D[CAT],SMS,D_D[LOC],$A14),0)) -> 0 | P14: =IF(ISNA($A14),"",IFERROR(SUMIFS(D_D[PROD_FYTD],D_D[MT],8,D_D[CAT],SMS,D_D[LOC],$A14),0)) -> 0 | Q14: =IF(ISNA($A14),"",IFERROR(SUMIFS(D_D[ADCM],D_D[MT],8,D_D[CAT],SMS,D_D[LOC],$A14),0)) -> 0
A15: 463 | B15: 3 | C15: Anchorage | D15: =IF(ISNA($A15),"",IFERROR(SUMIFS(D_D[INV],D_D[MT],5,D_D[CAT],SMS, D_D[EP],-1,D_D[LOC],$A15),0)) -> 102 | E15: =IF(ISNA($A15),"",IFERROR(SUMIFS(D_D[BL],D_D[MT],5,D_D[CAT],SMS, D_D[EP],-1,D_D[LOC],$A15),0)) -> 43 | F15: 0.4215686275 | G15: =IF(ISNA($A15),"",IFERROR(SUMIFS(D_D[ADP],D_D[MT],5,D_D[CAT],SMS, D_D[EP],-1,D_D[LOC],$A15),0)) -> 158.15 | H15: =IF(ISNA($A15),"",IFERROR(SUMIFS(D_D[PROD_MTD],D_D[MT],5,D_D[CAT],SMS, D_D[EP],-1,D_D[LOC],$A15),0)) -> 216 | I15: =IF(ISNA($A15),"",IFERROR(SUMIFS(D_D[ADCM],D_D[MT],5,D_D[CAT],SMS, D_D[EP],-1,D_D[LOC],$A15),0)) -> 161.31 | J15: =IF(ISNA($A15),"",IFERROR(SUMIFS(D_D[PROD_FYTD],D_D[MT],5,D_D[CAT],SMS, D_D[EP],-1,D_D[LOC],$A15),0)) -> 603 | K15: =IF(ISNA($A15),"",IFERROR(SUMIFS(D_D[ADCF],D_D[MT],5,D_D[CAT],SMS, D_D[EP],-1,D_D[LOC],$A15),0)) -> 152.71 | L15: =IF(ISNA($A15),"",IFERROR(SUMIFS(D_D[INV],D_D[MT],8,D_D[CAT],SMS,D_D[LOC],$A15),0)) -> 0 | M15: =IF(ISNA($A15),"",IFERROR(SUMIFS(D_D[BL],D_D[MT],8,D_D[CAT],SMS,D_D[LOC],$A15),0)) -> 0 | N15: =IF(ISNA($A15),"",IFERROR(SUMIFS(D_D[ADP],D_D[MT],8,D_D[CAT],SMS,D_D[LOC],$A15),0)) -> 0 | O15: =IF(ISNA($A15),"",IFERROR(SUMIFS(D_D[PROD_MTD],D_D[MT],8,D_D[CAT],SMS,D_D[LOC],$A15),0)) -> 0 | P15: =IF(ISNA($A15),"",IFERROR(SUMIFS(D_D[PROD_FYTD],D_D[MT],8,D_D[CAT],SMS,D_D[LOC],$A15),0)) -> 0 | Q15: =IF(ISNA($A15),"",IFERROR(SUMIFS(D_D[ADCM],D_D[MT],8,D_D[CAT],SMS,D_D[LOC],$A15),0)) -> 0
A16: 347 | B16: 4 | C16: Boise | D16: =IF(ISNA($A16),"",IFERROR(SUMIFS(D_D[INV],D_D[MT],5,D_D[CAT],SMS, D_D[EP],-1,D_D[LOC],$A16),0)) -> 462 | E16: =IF(ISNA($A16),"",IFERROR(SUMIFS(D_D[BL],D_D[MT],5,D_D[CAT],SMS, D_D[EP],-1,D_D[LOC],$A16),0)) -> 103 | F16: 0.2229437229 | G16: =IF(ISNA($A16),"",IFERROR(SUMIFS(D_D[ADP],D_D[MT],5,D_D[CAT],SMS, D_D[EP],-1,D_D[LOC],$A16),0)) -> 129.59 | H16: =IF(ISNA($A16),"",IFERROR(SUMIFS(D_D[PROD_MTD],D_D[MT],5,D_D[CAT],SMS, D_D[EP],-1,D_D[LOC],$A16),0)) -> 1002 | I16: =IF(ISNA($A16),"",IFERROR(SUMIFS(D_D[ADCM],D_D[MT],5,D_D[CAT],SMS, D_D[EP],-1,D_D[LOC],$A16),0)) -> 124.58 | J16: =IF(ISNA($A16),"",IFERROR(SUMIFS(D_D[PROD_FYTD],D_D[MT],5,D_D[CAT],SMS, D_D[EP],-1,D_D[LOC],$A16),0)) -> 3152 | K16: =IF(ISNA($A16),"",IFERROR(SUMIFS(D_D[ADCF],D_D[MT],5,D_D[CAT],SMS, D_D[EP],-1,D_D[LOC],$A16),0)) -> 131.35 | L16: =IF(ISNA($A16),"",IFERROR(SUMIFS(D_D[INV],D_D[MT],8,D_D[CAT],SMS,D_D[LOC],$A16),0)) -> 0 | M16: =IF(ISNA($A16),"",IFERROR(SUMIFS(D_D[BL],D_D[MT],8,D_D[CAT],SMS,D_D[LOC],$A16),0)) -> 0 | N16: =IF(ISNA($A16),"",IFERROR(SUMIFS(D_D[ADP],D_D[MT],8,D_D[CAT],SMS,D_D[LOC],$A16),0)) -> 0 | O16: =IF(ISNA($A16),"",IFERROR(SUMIFS(D_D[PROD_MTD],D_D[MT],8,D_D[CAT],SMS,D_D[LOC],$A16),0)) -> 0 | P16: =IF(ISNA($A16),"",IFERROR(SUMIFS(D_D[PROD_FYTD],D_D[MT],8,D_D[CAT],SMS,D_D[LOC],$A16),0)) -> 0 | Q16: =IF(ISNA($A16),"",IFERROR(SUMIFS(D_D[ADCM],D_D[MT],8,D_D[CAT],SMS,D_D[LOC],$A16),0)) -> 0
A17: 459 | B17: 5 | C17: Honolulu | D17: =IF(ISNA($A17),"",IFERROR(SUMIFS(D_D[INV],D_D[MT],5,D_D[CAT],SMS, D_D[EP],-1,D_D[LOC],$A17),0)) -> 245 | E17: =IF(ISNA($A17),"",IFERROR(SUMIFS(D_D[BL],D_D[MT],5,D_D[CAT],SMS, D_D[EP],-1,D_D[LOC],$A17),0)) -> 93 | F17: 0.3795918367 | G17: =IF(ISNA($A17),"",IFERROR(SUMIFS(D_D[ADP],D_D[MT],5,D_D[CAT],SMS, D_D[EP],-1,D_D[LOC],$A17),0)) -> 128.11 | H17: =IF(ISNA($A17),"",IFERROR(SUMIFS(D_D[PROD_MTD],D_D[MT],5,D_D[CAT],SMS, D_D[EP],-1,D_D[LOC],$A17),0)) -> 639 | I17: =IF(ISNA($A17),"",IFERROR(SUMIFS(D_D[ADCM],D_D[MT],5,D_D[CAT],SMS, D_D[EP],-1,D_D[LOC],$A17),0)) -> 130.98 | J17: =IF(ISNA($A17),"",IFERROR(SUMIFS(D_D[PROD_FYTD],D_D[MT],5,D_D[CAT],SMS, D_D[EP],-1,D_D[LOC],$A17),0)) -> 2256 | K17: =IF(ISNA($A17),"",IFERROR(SUMIFS(D_D[ADCF],D_D[MT],5,D_D[CAT],SMS, D_D[EP],-1,D_D[LOC],$A17),0)) -> 139.89 | L17: =IF(ISNA($A17),"",IFERROR(SUMIFS(D_D[INV],D_D[MT],8,D_D[CAT],SMS,D_D[LOC],$A17),0)) -> 0 | M17: =IF(ISNA($A17),"",IFERROR(SUMIFS(D_D[BL],D_D[MT],8,D_D[CAT],SMS,D_D[LOC],$A17),0)) -> 0 | N17: =IF(ISNA($A17),"",IFERROR(SUMIFS(D_D[ADP],D_D[MT],8,D_D[CAT],SMS,D_D[LOC],$A17),0)) -> 0 | O17: =IF(ISNA($A17),"",IFERROR(SUMIFS(D_D[PROD_MTD],D_D[MT],8,D_D[CAT],SMS,D_D[LOC],$A17),0)) -> 0 | P17: =IF(ISNA($A17),"",IFERROR(SUMIFS(D_D[PROD_FYTD],D_D[MT],8,D_D[CAT],SMS,D_D[LOC],$A17),0)) -> 0 | Q17: =IF(ISNA($A17),"",IFERROR(SUMIFS(D_D[ADCM],D_D[MT],8,D_D[CAT],SMS,D_D[LOC],$A17),0)) -> 0
A18: 344 | B18: 6 | C18: Los Angeles | D18: =IF(ISNA($A18),"",IFERROR(SUMIFS(D_D[INV],D_D[MT],5,D_D[CAT],SMS, D_D[EP],-1,D_D[LOC],$A18),0)) -> 1256 | E18: =IF(ISNA($A18),"",IFERROR(SUMIFS(D_D[BL],D_D[MT],5,D_D[CAT],SMS, D_D[EP],-1,D_D[LOC],$A18),0)) -> 414 | F18: 0.3296178344 | G18: =IF(ISNA($A18),"",IFERROR(SUMIFS(D_D[ADP],D_D[MT],5,D_D[CAT],SMS, D_D[EP],-1,D_D[LOC],$A18),0)) -> 126.43 | H18: =IF(ISNA($A18),"",IFERROR(SUMIFS(D_D[PROD_MTD],D_D[MT],5,D_D[CAT],SMS, D_D[EP],-1,D_D[LOC],$A18),0)) -> 1793 | I18: =IF(ISNA($A18),"",IFERROR(SUMIFS(D_D[ADCM],D_D[MT],5,D_D[CAT],SMS, D_D[EP],-1,D_D[LOC],$A18),0)) -> 120.66 | J18: =IF(ISNA($A18),"",IFERROR(SUMIFS(D_D[PROD_FYTD],D_D[MT],5,D_D[CAT],SMS, D_D[EP],-1,D_D[LOC],$A18),0)) -> 6397 | K18: =IF(ISNA($A18),"",IFERROR(SUMIFS(D_D[ADCF],D_D[MT],5,D_D[CAT],SMS, D_D[EP],-1,D_D[LOC],$A18),0)) -> 128.7 | L18: =IF(ISNA($A18),"",IFERROR(SUMIFS(D_D[INV],D_D[MT],8,D_D[CAT],SMS,D_D[LOC],$A18),0)) -> 0 | M18: =IF(ISNA($A18),"",IFERROR(SUMIFS(D_D[BL],D_D[MT],8,D_D[CAT],SMS,D_D[LOC],$A18),0)) -> 0 | N18: =IF(ISNA($A18),"",IFERROR(SUMIFS(D_D[ADP],D_D[MT],8,D_D[CAT],SMS,D_D[LOC],$A18),0)) -> 0 | O18: =IF(ISNA($A18),"",IFERROR(SUMIFS(D_D[PROD_MTD],D_D[MT],8,D_D[CAT],SMS,D_D[LOC],$A18),0)) -> 0 | P18: =IF(ISNA($A18),"",IFERROR(SUMIFS(D_D[PROD_FYTD],D_D[MT],8,D_D[CAT],SMS,D_D[LOC],$A18),0)) -> 0 | Q18: =IF(ISNA($A18),"",IFERROR(SUMIFS(D_D[ADCM],D_D[MT],8,D_D[CAT],SMS,D_D[LOC],$A18),0)) -> 0
A19: 358 | B19: 7 | C19: Manila | D19: =IF(ISNA($A19),"",IFERROR(SUMIFS(D_D[INV],D_D[MT],5,D_D[CAT],SMS, D_D[EP],-1,D_D[LOC],$A19),0)) -> 266 | E19: =IF(ISNA($A19),"",IFERROR(SUMIFS(D_D[BL],D_D[MT],5,D_D[CAT],SMS, D_D[EP],-1,D_D[LOC],$A19),0)) -> 98 | F19: 0.3684210526 | G19: =IF(ISNA($A19),"",IFERROR(SUMIFS(D_D[ADP],D_D[MT],5,D_D[CAT],SMS, D_D[EP],-1,D_D[LOC],$A19),0)) -> 151.6 | H19: =IF(ISNA($A19),"",IFERROR(SUMIFS(D_D[PROD_MTD],D_D[MT],5,D_D[CAT],SMS, D_D[EP],-1,D_D[LOC],$A19),0)) -> 617 | I19: =IF(ISNA($A19),"",IFERROR(SUMIFS(D_D[ADCM],D_D[MT],5,D_D[CAT],SMS, D_D[EP],-1,D_D[LOC],$A19),0)) -> 140.59 | J19: =IF(ISNA($A19),"",IFERROR(SUMIFS(D_D[PROD_FYTD],D_D[MT],5,D_D[CAT],SMS, D_D[EP],-1,D_D[LOC],$A19),0)) -> 2096 | K19: =IF(ISNA($A19),"",IFERROR(SUMIFS(D_D[ADCF],D_D[MT],5,D_D[CAT],SMS, D_D[EP],-1,D_D[LOC],$A19),0)) -> 144.45 | L19: =IF(ISNA($A19),"",IFERROR(SUMIFS(D_D[INV],D_D[MT],8,D_D[CAT],SMS,D_D[LOC],$A19),0)) -> 0 | M19: =IF(ISNA($A19),"",IFERROR(SUMIFS(D_D[BL],D_D[MT],8,D_D[CAT],SMS,D_D[LOC],$A19),0)) -> 0 | N19: =IF(ISNA($A19),"",IFERROR(SUMIFS(D_D[ADP],D_D[MT],8,D_D[CAT],SMS,D_D[LOC],$A19),0)) -> 0 | O19: =IF(ISNA($A19),"",IFERROR(SUMIFS(D_D[PROD_MTD],D_D[MT],8,D_D[CAT],SMS,D_D[LOC],$A19),0)) -> 0 | P19: =IF(ISNA($A19),"",IFERROR(SUMIFS(D_D[PROD_FYTD],D_D[MT],8,D_D[CAT],SMS,D_D[LOC],$A19),0)) -> 0 | Q19: =IF(ISNA($A19),"",IFERROR(SUMIFS(D_D[ADCM],D_D[MT],8,D_D[CAT],SMS,D_D[LOC],$A19),0)) -> 0
A20: 343 | B20: 8 | C20: Oakland | D20: =IF(ISNA($A20),"",IFERROR(SUMIFS(D_D[INV],D_D[MT],5,D_D[CAT],SMS, D_D[EP],-1,D_D[LOC],$A20),0)) -> 1143 | E20: =IF(ISNA($A20),"",IFERROR(SUMIFS(D_D[BL],D_D[MT],5,D_D[CAT],SMS, D_D[EP],-1,D_D[LOC],$A20),0)) -> 594 | F20: 0.5196850394 | G20: =IF(ISNA($A20),"",IFERROR(SUMIFS(D_D[ADP],D_D[MT],5,D_D[CAT],SMS, D_D[EP],-1,D_D[LOC],$A20),0)) -> 136.36 | H20: =IF(ISNA($A20),"",IFERROR(SUMIFS(D_D[PROD_MTD],D_D[MT],5,D_D[CAT],SMS, D_D[EP],-1,D_D[LOC],$A20),0)) -> 919 | I20: =IF(ISNA($A20),"",IFERROR(SUMIFS(D_D[ADCM],D_D[MT],5,D_D[CAT],SMS, D_D[EP],-1,D_D[LOC],$A20),0)) -> 170.07 | J20: =IF(ISNA($A20),"",IFERROR(SUMIFS(D_D[PROD_FYTD],D_D[MT],5,D_D[CAT],SMS, D_D[EP],-1,D_D[LOC],$A20),0)) -> 2612 | K20: =IF(ISNA($A20),"",IFERROR(SUMIFS(D_D[ADCF],D_D[MT],5,D_D[CAT],SMS, D_D[EP],-1,D_D[LOC],$A20),0)) -> 164.51 | L20: =IF(ISNA($A20),"",IFERROR(SUMIFS(D_D[INV],D_D[MT],8,D_D[CAT],SMS,D_D[LOC],$A20),0)) -> 0 | M20: =IF(ISNA($A20),"",IFERROR(SUMIFS(D_D[BL],D_D[MT],8,D_D[CAT],SMS,D_D[LOC],$A20),0)) -> 0 | N20: =IF(ISNA($A20),"",IFERROR(SUMIFS(D_D[ADP],D_D[MT],8,D_D[CAT],SMS,D_D[LOC],$A20),0)) -> 0 | O20: =IF(ISNA($A20),"",IFERROR(SUMIFS(D_D[PROD_MTD],D_D[MT],8,D_D[CAT],SMS,D_D[LOC],$A20),0)) -> 0 | P20: =IF(ISNA($A20),"",IFERROR(SUMIFS(D_D[PROD_FYTD],D_D[MT],8,D_D[CAT],SMS,D_D[LOC],$A20),0)) -> 0 | Q20: =IF(ISNA($A20),"",IFERROR(SUMIFS(D_D[ADCM],D_D[MT],8,D_D[CAT],SMS,D_D[LOC],$A20),0)) -> 0
A21: 345 | B21: 9 | C21: Phoenix | D21: =IF(ISNA($A21),"",IFERROR(SUMIFS(D_D[INV],D_D[MT],5,D_D[CAT],SMS, D_D[EP],-1,D_D[LOC],$A21),0)) -> 1804 | E21: =IF(ISNA($A21),"",IFERROR(SUMIFS(D_D[BL],D_D[MT],5,D_D[CAT],SMS, D_D[EP],-1,D_D[LOC],$A21),0)) -> 999 | F21: 0.5537694013 | G21: =IF(ISNA($A21),"",IFERROR(SUMIFS(D_D[ADP],D_D[MT],5,D_D[CAT],SMS, D_D[EP],-1,D_D[LOC],$A21),0)) -> 173.97 | H21: =IF(ISNA($A21),"",IFERROR(SUMIFS(D_D[PROD_MTD],D_D[MT],5,D_D[CAT],SMS, D_D[EP],-1,D_D[LOC],$A21),0)) -> 2037 | I21: =IF(ISNA($A21),"",IFERROR(SUMIFS(D_D[ADCM],D_D[MT],5,D_D[CAT],SMS, D_D[EP],-1,D_D[LOC],$A21),0)) -> 150.53 | J21: =IF(ISNA($A21),"",IFERROR(SUMIFS(D_D[PROD_FYTD],D_D[MT],5,D_D[CAT],SMS, D_D[EP],-1,D_D[LOC],$A21),0)) -> 5622 | K21: =IF(ISNA($A21),"",IFERROR(SUMIFS(D_D[ADCF],D_D[MT],5,D_D[CAT],SMS, D_D[EP],-1,D_D[LOC],$A21),0)) -> 175.55 | L21: =IF(ISNA($A21),"",IFERROR(SUMIFS(D_D[INV],D_D[MT],8,D_D[CAT],SMS,D_D[LOC],$A21),0)) -> 0 | M21: =IF(ISNA($A21),"",IFERROR(SUMIFS(D_D[BL],D_D[MT],8,D_D[CAT],SMS,D_D[LOC],$A21),0)) -> 0 | N21: =IF(ISNA($A21),"",IFERROR(SUMIFS(D_D[ADP],D_D[MT],8,D_D[CAT],SMS,D_D[LOC],$A21),0)) -> 0 | O21: =IF(ISNA($A21),"",IFERROR(SUMIFS(D_D[PROD_MTD],D_D[MT],8,D_D[CAT],SMS,D_D[LOC],$A21),0)) -> 0 | P21: =IF(ISNA($A21),"",IFERROR(SUMIFS(D_D[PROD_FYTD],D_D[MT],8,D_D[CAT],SMS,D_D[LOC],$A21),0)) -> 0 | Q21: =IF(ISNA($A21),"",IFERROR(SUMIFS(D_D[ADCM],D_D[MT],8,D_D[CAT],SMS,D_D[LOC],$A21),0)) -> 0
A22: 348 | B22: 10 | C22: Portland | D22: =IF(ISNA($A22),"",IFERROR(SUMIFS(D_D[INV],D_D[MT],5,D_D[CAT],SMS, D_D[EP],-1,D_D[LOC],$A22),0)) -> 1556 | E22: =IF(ISNA($A22),"",IFERROR(SUMIFS(D_D[BL],D_D[MT],5,D_D[CAT],SMS, D_D[EP],-1,D_D[LOC],$A22),0)) -> 693 | F22: 0.4453727506 | G22: =IF(ISNA($A22),"",IFERROR(SUMIFS(D_D[ADP],D_D[MT],5,D_D[CAT],SMS, D_D[EP],-1,D_D[LOC],$A22),0)) -> 172.12 | H22: =IF(ISNA($A22),"",IFERROR(SUMIFS(D_D[PROD_MTD],D_D[MT],5,D_D[CAT],SMS, D_D[EP],-1,D_D[LOC],$A22),0)) -> 1580 | I22: =IF(ISNA($A22),"",IFERROR(SUMIFS(D_D[ADCM],D_D[MT],5,D_D[CAT],SMS, D_D[EP],-1,D_D[LOC],$A22),0)) -> 148.79 | J22: =IF(ISNA($A22),"",IFERROR(SUMIFS(D_D[PROD_FYTD],D_D[MT],5,D_D[CAT],SMS, D_D[EP],-1,D_D[LOC],$A22),0)) -> 4798 | K22: =IF(ISNA($A22),"",IFERROR(SUMIFS(D_D[ADCF],D_D[MT],5,D_D[CAT],SMS, D_D[EP],-1,D_D[LOC],$A22),0)) -> 160.82 | L22: =IF(ISNA($A22),"",IFERROR(SUMIFS(D_D[INV],D_D[MT],8,D_D[CAT],SMS,D_D[LOC],$A22),0)) -> 0 | M22: =IF(ISNA($A22),"",IFERROR(SUMIFS(D_D[BL],D_D[MT],8,D_D[CAT],SMS,D_D[LOC],$A22),0)) -> 0 | N22: =IF(ISNA($A22),"",IFERROR(SUMIFS(D_D[ADP],D_D[MT],8,D_D[CAT],SMS,D_D[LOC],$A22),0)) -> 0 | O22: =IF(ISNA($A22),"",IFERROR(SUMIFS(D_D[PROD_MTD],D_D[MT],8,D_D[CAT],SMS,D_D[LOC],$A22),0)) -> 0 | P22: =IF(ISNA($A22),"",IFERROR(SUMIFS(D_D[PROD_FYTD],D_D[MT],8,D_D[CAT],SMS,D_D[LOC],$A22),0)) -> 0 | Q22: =IF(ISNA($A22),"",IFERROR(SUMIFS(D_D[ADCM],D_D[MT],8,D_D[CAT],SMS,D_D[LOC],$A22),0)) -> 0
A23: 354 | B23: 11 | C23: Reno | D23: =IF(ISNA($A23),"",IFERROR(SUMIFS(D_D[INV],D_D[MT],5,D_D[CAT],SMS, D_D[EP],-1,D_D[LOC],$A23),0)) -> 326 | E23: =IF(ISNA($A23),"",IFERROR(SUMIFS(D_D[BL],D_D[MT],5,D_D[CAT],SMS, D_D[EP],-1,D_D[LOC],$A23),0)) -> 138 | F23: 0.4233128834 | G23: =IF(ISNA($A23),"",IFERROR(SUMIFS(D_D[ADP],D_D[MT],5,D_D[CAT],SMS, D_D[EP],-1,D_D[LOC],$A23),0)) -> 163.54 | H23: =IF(ISNA($A23),"",IFERROR(SUMIFS(D_D[PROD_MTD],D_D[MT],5,D_D[CAT],SMS, D_D[EP],-1,D_D[LOC],$A23),0)) -> 571 | I23: =IF(ISNA($A23),"",IFERROR(SUMIFS(D_D[ADCM],D_D[MT],5,D_D[CAT],SMS, D_D[EP],-1,D_D[LOC],$A23),0)) -> 174.13 | J23: =IF(ISNA($A23),"",IFERROR(SUMIFS(D_D[PROD_FYTD],D_D[MT],5,D_D[CAT],SMS, D_D[EP],-1,D_D[LOC],$A23),0)) -> 1923 | K23: =IF(ISNA($A23),"",IFERROR(SUMIFS(D_D[ADCF],D_D[MT],5,D_D[CAT],SMS, D_D[EP],-1,D_D[LOC],$A23),0)) -> 171.94 | L23: =IF(ISNA($A23),"",IFERROR(SUMIFS(D_D[INV],D_D[MT],8,D_D[CAT],SMS,D_D[LOC],$A23),0)) -> 0 | M23: =IF(ISNA($A23),"",IFERROR(SUMIFS(D_D[BL],D_D[MT],8,D_D[CAT],SMS,D_D[LOC],$A23),0)) -> 0 | N23: =IF(ISNA($A23),"",IFERROR(SUMIFS(D_D[ADP],D_D[MT],8,D_D[CAT],SMS,D_D[LOC],$A23),0)) -> 0 | O23: =IF(ISNA($A23),"",IFERROR(SUMIFS(D_D[PROD_MTD],D_D[MT],8,D_D[CAT],SMS,D_D[LOC],$A23),0)) -> 0 | P23: =IF(ISNA($A23),"",IFERROR(SUMIFS(D_D[PROD_FYTD],D_D[MT],8,D_D[CAT],SMS,D_D[LOC],$A23),0)) -> 0 | Q23: =IF(ISNA($A23),"",IFERROR(SUMIFS(D_D[ADCM],D_D[MT],8,D_D[CAT],SMS,D_D[LOC],$A23),0)) -> 0
A24: 341 | B24: 12 | C24: Salt Lake City | D24: =IF(ISNA($A24),"",IFERROR(SUMIFS(D_D[INV],D_D[MT],5,D_D[CAT],SMS, D_D[EP],-1,D_D[LOC],$A24),0)) -> 1294 | E24: =IF(ISNA($A24),"",IFERROR(SUMIFS(D_D[BL],D_D[MT],5,D_D[CAT],SMS, D_D[EP],-1,D_D[LOC],$A24),0)) -> 656 | F24: 0.5069551777 | G24: =IF(ISNA($A24),"",IFERROR(SUMIFS(D_D[ADP],D_D[MT],5,D_D[CAT],SMS, D_D[EP],-1,D_D[LOC],$A24),0)) -> 153.62 | H24: =IF(ISNA($A24),"",IFERROR(SUMIFS(D_D[PROD_MTD],D_D[MT],5,D_D[CAT],SMS, D_D[EP],-1,D_D[LOC],$A24),0)) -> 1121 | I24: =IF(ISNA($A24),"",IFERROR(SUMIFS(D_D[ADCM],D_D[MT],5,D_D[CAT],SMS, D_D[EP],-1,D_D[LOC],$A24),0)) -> 216.78 | J24: =IF(ISNA($A24),"",IFERROR(SUMIFS(D_D[PROD_FYTD],D_D[MT],5,D_D[CAT],SMS, D_D[EP],-1,D_D[LOC],$A24),0)) -> 3659 | K24: =IF(ISNA($A24),"",IFERROR(SUMIFS(D_D[ADCF],D_D[MT],5,D_D[CAT],SMS, D_D[EP],-1,D_D[LOC],$A24),0)) -> 226.71 | L24: =IF(ISNA($A24),"",IFERROR(SUMIFS(D_D[INV],D_D[MT],8,D_D[CAT],SMS,D_D[LOC],$A24),0)) -> 0 | M24: =IF(ISNA($A24),"",IFERROR(SUMIFS(D_D[BL],D_D[MT],8,D_D[CAT],SMS,D_D[LOC],$A24),0)) -> 0 | N24: =IF(ISNA($A24),"",IFERROR(SUMIFS(D_D[ADP],D_D[MT],8,D_D[CAT],SMS,D_D[LOC],$A24),0)) -> 0 | O24: =IF(ISNA($A24),"",IFERROR(SUMIFS(D_D[PROD_MTD],D_D[MT],8,D_D[CAT],SMS,D_D[LOC],$A24),0)) -> 0 | P24: =IF(ISNA($A24),"",IFERROR(SUMIFS(D_D[PROD_FYTD],D_D[MT],8,D_D[CAT],SMS,D_D[LOC],$A24),0)) -> 0 | Q24: =IF(ISNA($A24),"",IFERROR(SUMIFS(D_D[ADCM],D_D[MT],8,D_D[CAT],SMS,D_D[LOC],$A24),0)) -> 0
A25: 377 | B25: 13 | C25: San Diego | D25: =IF(ISNA($A25),"",IFERROR(SUMIFS(D_D[INV],D_D[MT],5,D_D[CAT],SMS, D_D[EP],-1,D_D[LOC],$A25),0)) -> 2234 | E25: =IF(ISNA($A25),"",IFERROR(SUMIFS(D_D[BL],D_D[MT],5,D_D[CAT],SMS, D_D[EP],-1,D_D[LOC],$A25),0)) -> 538 | F25: 0.2408236347 | G25: =IF(ISNA($A25),"",IFERROR(SUMIFS(D_D[ADP],D_D[MT],5,D_D[CAT],SMS, D_D[EP],-1,D_D[LOC],$A25),0)) -> 108.1 | H25: =IF(ISNA($A25),"",IFERROR(SUMIFS(D_D[PROD_MTD],D_D[MT],5,D_D[CAT],SMS, D_D[EP],-1,D_D[LOC],$A25),0)) -> 5242 | I25: =IF(ISNA($A25),"",IFERROR(SUMIFS(D_D[ADCM],D_D[MT],5,D_D[CAT],SMS, D_D[EP],-1,D_D[LOC],$A25),0)) -> 102.26 | J25: =IF(ISNA($A25),"",IFERROR(SUMIFS(D_D[PROD_FYTD],D_D[MT],5,D_D[CAT],SMS, D_D[EP],-1,D_D[LOC],$A25),0)) -> 18757 | K25: =IF(ISNA($A25),"",IFERROR(SUMIFS(D_D[ADCF],D_D[MT],5,D_D[CAT],SMS, D_D[EP],-1,D_D[LOC],$A25),0)) -> 99.14 | L25: =IF(ISNA($A25),"",IFERROR(SUMIFS(D_D[INV],D_D[MT],8,D_D[CAT],SMS,D_D[LOC],$A25),0)) -> 0 | M25: =IF(ISNA($A25),"",IFERROR(SUMIFS(D_D[BL],D_D[MT],8,D_D[CAT],SMS,D_D[LOC],$A25),0)) -> 0 | N25: =IF(ISNA($A25),"",IFERROR(SUMIFS(D_D[ADP],D_D[MT],8,D_D[CAT],SMS,D_D[LOC],$A25),0)) -> 0 | O25: =IF(ISNA($A25),"",IFERROR(SUMIFS(D_D[PROD_MTD],D_D[MT],8,D_D[CAT],SMS,D_D[LOC],$A25),0)) -> 0 | P25: =IF(ISNA($A25),"",IFERROR(SUMIFS(D_D[PROD_FYTD],D_D[MT],8,D_D[CAT],SMS,D_D[LOC],$A25),0)) -> 0 | Q25: =IF(ISNA($A25),"",IFERROR(SUMIFS(D_D[ADCM],D_D[MT],8,D_D[CAT],SMS,D_D[LOC],$A25),0)) -> 0
A26: 346 | B26: 14 | C26: Seattle | D26: =IF(ISNA($A26),"",IFERROR(SUMIFS(D_D[INV],D_D[MT],5,D_D[CAT],SMS, D_D[EP],-1,D_D[LOC],$A26),0)) -> 3095 | E26: =IF(ISNA($A26),"",IFERROR(SUMIFS(D_D[BL],D_D[MT],5,D_D[CAT],SMS, D_D[EP],-1,D_D[LOC],$A26),0)) -> 740 | F26: 0.239095315 | G26: =IF(ISNA($A26),"",IFERROR(SUMIFS(D_D[ADP],D_D[MT],5,D_D[CAT],SMS, D_D[EP],-1,D_D[LOC],$A26),0)) -> 105.32 | H26: =IF(ISNA($A26),"",IFERROR(SUMIFS(D_D[PROD_MTD],D_D[MT],5,D_D[CAT],SMS, D_D[EP],-1,D_D[LOC],$A26),0)) -> 6429 | I26: =IF(ISNA($A26),"",IFERROR(SUMIFS(D_D[ADCM],D_D[MT],5,D_D[CAT],SMS, D_D[EP],-1,D_D[LOC],$A26),0)) -> 85.99 | J26: =IF(ISNA($A26),"",IFERROR(SUMIFS(D_D[PROD_FYTD],D_D[MT],5,D_D[CAT],SMS, D_D[EP],-1,D_D[LOC],$A26),0)) -> 23096 | K26: =IF(ISNA($A26),"",IFERROR(SUMIFS(D_D[ADCF],D_D[MT],5,D_D[CAT],SMS, D_D[EP],-1,D_D[LOC],$A26),0)) -> 84.78 | L26: =IF(ISNA($A26),"",IFERROR(SUMIFS(D_D[INV],D_D[MT],8,D_D[CAT],SMS,D_D[LOC],$A26),0)) -> 0 | M26: =IF(ISNA($A26),"",IFERROR(SUMIFS(D_D[BL],D_D[MT],8,D_D[CAT],SMS,D_D[LOC],$A26),0)) -> 0 | N26: =IF(ISNA($A26),"",IFERROR(SUMIFS(D_D[ADP],D_D[MT],8,D_D[CAT],SMS,D_D[LOC],$A26),0)) -> 0 | O26: =IF(ISNA($A26),"",IFERROR(SUMIFS(D_D[PROD_MTD],D_D[MT],8,D_D[CAT],SMS,D_D[LOC],$A26),0)) -> 0 | P26: =IF(ISNA($A26),"",IFERROR(SUMIFS(D_D[PROD_FYTD],D_D[MT],8,D_D[CAT],SMS,D_D[LOC],$A26),0)) -> 0 | Q26: =IF(ISNA($A26),"",IFERROR(SUMIFS(D_D[ADCM],D_D[MT],8,D_D[CAT],SMS,D_D[LOC],$A26),0)) -> 0
B27: 15 | D27: =IF(ISNA($A27),"",IFERROR(SUMIFS(D_D[INV],D_D[MT],5,D_D[CAT],SMS, D_D[EP],-1,D_D[LOC],$A27),0)) ->  | E27: =IF(ISNA($A27),"",IFERROR(SUMIFS(D_D[BL],D_D[MT],5,D_D[CAT],SMS, D_D[EP],-1,D_D[LOC],$A27),0)) ->  | G27: =IF(ISNA($A27),"",IFERROR(SUMIFS(D_D[ADP],D_D[MT],5,D_D[CAT],SMS, D_D[EP],-1,D_D[LOC],$A27),0)) ->  | H27: =IF(ISNA($A27),"",IFERROR(SUMIFS(D_D[PROD_MTD],D_D[MT],5,D_D[CAT],SMS, D_D[EP],-1,D_D[LOC],$A27),0)) ->  | I27: =IF(ISNA($A27),"",IFERROR(SUMIFS(D_D[ADCM],D_D[MT],5,D_D[CAT],SMS, D_D[EP],-1,D_D[LOC],$A27),0)) ->  | J27: =IF(ISNA($A27),"",IFERROR(SUMIFS(D_D[PROD_FYTD],D_D[MT],5,D_D[CAT],SMS, D_D[EP],-1,D_D[LOC],$A27),0)) ->  | K27: =IF(ISNA($A27),"",IFERROR(SUMIFS(D_D[ADCF],D_D[MT],5,D_D[CAT],SMS, D_D[EP],-1,D_D[LOC],$A27),0)) ->  | L27: =IF(ISNA($A27),"",IFERROR(SUMIFS(D_D[INV],D_D[MT],8,D_D[CAT],SMS,D_D[LOC],$A27),0)) ->  | M27: =IF(ISNA($A27),"",IFERROR(SUMIFS(D_D[BL],D_D[MT],8,D_D[CAT],SMS,D_D[LOC],$A27),0)) ->  | N27: =IF(ISNA($A27),"",IFERROR(SUMIFS(D_D[ADP],D_D[MT],8,D_D[CAT],SMS,D_D[LOC],$A27),0)) ->  | O27: =IF(ISNA($A27),"",IFERROR(SUMIFS(D_D[PROD_MTD],D_D[MT],8,D_D[CAT],SMS,D_D[LOC],$A27),0)) ->  | P27: =IF(ISNA($A27),"",IFERROR(SUMIFS(D_D[PROD_FYTD],D_D[MT],8,D_D[CAT],SMS,D_D[LOC],$A27),0)) ->  | Q27: =IF(ISNA($A27),"",IFERROR(SUMIFS(D_D[ADCM],D_D[MT],8,D_D[CAT],SMS,D_D[LOC],$A27),0)) -> 
B28: 16 | D28: =IF(ISNA($A28),"",IFERROR(SUMIFS(D_D[INV],D_D[MT],5,D_D[CAT],SMS, D_D[EP],-1,D_D[LOC],$A28),0)) ->  | E28: =IF(ISNA($A28),"",IFERROR(SUMIFS(D_D[BL],D_D[MT],5,D_D[CAT],SMS, D_D[EP],-1,D_D[LOC],$A28),0)) ->  | G28: =IF(ISNA($A28),"",IFERROR(SUMIFS(D_D[ADP],D_D[MT],5,D_D[CAT],SMS, D_D[EP],-1,D_D[LOC],$A28),0)) ->  | H28: =IF(ISNA($A28),"",IFERROR(SUMIFS(D_D[PROD_MTD],D_D[MT],5,D_D[CAT],SMS, D_D[EP],-1,D_D[LOC],$A28),0)) ->  | I28: =IF(ISNA($A28),"",IFERROR(SUMIFS(D_D[ADCM],D_D[MT],5,D_D[CAT],SMS, D_D[EP],-1,D_D[LOC],$A28),0)) ->  | J28: =IF(ISNA($A28),"",IFERROR(SUMIFS(D_D[PROD_FYTD],D_D[MT],5,D_D[CAT],SMS, D_D[EP],-1,D_D[LOC],$A28),0)) ->  | K28: =IF(ISNA($A28),"",IFERROR(SUMIFS(D_D[ADCF],D_D[MT],5,D_D[CAT],SMS, D_D[EP],-1,D_D[LOC],$A28),0)) ->  | L28: =IF(ISNA($A28),"",IFERROR(SUMIFS(D_D[INV],D_D[MT],8,D_D[CAT],SMS,D_D[LOC],$A28),0)) ->  | M28: =IF(ISNA($A28),"",IFERROR(SUMIFS(D_D[BL],D_D[MT],8,D_D[CAT],SMS,D_D[LOC],$A28),0)) ->  | N28: =IF(ISNA($A28),"",IFERROR(SUMIFS(D_D[ADP],D_D[MT],8,D_D[CAT],SMS,D_D[LOC],$A28),0)) ->  | O28: =IF(ISNA($A28),"",IFERROR(SUMIFS(D_D[PROD_MTD],D_D[MT],8,D_D[CAT],SMS,D_D[LOC],$A28),0)) ->  | P28: =IF(ISNA($A28),"",IFERROR(SUMIFS(D_D[PROD_FYTD],D_D[MT],8,D_D[CAT],SMS,D_D[LOC],$A28),0)) ->  | Q28: =IF(ISNA($A28),"",IFERROR(SUMIFS(D_D[ADCM],D_D[MT],8,D_D[CAT],SMS,D_D[LOC],$A28),0)) -> 
B29: 17 | D29: =IF(ISNA($A29),"",IFERROR(SUMIFS(D_D[INV],D_D[MT],5,D_D[CAT],SMS, D_D[EP],-1,D_D[LOC],$A29),0)) ->  | E29: =IF(ISNA($A29),"",IFERROR(SUMIFS(D_D[BL],D_D[MT],5,D_D[CAT],SMS, D_D[EP],-1,D_D[LOC],$A29),0)) ->  | G29: =IF(ISNA($A29),"",IFERROR(SUMIFS(D_D[ADP],D_D[MT],5,D_D[CAT],SMS, D_D[EP],-1,D_D[LOC],$A29),0)) ->  | H29: =IF(ISNA($A29),"",IFERROR(SUMIFS(D_D[PROD_MTD],D_D[MT],5,D_D[CAT],SMS, D_D[EP],-1,D_D[LOC],$A29),0)) ->  | I29: =IF(ISNA($A29),"",IFERROR(SUMIFS(D_D[ADCM],D_D[MT],5,D_D[CAT],SMS, D_D[EP],-1,D_D[LOC],$A29),0)) ->  | J29: =IF(ISNA($A29),"",IFERROR(SUMIFS(D_D[PROD_FYTD],D_D[MT],5,D_D[CAT],SMS, D_D[EP],-1,D_D[LOC],$A29),0)) ->  | K29: =IF(ISNA($A29),"",IFERROR(SUMIFS(D_D[ADCF],D_D[MT],5,D_D[CAT],SMS, D_D[EP],-1,D_D[LOC],$A29),0)) ->  | L29: =IF(ISNA($A29),"",IFERROR(SUMIFS(D_D[INV],D_D[MT],8,D_D[CAT],SMS,D_D[LOC],$A29),0)) ->  | M29: =IF(ISNA($A29),"",IFERROR(SUMIFS(D_D[BL],D_D[MT],8,D_D[CAT],SMS,D_D[LOC],$A29),0)) ->  | N29: =IF(ISNA($A29),"",IFERROR(SUMIFS(D_D[ADP],D_D[MT],8,D_D[CAT],SMS,D_D[LOC],$A29),0)) ->  | O29: =IF(ISNA($A29),"",IFERROR(SUMIFS(D_D[PROD_MTD],D_D[MT],8,D_D[CAT],SMS,D_D[LOC],$A29),0)) ->  | P29: =IF(ISNA($A29),"",IFERROR(SUMIFS(D_D[PROD_FYTD],D_D[MT],8,D_D[CAT],SMS,D_D[LOC],$A29),0)) ->  | Q29: =IF(ISNA($A29),"",IFERROR(SUMIFS(D_D[ADCM],D_D[MT],8,D_D[CAT],SMS,D_D[LOC],$A29),0)) -> 
B30: 18 | D30: =IF(ISNA($A30),"",IFERROR(SUMIFS(D_D[INV],D_D[MT],5,D_D[CAT],SMS, D_D[EP],-1,D_D[LOC],$A30),0)) ->  | E30: =IF(ISNA($A30),"",IFERROR(SUMIFS(D_D[BL],D_D[MT],5,D_D[CAT],SMS, D_D[EP],-1,D_D[LOC],$A30),0)) ->  | G30: =IF(ISNA($A30),"",IFERROR(SUMIFS(D_D[ADP],D_D[MT],5,D_D[CAT],SMS, D_D[EP],-1,D_D[LOC],$A30),0)) ->  | H30: =IF(ISNA($A30),"",IFERROR(SUMIFS(D_D[PROD_MTD],D_D[MT],5,D_D[CAT],SMS, D_D[EP],-1,D_D[LOC],$A30),0)) ->  | I30: =IF(ISNA($A30),"",IFERROR(SUMIFS(D_D[ADCM],D_D[MT],5,D_D[CAT],SMS, D_D[EP],-1,D_D[LOC],$A30),0)) ->  | J30: =IF(ISNA($A30),"",IFERROR(SUMIFS(D_D[PROD_FYTD],D_D[MT],5,D_D[CAT],SMS, D_D[EP],-1,D_D[LOC],$A30),0)) ->  | K30: =IF(ISNA($A30),"",IFERROR(SUMIFS(D_D[ADCF],D_D[MT],5,D_D[CAT],SMS, D_D[EP],-1,D_D[LOC],$A30),0)) ->  | L30: =IF(ISNA($A30),"",IFERROR(SUMIFS(D_D[INV],D_D[MT],8,D_D[CAT],SMS,D_D[LOC],$A30),0)) ->  | M30: =IF(ISNA($A30),"",IFERROR(SUMIFS(D_D[BL],D_D[MT],8,D_D[CAT],SMS,D_D[LOC],$A30),0)) ->  | N30: =IF(ISNA($A30),"",IFERROR(SUMIFS(D_D[ADP],D_D[MT],8,D_D[CAT],SMS,D_D[LOC],$A30),0)) ->  | O30: =IF(ISNA($A30),"",IFERROR(SUMIFS(D_D[PROD_MTD],D_D[MT],8,D_D[CAT],SMS,D_D[LOC],$A30),0)) ->  | P30: =IF(ISNA($A30),"",IFERROR(SUMIFS(D_D[PROD_FYTD],D_D[MT],8,D_D[CAT],SMS,D_D[LOC],$A30),0)) ->  | Q30: =IF(ISNA($A30),"",IFERROR(SUMIFS(D_D[ADCM],D_D[MT],8,D_D[CAT],SMS,D_D[LOC],$A30),0)) -> 
B31: 19 | D31: =IF(ISNA($A31),"",IFERROR(SUMIFS(D_D[INV],D_D[MT],5,D_D[CAT],SMS, D_D[EP],-1,D_D[LOC],$A31),0)) ->  | E31: =IF(ISNA($A31),"",IFERROR(SUMIFS(D_D[BL],D_D[MT],5,D_D[CAT],SMS, D_D[EP],-1,D_D[LOC],$A31),0)) ->  | G31: =IF(ISNA($A31),"",IFERROR(SUMIFS(D_D[ADP],D_D[MT],5,D_D[CAT],SMS, D_D[EP],-1,D_D[LOC],$A31),0)) ->  | H31: =IF(ISNA($A31),"",IFERROR(SUMIFS(D_D[PROD_MTD],D_D[MT],5,D_D[CAT],SMS, D_D[EP],-1,D_D[LOC],$A31),0)) ->  | I31: =IF(ISNA($A31),"",IFERROR(SUMIFS(D_D[ADCM],D_D[MT],5,D_D[CAT],SMS, D_D[EP],-1,D_D[LOC],$A31),0)) ->  | J31: =IF(ISNA($A31),"",IFERROR(SUMIFS(D_D[PROD_FYTD],D_D[MT],5,D_D[CAT],SMS, D_D[EP],-1,D_D[LOC],$A31),0)) ->  | K31: =IF(ISNA($A31),"",IFERROR(SUMIFS(D_D[ADCF],D_D[MT],5,D_D[CAT],SMS, D_D[EP],-1,D_D[LOC],$A31),0)) ->  | L31: =IF(ISNA($A31),"",IFERROR(SUMIFS(D_D[INV],D_D[MT],8,D_D[CAT],SMS,D_D[LOC],$A31),0)) ->  | M31: =IF(ISNA($A31),"",IFERROR(SUMIFS(D_D[BL],D_D[MT],8,D_D[CAT],SMS,D_D[LOC],$A31),0)) ->  | N31: =IF(ISNA($A31),"",IFERROR(SUMIFS(D_D[ADP],D_D[MT],8,D_D[CAT],SMS,D_D[LOC],$A31),0)) ->  | O31: =IF(ISNA($A31),"",IFERROR(SUMIFS(D_D[PROD_MTD],D_D[MT],8,D_D[CAT],SMS,D_D[LOC],$A31),0)) ->  | P31: =IF(ISNA($A31),"",IFERROR(SUMIFS(D_D[PROD_FYTD],D_D[MT],8,D_D[CAT],SMS,D_D[LOC],$A31),0)) ->  | Q31: =IF(ISNA($A31),"",IFERROR(SUMIFS(D_D[ADCM],D_D[MT],8,D_D[CAT],SMS,D_D[LOC],$A31),0)) -> 
B32: 20 | D32: =IF(ISNA($A32),"",IFERROR(SUMIFS(D_D[INV],D_D[MT],5,D_D[CAT],SMS, D_D[EP],-1,D_D[LOC],$A32),0)) ->  | E32: =IF(ISNA($A32),"",IFERROR(SUMIFS(D_D[BL],D_D[MT],5,D_D[CAT],SMS, D_D[EP],-1,D_D[LOC],$A32),0)) ->  | G32: =IF(ISNA($A32),"",IFERROR(SUMIFS(D_D[ADP],D_D[MT],5,D_D[CAT],SMS, D_D[EP],-1,D_D[LOC],$A32),0)) ->  | H32: =IF(ISNA($A32),"",IFERROR(SUMIFS(D_D[PROD_MTD],D_D[MT],5,D_D[CAT],SMS, D_D[EP],-1,D_D[LOC],$A32),0)) ->  | I32: =IF(ISNA($A32),"",IFERROR(SUMIFS(D_D[ADCM],D_D[MT],5,D_D[CAT],SMS, D_D[EP],-1,D_D[LOC],$A32),0)) ->  | J32: =IF(ISNA($A32),"",IFERROR(SUMIFS(D_D[PROD_FYTD],D_D[MT],5,D_D[CAT],SMS, D_D[EP],-1,D_D[LOC],$A32),0)) ->  | K32: =IF(ISNA($A32),"",IFERROR(SUMIFS(D_D[ADCF],D_D[MT],5,D_D[CAT],SMS, D_D[EP],-1,D_D[LOC],$A32),0)) ->  | L32: =IF(ISNA($A32),"",IFERROR(SUMIFS(D_D[INV],D_D[MT],8,D_D[CAT],SMS,D_D[LOC],$A32),0)) ->  | M32: =IF(ISNA($A32),"",IFERROR(SUMIFS(D_D[BL],D_D[MT],8,D_D[CAT],SMS,D_D[LOC],$A32),0)) ->  | N32: =IF(ISNA($A32),"",IFERROR(SUMIFS(D_D[ADP],D_D[MT],8,D_D[CAT],SMS,D_D[LOC],$A32),0)) ->  | O32: =IF(ISNA($A32),"",IFERROR(SUMIFS(D_D[PROD_MTD],D_D[MT],8,D_D[CAT],SMS,D_D[LOC],$A32),0)) ->  | P32: =IF(ISNA($A32),"",IFERROR(SUMIFS(D_D[PROD_FYTD],D_D[MT],8,D_D[CAT],SMS,D_D[LOC],$A32),0)) ->  | Q32: =IF(ISNA($A32),"",IFERROR(SUMIFS(D_D[ADCM],D_D[MT],8,D_D[CAT],SMS,D_D[LOC],$A32),0)) -> 
B33: 21 | D33: =IF(ISNA($A33),"",IFERROR(SUMIFS(D_D[INV],D_D[MT],5,D_D[CAT],SMS, D_D[EP],-1,D_D[LOC],$A33),0)) ->  | E33: =IF(ISNA($A33),"",IFERROR(SUMIFS(D_D[BL],D_D[MT],5,D_D[CAT],SMS, D_D[EP],-1,D_D[LOC],$A33),0)) ->  | G33: =IF(ISNA($A33),"",IFERROR(SUMIFS(D_D[ADP],D_D[MT],5,D_D[CAT],SMS, D_D[EP],-1,D_D[LOC],$A33),0)) ->  | H33: =IF(ISNA($A33),"",IFERROR(SUMIFS(D_D[PROD_MTD],D_D[MT],5,D_D[CAT],SMS, D_D[EP],-1,D_D[LOC],$A33),0)) ->  | I33: =IF(ISNA($A33),"",IFERROR(SUMIFS(D_D[ADCM],D_D[MT],5,D_D[CAT],SMS, D_D[EP],-1,D_D[LOC],$A33),0)) ->  | J33: =IF(ISNA($A33),"",IFERROR(SUMIFS(D_D[PROD_FYTD],D_D[MT],5,D_D[CAT],SMS, D_D[EP],-1,D_D[LOC],$A33),0)) ->  | K33: =IF(ISNA($A33),"",IFERROR(SUMIFS(D_D[ADCF],D_D[MT],5,D_D[CAT],SMS, D_D[EP],-1,D_D[LOC],$A33),0)) ->  | L33: =IF(ISNA($A33),"",IFERROR(SUMIFS(D_D[INV],D_D[MT],8,D_D[CAT],SMS,D_D[LOC],$A33),0)) ->  | M33: =IF(ISNA($A33),"",IFERROR(SUMIFS(D_D[BL],D_D[MT],8,D_D[CAT],SMS,D_D[LOC],$A33),0)) ->  | N33: =IF(ISNA($A33),"",IFERROR(SUMIFS(D_D[ADP],D_D[MT],8,D_D[CAT],SMS,D_D[LOC],$A33),0)) ->  | O33: =IF(ISNA($A33),"",IFERROR(SUMIFS(D_D[PROD_MTD],D_D[MT],8,D_D[CAT],SMS,D_D[LOC],$A33),0)) ->  | P33: =IF(ISNA($A33),"",IFERROR(SUMIFS(D_D[PROD_FYTD],D_D[MT],8,D_D[CAT],SMS,D_D[LOC],$A33),0)) ->  | Q33: =IF(ISNA($A33),"",IFERROR(SUMIFS(D_D[ADCM],D_D[MT],8,D_D[CAT],SMS,D_D[LOC],$A33),0)) -> 
B34: 22 | D34: =IF(ISNA($A34),"",IFERROR(SUMIFS(D_D[INV],D_D[MT],5,D_D[CAT],SMS, D_D[EP],-1,D_D[LOC],$A34),0)) ->  | E34: =IF(ISNA($A34),"",IFERROR(SUMIFS(D_D[BL],D_D[MT],5,D_D[CAT],SMS, D_D[EP],-1,D_D[LOC],$A34),0)) ->  | G34: =IF(ISNA($A34),"",IFERROR(SUMIFS(D_D[ADP],D_D[MT],5,D_D[CAT],SMS, D_D[EP],-1,D_D[LOC],$A34),0)) ->  | H34: =IF(ISNA($A34),"",IFERROR(SUMIFS(D_D[PROD_MTD],D_D[MT],5,D_D[CAT],SMS, D_D[EP],-1,D_D[LOC],$A34),0)) ->  | I34: =IF(ISNA($A34),"",IFERROR(SUMIFS(D_D[ADCM],D_D[MT],5,D_D[CAT],SMS, D_D[EP],-1,D_D[LOC],$A34),0)) ->  | J34: =IF(ISNA($A34),"",IFERROR(SUMIFS(D_D[PROD_FYTD],D_D[MT],5,D_D[CAT],SMS, D_D[EP],-1,D_D[LOC],$A34),0)) ->  | K34: =IF(ISNA($A34),"",IFERROR(SUMIFS(D_D[ADCF],D_D[MT],5,D_D[CAT],SMS, D_D[EP],-1,D_D[LOC],$A34),0)) ->  | L34: =IF(ISNA($A34),"",IFERROR(SUMIFS(D_D[INV],D_D[MT],8,D_D[CAT],SMS,D_D[LOC],$A34),0)) ->  | M34: =IF(ISNA($A34),"",IFERROR(SUMIFS(D_D[BL],D_D[MT],8,D_D[CAT],SMS,D_D[LOC],$A34),0)) ->  | N34: =IF(ISNA($A34),"",IFERROR(SUMIFS(D_D[ADP],D_D[MT],8,D_D[CAT],SMS,D_D[LOC],$A34),0)) ->  | O34: =IF(ISNA($A34),"",IFERROR(SUMIFS(D_D[PROD_MTD],D_D[MT],8,D_D[CAT],SMS,D_D[LOC],$A34),0)) ->  | P34: =IF(ISNA($A34),"",IFERROR(SUMIFS(D_D[PROD_FYTD],D_D[MT],8,D_D[CAT],SMS,D_D[LOC],$A34),0)) ->  | Q34: =IF(ISNA($A34),"",IFERROR(SUMIFS(D_D[ADCM],D_D[MT],8,D_D[CAT],SMS,D_D[LOC],$A34),0)) -> 
B35: 23 | D35: =IF(ISNA($A35),"",IFERROR(SUMIFS(D_D[INV],D_D[MT],5,D_D[CAT],SMS, D_D[EP],-1,D_D[LOC],$A35),0)) ->  | E35: =IF(ISNA($A35),"",IFERROR(SUMIFS(D_D[BL],D_D[MT],5,D_D[CAT],SMS, D_D[EP],-1,D_D[LOC],$A35),0)) ->  | G35: =IF(ISNA($A35),"",IFERROR(SUMIFS(D_D[ADP],D_D[MT],5,D_D[CAT],SMS, D_D[EP],-1,D_D[LOC],$A35),0)) ->  | H35: =IF(ISNA($A35),"",IFERROR(SUMIFS(D_D[PROD_MTD],D_D[MT],5,D_D[CAT],SMS, D_D[EP],-1,D_D[LOC],$A35),0)) ->  | I35: =IF(ISNA($A35),"",IFERROR(SUMIFS(D_D[ADCM],D_D[MT],5,D_D[CAT],SMS, D_D[EP],-1,D_D[LOC],$A35),0)) ->  | J35: =IF(ISNA($A35),"",IFERROR(SUMIFS(D_D[PROD_FYTD],D_D[MT],5,D_D[CAT],SMS, D_D[EP],-1,D_D[LOC],$A35),0)) ->  | K35: =IF(ISNA($A35),"",IFERROR(SUMIFS(D_D[ADCF],D_D[MT],5,D_D[CAT],SMS, D_D[EP],-1,D_D[LOC],$A35),0)) ->  | L35: =IF(ISNA($A35),"",IFERROR(SUMIFS(D_D[INV],D_D[MT],8,D_D[CAT],SMS,D_D[LOC],$A35),0)) ->  | M35: =IF(ISNA($A35),"",IFERROR(SUMIFS(D_D[BL],D_D[MT],8,D_D[CAT],SMS,D_D[LOC],$A35),0)) ->  | N35: =IF(ISNA($A35),"",IFERROR(SUMIFS(D_D[ADP],D_D[MT],8,D_D[CAT],SMS,D_D[LOC],$A35),0)) ->  | O35: =IF(ISNA($A35),"",IFERROR(SUMIFS(D_D[PROD_MTD],D_D[MT],8,D_D[CAT],SMS,D_D[LOC],$A35),0)) ->  | P35: =IF(ISNA($A35),"",IFERROR(SUMIFS(D_D[PROD_FYTD],D_D[MT],8,D_D[CAT],SMS,D_D[LOC],$A35),0)) ->  | Q35: =IF(ISNA($A35),"",IFERROR(SUMIFS(D_D[ADCM],D_D[MT],8,D_D[CAT],SMS,D_D[LOC],$A35),0)) -> 

Sheet Driver (hidden)
A1: DIST_ID | B1: DIST_DEF | F1: ROO | G1: RO | H1: ROI | I1: ROD | J1: RODS | L1: STO | M1: ST | N1: STI | O1: STD | P1: STDS | R1: ROO | S1: RO | T1: ROI | U1: ROD
A2: 1 | B2: DIST_NE | F2: 1 | G2: 0 | H2: 100 | I2: USA | J2: 1 | L2: 1 | M2: 0 | N2: 100 | O2: USA | P2: 100 | R2: 1 | S2: 0 | T2: 100 | U2: USA | AA2: -Total
A3: 2 | B3: DIST_SE | F3: 2 | G3: 1 | H3: 394 | I3: Northeast District | J3: 394 | L3: 2 | M3: 1 | N3: 394 | O3: Northeast District | P3: 394 | R3: 2 | S3: 1 | T3: 310 | U3: Philadelphia | X3: Northeast District
A4: 3 | B4: DIST_CN | F4: 3 | G4: 1 | H4: 313 | I4: Baltimore | J4: 394 | L4: 3 | M4: 1 | N4: CT | O4: Connecticut | P4: 394 | R4: 3 | S4: 1 | T4: 330 | U4: Milwaukee | X4: Connecticut | Y4: CT100 | Z4: =X4&$AA$2 -> Connecticut-Total | AA4: -Other RO
A5: 4 | B5: DIST_PC | F5: 4 | G5: 1 | H5: 301 | I5: Boston | J5: 394 | L5: 4 | M5: 1 | N5: DE | O5: Delaware | P5: 394 | R5: 4 | S5: 1 | T5: 335 | U5: St. Paul | Y5: CT308 | Z5: Hartford RO | AA5: -NWQ
A6: 5 | B6: DIST_OT | F6: 5 | G6: 1 | H6: 307 | I6: Buffalo | J6: 394 | L6: 5 | M6: 1 | N6: DC | O6: District of Columbia | P6: 394 | R6: 5 | S6: 1 | T6: -1 | U6: Other | Y6: CT-1 | Z6: =X4&$AA$4 -> Connecticut-Other RO
F7: 6 | G7: 1 | H7: 328 | I7: Chicago | J7: 394 | L7: 6 | M7: 1 | N7: IL | O7: Illinois | P7: 394 | R7: 6 | S7: 2 | T7: 318 | U7: Winston-Salem | Y7: CT499 | Z7: =X4&$AA$5 -> Connecticut-NWQ
F8: 7 | G8: 1 | H8: 325 | I8: Cleveland | J8: 394 | L8: 7 | M8: 1 | N8: IN | O8: Indiana | P8: 394 | R8: 7 | S8: 2 | T8: 341 | U8: Salt Lake City | X8: Delaware | Y8: DE100 | Z8: =X8&$AA$2 -> Delaware-Total
B9: CONTROLLER for SOJ District Selection | F9: 8 | G9: 1 | H9: 329 | I9: Detroit | J9: 394 | L9: 8 | M9: 1 | N9: ME | O9: Maine | P9: 394 | R9: 8 | S9: 2 | T9: -1 | U9: Other | Y9: DE460 | Z9: Wilmington RO
B10: ACTIVE SELECTION | D10: 4 | F10: 9 | G10: 1 | H10: 308 | I10: Hartford | J10: 394 | L10: 9 | M10: 1 | N10: MD | O10: Maryland | P10: 394 | R10: 9 | S10: 3 | T10: 318 | U10: Winston-Salem | Y10: DE-1 | Z10: =X8&$AA$4 -> Delaware-Other RO
B11: MODIFIED SELECTION | C11: =IF(D20=12,"DIST_P",IF(D20=14,"DIST_Q",DS_RO_STG)) -> DIST_PC | F11: 10 | G11: 1 | H11: 326 | I11: Indianapolis | J11: 394 | L11: 10 | M11: 1 | N11: MA | O11: Massachusetts | P11: 394 | R11: 10 | S11: 3 | T11: 377 | U11: San Diego | Y11: DE499 | Z11: =X8&$AA$5 -> Delaware-NWQ
F12: 11 | G12: 1 | H12: 373 | I12: Manchester | J12: 394 | L12: 11 | M12: 1 | N12: MI | O12: Michigan | P12: 394 | R12: 11 | S12: 3 | T12: -1 | U12: Other | X12: DC | Y12: DC100 | Z12: =X12&$AA$2 -> DC-Total
B13: DISTRICT-RO | C13: =INDEX(DIST_DEF,(MATCH($D$10,DIST_ID,0))) -> DIST_PC | F13: 12 | G13: 1 | H13: 330 | I13: Milwaukee | J13: 394 | L13: 12 | M13: 1 | N13: MO | O13: Missouri | P13: 394 | Y13: DC372 | Z13: Washington DC RO
B14: DISTRICT-STATE | C14: =INDEX(DIST_DEF,(MATCH($D$10,DIST_ID,0)))&"_ST" -> DIST_PC_ST | F14: 13 | G14: 1 | H14: 306 | I14: New York | J14: 394 | L14: 13 | M14: 1 | N14: NH | O14: New Hampshire | P14: 394 | Y14: DC-1 | Z14: =X12&$AA$4 -> DC-Other RO
B15: DISTRICT-NWQ | C15: =INDEX(DIST_DEF,(MATCH($D$10,DIST_ID,0)))&"_NWQ" -> DIST_PC_NWQ | D15: =INDEX(DIST_DEF,(MATCH($D$10,DIST_ID,0)))&"_NWQD" -> DIST_PC_NWQD | F15: 14 | G15: 1 | H15: 309 | I15: Newark | J15: 394 | L15: 14 | M15: 1 | N15: NJ | O15: New Jersey | P15: 394 | T15: ROI | U15: ROD | Y15: DC499 | Z15: =X12&$AA$5 -> DC-NWQ
C16: =INDEX(DIST_DEF,(MATCH($D$10,DIST_ID,0)))&"_NWQI" -> DIST_PC_NWQI | F16: 15 | G16: 1 | H16: 310 | I16: Philadelphia | J16: 394 | L16: 15 | M16: 1 | N16: NY | O16: New York | P16: 394 | T16: 100 | U16: USA | X16: Illinois | Y16: IL100 | Z16: =X16&$AA$2 -> Illinois-Total
F17: 16 | G17: 1 | H17: 311 | I17: Pittsburgh | J17: 394 | L17: 16 | M17: 1 | N17: OH | O17: Ohio | P17: 394 | T17: 310 | U17: Philadelphia | Y17: IL328 | Z17: Chicago RO
B18: CONTROLLER for Mission Selection | F18: 17 | G18: 1 | H18: 304 | I18: Providence | J18: 394 | L18: 17 | M18: 1 | N18: PA | O18: Pennsylvania | P18: 394 | T18: 330 | U18: Milwaukee | Y18: IL-1 | Z18: =X16&$AA$4 -> Illinois-Other RO
B19: ACTIVE SELECTION | D19: 1 | F19: 18 | G19: 1 | H19: 376 | I19: St. Louis RMC | J19: 394 | L19: 18 | M19: 1 | N19: RI | O19: Rhode Island | P19: 394 | T19: 335 | U19: St. Paul | Y19: IL499 | Z19: =X16&$AA$5 -> Illinois-NWQ
B20: MODIFIED SELECTION | C20: =INDEX(SMD,(MATCH($D$19,DIST_ID,0))) -> USA - All Missions | D20: =IF(SMSA=1,0,SMSA+9) -> 0 | F20: 19 | G20: 1 | H20: 331 | I20: St. Louis | J20: 394 | L20: 19 | M20: 1 | N20: VT | O20: Vermont | P20: 394 | T20: 499 | U20: NWQ | X20: Indiana | Y20: IN100 | Z20: =X20&$AA$2 -> Indiana-Total
B21: USA - All Missions | D21: 1 | F21: 20 | G21: 1 | H21: 402 | I21: Togus | J21: 394 | L21: 20 | M21: 1 | N21: WI | O21: Wisconsin | P21: 394 | T21: -1 | U21: Other | Y21: IN326 | Z21: Indianapolis RO
B22: Compensation | D22: 11 | F22: 21 | G22: 1 | H22: 372 | I22: Washington | J22: 394 | L22: 21 | M22: 2 | N22: 393 | O22: Southeast District | P22: 393 | T22: 318 | U22: Winston-Salem | Y22: IN-1 | Z22: =X20&$AA$4 -> Indiana-Other RO
B23: Pension | D23: 12 | F23: 22 | G23: 1 | H23: 405 | I23: White River Junction | J23: 394 | L23: 22 | M23: 2 | N23: AL | O23: Alabama | P23: 393 | T23: 341 | U23: Salt Lake City | Y23: IN499 | Z23: =X20&$AA$5 -> Indiana-NWQ
B24: BDD | D24: 13 | F24: 23 | G24: 1 | H24: 460 | I24: Wilmington | J24: 394 | L24: 23 | M24: 2 | N24: AR | O24: Arkansas | P24: 393 | T24: 499 | U24: NWQ | X24: Maine | Y24: ME100 | Z24: =X24&$AA$2 -> Maine-Total
B25: Quickstart | D25: 14 | F25: 24 | G25: 2 | H25: 393 | I25: Southeast District | J25: 393 | L25: 24 | M25: 2 | N25: FL | O25: Florida | P25: 393 | T25: -1 | U25: Other | Y25: ME402 | Z25: Togus RO
F26: 25 | G26: 2 | H26: 316 | I26: Atlanta | J26: 393 | L26: 25 | M26: 2 | N26: GA | O26: Georgia | P26: 393 | T26: 318 | U26: Winston-Salem | Y26: ME-1 | Z26: =X24&$AA$4 -> Maine-Other RO
B27: TRADITIONAL AGGREGATE CODES | F27: 26 | G27: 2 | H27: 319 | I27: Columbia | J27: 393 | L27: 26 | M27: 2 | N27: KY | O27: Kentucky | P27: 393 | T27: 377 | U27: San Diego | Y27: ME499 | Z27: =X24&$AA$5 -> Maine-NWQ
B28: ALL | C28: 1000 | F28: 27 | G28: 2 | H28: 315 | I28: Huntington | J28: 393 | L28: 27 | M28: 2 | N28: LA | O28: Louisiana | P28: 393 | T28: 499 | U28: NWQ | X28: Maryland | Y28: MD100 | Z28: =X28&$AA$2 -> Maryland-Total
B29: Non-Rating/Appeals Compensation | C29: 2000 | F29: 28 | G29: 2 | H29: 323 | I29: Jackson | J29: 393 | L29: 28 | M29: 2 | N29: MS | O29: Mississippi | P29: 393 | T29: -1 | U29: Other | Y29: MD313 | Z29: Baltimore RO
B30: Non-Rating/Appeals Pension | C30: 3000 | F30: 29 | G30: 2 | H30: 350 | I30: Little Rock | J30: 393 | L30: 29 | M30: 2 | N30: NC | O30: North Carolina | P30: 393 | Y30: MD-1 | Z30: =X28&$AA$4 -> Maryland-Other RO
B31: Compensation Entitlement | C31: 2100 | F31: 30 | G31: 2 | H31: 327 | I31: Louisville | J31: 393 | L31: 30 | M31: 2 | N31: PR | O31: Puerto Rico | P31: 393 | Y31: MD499 | Z31: =X28&$AA$5 -> Maryland-NWQ
B32: Compensation Award Adjustment | C32: 2200 | F32: 31 | G32: 2 | H32: 322 | I32: Montgomery | J32: 393 | L32: 31 | M32: 2 | N32: SC | O32: South Carolina | P32: 393 | X32: Massachusetts | Y32: MA100 | Z32: =X32&$AA$2 -> Massachusetts-Total
B33: Compensation Program Review | C33: 2300 | F33: 32 | G33: 2 | H33: 320 | I33: Nashville | J33: 393 | L33: 32 | M33: 2 | N33: TN | O33: Tennessee | P33: 393 | Y33: MA301 | Z33: Boston RO
B34: Compensation Other | C34: 2400 | F34: 33 | G34: 2 | H34: 321 | I34: New Orleans | J34: 393 | L34: 33 | M34: 2 | N34: VA | O34: Virginia | P34: 393 | Y34: MA-1 | Z34: =X32&$AA$4 -> Massachusetts-Other RO
B35: Compensation Burial | C35: 2500 | F35: 34 | G35: 2 | H35: 314 | I35: Roanoke | J35: 393 | L35: 34 | M35: 2 | N35: WV | O35: West Virginia | P35: 393 | Y35: MA499 | Z35: =X32&$AA$5 -> Massachusetts-NWQ
B36: Compensation Accrued | C36: 2600 | F36: 35 | G36: 2 | H36: 355 | I36: San Juan | J36: 393 | L36: 35 | M36: 3 | N36: 384 | O36: Continental District | P36: 384 | X36: Michigan | Y36: MI100 | Z36: =X36&$AA$2 -> Michigan-Total
B37: Pension Entitlement | C37: 3100 | F37: 36 | G37: 2 | H37: 317 | I37: St. Petersburg | J37: 393 | L37: 36 | M37: 3 | N37: CO | O37: Colorado | P37: 384 | Y37: MI329 | Z37: Detroit RO
B38: Pension Award Adjustment | C38: 3200 | F38: 37 | G38: 2 | H38: 318 | I38: Winston-Salem | J38: 393 | L38: 37 | M38: 3 | N38: IA | O38: Iowa | P38: 384 | Y38: MI-1 | Z38: =X36&$AA$4 -> Michigan-Other RO
B39: Pension Program Review | C39: 3300 | F39: 38 | G39: 3 | H39: 384 | I39: Continental District | J39: 384 | L39: 38 | M39: 3 | N39: KS | O39: Kansas | P39: 384 | Y39: MI499 | Z39: =X36&$AA$5 -> Michigan-NWQ
B40: Pension Other | C40: 3400 | F40: 39 | G40: 3 | H40: 442 | I40: Cheyenne | J40: 384 | L40: 39 | M40: 3 | N40: MN | O40: Minnesota | P40: 384 | X40: Missouri | Y40: MO100 | Z40: =X40&$AA$2 -> Missouri-Total
B41: Pension Burial | C41: 3500 | F41: 40 | G41: 3 | H41: 339 | I41: Denver | J41: 384 | L41: 40 | M41: 3 | N41: MT | O41: Montana | P41: 384 | Y41: MO331 | Z41: St. Louis RO
B42: Pension Accrued | C42: 3600 | F42: 41 | G42: 3 | H42: 333 | I42: Des Moines | J42: 384 | L42: 41 | M42: 3 | N42: NE | O42: Nebraska | P42: 384 | Y42: MO-1 | Z42: =X40&$AA$4 -> Missouri-Other RO
F43: 42 | G43: 3 | H43: 437 | I43: Fargo | J43: 384 | L43: 42 | M43: 3 | N43: ND | O43: North Dakota | P43: 384 | Y43: MO499 | Z43: =X40&$AA$5 -> Missouri-NWQ
B44: CONTROLLER for SOJ District Selection | F44: 43 | G44: 3 | H44: 436 | I44: Fort Harrison | J44: 384 | L44: 43 | M44: 3 | N44: OK | O44: Oklahoma | P44: 384 | X44: New Hampshire | Y44: NH100 | Z44: =X44&$AA$2 -> New Hampshire-Total
B45: ACTIVE SELECTION | D45: 6 | F45: 44 | G45: 3 | H45: 362 | I45: Houston | J45: 384 | L45: 44 | M45: 3 | N45: SD | O45: South Dakota | P45: 384 | Y45: NH373 | Z45: Manchester RO
B46: MODIFIED SELECTION | C46: =IF(D10=6,DS_RO&"_N",IF(D20=13,DS_RO,IF(D20>11,DS_RO&"_N",DS_RO))) -> DIST_PC | F46: 45 | G46: 3 | H46: 334 | I46: Lincoln | J46: 384 | L46: 45 | M46: 3 | N46: TX | O46: Texas | P46: 384 | Y46: NH-1 | Z46: =X44&$AA$4 -> New Hampshire-Other RO
F47: 46 | G47: 3 | H47: 351 | I47: Muskogee | J47: 384 | L47: 46 | M47: 3 | N47: WY | O47: Wyoming | P47: 384 | Y47: NH499 | Z47: =X44&$AA$5 -> New Hampshire-NWQ
F48: 47 | G48: 3 | H48: 438 | I48: Sioux Falls | J48: 384 | L48: 47 | M48: 4 | N48: 395 | O48: Pacific District | P48: 395 | X48: New Jersey | Y48: NJ100 | Z48: =X48&$AA$2 -> New Jersey-Total
F49: 48 | G49: 3 | H49: 335 | I49: St. Paul | J49: 384 | L49: 48 | M49: 4 | N49: AK | O49: Alaska | P49: 395 | Y49: NJ309 | Z49: Newark RO
F50: 49 | G50: 3 | H50: 349 | I50: Waco | J50: 384 | L50: 49 | M50: 4 | N50: AZ | O50: Arizona | P50: 395 | Y50: NJ-1 | Z50: =X48&$AA$4 -> New Jersey-Other RO
F51: 50 | G51: 3 | H51: 452 | I51: Wichita | J51: 384 | L51: 50 | M51: 4 | N51: CA | O51: California | P51: 395 | Y51: NJ499 | Z51: =X48&$AA$5 -> New Jersey-NWQ
F52: 51 | G52: 4 | H52: 395 | I52: Pacific District | J52: 395 | L52: 51 | M52: 4 | N52: HI | O52: Hawaii | P52: 395 | X52: New York | Y52: NY100 | Z52: =X52&$AA$2 -> New York-Total
F53: 52 | G53: 4 | H53: 340 | I53: Albuquerque | J53: 395 | L53: 52 | M53: 4 | N53: ID | O53: Idaho | P53: 395 | Y53: NY307 | Z53: Buffalo RO
F54: 53 | G54: 4 | H54: 463 | I54: Anchorage | J54: 395 | L54: 53 | M54: 4 | N54: NV | O54: Nevada | P54: 395 | Y54: NY306 | Z54: New York RO
F55: 54 | G55: 4 | H55: 347 | I55: Boise | J55: 395 | L55: 54 | M55: 4 | N55: NM | O55: New Mexico | P55: 395 | Y55: NY-1 | Z55: =X52&$AA$4 -> New York-Other RO
F56: 55 | G56: 4 | H56: 459 | I56: Honolulu | J56: 395 | L56: 55 | M56: 4 | N56: OR | O56: Oregon | P56: 395 | Y56: NY499 | Z56: =X52&$AA$5 -> New York-NWQ
F57: 56 | G57: 4 | H57: 344 | I57: Los Angeles | J57: 395 | L57: 56 | M57: 4 | N57: PI | O57: Philippines | P57: 395 | X57: Ohio | Y57: OH100 | Z57: =X57&$AA$2 -> Ohio-Total
F58: 57 | G58: 4 | H58: 358 | I58: Manila | J58: 395 | L58: 57 | M58: 4 | N58: UT | O58: Utah | P58: 395 | Y58: OH325 | Z58: Cleveland RO
F59: 58 | G59: 4 | H59: 343 | I59: Oakland | J59: 395 | L59: 58 | M59: 4 | N59: WA | O59: Washington | P59: 395 | Y59: OH-1 | Z59: =X57&$AA$4 -> Ohio-Other RO
F60: 59 | G60: 4 | H60: 345 | I60: Phoenix | J60: 395 | L60: 59 | M60: 5 | N60: 35 | O60: Other District | P60: 35 | Y60: OH499 | Z60: =X57&$AA$5 -> Ohio-NWQ
F61: 60 | G61: 4 | H61: 348 | I61: Portland | J61: 395 | L61: 60 | M61: 5 | N61: 35 | O61: Outside US | P61: 35 | X61: Pennsylvania | Y61: PA100 | Z61: =X61&$AA$2 -> Pennsylvania-Total
F62: 61 | G62: 4 | H62: 354 | I62: Reno | J62: 395 | Y62: PA310 | Z62: Philadelphia RO
F63: 62 | G63: 4 | H63: 341 | I63: Salt Lake City | J63: 395 | Y63: PA311 | Z63: Pittsburgh RO
F64: 63 | G64: 4 | H64: 377 | I64: San Diego | J64: 395 | Y64: PA-1 | Z64: =X61&$AA$4 -> Pennsylvania-Other RO
F65: 64 | G65: 4 | H65: 346 | I65: Seattle | J65: 395 | Y65: PA499 | Z65: =X61&$AA$5 -> Pennsylvania-NWQ
F66: 65 | G66: 5 | H66: 35 | I66: Other District | J66: 35 | X66: Rhode Island | Y66: RI100 | Z66: =X66&$AA$2 -> Rhode Island-Total
F67: 66 | G67: 5 | H67: 499 | I67: NWQ | J67: 35 | Y67: RI304 | Z67: Providence RO
F68: 67 | G68: 5 | H68: -1 | I68: Other | J68: 35 | Y68: RI-1 | Z68: =X66&$AA$4 -> Rhode Island-Other RO
Y69: RI499 | Z69: =X66&$AA$5 -> Rhode Island-NWQ
X70: Vermont | Y70: VT100 | Z70: =X70&$AA$2 -> Vermont-Total
Y71: VT405 | Z71: White River RO
Y72: VT-1 | Z72: =X70&$AA$4 -> Vermont-Other RO
Y73: VT499 | Z73: =X70&$AA$5 -> Vermont-NWQ
X74: Wisconsin | Y74: WI100 | Z74: =X74&$AA$2 -> Wisconsin-Total
Y75: WI330 | Z75: Milwaukee RO
Y76: WI-1 | Z76: =X74&$AA$4 -> Wisconsin-Other RO
Y77: WI499 | Z77: =X74&$AA$5 -> Wisconsin-NWQ
X78: Southeast District
X79: Alabama | Y79: AL100 | Z79: =X79&$AA$2 -> Alabama-Total
Y80: AL322 | Z80: Montgomery RO
Y81: AL-1 | Z81: =X79&$AA$4 -> Alabama-Other RO
Y82: AL499 | Z82: =X79&$AA$5 -> Alabama-NWQ
X83: Arkansas | Y83: AR100 | Z83: =X83&$AA$2 -> Arkansas-Total
Y84: AR350 | Z84: Little Rock RO
Y85: AR-1 | Z85: =X83&$AA$4 -> Arkansas-Other RO
Y86: AR499 | Z86: =X83&$AA$5 -> Arkansas-NWQ
X87: Florida | Y87: FL100 | Z87: =X87&$AA$2 -> Florida-Total
Y88: FL317 | Z88: St. Petersburg RO
Y89: FL-1 | Z89: =X87&$AA$4 -> Florida-Other RO
Y90: FL499 | Z90: =X87&$AA$5 -> Florida-NWQ
X91: Georgia | Y91: GA100 | Z91: =X91&$AA$2 -> Georgia-Total
Y92: GA316 | Z92: Atlanta RO
Y93: GA-1 | Z93: =X91&$AA$4 -> Georgia-Other RO
Y94: GA499 | Z94: =X91&$AA$5 -> Georgia-NWQ
X95: Kentucky | Y95: KY100 | Z95: =X95&$AA$2 -> Kentucky-Total
Y96: KY327 | Z96: Louisville RO
Y97: KY-1 | Z97: =X95&$AA$4 -> Kentucky-Other RO
Y98: KY499 | Z98: =X95&$AA$5 -> Kentucky-NWQ
X99: Louisiana | Y99: LA100 | Z99: =X99&$AA$2 -> Louisiana-Total
Y100: LA321 | Z100: New Orleans RO
Y101: LA-1 | Z101: =X99&$AA$4 -> Louisiana-Other RO
Y102: LA499 | Z102: =X99&$AA$5 -> Louisiana-NWQ
X103: Mississippi | Y103: MS100 | Z103: =X103&$AA$2 -> Mississippi-Total
Y104: MS323 | Z104: Jackson RO
Y105: MS-1 | Z105: =X103&$AA$4 -> Mississippi-Other RO
Y106: MS499 | Z106: =X103&$AA$5 -> Mississippi-NWQ
X107: North Carolina | Y107: NC100 | Z107: =X107&$AA$2 -> North Carolina-Total
Y108: NC318 | Z108: Winston-Salem RO
Y109: NC-1 | Z109: =X107&$AA$4 -> North Carolina-Other RO
Y110: NC499 | Z110: =X107&$AA$5 -> North Carolina-NWQ
X111: Puerto Rico | Y111: PR100 | Z111: =X111&$AA$2 -> Puerto Rico-Total
Y112: PR355 | Z112: San Juan RO
Y113: PR-1 | Z113: =X111&$AA$4 -> Puerto Rico-Other RO
Y114: PR499 | Z114: =X111&$AA$5 -> Puerto Rico-NWQ
X115: South Carolina | Y115: SC100 | Z115: =X115&$AA$2 -> South Carolina-Total
Y116: SC319 | Z116: Columbia RO
Y117: SC-1 | Z117: =X115&$AA$4 -> South Carolina-Other RO
Y118: SC499 | Z118: =X115&$AA$5 -> South Carolina-NWQ
X119: Tennessee | Y119: TN100 | Z119: =X119&$AA$2 -> Tennessee-Total
Y120: TN320 | Z120: Nashville RO
Y121: TN-1 | Z121: =X119&$AA$4 -> Tennessee-Other RO
Y122: TN499 | Z122: =X119&$AA$5 -> Tennessee-NWQ
X123: Virginia | Y123: VA100 | Z123: =X123&$AA$2 -> Virginia-Total
Y124: VA314 | Z124: Roanoke RO
Y125: VA-1 | Z125: =X123&$AA$4 -> Virginia-Other RO
Y126: VA499 | Z126: =X123&$AA$5 -> Virginia-NWQ
X127: West Virginia | Y127: WV100 | Z127: =X127&$AA$2 -> West Virginia-Total
Y128: WV315 | Z128: Huntington RO
Y129: WV-1 | Z129: =X127&$AA$4 -> West Virginia-Other RO
Y130: WV499 | Z130: =X127&$AA$5 -> West Virginia-NWQ
X131: Continental District
X132: Colorado | Y132: CO100 | Z132: =X132&$AA$2 -> Colorado-Total
Y133: CO339 | Z133: Denver RO
Y134: CO-1 | Z134: =X132&$AA$4 -> Colorado-Other RO
Y135: CO499 | Z135: =X132&$AA$5 -> Colorado-NWQ
X136: Iowa | Y136: IA100 | Z136: =X136&$AA$2 -> Iowa-Total
Y137: IA333 | Z137: Des Moines RO
Y138: IA-1 | Z138: =X136&$AA$4 -> Iowa-Other RO
Y139: IA499 | Z139: =X136&$AA$5 -> Iowa-NWQ
X140: Kansas | Y140: KS100 | Z140: =X140&$AA$2 -> Kansas-Total
Y141: KS452 | Z141: Wichita RO
Y142: KS-1 | Z142: =X140&$AA$4 -> Kansas-Other RO
Y143: KS499 | Z143: =X140&$AA$5 -> Kansas-NWQ
X144: Minnesota | Y144: MN100 | Z144: =X144&$AA$2 -> Minnesota-Total
Y145: MN335 | Z145: St. Paul RO
Y146: MN-1 | Z146: =X144&$AA$4 -> Minnesota-Other RO
Y147: MN499 | Z147: =X144&$AA$5 -> Minnesota-NWQ
X148: Montana | Y148: MT100 | Z148: =X148&$AA$2 -> Montana-Total
Y149: MT436 | Z149: Fort Harrison RO
Y150: MT-1 | Z150: =X148&$AA$4 -> Montana-Other RO
Y151: MT499 | Z151: =X148&$AA$5 -> Montana-NWQ
X152: Nebraska | Y152: NE100 | Z152: =X152&$AA$2 -> Nebraska-Total
Y153: NE334 | Z153: Lincoln RO
Y154: NE-1 | Z154: =X152&$AA$4 -> Nebraska-Other RO
Y155: NE499 | Z155: =X152&$AA$5 -> Nebraska-NWQ
X156: North Dakota | Y156: ND100 | Z156: =X156&$AA$2 -> North Dakota-Total
Y157: ND437 | Z157: Fargo RO
Y158: ND-1 | Z158: =X156&$AA$4 -> North Dakota-Other RO
Y159: ND499 | Z159: =X156&$AA$5 -> North Dakota-NWQ
X160: Oklahoma | Y160: OK100 | Z160: =X160&$AA$2 -> Oklahoma-Total
Y161: OK351 | Z161: Muskogee RO
Y162: OK-1 | Z162: =X160&$AA$4 -> Oklahoma-Other RO
Y163: OK499 | Z163: =X160&$AA$5 -> Oklahoma-NWQ
X164: South Dakota | Y164: SD100 | Z164: =X164&$AA$2 -> South Dakota-Total
Y165: SD438 | Z165: Sioux Falls RO
Y166: SD-1 | Z166: =X164&$AA$4 -> South Dakota-Other RO
Y167: SD499 | Z167: =X164&$AA$5 -> South Dakota-NWQ
X168: Texas | Y168: TX100 | Z168: =X168&$AA$2 -> Texas-Total
Y169: TX362 | Z169: Houston RO
Y170: TX349 | Z170: Waco RO
Y171: TX-1 | Z171: =X168&$AA$4 -> Texas-Other RO
Y172: TX499 | Z172: =X168&$AA$5 -> Texas-NWQ
X173: Wyoming | Y173: WY100 | Z173: =X173&$AA$2 -> Wyoming-Total
Y174: WY442 | Z174: Cheyenne RO
Y175: WY-1 | Z175: =X173&$AA$4 -> Wyoming-Other RO
Y176: WY499 | Z176: =X173&$AA$5 -> Wyoming-NWQ
X177: Pacific District
X178: Alaska | Y178: AK100 | Z178: =X178&$AA$2 -> Alaska-Total
Y179: AK463 | Z179: Anchorage RO
Y180: AK-1 | Z180: =X178&$AA$4 -> Alaska-Other RO
Y181: AK499 | Z181: =X178&$AA$5 -> Alaska-NWQ
X182: Arizona | Y182: AZ100 | Z182: =X182&$AA$2 -> Arizona-Total
Y183: AZ345 | Z183: Phoenix RO
Y184: AZ-1 | Z184: =X182&$AA$4 -> Arizona-Other RO
Y185: AZ499 | Z185: =X182&$AA$5 -> Arizona-NWQ
X186: California | Y186: CA100 | Z186: =X186&$AA$2 -> California-Total
Y187: CA344 | Z187: Los Angeles RO
Y188: CA343 | Z188: Oakland RO
Y189: CA377 | Z189: San Diego RO
Y190: CA-1 | Z190: =X186&$AA$4 -> California-Other RO
Y191: CA499 | Z191: =X186&$AA$5 -> California-NWQ
X192: Hawaii | Y192: HI100 | Z192: =X192&$AA$2 -> Hawaii-Total
Y193: HI459 | Z193: Honolulu RO
Y194: HI-1 | Z194: =X192&$AA$4 -> Hawaii-Other RO
Y195: HI499 | Z195: =X192&$AA$5 -> Hawaii-NWQ
X196: Idaho | Y196: ID100 | Z196: =X196&$AA$2 -> Idaho-Total
Y197: ID347 | Z197: Boise RO
Y198: ID-1 | Z198: =X196&$AA$4 -> Idaho-Other RO
Y199: ID499 | Z199: =X196&$AA$5 -> Idaho-NWQ
X200: Nevada | Y200: NV100 | Z200: =X200&$AA$2 -> Nevada-Total
... 26 more rows

Sheet Data (hidden)
A1: MT | B1: CAT | C1: LOC | D1: EP | E1: INV | F1: BL | G1: ADP | H1: PROD_MTD | I1: PROD_FYTD | J1: ADCM | K1: ADCF | L1: DEV | M1: EVD | N1: DEC | O1: AWD | P1: AUT
A2: 5 | B2: 11 | C2: ID499 | D2: 499 | E2: 3280 | F2: 1438 | G2: 156.75 | L2: 4 | M2: 2085 | N2: 1191
A3: 5 | B3: 12 | C3: ID499 | D3: 499 | E3: 82 | F3: 7 | G3: 71.18 | L3: 7 | M3: 62 | N3: 13
A4: 5 | B4: 13 | C4: ID499 | D4: 499 | E4: 26 | F4: 7 | G4: 156.23 | M4: 25 | N4: 1
A5: 5 | B5: 0 | C5: IL-1 | D5: 499 | E5: 1571 | F5: 755 | G5: 198.15 | L5: 130 | M5: 881 | N5: 469 | O5: 65 | P5: 26
A6: 5 | B6: 11 | C6: IL-1 | D6: 499 | E6: 1503 | F6: 747 | G6: 203.32 | L6: 116 | M6: 850 | N6: 454 | O6: 60 | P6: 23
A7: 5 | B7: 12 | C7: IL-1 | D7: 499 | E7: 49 | F7: 6 | G7: 76.33 | L7: 14 | M7: 25 | N7: 2 | O7: 5 | P7: 3
A8: 5 | B8: 13 | C8: IL-1 | D8: 499 | E8: 19 | F8: 2 | G8: 103.68 | M8: 6 | N8: 13
A9: 5 | B9: 0 | C9: IL328 | D9: 499 | E9: 189 | F9: 35 | G9: 62.07 | L9: 79 | M9: 73 | N9: 34 | O9: 3
A10: 5 | B10: 11 | C10: IL328 | D10: 499 | E10: 174 | F10: 34 | G10: 65.41 | L10: 66 | M10: 72 | N10: 34 | O10: 2
A11: 5 | B11: 12 | C11: IL328 | D11: 499 | E11: 13 | G11: 3.77 | L11: 13
A12: 5 | B12: 13 | C12: IL328 | D12: 499 | E12: 2 | F12: 1 | G12: 150.5 | M12: 1 | O12: 1
A13: 5 | B13: 0 | C13: IL499 | D13: 499 | E13: 13187 | F13: 5647 | G13: 154.75 | L13: 49 | M13: 8664 | N13: 4471 | O13: 3
A14: 5 | B14: 11 | C14: IL499 | D14: 499 | E14: 12707 | F14: 5534 | G14: 156.88 | L14: 10 | M14: 8301 | N14: 4395 | O14: 1
A15: 5 | B15: 12 | C15: IL499 | D15: 499 | E15: 413 | F15: 90 | G15: 94.69 | L15: 39 | M15: 298 | N15: 74 | O15: 2
A16: 5 | B16: 13 | C16: IL499 | D16: 499 | E16: 67 | F16: 23 | G16: 121.33 | M16: 65 | N16: 2
A17: 5 | B17: 0 | C17: IN-1 | D17: 499 | E17: 1218 | F17: 570 | G17: 187.54 | L17: 111 | M17: 683 | N17: 358 | O17: 51 | P17: 15
A18: 5 | B18: 11 | C18: IN-1 | D18: 499 | E18: 1176 | F18: 563 | G18: 191.37 | L18: 102 | M18: 667 | N18: 350 | O18: 44 | P18: 13
A19: 5 | B19: 12 | C19: IN-1 | D19: 499 | E19: 29 | F19: 3 | G19: 72.62 | L19: 9 | M19: 11 | N19: 3 | O19: 4 | P19: 2
A20: 5 | B20: 13 | C20: IN-1 | D20: 499 | E20: 13 | F20: 4 | G20: 97.77 | M20: 5 | N20: 5 | O20: 3
A21: 5 | B21: 0 | C21: IN326 | D21: 499 | E21: 145 | F21: 21 | G21: 68.52 | L21: 72 | M21: 56 | N21: 17
A22: 5 | B22: 11 | C22: IN326 | D22: 499 | E22: 138 | F22: 21 | G22: 70.99 | L22: 66 | M22: 56 | N22: 16
A23: 5 | B23: 12 | C23: IN326 | D23: 499 | E23: 6 | G23: 3.83 | L23: 6
A24: 5 | B24: 13 | C24: IN326 | D24: 499 | E24: 1 | G24: 116 | N24: 1
A25: 5 | B25: 0 | C25: IN499 | D25: 499 | E25: 9757 | F25: 4420 | G25: 160.96 | L25: 31 | M25: 6382 | N25: 3344
A26: 5 | B26: 11 | C26: IN499 | D26: 499 | E26: 9464 | F26: 4346 | G26: 162.8 | L26: 5 | M26: 6160 | N26: 3299
A27: 5 | B27: 12 | C27: IN499 | D27: 499 | E27: 251 | F27: 61 | G27: 99.09 | L27: 26 | M27: 181 | N27: 44
A28: 5 | B28: 13 | C28: IN499 | D28: 499 | E28: 42 | F28: 13 | G28: 116.07 | M28: 41 | N28: 1
A29: 5 | B29: 0 | C29: KS-1 | D29: 499 | E29: 576 | F29: 266 | G29: 198.15 | L29: 45 | M29: 339 | N29: 168 | O29: 19 | P29: 5
A30: 5 | B30: 11 | C30: KS-1 | D30: 499 | E30: 548 | F30: 261 | G30: 202.79 | L30: 38 | M30: 329 | N30: 161 | O30: 15 | P30: 5
A31: 5 | B31: 12 | C31: KS-1 | D31: 499 | E31: 17 | F31: 2 | G31: 96 | L31: 7 | M31: 8 | O31: 2
A32: 5 | B32: 13 | C32: KS-1 | D32: 499 | E32: 11 | F32: 3 | G32: 124.91 | M32: 2 | N32: 7 | O32: 2
A33: 5 | B33: 0 | C33: KS452 | D33: 499 | E33: 52 | F33: 3 | G33: 41.31 | L33: 27 | M33: 17 | N33: 5 | O33: 3
A34: 5 | B34: 11 | C34: KS452 | D34: 499 | E34: 45 | F34: 3 | G34: 43.49 | L34: 24 | M34: 16 | N34: 4 | O34: 1
A35: 5 | B35: 12 | C35: KS452 | D35: 499 | E35: 3 | G35: 3.67 | L35: 3
A36: 5 | B36: 13 | C36: KS452 | D36: 499 | E36: 4 | G36: 45 | M36: 1 | N36: 1 | O36: 2
A37: 5 | B37: 0 | C37: KS499 | D37: 499 | E37: 4440 | F37: 1965 | G37: 161.28 | L37: 18 | M37: 2880 | N37: 1541 | O37: 1
A38: 5 | B38: 11 | C38: KS499 | D38: 499 | E38: 4250 | F38: 1912 | G38: 163.62 | L38: 2 | M38: 2722 | N38: 1525 | O38: 1
A39: 5 | B39: 12 | C39: KS499 | D39: 499 | E39: 147 | F39: 36 | G39: 101.52 | L39: 16 | M39: 116 | N39: 15
A40: 5 | B40: 13 | C40: KS499 | D40: 499 | E40: 43 | F40: 17 | G40: 134.3 | M40: 42 | N40: 1
A41: 5 | B41: 0 | C41: KY-1 | D41: 499 | E41: 926 | F41: 440 | G41: 169.42 | L41: 70 | M41: 469 | N41: 336 | O41: 38 | P41: 13
A42: 5 | B42: 11 | C42: KY-1 | D42: 499 | E42: 901 | F42: 439 | G42: 172.7 | L42: 64 | M42: 461 | N42: 330 | O42: 33 | P42: 13
A43: 5 | B43: 12 | C43: KY-1 | D43: 499 | E43: 15 | G43: 49.6 | L43: 6 | M43: 6 | O43: 3
A44: 5 | B44: 13 | C44: KY-1 | D44: 499 | E44: 10 | F44: 1 | G44: 53.2 | M44: 2 | N44: 6 | O44: 2
A45: 5 | B45: 0 | C45: KY327 | D45: 499 | E45: 104 | F45: 18 | G45: 83.44 | L45: 47 | M45: 38 | N45: 18 | O45: 1
A46: 5 | B46: 11 | C46: KY327 | D46: 499 | E46: 100 | F46: 18 | G46: 85.97 | L46: 44 | M46: 38 | N46: 17 | O46: 1
A47: 5 | B47: 12 | C47: KY327 | D47: 499 | E47: 3 | G47: 8.67 | L47: 3
A48: 5 | B48: 13 | C48: KY327 | D48: 499 | E48: 1 | G48: 55 | N48: 1
A49: 5 | B49: 0 | C49: KY499 | D49: 499 | E49: 7650 | F49: 3506 | G49: 157.15 | L49: 15 | M49: 4985 | N49: 2650
A50: 5 | B50: 11 | C50: KY499 | D50: 499 | E50: 7367 | F50: 3447 | G50: 159.39 | L50: 2 | M50: 4755 | N50: 2610
A51: 5 | B51: 12 | C51: KY499 | D51: 499 | E51: 227 | F51: 45 | G51: 94.99 | L51: 13 | M51: 180 | N51: 34
A52: 5 | B52: 13 | C52: KY499 | D52: 499 | E52: 56 | F52: 14 | G52: 114.39 | M52: 50 | N52: 6
A53: 5 | B53: 0 | C53: LA-1 | D53: 499 | E53: 1164 | F53: 533 | G53: 193.17 | L53: 79 | M53: 669 | N53: 349 | O53: 56 | P53: 11
A54: 5 | B54: 11 | C54: LA-1 | D54: 499 | E54: 1120 | F54: 528 | G54: 198.2 | L54: 70 | M54: 650 | N54: 336 | O54: 54 | P54: 10
A55: 5 | B55: 12 | C55: LA-1 | D55: 499 | E55: 28 | F55: 4 | G55: 71.61 | L55: 9 | M55: 16 | O55: 2 | P55: 1
A56: 5 | B56: 13 | C56: LA-1 | D56: 499 | E56: 16 | F56: 1 | G56: 53.63 | M56: 3 | N56: 13
A57: 5 | B57: 0 | C57: LA321 | D57: 499 | E57: 123 | F57: 17 | G57: 75.85 | L57: 65 | M57: 30 | N57: 22 | O57: 2 | P57: 4
A58: 5 | B58: 11 | C58: LA321 | D58: 499 | E58: 110 | F58: 17 | G58: 83.08 | L58: 53 | M58: 30 | N58: 21 | O58: 2 | P58: 4
A59: 5 | B59: 12 | C59: LA321 | D59: 499 | E59: 12 | G59: 6.25 | L59: 12
A60: 5 | B60: 13 | C60: LA321 | D60: 499 | E60: 1 | G60: 116 | N60: 1
A61: 5 | B61: 0 | C61: LA499 | D61: 499 | E61: 9592 | F61: 3910 | G61: 151.87 | L61: 42 | M61: 6299 | N61: 3250 | O61: 1
A62: 5 | B62: 11 | C62: LA499 | D62: 499 | E62: 9259 | F62: 3844 | G62: 153.94 | L62: 5 | M62: 6043 | N62: 3211
A63: 5 | B63: 12 | C63: LA499 | D63: 499 | E63: 274 | F63: 52 | G63: 92.17 | L63: 37 | M63: 198 | N63: 38 | O63: 1
A64: 5 | B64: 13 | C64: LA499 | D64: 499 | E64: 59 | F64: 14 | G64: 104.03 | M64: 58 | N64: 1
A65: 5 | B65: 0 | C65: MA-1 | D65: 499 | E65: 774 | F65: 342 | G65: 186.71 | L65: 87 | M65: 454 | N65: 200 | O65: 24 | P65: 9
A66: 5 | B66: 11 | C66: MA-1 | D66: 499 | E66: 750 | F66: 339 | G66: 190.3 | L66: 82 | M66: 442 | N66: 196 | O66: 21 | P66: 9
A67: 5 | B67: 12 | C67: MA-1 | D67: 499 | E67: 17 | F67: 3 | G67: 72.59 | L67: 5 | M67: 10 | O67: 2
A68: 5 | B68: 13 | C68: MA-1 | D68: 499 | E68: 7 | G68: 78.43 | M68: 2 | N68: 4 | O68: 1
A69: 5 | B69: 0 | C69: MA301 | D69: 499 | E69: 93 | F69: 17 | G69: 91.23 | L69: 38 | M69: 40 | N69: 12 | O69: 2 | P69: 1
A70: 5 | B70: 11 | C70: MA301 | D70: 499 | E70: 91 | F70: 16 | G70: 90.9 | L70: 37 | M70: 39 | N70: 12 | O70: 2 | P70: 1
A71: 5 | B71: 12 | C71: MA301 | D71: 499 | E71: 1 | G71: 4 | L71: 1
A72: 5 | B72: 13 | C72: MA301 | D72: 499 | E72: 1 | F72: 1 | G72: 208 | M72: 1
A73: 5 | B73: 0 | C73: MA499 | D73: 499 | E73: 5558 | F73: 2524 | G73: 167.13 | L73: 22 | M73: 3796 | N73: 1740
A74: 5 | B74: 11 | C74: MA499 | D74: 499 | E74: 5385 | F74: 2469 | G74: 168.67 | L74: 3 | M74: 3659 | N74: 1723
A75: 5 | B75: 12 | C75: MA499 | D75: 499 | E75: 138 | F75: 36 | G75: 104.6 | L75: 19 | M75: 103 | N75: 16
A76: 5 | B76: 13 | C76: MA499 | D76: 499 | E76: 35 | F76: 19 | G76: 176.37 | M76: 34 | N76: 1
A77: 5 | B77: 0 | C77: MD-1 | D77: 499 | E77: 1383 | F77: 493 | G77: 146.37 | L77: 151 | M77: 721 | N77: 444 | O77: 49 | P77: 18
A78: 5 | B78: 11 | C78: MD-1 | D78: 499 | E78: 1326 | F78: 480 | G78: 147.61 | L78: 146 | M78: 698 | N78: 421 | O78: 43 | P78: 18
A79: 5 | B79: 12 | C79: MD-1 | D79: 499 | E79: 20 | F79: 6 | G79: 128.9 | L79: 5 | M79: 10 | N79: 2 | O79: 3
A80: 5 | B80: 13 | C80: MD-1 | D80: 499 | E80: 37 | F80: 7 | G80: 111.38 | M80: 13 | N80: 21 | O80: 3
A81: 5 | B81: 0 | C81: MD313 | D81: 499 | E81: 161 | F81: 11 | G81: 58.11 | L81: 74 | M81: 57 | N81: 29 | O81: 1
A82: 5 | B82: 11 | C82: MD313 | D82: 499 | E82: 146 | F82: 11 | G82: 59.61 | L82: 67 | M82: 55 | N82: 23 | O82: 1
A83: 5 | B83: 12 | C83: MD313 | D83: 499 | E83: 7 | G83: 3.86 | L83: 7
A84: 5 | B84: 13 | C84: MD313 | D84: 499 | E84: 8 | G84: 78.25 | M84: 2 | N84: 6
A85: 5 | B85: 0 | C85: MD499 | D85: 499 | E85: 10018 | F85: 3371 | G85: 132.09 | L85: 22 | M85: 6160 | N85: 3836
A86: 5 | B86: 11 | C86: MD499 | D86: 499 | E86: 9655 | F86: 3278 | G86: 132.79 | L86: 4 | M86: 5847 | N86: 3804
A87: 5 | B87: 12 | C87: MD499 | D87: 499 | E87: 196 | F87: 55 | G87: 113.04 | L87: 18 | M87: 152 | N87: 26
A88: 5 | B88: 13 | C88: MD499 | D88: 499 | E88: 167 | F88: 38 | G88: 113.96 | M88: 161 | N88: 6
A89: 5 | B89: 0 | C89: ME-1 | D89: 499 | E89: 334 | F89: 192 | G89: 228.27 | L89: 19 | M89: 211 | N89: 89 | O89: 10 | P89: 5
A90: 5 | B90: 11 | C90: ME-1 | D90: 499 | E90: 322 | F90: 188 | G90: 231.05 | L90: 18 | M90: 205 | N90: 87 | O90: 8 | P90: 4
A91: 5 | B91: 12 | C91: ME-1 | D91: 499 | E91: 10 | F91: 3 | G91: 136.7 | L91: 1 | M91: 6 | O91: 2 | P91: 1
A92: 5 | B92: 13 | C92: ME-1 | D92: 499 | E92: 2 | F92: 1 | G92: 237.5 | N92: 2
A93: 5 | B93: 0 | C93: ME402 | D93: 499 | E93: 42 | F93: 8 | G93: 66.52 | L93: 18 | M93: 20 | N93: 4
A94: 5 | B94: 11 | C94: ME402 | D94: 499 | E94: 38 | F94: 7 | G94: 68.92 | L94: 15 | M94: 19 | N94: 4
A95: 5 | B95: 12 | C95: ME402 | D95: 499 | E95: 3 | G95: 9.33 | L95: 3
A96: 5 | B96: 13 | C96: ME402 | D96: 499 | E96: 1 | F96: 1 | G96: 147 | M96: 1
A97: 5 | B97: 0 | C97: ME499 | D97: 499 | E97: 2215 | F97: 1118 | G97: 175.42 | L97: 8 | M97: 1479 | N97: 728
A98: 5 | B98: 11 | C98: ME499 | D98: 499 | E98: 2145 | F98: 1096 | G98: 177.28 | L98: 1 | M98: 1426 | N98: 718
A99: 5 | B99: 12 | C99: ME499 | D99: 499 | E99: 52 | F99: 13 | G99: 86.63 | L99: 7 | M99: 35 | N99: 10
A100: 5 | B100: 13 | C100: ME499 | D100: 499 | E100: 18 | F100: 9 | G100: 211.28 | M100: 18
A101: 5 | B101: 0 | C101: MI-1 | D101: 499 | E101: 1616 | F101: 819 | G101: 202.96 | L101: 146 | M101: 898 | N101: 479 | O101: 73 | P101: 20
A102: 5 | B102: 11 | C102: MI-1 | D102: 499 | E102: 1554 | F102: 809 | G102: 207.73 | L102: 134 | M102: 868 | N102: 469 | O102: 64 | P102: 19
A103: 5 | B103: 12 | C103: MI-1 | D103: 499 | E103: 47 | F103: 7 | G103: 71.66 | L103: 12 | M103: 24 | N103: 2 | O103: 8 | P103: 1
A104: 5 | B104: 13 | C104: MI-1 | D104: 499 | E104: 15 | F104: 3 | G104: 119.93 | M104: 6 | N104: 8 | O104: 1
A105: 5 | B105: 0 | C105: MI329 | D105: 499 | E105: 122 | F105: 25 | G105: 71.7 | L105: 61 | M105: 34 | N105: 23 | O105: 1 | P105: 3
A106: 5 | B106: 11 | C106: MI329 | D106: 499 | E106: 114 | F106: 24 | G106: 75.28 | L106: 54 | M106: 34 | N106: 22 | O106: 1 | P106: 3
A107: 5 | B107: 12 | C107: MI329 | D107: 499 | E107: 7 | G107: 3.43 | L107: 7
A108: 5 | B108: 13 | C108: MI329 | D108: 499 | E108: 1 | F108: 1 | G108: 142 | N108: 1
A109: 5 | B109: 0 | C109: MI499 | D109: 499 | E109: 11709 | F109: 5180 | G109: 158.08 | L109: 61 | M109: 7393 | N109: 4253 | O109: 2
A110: 5 | B110: 11 | C110: MI499 | D110: 499 | E110: 11203 | F110: 5058 | G110: 160.16 | L110: 11 | M110: 6992 | N110: 4198 | O110: 2
A111: 5 | B111: 12 | C111: MI499 | D111: 499 | E111: 453 | F111: 103 | G111: 109.77 | L111: 50 | M111: 348 | N111: 55
A112: 5 | B112: 13 | C112: MI499 | D112: 499 | E112: 53 | F112: 19 | G112: 132.94 | M112: 53
A113: 5 | B113: 0 | C113: MN-1 | D113: 499 | E113: 889 | F113: 480 | G113: 239.83 | L113: 63 | M113: 554 | N113: 236 | O113: 26 | P113: 10
A114: 5 | B114: 11 | C114: MN-1 | D114: 499 | E114: 877 | F114: 477 | G114: 241.93 | L114: 62 | M114: 549 | N114: 233 | O114: 24 | P114: 9
A115: 5 | B115: 12 | C115: MN-1 | D115: 499 | E115: 7 | F115: 2 | G115: 80.14 | L115: 1 | M115: 4 | O115: 2
A116: 5 | B116: 13 | C116: MN-1 | D116: 499 | E116: 5 | F116: 1 | G116: 94 | M116: 1 | N116: 3 | P116: 1
A117: 5 | B117: 0 | C117: MN335 | D117: 499 | E117: 147 | F117: 27 | G117: 84.46 | L117: 60 | M117: 54 | N117: 24 | O117: 5 | P117: 4
A118: 5 | B118: 11 | C118: MN335 | D118: 499 | E118: 131 | F118: 25 | G118: 89.05 | L118: 51 | M118: 50 | N118: 23 | O118: 3 | P118: 4
A119: 5 | B119: 12 | C119: MN335 | D119: 499 | E119: 15 | F119: 1 | G119: 34.4 | L119: 9 | M119: 4 | O119: 2
A120: 5 | B120: 13 | C120: MN335 | D120: 499 | E120: 1 | F120: 1 | G120: 234 | N120: 1
A121: 5 | B121: 0 | C121: MN499 | D121: 499 | E121: 7043 | F121: 3234 | G121: 168.45 | L121: 21 | M121: 4453 | N121: 2568 | O121: 1
A122: 5 | B122: 11 | C122: MN499 | D122: 499 | E122: 6809 | F122: 3175 | G122: 170.57 | L122: 1 | M122: 4279 | N122: 2529
A123: 5 | B123: 12 | C123: MN499 | D123: 499 | E123: 210 | F123: 48 | G123: 100.28 | L123: 20 | M123: 151 | N123: 38 | O123: 1
A124: 5 | B124: 13 | C124: MN499 | D124: 499 | E124: 24 | F124: 11 | G124: 164.63 | M124: 23 | N124: 1
A125: 5 | B125: 0 | C125: MO-1 | D125: 499 | E125: 1328 | F125: 655 | G125: 209.1 | L125: 113 | M125: 767 | N125: 387 | O125: 42 | P125: 19
A126: 5 | B126: 11 | C126: MO-1 | D126: 499 | E126: 1276 | F126: 647 | G126: 214.57 | L126: 102 | M126: 743 | N126: 379 | O126: 34 | P126: 18
A127: 5 | B127: 12 | C127: MO-1 | D127: 499 | E127: 39 | F127: 6 | G127: 76.9 | L127: 11 | M127: 17 | N127: 2 | O127: 8 | P127: 1
A128: 5 | B128: 13 | C128: MO-1 | D128: 499 | E128: 13 | F128: 2 | G128: 68.54 | M128: 7 | N128: 6
A129: 5 | B129: 0 | C129: MO331 | D129: 499 | E129: 196 | F129: 35 | G129: 76.22 | L129: 73 | M129: 81 | N129: 40 | O129: 1 | P129: 1
A130: 5 | B130: 11 | C130: MO331 | D130: 499 | E130: 185 | F130: 33 | G130: 75.36 | L130: 67 | M130: 79 | N130: 37 | O130: 1 | P130: 1
A131: 5 | B131: 12 | C131: MO331 | D131: 499 | E131: 6 | G131: 3.67 | L131: 6
A132: 5 | B132: 13 | C132: MO331 | D132: 499 | E132: 5 | F132: 2 | G132: 195 | M132: 2 | N132: 3
A133: 5 | B133: 0 | C133: MO499 | D133: 499 | E133: 10795 | F133: 4809 | G133: 162.4 | L133: 54 | M133: 7042 | N133: 3699
A134: 5 | B134: 11 | C134: MO499 | D134: 499 | E134: 10375 | F134: 4701 | G134: 164.6 | L134: 5 | M134: 6703 | N134: 3667
A135: 5 | B135: 12 | C135: MO499 | D135: 499 | E135: 347 | F135: 85 | G135: 102.87 | L135: 49 | M135: 268 | N135: 30
A136: 5 | B136: 13 | C136: MO499 | D136: 499 | E136: 73 | F136: 23 | G136: 133.27 | M136: 71 | N136: 2
A137: 5 | B137: 0 | C137: MS-1 | D137: 499 | E137: 871 | F137: 432 | G137: 195.27 | L137: 82 | M137: 460 | N137: 284 | O137: 36 | P137: 9
A138: 5 | B138: 11 | C138: MS-1 | D138: 499 | E138: 839 | F138: 427 | G138: 199.09 | L138: 70 | M138: 448 | N138: 280 | O138: 33 | P138: 8
A139: 5 | B139: 12 | C139: MS-1 | D139: 499 | E139: 27 | F139: 2 | G139: 67.33 | L139: 12 | M139: 11 | O139: 3 | P139: 1
A140: 5 | B140: 13 | C140: MS-1 | D140: 499 | E140: 5 | F140: 3 | G140: 244 | M140: 1 | N140: 4
A141: 5 | B141: 0 | C141: MS323 | D141: 499 | E141: 138 | F141: 20 | G141: 58.44 | L141: 55 | M141: 48 | N141: 33 | O141: 1 | P141: 1
A142: 5 | B142: 11 | C142: MS323 | D142: 499 | E142: 134 | F142: 20 | G142: 59.99 | L142: 52 | M142: 48 | N142: 33 | P142: 1
A143: 5 | B143: 12 | C143: MS323 | D143: 499 | E143: 4 | G143: 6.75 | L143: 3 | O143: 1
A144: 5 | B144: 0 | C144: MS499 | D144: 499 | E144: 6834 | F144: 2783 | G144: 147.21 | L144: 24 | M144: 4551 | N144: 2257 | O144: 2
A145: 5 | B145: 11 | C145: MS499 | D145: 499 | E145: 6585 | F145: 2723 | G145: 148.4 | L145: 2 | M145: 4356 | N145: 2226 | O145: 1
A146: 5 | B146: 12 | C146: MS499 | D146: 499 | E146: 200 | F146: 46 | G146: 114.34 | L146: 22 | M146: 148 | N146: 29 | O146: 1
A147: 5 | B147: 13 | C147: MS499 | D147: 499 | E147: 49 | F147: 14 | G147: 121.41 | M147: 47 | N147: 2
A148: 5 | B148: 0 | C148: MT-1 | D148: 499 | E148: 307 | F148: 165 | G148: 219.7 | L148: 21 | M148: 188 | N148: 79 | O148: 13 | P148: 6
A149: 5 | B149: 11 | C149: MT-1 | D149: 499 | E149: 296 | F149: 163 | G149: 224.29 | L149: 19 | M149: 184 | N149: 77 | O149: 12 | P149: 4
A150: 5 | B150: 12 | C150: MT-1 | D150: 499 | E150: 8 | F150: 1 | G150: 96.75 | L150: 2 | M150: 3 | O150: 1 | P150: 2
A151: 5 | B151: 13 | C151: MT-1 | D151: 499 | E151: 3 | F151: 1 | G151: 95 | M151: 1 | N151: 2
A152: 5 | B152: 0 | C152: MT436 | D152: 499 | E152: 32 | F152: 2 | G152: 45.03 | L152: 20 | M152: 8 | N152: 4
A153: 5 | B153: 11 | C153: MT436 | D153: 499 | E153: 30 | F153: 2 | G153: 44.03 | L153: 19 | M153: 8 | N153: 3
A154: 5 | B154: 12 | C154: MT436 | D154: 499 | E154: 1 | G154: 4 | L154: 1
A155: 5 | B155: 13 | C155: MT436 | D155: 499 | E155: 1 | G155: 116 | N155: 1
A156: 5 | B156: 0 | C156: MT499 | D156: 499 | E156: 2387 | F156: 1143 | G156: 170.81 | L156: 5 | M156: 1634 | N156: 748
A157: 5 | B157: 11 | C157: MT499 | D157: 499 | E157: 2318 | F157: 1125 | G157: 172.6 | L157: 1 | M157: 1582 | N157: 735
A158: 5 | B158: 12 | C158: MT499 | D158: 499 | E158: 49 | F158: 9 | G158: 98.43 | L158: 4 | M158: 33 | N158: 12
A159: 5 | B159: 13 | C159: MT499 | D159: 499 | E159: 20 | F159: 9 | G159: 141.45 | M159: 19 | N159: 1
A160: 5 | B160: 0 | C160: NC-1 | D160: 499 | E160: 3163 | F160: 1284 | G160: 167.31 | L160: 322 | M160: 1701 | N160: 985 | O160: 122 | P160: 33
A161: 5 | B161: 11 | C161: NC-1 | D161: 499 | E161: 3040 | F161: 1264 | G161: 170.51 | L161: 299 | M161: 1647 | N161: 953 | O161: 111 | P161: 30
A162: 5 | B162: 12 | C162: NC-1 | D162: 499 | E162: 70 | F162: 12 | G162: 98.46 | L162: 23 | M162: 35 | N162: 1 | O162: 8 | P162: 3
A163: 5 | B163: 13 | C163: NC-1 | D163: 499 | E163: 53 | F163: 8 | G163: 74.68 | M163: 19 | N163: 31 | O163: 3
A164: 5 | B164: 0 | C164: NC318 | D164: 499 | E164: 541 | F164: 73 | G164: 71.97 | L164: 138 | M164: 177 | N164: 202 | O164: 16 | P164: 8
A165: 5 | B165: 11 | C165: NC318 | D165: 499 | E165: 498 | F165: 71 | G165: 75.46 | L165: 125 | M165: 166 | N165: 185 | O165: 14 | P165: 8
A166: 5 | B166: 12 | C166: NC318 | D166: 499 | E166: 13 | G166: 3.62 | L166: 13
A167: 5 | B167: 13 | C167: NC318 | D167: 499 | E167: 30 | F167: 2 | G167: 43.7 | M167: 11 | N167: 17 | O167: 2
A168: 5 | B168: 0 | C168: NC499 | D168: 499 | E168: 24133 | F168: 8785 | G168: 135.73 | L168: 75 | M168: 15762 | N168: 8295 | O168: 1
A169: 5 | B169: 11 | C169: NC499 | D169: 499 | E169: 23271 | F169: 8600 | G169: 137.17 | L169: 16 | M169: 15098 | N169: 8157
A170: 5 | B170: 12 | C170: NC499 | D170: 499 | E170: 659 | F170: 134 | G170: 94.21 | L170: 59 | M170: 478 | N170: 121 | O170: 1
A171: 5 | B171: 13 | C171: NC499 | D171: 499 | E171: 203 | F171: 51 | G171: 105.57 | M171: 186 | N171: 17
A172: 5 | B172: 0 | C172: ND-1 | D172: 499 | E172: 181 | F172: 81 | G172: 183.45 | L172: 14 | M172: 103 | N172: 61 | O172: 2 | P172: 1
A173: 5 | B173: 11 | C173: ND-1 | D173: 499 | E173: 175 | F173: 81 | G173: 188.29 | L173: 14 | M173: 99 | N173: 59 | O173: 2 | P173: 1
A174: 5 | B174: 12 | C174: ND-1 | D174: 499 | E174: 4 | G174: 51 | M174: 4
A175: 5 | B175: 13 | C175: ND-1 | D175: 499 | E175: 2 | G175: 25 | N175: 2
A176: 5 | B176: 0 | C176: ND437 | D176: 499 | E176: 9 | F176: 2 | G176: 92.89 | L176: 2 | M176: 4 | N176: 2 | O176: 1
A177: 5 | B177: 11 | C177: ND437 | D177: 499 | E177: 9 | F177: 2 | G177: 92.89 | L177: 2 | M177: 4 | N177: 2 | O177: 1
A178: 5 | B178: 0 | C178: ND499 | D178: 499 | E178: 1161 | F178: 554 | G178: 165.59 | L178: 2 | M178: 730 | N178: 429
A179: 5 | B179: 11 | C179: ND499 | D179: 499 | E179: 1128 | F179: 545 | G179: 166.61 | M179: 702 | N179: 426
A180: 5 | B180: 12 | C180: ND499 | D180: 499 | E180: 25 | F180: 5 | G180: 88.44 | L180: 2 | M180: 20 | N180: 3
A181: 5 | B181: 13 | C181: ND499 | D181: 499 | E181: 8 | F181: 4 | G181: 263.25 | M181: 8
A182: 5 | B182: 0 | C182: NE-1 | D182: 499 | E182: 393 | F182: 186 | G182: 194.09 | L182: 33 | M182: 239 | N182: 105 | O182: 12 | P182: 4
A183: 5 | B183: 11 | C183: NE-1 | D183: 499 | E183: 383 | F183: 185 | G183: 197.81 | L183: 31 | M183: 236 | N183: 101 | O183: 11 | P183: 4
A184: 5 | B184: 12 | C184: NE-1 | D184: 499 | E184: 6 | G184: 29.17 | L184: 2 | M184: 3 | O184: 1
A185: 5 | B185: 13 | C185: NE-1 | D185: 499 | E185: 4 | F185: 1 | G185: 84.75 | N185: 4
A186: 5 | B186: 0 | C186: NE334 | D186: 499 | E186: 84 | F186: 12 | G186: 71.56 | L186: 31 | M186: 41 | N186: 9 | O186: 3
A187: 5 | B187: 11 | C187: NE334 | D187: 499 | E187: 80 | F187: 11 | G187: 69.48 | L187: 29 | M187: 41 | N187: 7 | O187: 3
A188: 5 | B188: 12 | C188: NE334 | D188: 499 | E188: 2 | G188: 4 | L188: 2
A189: 5 | B189: 13 | C189: NE334 | D189: 499 | E189: 2 | F189: 1 | G189: 222.5 | N189: 2
A190: 5 | B190: 0 | C190: NE499 | D190: 499 | E190: 3305 | F190: 1395 | G190: 147.85 | L190: 9 | M190: 2116 | N190: 1179 | O190: 1
A191: 5 | B191: 11 | C191: NE499 | D191: 499 | E191: 3206 | F191: 1369 | G191: 149.04 | M191: 2043 | N191: 1162 | O191: 1
A192: 5 | B192: 12 | C192: NE499 | D192: 499 | E192: 74 | F192: 19 | G192: 110.28 | L192: 9 | M192: 48 | N192: 17
A193: 5 | B193: 13 | C193: NE499 | D193: 499 | E193: 25 | F193: 7 | G193: 106.68 | M193: 25
A194: 5 | B194: 0 | C194: NH-1 | D194: 499 | E194: 220 | F194: 119 | G194: 216.78 | L194: 13 | M194: 149 | N194: 47 | O194: 6 | P194: 5
A195: 5 | B195: 11 | C195: NH-1 | D195: 499 | E195: 213 | F195: 119 | G195: 222.34 | L195: 12 | M195: 147 | N195: 45 | O195: 5 | P195: 4
A196: 5 | B196: 12 | C196: NH-1 | D196: 499 | E196: 4 | G196: 34 | L196: 1 | M196: 1 | O196: 1 | P196: 1
A197: 5 | B197: 13 | C197: NH-1 | D197: 499 | E197: 3 | G197: 65.33 | M197: 1 | N197: 2
A198: 5 | B198: 0 | C198: NH373 | D198: 499 | E198: 17 | G198: 4 | L198: 10 | M198: 7
A199: 5 | B199: 11 | C199: NH373 | D199: 499 | E199: 17 | G199: 4 | L199: 10 | M199: 7
A200: 5 | B200: 0 | C200: NH499 | D200: 499 | E200: 1751 | F200: 796 | G200: 178.57 | L200: 7 | M200: 1188 | N200: 556
... 2005 more rows

Sheet DT (hidden)
A1: ST_DATE
A2: 2021-12-25

Sheet Rating Bundle - SOO
C2: DISTRICT SELECTOR | D2: Compensation and Pension Rating Bundle Metrics | L2: Report through
D3: Station of Origin View | L3: =D_DT[] -> 2021-12-25
D4: The Station of Origination (SOO) primarily represents pending claims based on geographic boundaries | L4: ADP = Average Days Pending | O4: MTD = Month to Date
D5: Each Special Mission has distinct claim counts | L5: ADC = Average Days to Complete | O5: FYTD = Fiscal Year to Date
D6: When Special Mission is set to Pension, BDD, or Quickstart, the District Selector has no impact.
L7: Accuracy metrics are available on Rating Bundle - SOJ tab
D8: CLAIM METRICS | L8: ACCURACY METRICS
C9: SPECIAL MISSION SELECTOR | D9: # Pending | E9: # Pending > 125 Days | F9: % Pending > 125 Days | G9: ADP | H9: # Completed MTD | I9: ADC MTD | J9: # Completed FYTD | K9: ADC FYTD | L9: Accuracy measurement is available on the Rating Bundle SOJ tab
A12: 100 | C12: =Driver!$C$20& " Total" -> USA - All Missions Total | D12: =IF(ISNA($A12),"",IFERROR(SUMIFS(D_D[INV],D_D[MT],4,D_D[CAT],SMS,D_D[LOC],$A12),0)) -> 624186 | E12: =IF(ISNA($A12),"",IFERROR(SUMIFS(D_D[BL],D_D[MT],4,D_D[CAT],SMS,D_D[LOC],$A12),0)) -> 257614 | F12: =IF(ISNA($A12),"",IFERROR(E12/D12,0)) -> 0.4127199264 | G12: =IF(ISNA($A12),"",IFERROR(SUMIFS(D_D[ADP],D_D[MT],4,D_D[CAT],SMS,D_D[LOC],$A12),0)) -> 153.88 | H12: =IF(ISNA($A12),"",IFERROR(SUMIFS(D_D[PROD_MTD],D_D[MT],4,D_D[CAT],SMS,D_D[LOC],$A12),0)) -> 109647 | I12: =IF(ISNA($A12),"",IFERROR(SUMIFS(D_D[ADCM],D_D[MT],4,D_D[CAT],SMS,D_D[LOC],$A12),0)) -> 121.75 | J12: =IF(ISNA($A12),"",IFERROR(SUMIFS(D_D[PROD_FYTD],D_D[MT],4,D_D[CAT],SMS,D_D[LOC],$A12),0)) -> 362489 | K12: =IF(ISNA($A12),"",IFERROR(SUMIFS(D_D[ADCF],D_D[MT],4,D_D[CAT],SMS,D_D[LOC],$A12),0)) -> 123.67
A13: =INDEX(RO,(MATCH($C13,RO_D,0))) -> 395 | B13: 1 | C13: =IFERROR(INDEX(INDIRECT(DS_RO),B13),"") -> Pacific District | D13: =IF(ISNA($A13),"",IFERROR(SUMIFS(D_D[INV],D_D[MT],4,D_D[CAT],SMS,D_D[LOC],$A13),0)) -> 80164 | E13: =IF(ISNA($A13),"",IFERROR(SUMIFS(D_D[BL],D_D[MT],4,D_D[CAT],SMS,D_D[LOC],$A13),0)) -> 29651 | F13: =IF(ISNA($A13),"",IFERROR(E13/D13,0)) -> 0.3698792475 | G13: =IF(ISNA($A13),"",IFERROR(SUMIFS(D_D[ADP],D_D[MT],4,D_D[CAT],SMS,D_D[LOC],$A13),0)) -> 166.41 | H13: =IF(ISNA($A13),"",IFERROR(SUMIFS(D_D[PROD_MTD],D_D[MT],4,D_D[CAT],SMS,D_D[LOC],$A13),0)) -> 15557 | I13: =IF(ISNA($A13),"",IFERROR(SUMIFS(D_D[ADCM],D_D[MT],4,D_D[CAT],SMS,D_D[LOC],$A13),0)) -> 105.56 | J13: =IF(ISNA($A13),"",IFERROR(SUMIFS(D_D[PROD_FYTD],D_D[MT],4,D_D[CAT],SMS,D_D[LOC],$A13),0)) -> 52290 | K13: =IF(ISNA($A13),"",IFERROR(SUMIFS(D_D[ADCF],D_D[MT],4,D_D[CAT],SMS,D_D[LOC],$A13),0)) -> 111.56
A14: 340 | B14: 2 | C14: Albuquerque | D14: =IF(ISNA($A14),"",IFERROR(SUMIFS(D_D[INV],D_D[MT],4,D_D[CAT],SMS,D_D[LOC],$A14),0)) -> 2610 | E14: =IF(ISNA($A14),"",IFERROR(SUMIFS(D_D[BL],D_D[MT],4,D_D[CAT],SMS,D_D[LOC],$A14),0)) -> 1010 | F14: =IF(ISNA($A14),"",IFERROR(E14/D14,0)) -> 0.3869731801 | G14: =IF(ISNA($A14),"",IFERROR(SUMIFS(D_D[ADP],D_D[MT],4,D_D[CAT],SMS,D_D[LOC],$A14),0)) -> 177.13 | H14: =IF(ISNA($A14),"",IFERROR(SUMIFS(D_D[PROD_MTD],D_D[MT],4,D_D[CAT],SMS,D_D[LOC],$A14),0)) -> 482 | I14: =IF(ISNA($A14),"",IFERROR(SUMIFS(D_D[ADCM],D_D[MT],4,D_D[CAT],SMS,D_D[LOC],$A14),0)) -> 142.28 | J14: =IF(ISNA($A14),"",IFERROR(SUMIFS(D_D[PROD_FYTD],D_D[MT],4,D_D[CAT],SMS,D_D[LOC],$A14),0)) -> 1534 | K14: =IF(ISNA($A14),"",IFERROR(SUMIFS(D_D[ADCF],D_D[MT],4,D_D[CAT],SMS,D_D[LOC],$A14),0)) -> 147.86
A15: 463 | B15: 3 | C15: =IFERROR(INDEX(INDIRECT(DS_RO),B15),"") -> Anchorage | D15: =IF(ISNA($A15),"",IFERROR(SUMIFS(D_D[INV],D_D[MT],4,D_D[CAT],SMS,D_D[LOC],$A15),0)) -> 1375 | E15: =IF(ISNA($A15),"",IFERROR(SUMIFS(D_D[BL],D_D[MT],4,D_D[CAT],SMS,D_D[LOC],$A15),0)) -> 513 | F15: =IF(ISNA($A15),"",IFERROR(E15/D15,0)) -> 0.3730909091 | G15: =IF(ISNA($A15),"",IFERROR(SUMIFS(D_D[ADP],D_D[MT],4,D_D[CAT],SMS,D_D[LOC],$A15),0)) -> 175.45 | H15: =IF(ISNA($A15),"",IFERROR(SUMIFS(D_D[PROD_MTD],D_D[MT],4,D_D[CAT],SMS,D_D[LOC],$A15),0)) -> 210 | I15: =IF(ISNA($A15),"",IFERROR(SUMIFS(D_D[ADCM],D_D[MT],4,D_D[CAT],SMS,D_D[LOC],$A15),0)) -> 129.89 | J15: =IF(ISNA($A15),"",IFERROR(SUMIFS(D_D[PROD_FYTD],D_D[MT],4,D_D[CAT],SMS,D_D[LOC],$A15),0)) -> 735 | K15: =IF(ISNA($A15),"",IFERROR(SUMIFS(D_D[ADCF],D_D[MT],4,D_D[CAT],SMS,D_D[LOC],$A15),0)) -> 134.64
A16: 347 | B16: 4 | C16: Boise | D16: =IF(ISNA($A16),"",IFERROR(SUMIFS(D_D[INV],D_D[MT],4,D_D[CAT],SMS,D_D[LOC],$A16),0)) -> 2412 | E16: =IF(ISNA($A16),"",IFERROR(SUMIFS(D_D[BL],D_D[MT],4,D_D[CAT],SMS,D_D[LOC],$A16),0)) -> 912 | F16: 0.3781094527 | G16: =IF(ISNA($A16),"",IFERROR(SUMIFS(D_D[ADP],D_D[MT],4,D_D[CAT],SMS,D_D[LOC],$A16),0)) -> 158.51 | H16: =IF(ISNA($A16),"",IFERROR(SUMIFS(D_D[PROD_MTD],D_D[MT],4,D_D[CAT],SMS,D_D[LOC],$A16),0)) -> 448 | I16: =IF(ISNA($A16),"",IFERROR(SUMIFS(D_D[ADCM],D_D[MT],4,D_D[CAT],SMS,D_D[LOC],$A16),0)) -> 111.19 | J16: =IF(ISNA($A16),"",IFERROR(SUMIFS(D_D[PROD_FYTD],D_D[MT],4,D_D[CAT],SMS,D_D[LOC],$A16),0)) -> 1444 | K16: =IF(ISNA($A16),"",IFERROR(SUMIFS(D_D[ADCF],D_D[MT],4,D_D[CAT],SMS,D_D[LOC],$A16),0)) -> 118.12
A17: 459 | B17: 5 | C17: Honolulu | D17: =IF(ISNA($A17),"",IFERROR(SUMIFS(D_D[INV],D_D[MT],4,D_D[CAT],SMS,D_D[LOC],$A17),0)) -> 3224 | E17: =IF(ISNA($A17),"",IFERROR(SUMIFS(D_D[BL],D_D[MT],4,D_D[CAT],SMS,D_D[LOC],$A17),0)) -> 1090 | F17: 0.33808933 | G17: =IF(ISNA($A17),"",IFERROR(SUMIFS(D_D[ADP],D_D[MT],4,D_D[CAT],SMS,D_D[LOC],$A17),0)) -> 139.77 | H17: =IF(ISNA($A17),"",IFERROR(SUMIFS(D_D[PROD_MTD],D_D[MT],4,D_D[CAT],SMS,D_D[LOC],$A17),0)) -> 565 | I17: =IF(ISNA($A17),"",IFERROR(SUMIFS(D_D[ADCM],D_D[MT],4,D_D[CAT],SMS,D_D[LOC],$A17),0)) -> 124.32 | J17: =IF(ISNA($A17),"",IFERROR(SUMIFS(D_D[PROD_FYTD],D_D[MT],4,D_D[CAT],SMS,D_D[LOC],$A17),0)) -> 1913 | K17: =IF(ISNA($A17),"",IFERROR(SUMIFS(D_D[ADCF],D_D[MT],4,D_D[CAT],SMS,D_D[LOC],$A17),0)) -> 118.77
A18: 344 | B18: 6 | C18: Los Angeles | D18: =IF(ISNA($A18),"",IFERROR(SUMIFS(D_D[INV],D_D[MT],4,D_D[CAT],SMS,D_D[LOC],$A18),0)) -> 10291 | E18: =IF(ISNA($A18),"",IFERROR(SUMIFS(D_D[BL],D_D[MT],4,D_D[CAT],SMS,D_D[LOC],$A18),0)) -> 3022 | F18: 0.2936546497 | G18: =IF(ISNA($A18),"",IFERROR(SUMIFS(D_D[ADP],D_D[MT],4,D_D[CAT],SMS,D_D[LOC],$A18),0)) -> 125.95 | H18: =IF(ISNA($A18),"",IFERROR(SUMIFS(D_D[PROD_MTD],D_D[MT],4,D_D[CAT],SMS,D_D[LOC],$A18),0)) -> 1860 | I18: =IF(ISNA($A18),"",IFERROR(SUMIFS(D_D[ADCM],D_D[MT],4,D_D[CAT],SMS,D_D[LOC],$A18),0)) -> 98.14 | J18: =IF(ISNA($A18),"",IFERROR(SUMIFS(D_D[PROD_FYTD],D_D[MT],4,D_D[CAT],SMS,D_D[LOC],$A18),0)) -> 5973 | K18: =IF(ISNA($A18),"",IFERROR(SUMIFS(D_D[ADCF],D_D[MT],4,D_D[CAT],SMS,D_D[LOC],$A18),0)) -> 102.04
A19: 358 | B19: 7 | C19: Manila | D19: =IF(ISNA($A19),"",IFERROR(SUMIFS(D_D[INV],D_D[MT],4,D_D[CAT],SMS,D_D[LOC],$A19),0)) -> 481 | E19: =IF(ISNA($A19),"",IFERROR(SUMIFS(D_D[BL],D_D[MT],4,D_D[CAT],SMS,D_D[LOC],$A19),0)) -> 184 | F19: 0.3825363825 | G19: =IF(ISNA($A19),"",IFERROR(SUMIFS(D_D[ADP],D_D[MT],4,D_D[CAT],SMS,D_D[LOC],$A19),0)) -> 176.71 | H19: =IF(ISNA($A19),"",IFERROR(SUMIFS(D_D[PROD_MTD],D_D[MT],4,D_D[CAT],SMS,D_D[LOC],$A19),0)) -> 85 | I19: =IF(ISNA($A19),"",IFERROR(SUMIFS(D_D[ADCM],D_D[MT],4,D_D[CAT],SMS,D_D[LOC],$A19),0)) -> 115.82 | J19: =IF(ISNA($A19),"",IFERROR(SUMIFS(D_D[PROD_FYTD],D_D[MT],4,D_D[CAT],SMS,D_D[LOC],$A19),0)) -> 274 | K19: =IF(ISNA($A19),"",IFERROR(SUMIFS(D_D[ADCF],D_D[MT],4,D_D[CAT],SMS,D_D[LOC],$A19),0)) -> 112.15
A20: 343 | B20: 8 | C20: Oakland | D20: =IF(ISNA($A20),"",IFERROR(SUMIFS(D_D[INV],D_D[MT],4,D_D[CAT],SMS,D_D[LOC],$A20),0)) -> 11170 | E20: =IF(ISNA($A20),"",IFERROR(SUMIFS(D_D[BL],D_D[MT],4,D_D[CAT],SMS,D_D[LOC],$A20),0)) -> 4033 | F20: 0.3610564011 | G20: =IF(ISNA($A20),"",IFERROR(SUMIFS(D_D[ADP],D_D[MT],4,D_D[CAT],SMS,D_D[LOC],$A20),0)) -> 151.08 | H20: =IF(ISNA($A20),"",IFERROR(SUMIFS(D_D[PROD_MTD],D_D[MT],4,D_D[CAT],SMS,D_D[LOC],$A20),0)) -> 1904 | I20: =IF(ISNA($A20),"",IFERROR(SUMIFS(D_D[ADCM],D_D[MT],4,D_D[CAT],SMS,D_D[LOC],$A20),0)) -> 114.11 | J20: =IF(ISNA($A20),"",IFERROR(SUMIFS(D_D[PROD_FYTD],D_D[MT],4,D_D[CAT],SMS,D_D[LOC],$A20),0)) -> 6476 | K20: =IF(ISNA($A20),"",IFERROR(SUMIFS(D_D[ADCF],D_D[MT],4,D_D[CAT],SMS,D_D[LOC],$A20),0)) -> 118.39
A21: 345 | B21: 9 | C21: Phoenix | D21: =IF(ISNA($A21),"",IFERROR(SUMIFS(D_D[INV],D_D[MT],4,D_D[CAT],SMS,D_D[LOC],$A21),0)) -> 8059 | E21: =IF(ISNA($A21),"",IFERROR(SUMIFS(D_D[BL],D_D[MT],4,D_D[CAT],SMS,D_D[LOC],$A21),0)) -> 3115 | F21: 0.3865243827 | G21: =IF(ISNA($A21),"",IFERROR(SUMIFS(D_D[ADP],D_D[MT],4,D_D[CAT],SMS,D_D[LOC],$A21),0)) -> 159.6 | H21: =IF(ISNA($A21),"",IFERROR(SUMIFS(D_D[PROD_MTD],D_D[MT],4,D_D[CAT],SMS,D_D[LOC],$A21),0)) -> 1444 | I21: =IF(ISNA($A21),"",IFERROR(SUMIFS(D_D[ADCM],D_D[MT],4,D_D[CAT],SMS,D_D[LOC],$A21),0)) -> 104.97 | J21: =IF(ISNA($A21),"",IFERROR(SUMIFS(D_D[PROD_FYTD],D_D[MT],4,D_D[CAT],SMS,D_D[LOC],$A21),0)) -> 4735 | K21: =IF(ISNA($A21),"",IFERROR(SUMIFS(D_D[ADCF],D_D[MT],4,D_D[CAT],SMS,D_D[LOC],$A21),0)) -> 119.12
A22: 348 | B22: 10 | C22: Portland | D22: =IF(ISNA($A22),"",IFERROR(SUMIFS(D_D[INV],D_D[MT],4,D_D[CAT],SMS,D_D[LOC],$A22),0)) -> 4586 | E22: =IF(ISNA($A22),"",IFERROR(SUMIFS(D_D[BL],D_D[MT],4,D_D[CAT],SMS,D_D[LOC],$A22),0)) -> 1818 | F22: 0.3964238988 | G22: =IF(ISNA($A22),"",IFERROR(SUMIFS(D_D[ADP],D_D[MT],4,D_D[CAT],SMS,D_D[LOC],$A22),0)) -> 181.88 | H22: =IF(ISNA($A22),"",IFERROR(SUMIFS(D_D[PROD_MTD],D_D[MT],4,D_D[CAT],SMS,D_D[LOC],$A22),0)) -> 741 | I22: =IF(ISNA($A22),"",IFERROR(SUMIFS(D_D[ADCM],D_D[MT],4,D_D[CAT],SMS,D_D[LOC],$A22),0)) -> 127.97 | J22: =IF(ISNA($A22),"",IFERROR(SUMIFS(D_D[PROD_FYTD],D_D[MT],4,D_D[CAT],SMS,D_D[LOC],$A22),0)) -> 2441 | K22: =IF(ISNA($A22),"",IFERROR(SUMIFS(D_D[ADCF],D_D[MT],4,D_D[CAT],SMS,D_D[LOC],$A22),0)) -> 143.01
A23: 354 | B23: 11 | C23: Reno | D23: =IF(ISNA($A23),"",IFERROR(SUMIFS(D_D[INV],D_D[MT],4,D_D[CAT],SMS,D_D[LOC],$A23),0)) -> 5061 | E23: =IF(ISNA($A23),"",IFERROR(SUMIFS(D_D[BL],D_D[MT],4,D_D[CAT],SMS,D_D[LOC],$A23),0)) -> 1745 | F23: 0.3447935191 | G23: =IF(ISNA($A23),"",IFERROR(SUMIFS(D_D[ADP],D_D[MT],4,D_D[CAT],SMS,D_D[LOC],$A23),0)) -> 149.11 | H23: =IF(ISNA($A23),"",IFERROR(SUMIFS(D_D[PROD_MTD],D_D[MT],4,D_D[CAT],SMS,D_D[LOC],$A23),0)) -> 755 | I23: =IF(ISNA($A23),"",IFERROR(SUMIFS(D_D[ADCM],D_D[MT],4,D_D[CAT],SMS,D_D[LOC],$A23),0)) -> 117.63 | J23: =IF(ISNA($A23),"",IFERROR(SUMIFS(D_D[PROD_FYTD],D_D[MT],4,D_D[CAT],SMS,D_D[LOC],$A23),0)) -> 2652 | K23: =IF(ISNA($A23),"",IFERROR(SUMIFS(D_D[ADCF],D_D[MT],4,D_D[CAT],SMS,D_D[LOC],$A23),0)) -> 117.99
A24: 341 | B24: 12 | C24: Salt Lake City | D24: =IF(ISNA($A24),"",IFERROR(SUMIFS(D_D[INV],D_D[MT],4,D_D[CAT],SMS,D_D[LOC],$A24),0)) -> 4322 | E24: =IF(ISNA($A24),"",IFERROR(SUMIFS(D_D[BL],D_D[MT],4,D_D[CAT],SMS,D_D[LOC],$A24),0)) -> 2283 | F24: 0.5282276724 | G24: =IF(ISNA($A24),"",IFERROR(SUMIFS(D_D[ADP],D_D[MT],4,D_D[CAT],SMS,D_D[LOC],$A24),0)) -> 213.64 | H24: =IF(ISNA($A24),"",IFERROR(SUMIFS(D_D[PROD_MTD],D_D[MT],4,D_D[CAT],SMS,D_D[LOC],$A24),0)) -> 603 | I24: =IF(ISNA($A24),"",IFERROR(SUMIFS(D_D[ADCM],D_D[MT],4,D_D[CAT],SMS,D_D[LOC],$A24),0)) -> 135.73 | J24: =IF(ISNA($A24),"",IFERROR(SUMIFS(D_D[PROD_FYTD],D_D[MT],4,D_D[CAT],SMS,D_D[LOC],$A24),0)) -> 1998 | K24: =IF(ISNA($A24),"",IFERROR(SUMIFS(D_D[ADCF],D_D[MT],4,D_D[CAT],SMS,D_D[LOC],$A24),0)) -> 143.75
A25: 377 | B25: 13 | C25: San Diego | D25: =IF(ISNA($A25),"",IFERROR(SUMIFS(D_D[INV],D_D[MT],4,D_D[CAT],SMS,D_D[LOC],$A25),0)) -> 13224 | E25: =IF(ISNA($A25),"",IFERROR(SUMIFS(D_D[BL],D_D[MT],4,D_D[CAT],SMS,D_D[LOC],$A25),0)) -> 4435 | F25: 0.3353750756 | G25: =IF(ISNA($A25),"",IFERROR(SUMIFS(D_D[ADP],D_D[MT],4,D_D[CAT],SMS,D_D[LOC],$A25),0)) -> 161.9 | H25: =IF(ISNA($A25),"",IFERROR(SUMIFS(D_D[PROD_MTD],D_D[MT],4,D_D[CAT],SMS,D_D[LOC],$A25),0)) -> 2523 | I25: =IF(ISNA($A25),"",IFERROR(SUMIFS(D_D[ADCM],D_D[MT],4,D_D[CAT],SMS,D_D[LOC],$A25),0)) -> 109.45 | J25: =IF(ISNA($A25),"",IFERROR(SUMIFS(D_D[PROD_FYTD],D_D[MT],4,D_D[CAT],SMS,D_D[LOC],$A25),0)) -> 8634 | K25: =IF(ISNA($A25),"",IFERROR(SUMIFS(D_D[ADCF],D_D[MT],4,D_D[CAT],SMS,D_D[LOC],$A25),0)) -> 115.6
A26: 346 | B26: 14 | C26: Seattle | D26: =IF(ISNA($A26),"",IFERROR(SUMIFS(D_D[INV],D_D[MT],4,D_D[CAT],SMS,D_D[LOC],$A26),0)) -> 13349 | E26: =IF(ISNA($A26),"",IFERROR(SUMIFS(D_D[BL],D_D[MT],4,D_D[CAT],SMS,D_D[LOC],$A26),0)) -> 5491 | F26: 0.4113416735 | G26: =IF(ISNA($A26),"",IFERROR(SUMIFS(D_D[ADP],D_D[MT],4,D_D[CAT],SMS,D_D[LOC],$A26),0)) -> 209.44 | H26: =IF(ISNA($A26),"",IFERROR(SUMIFS(D_D[PROD_MTD],D_D[MT],4,D_D[CAT],SMS,D_D[LOC],$A26),0)) -> 3937 | I26: =IF(ISNA($A26),"",IFERROR(SUMIFS(D_D[ADCM],D_D[MT],4,D_D[CAT],SMS,D_D[LOC],$A26),0)) -> 82.14 | J26: =IF(ISNA($A26),"",IFERROR(SUMIFS(D_D[PROD_FYTD],D_D[MT],4,D_D[CAT],SMS,D_D[LOC],$A26),0)) -> 13481 | K26: =IF(ISNA($A26),"",IFERROR(SUMIFS(D_D[ADCF],D_D[MT],4,D_D[CAT],SMS,D_D[LOC],$A26),0)) -> 88.42
B27: 15 | D27: =IF(ISNA($A27),"",IFERROR(SUMIFS(D_D[INV],D_D[MT],4,D_D[CAT],SMS,D_D[LOC],$A27),0)) ->  | E27: =IF(ISNA($A27),"",IFERROR(SUMIFS(D_D[BL],D_D[MT],4,D_D[CAT],SMS,D_D[LOC],$A27),0)) ->  | G27: =IF(ISNA($A27),"",IFERROR(SUMIFS(D_D[ADP],D_D[MT],4,D_D[CAT],SMS,D_D[LOC],$A27),0)) ->  | H27: =IF(ISNA($A27),"",IFERROR(SUMIFS(D_D[PROD_MTD],D_D[MT],4,D_D[CAT],SMS,D_D[LOC],$A27),0)) ->  | I27: =IF(ISNA($A27),"",IFERROR(SUMIFS(D_D[ADCM],D_D[MT],4,D_D[CAT],SMS,D_D[LOC],$A27),0)) ->  | J27: =IF(ISNA($A27),"",IFERROR(SUMIFS(D_D[PROD_FYTD],D_D[MT],4,D_D[CAT],SMS,D_D[LOC],$A27),0)) ->  | K27: =IF(ISNA($A27),"",IFERROR(SUMIFS(D_D[ADCF],D_D[MT],4,D_D[CAT],SMS,D_D[LOC],$A27),0)) -> 
B28: 16 | D28: =IF(ISNA($A28),"",IFERROR(SUMIFS(D_D[INV],D_D[MT],4,D_D[CAT],SMS,D_D[LOC],$A28),0)) ->  | E28: =IF(ISNA($A28),"",IFERROR(SUMIFS(D_D[BL],D_D[MT],4,D_D[CAT],SMS,D_D[LOC],$A28),0)) ->  | G28: =IF(ISNA($A28),"",IFERROR(SUMIFS(D_D[ADP],D_D[MT],4,D_D[CAT],SMS,D_D[LOC],$A28),0)) ->  | H28: =IF(ISNA($A28),"",IFERROR(SUMIFS(D_D[PROD_MTD],D_D[MT],4,D_D[CAT],SMS,D_D[LOC],$A28),0)) ->  | I28: =IF(ISNA($A28),"",IFERROR(SUMIFS(D_D[ADCM],D_D[MT],4,D_D[CAT],SMS,D_D[LOC],$A28),0)) ->  | J28: =IF(ISNA($A28),"",IFERROR(SUMIFS(D_D[PROD_FYTD],D_D[MT],4,D_D[CAT],SMS,D_D[LOC],$A28),0)) ->  | K28: =IF(ISNA($A28),"",IFERROR(SUMIFS(D_D[ADCF],D_D[MT],4,D_D[CAT],SMS,D_D[LOC],$A28),0)) -> 
B29: 17 | D29: =IF(ISNA($A29),"",IFERROR(SUMIFS(D_D[INV],D_D[MT],4,D_D[CAT],SMS,D_D[LOC],$A29),0)) ->  | E29: =IF(ISNA($A29),"",IFERROR(SUMIFS(D_D[BL],D_D[MT],4,D_D[CAT],SMS,D_D[LOC],$A29),0)) ->  | G29: =IF(ISNA($A29),"",IFERROR(SUMIFS(D_D[ADP],D_D[MT],4,D_D[CAT],SMS,D_D[LOC],$A29),0)) ->  | H29: =IF(ISNA($A29),"",IFERROR(SUMIFS(D_D[PROD_MTD],D_D[MT],4,D_D[CAT],SMS,D_D[LOC],$A29),0)) ->  | I29: =IF(ISNA($A29),"",IFERROR(SUMIFS(D_D[ADCM],D_D[MT],4,D_D[CAT],SMS,D_D[LOC],$A29),0)) ->  | J29: =IF(ISNA($A29),"",IFERROR(SUMIFS(D_D[PROD_FYTD],D_D[MT],4,D_D[CAT],SMS,D_D[LOC],$A29),0)) ->  | K29: =IF(ISNA($A29),"",IFERROR(SUMIFS(D_D[ADCF],D_D[MT],4,D_D[CAT],SMS,D_D[LOC],$A29),0)) -> 
B30: 18 | D30: =IF(ISNA($A30),"",IFERROR(SUMIFS(D_D[INV],D_D[MT],4,D_D[CAT],SMS,D_D[LOC],$A30),0)) ->  | E30: =IF(ISNA($A30),"",IFERROR(SUMIFS(D_D[BL],D_D[MT],4,D_D[CAT],SMS,D_D[LOC],$A30),0)) ->  | G30: =IF(ISNA($A30),"",IFERROR(SUMIFS(D_D[ADP],D_D[MT],4,D_D[CAT],SMS,D_D[LOC],$A30),0)) ->  | H30: =IF(ISNA($A30),"",IFERROR(SUMIFS(D_D[PROD_MTD],D_D[MT],4,D_D[CAT],SMS,D_D[LOC],$A30),0)) ->  | I30: =IF(ISNA($A30),"",IFERROR(SUMIFS(D_D[ADCM],D_D[MT],4,D_D[CAT],SMS,D_D[LOC],$A30),0)) ->  | J30: =IF(ISNA($A30),"",IFERROR(SUMIFS(D_D[PROD_FYTD],D_D[MT],4,D_D[CAT],SMS,D_D[LOC],$A30),0)) ->  | K30: =IF(ISNA($A30),"",IFERROR(SUMIFS(D_D[ADCF],D_D[MT],4,D_D[CAT],SMS,D_D[LOC],$A30),0)) -> 
B31: 19 | D31: =IF(ISNA($A31),"",IFERROR(SUMIFS(D_D[INV],D_D[MT],4,D_D[CAT],SMS,D_D[LOC],$A31),0)) ->  | E31: =IF(ISNA($A31),"",IFERROR(SUMIFS(D_D[BL],D_D[MT],4,D_D[CAT],SMS,D_D[LOC],$A31),0)) ->  | G31: =IF(ISNA($A31),"",IFERROR(SUMIFS(D_D[ADP],D_D[MT],4,D_D[CAT],SMS,D_D[LOC],$A31),0)) ->  | H31: =IF(ISNA($A31),"",IFERROR(SUMIFS(D_D[PROD_MTD],D_D[MT],4,D_D[CAT],SMS,D_D[LOC],$A31),0)) ->  | I31: =IF(ISNA($A31),"",IFERROR(SUMIFS(D_D[ADCM],D_D[MT],4,D_D[CAT],SMS,D_D[LOC],$A31),0)) ->  | J31: =IF(ISNA($A31),"",IFERROR(SUMIFS(D_D[PROD_FYTD],D_D[MT],4,D_D[CAT],SMS,D_D[LOC],$A31),0)) ->  | K31: =IF(ISNA($A31),"",IFERROR(SUMIFS(D_D[ADCF],D_D[MT],4,D_D[CAT],SMS,D_D[LOC],$A31),0)) -> 
B32: 20 | D32: =IF(ISNA($A32),"",IFERROR(SUMIFS(D_D[INV],D_D[MT],4,D_D[CAT],SMS,D_D[LOC],$A32),0)) ->  | E32: =IF(ISNA($A32),"",IFERROR(SUMIFS(D_D[BL],D_D[MT],4,D_D[CAT],SMS,D_D[LOC],$A32),0)) ->  | G32: =IF(ISNA($A32),"",IFERROR(SUMIFS(D_D[ADP],D_D[MT],4,D_D[CAT],SMS,D_D[LOC],$A32),0)) ->  | H32: =IF(ISNA($A32),"",IFERROR(SUMIFS(D_D[PROD_MTD],D_D[MT],4,D_D[CAT],SMS,D_D[LOC],$A32),0)) ->  | I32: =IF(ISNA($A32),"",IFERROR(SUMIFS(D_D[ADCM],D_D[MT],4,D_D[CAT],SMS,D_D[LOC],$A32),0)) ->  | J32: =IF(ISNA($A32),"",IFERROR(SUMIFS(D_D[PROD_FYTD],D_D[MT],4,D_D[CAT],SMS,D_D[LOC],$A32),0)) ->  | K32: =IF(ISNA($A32),"",IFERROR(SUMIFS(D_D[ADCF],D_D[MT],4,D_D[CAT],SMS,D_D[LOC],$A32),0)) -> 
B33: 21 | D33: =IF(ISNA($A33),"",IFERROR(SUMIFS(D_D[INV],D_D[MT],4,D_D[CAT],SMS,D_D[LOC],$A33),0)) ->  | E33: =IF(ISNA($A33),"",IFERROR(SUMIFS(D_D[BL],D_D[MT],4,D_D[CAT],SMS,D_D[LOC],$A33),0)) ->  | G33: =IF(ISNA($A33),"",IFERROR(SUMIFS(D_D[ADP],D_D[MT],4,D_D[CAT],SMS,D_D[LOC],$A33),0)) ->  | H33: =IF(ISNA($A33),"",IFERROR(SUMIFS(D_D[PROD_MTD],D_D[MT],4,D_D[CAT],SMS,D_D[LOC],$A33),0)) ->  | I33: =IF(ISNA($A33),"",IFERROR(SUMIFS(D_D[ADCM],D_D[MT],4,D_D[CAT],SMS,D_D[LOC],$A33),0)) ->  | J33: =IF(ISNA($A33),"",IFERROR(SUMIFS(D_D[PROD_FYTD],D_D[MT],4,D_D[CAT],SMS,D_D[LOC],$A33),0)) ->  | K33: =IF(ISNA($A33),"",IFERROR(SUMIFS(D_D[ADCF],D_D[MT],4,D_D[CAT],SMS,D_D[LOC],$A33),0)) -> 
B34: 22 | D34: =IF(ISNA($A34),"",IFERROR(SUMIFS(D_D[INV],D_D[MT],4,D_D[CAT],SMS,D_D[LOC],$A34),0)) ->  | E34: =IF(ISNA($A34),"",IFERROR(SUMIFS(D_D[BL],D_D[MT],4,D_D[CAT],SMS,D_D[LOC],$A34),0)) ->  | G34: =IF(ISNA($A34),"",IFERROR(SUMIFS(D_D[ADP],D_D[MT],4,D_D[CAT],SMS,D_D[LOC],$A34),0)) ->  | H34: =IF(ISNA($A34),"",IFERROR(SUMIFS(D_D[PROD_MTD],D_D[MT],4,D_D[CAT],SMS,D_D[LOC],$A34),0)) ->  | I34: =IF(ISNA($A34),"",IFERROR(SUMIFS(D_D[ADCM],D_D[MT],4,D_D[CAT],SMS,D_D[LOC],$A34),0)) ->  | J34: =IF(ISNA($A34),"",IFERROR(SUMIFS(D_D[PROD_FYTD],D_D[MT],4,D_D[CAT],SMS,D_D[LOC],$A34),0)) ->  | K34: =IF(ISNA($A34),"",IFERROR(SUMIFS(D_D[ADCF],D_D[MT],4,D_D[CAT],SMS,D_D[LOC],$A34),0)) -> 
B35: 23 | D35: =IF(ISNA($A35),"",IFERROR(SUMIFS(D_D[INV],D_D[MT],4,D_D[CAT],SMS,D_D[LOC],$A35),0)) ->  | E35: =IF(ISNA($A35),"",IFERROR(SUMIFS(D_D[BL],D_D[MT],4,D_D[CAT],SMS,D_D[LOC],$A35),0)) ->  | G35: =IF(ISNA($A35),"",IFERROR(SUMIFS(D_D[ADP],D_D[MT],4,D_D[CAT],SMS,D_D[LOC],$A35),0)) ->  | H35: =IF(ISNA($A35),"",IFERROR(SUMIFS(D_D[PROD_MTD],D_D[MT],4,D_D[CAT],SMS,D_D[LOC],$A35),0)) ->  | I35: =IF(ISNA($A35),"",IFERROR(SUMIFS(D_D[ADCM],D_D[MT],4,D_D[CAT],SMS,D_D[LOC],$A35),0)) ->  | J35: =IF(ISNA($A35),"",IFERROR(SUMIFS(D_D[PROD_FYTD],D_D[MT],4,D_D[CAT],SMS,D_D[LOC],$A35),0)) ->  | K35: =IF(ISNA($A35),"",IFERROR(SUMIFS(D_D[ADCF],D_D[MT],4,D_D[CAT],SMS,D_D[LOC],$A35),0)) -> 

Sheet Rating Bundle - State
C2: DISTRICT SELECTOR | D2: Compensation and Pension Rating Bundle Metrics | L2: Report through
D3: State View | L3: =D_DT[] -> 2021-12-25
D4: The State listed is based on the address associated with the claim, not payment address | L4: ADP = Average Days Pending | O4: MTD = Month to Date
D5: Each Special Mission has distinct claim counts | L5: ADC = Average Days to Complete | O5: FYTD = Fiscal Year to Date
D6: When Special Mission is set to Pension, BDD, or Quickstart, the District Selector has no impact.
L7: Accuracy metrics are available on Rating Bundle - SOJ tab
D8: CLAIM METRICS | L8: ACCURACY METRICS
C9: SPECIAL MISSION SELECTOR | D9: # Pending | E9: # Pending > 125 Days | F9: % Pending > 125 Days | G9: ADP | H9: # Completed MTD | I9: ADC MTD | J9: # Completed FYTD | K9: ADC FYTD | L9: Accuracy measurement is available on the Rating Bundle SOJ tab
A12: 100 | C12: =Driver!$C$20& " Total" -> USA - All Missions Total | D12: =IF(ISNA($A12),"",IFERROR(SUMIFS(D_D[INV],D_D[MT],6,D_D[CAT],SMS,D_D[LOC],$A12),0)) -> 624186 | E12: =IF(ISNA($A12),"",IFERROR(SUMIFS(D_D[BL],D_D[MT],6,D_D[CAT],SMS,D_D[LOC],$A12),0)) -> 257614 | F12: =IF(ISNA($A12),"",IFERROR(E12/D12,0)) -> 0.4127199264 | G12: =IF(ISNA($A12),"",IFERROR(SUMIFS(D_D[ADP],D_D[MT],6,D_D[CAT],SMS,D_D[LOC],$A12),0)) -> 153.88 | H12: =IF(ISNA($A12),"",IFERROR(SUMIFS(D_D[PROD_MTD],D_D[MT],6,D_D[CAT],SMS,D_D[LOC],$A12),0)) -> 109647 | I12: =IF(ISNA($A12),"",IFERROR(SUMIFS(D_D[ADCM],D_D[MT],6,D_D[CAT],SMS,D_D[LOC],$A12),0)) -> 121.75 | J12: =IF(ISNA($A12),"",IFERROR(SUMIFS(D_D[PROD_FYTD],D_D[MT],6,D_D[CAT],SMS,D_D[LOC],$A12),0)) -> 362489 | K12: =IF(ISNA($A12),"",IFERROR(SUMIFS(D_D[ADCF],D_D[MT],6,D_D[CAT],SMS,D_D[LOC],$A12),0)) -> 123.67
A13: =INDEX(STATE,(MATCH($C13,STATE_D,0))) -> 395 | B13: 1 | C13: =IFERROR(INDEX(INDIRECT(DS_ST),B13),"") -> Pacific District | D13: =IF(ISNA($A13),"",IFERROR(SUMIFS(D_D[INV],D_D[MT],6,D_D[CAT],SMS,D_D[LOC],$A13),0)) -> 112572 | E13: =IF(ISNA($A13),"",IFERROR(SUMIFS(D_D[BL],D_D[MT],6,D_D[CAT],SMS,D_D[LOC],$A13),0)) -> 47038 | F13: =IF(ISNA($A13),"",IFERROR(E13/D13,0)) -> 0.4178481328 | G13: =IF(ISNA($A13),"",IFERROR(SUMIFS(D_D[ADP],D_D[MT],6,D_D[CAT],SMS,D_D[LOC],$A13),0)) -> 157.1 | H13: =IF(ISNA($A13),"",IFERROR(SUMIFS(D_D[PROD_MTD],D_D[MT],6,D_D[CAT],SMS,D_D[LOC],$A13),0)) -> 19446 | I13: =IF(ISNA($A13),"",IFERROR(SUMIFS(D_D[ADCM],D_D[MT],6,D_D[CAT],SMS,D_D[LOC],$A13),0)) -> 118.48 | J13: =IF(ISNA($A13),"",IFERROR(SUMIFS(D_D[PROD_FYTD],D_D[MT],6,D_D[CAT],SMS,D_D[LOC],$A13),0)) -> 63626 | K13: =IF(ISNA($A13),"",IFERROR(SUMIFS(D_D[ADCF],D_D[MT],6,D_D[CAT],SMS,D_D[LOC],$A13),0)) -> 119.89
A14: AK | B14: 2 | C14: Alaska | D14: =IF(ISNA($A14),"",IFERROR(SUMIFS(D_D[INV],D_D[MT],6,D_D[CAT],SMS,D_D[LOC],$A14),0)) -> 1946 | E14: =IF(ISNA($A14),"",IFERROR(SUMIFS(D_D[BL],D_D[MT],6,D_D[CAT],SMS,D_D[LOC],$A14),0)) -> 788 | F14: =IF(ISNA($A14),"",IFERROR(E14/D14,0)) -> 0.4049331963 | G14: =IF(ISNA($A14),"",IFERROR(SUMIFS(D_D[ADP],D_D[MT],6,D_D[CAT],SMS,D_D[LOC],$A14),0)) -> 156.68 | H14: =IF(ISNA($A14),"",IFERROR(SUMIFS(D_D[PROD_MTD],D_D[MT],6,D_D[CAT],SMS,D_D[LOC],$A14),0)) -> 311 | I14: =IF(ISNA($A14),"",IFERROR(SUMIFS(D_D[ADCM],D_D[MT],6,D_D[CAT],SMS,D_D[LOC],$A14),0)) -> 123.73 | J14: =IF(ISNA($A14),"",IFERROR(SUMIFS(D_D[PROD_FYTD],D_D[MT],6,D_D[CAT],SMS,D_D[LOC],$A14),0)) -> 1101 | K14: =IF(ISNA($A14),"",IFERROR(SUMIFS(D_D[ADCF],D_D[MT],6,D_D[CAT],SMS,D_D[LOC],$A14),0)) -> 126.05
A15: AZ | B15: 3 | C15: =IFERROR(INDEX(INDIRECT(DS_ST),B15),"") -> Arizona | D15: =IF(ISNA($A15),"",IFERROR(SUMIFS(D_D[INV],D_D[MT],6,D_D[CAT],SMS,D_D[LOC],$A15),0)) -> 14240 | E15: =IF(ISNA($A15),"",IFERROR(SUMIFS(D_D[BL],D_D[MT],6,D_D[CAT],SMS,D_D[LOC],$A15),0)) -> 6176 | F15: =IF(ISNA($A15),"",IFERROR(E15/D15,0)) -> 0.4337078652 | G15: =IF(ISNA($A15),"",IFERROR(SUMIFS(D_D[ADP],D_D[MT],6,D_D[CAT],SMS,D_D[LOC],$A15),0)) -> 157.53 | H15: =IF(ISNA($A15),"",IFERROR(SUMIFS(D_D[PROD_MTD],D_D[MT],6,D_D[CAT],SMS,D_D[LOC],$A15),0)) -> 2659 | I15: =IF(ISNA($A15),"",IFERROR(SUMIFS(D_D[ADCM],D_D[MT],6,D_D[CAT],SMS,D_D[LOC],$A15),0)) -> 116.44 | J15: =IF(ISNA($A15),"",IFERROR(SUMIFS(D_D[PROD_FYTD],D_D[MT],6,D_D[CAT],SMS,D_D[LOC],$A15),0)) -> 8487 | K15: =IF(ISNA($A15),"",IFERROR(SUMIFS(D_D[ADCF],D_D[MT],6,D_D[CAT],SMS,D_D[LOC],$A15),0)) -> 121.02
A16: CA | B16: 4 | C16: California | D16: =IF(ISNA($A16),"",IFERROR(SUMIFS(D_D[INV],D_D[MT],6,D_D[CAT],SMS,D_D[LOC],$A16),0)) -> 50178 | E16: =IF(ISNA($A16),"",IFERROR(SUMIFS(D_D[BL],D_D[MT],6,D_D[CAT],SMS,D_D[LOC],$A16),0)) -> 19739 | F16: 0.3933795687 | G16: =IF(ISNA($A16),"",IFERROR(SUMIFS(D_D[ADP],D_D[MT],6,D_D[CAT],SMS,D_D[LOC],$A16),0)) -> 154.05 | H16: =IF(ISNA($A16),"",IFERROR(SUMIFS(D_D[PROD_MTD],D_D[MT],6,D_D[CAT],SMS,D_D[LOC],$A16),0)) -> 8824 | I16: =IF(ISNA($A16),"",IFERROR(SUMIFS(D_D[ADCM],D_D[MT],6,D_D[CAT],SMS,D_D[LOC],$A16),0)) -> 116.92 | J16: =IF(ISNA($A16),"",IFERROR(SUMIFS(D_D[PROD_FYTD],D_D[MT],6,D_D[CAT],SMS,D_D[LOC],$A16),0)) -> 29004 | K16: =IF(ISNA($A16),"",IFERROR(SUMIFS(D_D[ADCF],D_D[MT],6,D_D[CAT],SMS,D_D[LOC],$A16),0)) -> 117.42
A17: HI | B17: 5 | C17: Hawaii | D17: =IF(ISNA($A17),"",IFERROR(SUMIFS(D_D[INV],D_D[MT],6,D_D[CAT],SMS,D_D[LOC],$A17),0)) -> 3748 | E17: =IF(ISNA($A17),"",IFERROR(SUMIFS(D_D[BL],D_D[MT],6,D_D[CAT],SMS,D_D[LOC],$A17),0)) -> 1585 | F17: 0.4228922092 | G17: =IF(ISNA($A17),"",IFERROR(SUMIFS(D_D[ADP],D_D[MT],6,D_D[CAT],SMS,D_D[LOC],$A17),0)) -> 160.18 | H17: =IF(ISNA($A17),"",IFERROR(SUMIFS(D_D[PROD_MTD],D_D[MT],6,D_D[CAT],SMS,D_D[LOC],$A17),0)) -> 641 | I17: =IF(ISNA($A17),"",IFERROR(SUMIFS(D_D[ADCM],D_D[MT],6,D_D[CAT],SMS,D_D[LOC],$A17),0)) -> 120.61 | J17: =IF(ISNA($A17),"",IFERROR(SUMIFS(D_D[PROD_FYTD],D_D[MT],6,D_D[CAT],SMS,D_D[LOC],$A17),0)) -> 2157 | K17: =IF(ISNA($A17),"",IFERROR(SUMIFS(D_D[ADCF],D_D[MT],6,D_D[CAT],SMS,D_D[LOC],$A17),0)) -> 122.31
A18: ID | B18: 6 | C18: Idaho | D18: =IF(ISNA($A18),"",IFERROR(SUMIFS(D_D[INV],D_D[MT],6,D_D[CAT],SMS,D_D[LOC],$A18),0)) -> 3876 | E18: =IF(ISNA($A18),"",IFERROR(SUMIFS(D_D[BL],D_D[MT],6,D_D[CAT],SMS,D_D[LOC],$A18),0)) -> 1693 | F18: 0.4367905057 | G18: =IF(ISNA($A18),"",IFERROR(SUMIFS(D_D[ADP],D_D[MT],6,D_D[CAT],SMS,D_D[LOC],$A18),0)) -> 160.03 | H18: =IF(ISNA($A18),"",IFERROR(SUMIFS(D_D[PROD_MTD],D_D[MT],6,D_D[CAT],SMS,D_D[LOC],$A18),0)) -> 685 | I18: =IF(ISNA($A18),"",IFERROR(SUMIFS(D_D[ADCM],D_D[MT],6,D_D[CAT],SMS,D_D[LOC],$A18),0)) -> 122.62 | J18: =IF(ISNA($A18),"",IFERROR(SUMIFS(D_D[PROD_FYTD],D_D[MT],6,D_D[CAT],SMS,D_D[LOC],$A18),0)) -> 2204 | K18: =IF(ISNA($A18),"",IFERROR(SUMIFS(D_D[ADCF],D_D[MT],6,D_D[CAT],SMS,D_D[LOC],$A18),0)) -> 122.61
A19: NV | B19: 7 | C19: Nevada | D19: =IF(ISNA($A19),"",IFERROR(SUMIFS(D_D[INV],D_D[MT],6,D_D[CAT],SMS,D_D[LOC],$A19),0)) -> 8315 | E19: =IF(ISNA($A19),"",IFERROR(SUMIFS(D_D[BL],D_D[MT],6,D_D[CAT],SMS,D_D[LOC],$A19),0)) -> 3370 | F19: 0.4052916416 | G19: =IF(ISNA($A19),"",IFERROR(SUMIFS(D_D[ADP],D_D[MT],6,D_D[CAT],SMS,D_D[LOC],$A19),0)) -> 151.68 | H19: =IF(ISNA($A19),"",IFERROR(SUMIFS(D_D[PROD_MTD],D_D[MT],6,D_D[CAT],SMS,D_D[LOC],$A19),0)) -> 1299 | I19: =IF(ISNA($A19),"",IFERROR(SUMIFS(D_D[ADCM],D_D[MT],6,D_D[CAT],SMS,D_D[LOC],$A19),0)) -> 118.7 | J19: =IF(ISNA($A19),"",IFERROR(SUMIFS(D_D[PROD_FYTD],D_D[MT],6,D_D[CAT],SMS,D_D[LOC],$A19),0)) -> 4277 | K19: =IF(ISNA($A19),"",IFERROR(SUMIFS(D_D[ADCF],D_D[MT],6,D_D[CAT],SMS,D_D[LOC],$A19),0)) -> 118.81
A20: NM | B20: 8 | C20: New Mexico | D20: =IF(ISNA($A20),"",IFERROR(SUMIFS(D_D[INV],D_D[MT],6,D_D[CAT],SMS,D_D[LOC],$A20),0)) -> 4450 | E20: =IF(ISNA($A20),"",IFERROR(SUMIFS(D_D[BL],D_D[MT],6,D_D[CAT],SMS,D_D[LOC],$A20),0)) -> 2018 | F20: 0.4534831461 | G20: =IF(ISNA($A20),"",IFERROR(SUMIFS(D_D[ADP],D_D[MT],6,D_D[CAT],SMS,D_D[LOC],$A20),0)) -> 159.38 | H20: =IF(ISNA($A20),"",IFERROR(SUMIFS(D_D[PROD_MTD],D_D[MT],6,D_D[CAT],SMS,D_D[LOC],$A20),0)) -> 782 | I20: =IF(ISNA($A20),"",IFERROR(SUMIFS(D_D[ADCM],D_D[MT],6,D_D[CAT],SMS,D_D[LOC],$A20),0)) -> 125.48 | J20: =IF(ISNA($A20),"",IFERROR(SUMIFS(D_D[PROD_FYTD],D_D[MT],6,D_D[CAT],SMS,D_D[LOC],$A20),0)) -> 2446 | K20: =IF(ISNA($A20),"",IFERROR(SUMIFS(D_D[ADCF],D_D[MT],6,D_D[CAT],SMS,D_D[LOC],$A20),0)) -> 124.79
A21: OR | B21: 9 | C21: Oregon | D21: =IF(ISNA($A21),"",IFERROR(SUMIFS(D_D[INV],D_D[MT],6,D_D[CAT],SMS,D_D[LOC],$A21),0)) -> 8094 | E21: =IF(ISNA($A21),"",IFERROR(SUMIFS(D_D[BL],D_D[MT],6,D_D[CAT],SMS,D_D[LOC],$A21),0)) -> 4106 | F21: 0.5072893501 | G21: =IF(ISNA($A21),"",IFERROR(SUMIFS(D_D[ADP],D_D[MT],6,D_D[CAT],SMS,D_D[LOC],$A21),0)) -> 184.12 | H21: =IF(ISNA($A21),"",IFERROR(SUMIFS(D_D[PROD_MTD],D_D[MT],6,D_D[CAT],SMS,D_D[LOC],$A21),0)) -> 1206 | I21: =IF(ISNA($A21),"",IFERROR(SUMIFS(D_D[ADCM],D_D[MT],6,D_D[CAT],SMS,D_D[LOC],$A21),0)) -> 128.5 | J21: =IF(ISNA($A21),"",IFERROR(SUMIFS(D_D[PROD_FYTD],D_D[MT],6,D_D[CAT],SMS,D_D[LOC],$A21),0)) -> 4000 | K21: =IF(ISNA($A21),"",IFERROR(SUMIFS(D_D[ADCF],D_D[MT],6,D_D[CAT],SMS,D_D[LOC],$A21),0)) -> 139.61
A22: PI | B22: 10 | C22: Philippines | D22: =IF(ISNA($A22),"",IFERROR(SUMIFS(D_D[INV],D_D[MT],6,D_D[CAT],SMS,D_D[LOC],$A22),0)) -> 0 | E22: =IF(ISNA($A22),"",IFERROR(SUMIFS(D_D[BL],D_D[MT],6,D_D[CAT],SMS,D_D[LOC],$A22),0)) -> 0 | F22: 0 | G22: =IF(ISNA($A22),"",IFERROR(SUMIFS(D_D[ADP],D_D[MT],6,D_D[CAT],SMS,D_D[LOC],$A22),0)) -> 0 | H22: =IF(ISNA($A22),"",IFERROR(SUMIFS(D_D[PROD_MTD],D_D[MT],6,D_D[CAT],SMS,D_D[LOC],$A22),0)) -> 0 | I22: =IF(ISNA($A22),"",IFERROR(SUMIFS(D_D[ADCM],D_D[MT],6,D_D[CAT],SMS,D_D[LOC],$A22),0)) -> 0 | J22: =IF(ISNA($A22),"",IFERROR(SUMIFS(D_D[PROD_FYTD],D_D[MT],6,D_D[CAT],SMS,D_D[LOC],$A22),0)) -> 0 | K22: =IF(ISNA($A22),"",IFERROR(SUMIFS(D_D[ADCF],D_D[MT],6,D_D[CAT],SMS,D_D[LOC],$A22),0)) -> 0
A23: UT | B23: 11 | C23: Utah | D23: =IF(ISNA($A23),"",IFERROR(SUMIFS(D_D[INV],D_D[MT],6,D_D[CAT],SMS,D_D[LOC],$A23),0)) -> 3584 | E23: =IF(ISNA($A23),"",IFERROR(SUMIFS(D_D[BL],D_D[MT],6,D_D[CAT],SMS,D_D[LOC],$A23),0)) -> 1469 | F23: 0.4098772321 | G23: =IF(ISNA($A23),"",IFERROR(SUMIFS(D_D[ADP],D_D[MT],6,D_D[CAT],SMS,D_D[LOC],$A23),0)) -> 147.96 | H23: =IF(ISNA($A23),"",IFERROR(SUMIFS(D_D[PROD_MTD],D_D[MT],6,D_D[CAT],SMS,D_D[LOC],$A23),0)) -> 644 | I23: =IF(ISNA($A23),"",IFERROR(SUMIFS(D_D[ADCM],D_D[MT],6,D_D[CAT],SMS,D_D[LOC],$A23),0)) -> 111.27 | J23: =IF(ISNA($A23),"",IFERROR(SUMIFS(D_D[PROD_FYTD],D_D[MT],6,D_D[CAT],SMS,D_D[LOC],$A23),0)) -> 2133 | K23: =IF(ISNA($A23),"",IFERROR(SUMIFS(D_D[ADCF],D_D[MT],6,D_D[CAT],SMS,D_D[LOC],$A23),0)) -> 116.97
A24: WA | B24: 12 | C24: Washington | D24: =IF(ISNA($A24),"",IFERROR(SUMIFS(D_D[INV],D_D[MT],6,D_D[CAT],SMS,D_D[LOC],$A24),0)) -> 14141 | E24: =IF(ISNA($A24),"",IFERROR(SUMIFS(D_D[BL],D_D[MT],6,D_D[CAT],SMS,D_D[LOC],$A24),0)) -> 6094 | F24: 0.4309454777 | G24: =IF(ISNA($A24),"",IFERROR(SUMIFS(D_D[ADP],D_D[MT],6,D_D[CAT],SMS,D_D[LOC],$A24),0)) -> 155.29 | H24: =IF(ISNA($A24),"",IFERROR(SUMIFS(D_D[PROD_MTD],D_D[MT],6,D_D[CAT],SMS,D_D[LOC],$A24),0)) -> 2395 | I24: =IF(ISNA($A24),"",IFERROR(SUMIFS(D_D[ADCM],D_D[MT],6,D_D[CAT],SMS,D_D[LOC],$A24),0)) -> 118.59 | J24: =IF(ISNA($A24),"",IFERROR(SUMIFS(D_D[PROD_FYTD],D_D[MT],6,D_D[CAT],SMS,D_D[LOC],$A24),0)) -> 7817 | K24: =IF(ISNA($A24),"",IFERROR(SUMIFS(D_D[ADCF],D_D[MT],6,D_D[CAT],SMS,D_D[LOC],$A24),0)) -> 115.3
B25: 13 | D25: =IF(ISNA($A25),"",IFERROR(SUMIFS(D_D[INV],D_D[MT],6,D_D[CAT],SMS,D_D[LOC],$A25),0)) ->  | E25: =IF(ISNA($A25),"",IFERROR(SUMIFS(D_D[BL],D_D[MT],6,D_D[CAT],SMS,D_D[LOC],$A25),0)) ->  | G25: =IF(ISNA($A25),"",IFERROR(SUMIFS(D_D[ADP],D_D[MT],6,D_D[CAT],SMS,D_D[LOC],$A25),0)) ->  | H25: =IF(ISNA($A25),"",IFERROR(SUMIFS(D_D[PROD_MTD],D_D[MT],6,D_D[CAT],SMS,D_D[LOC],$A25),0)) ->  | I25: =IF(ISNA($A25),"",IFERROR(SUMIFS(D_D[ADCM],D_D[MT],6,D_D[CAT],SMS,D_D[LOC],$A25),0)) ->  | J25: =IF(ISNA($A25),"",IFERROR(SUMIFS(D_D[PROD_FYTD],D_D[MT],6,D_D[CAT],SMS,D_D[LOC],$A25),0)) ->  | K25: =IF(ISNA($A25),"",IFERROR(SUMIFS(D_D[ADCF],D_D[MT],6,D_D[CAT],SMS,D_D[LOC],$A25),0)) -> 
B26: 14 | D26: =IF(ISNA($A26),"",IFERROR(SUMIFS(D_D[INV],D_D[MT],6,D_D[CAT],SMS,D_D[LOC],$A26),0)) ->  | E26: =IF(ISNA($A26),"",IFERROR(SUMIFS(D_D[BL],D_D[MT],6,D_D[CAT],SMS,D_D[LOC],$A26),0)) ->  | G26: =IF(ISNA($A26),"",IFERROR(SUMIFS(D_D[ADP],D_D[MT],6,D_D[CAT],SMS,D_D[LOC],$A26),0)) ->  | H26: =IF(ISNA($A26),"",IFERROR(SUMIFS(D_D[PROD_MTD],D_D[MT],6,D_D[CAT],SMS,D_D[LOC],$A26),0)) ->  | I26: =IF(ISNA($A26),"",IFERROR(SUMIFS(D_D[ADCM],D_D[MT],6,D_D[CAT],SMS,D_D[LOC],$A26),0)) ->  | J26: =IF(ISNA($A26),"",IFERROR(SUMIFS(D_D[PROD_FYTD],D_D[MT],6,D_D[CAT],SMS,D_D[LOC],$A26),0)) ->  | K26: =IF(ISNA($A26),"",IFERROR(SUMIFS(D_D[ADCF],D_D[MT],6,D_D[CAT],SMS,D_D[LOC],$A26),0)) -> 
B27: 15 | D27: =IF(ISNA($A27),"",IFERROR(SUMIFS(D_D[INV],D_D[MT],6,D_D[CAT],SMS,D_D[LOC],$A27),0)) ->  | E27: =IF(ISNA($A27),"",IFERROR(SUMIFS(D_D[BL],D_D[MT],6,D_D[CAT],SMS,D_D[LOC],$A27),0)) ->  | G27: =IF(ISNA($A27),"",IFERROR(SUMIFS(D_D[ADP],D_D[MT],6,D_D[CAT],SMS,D_D[LOC],$A27),0)) ->  | H27: =IF(ISNA($A27),"",IFERROR(SUMIFS(D_D[PROD_MTD],D_D[MT],6,D_D[CAT],SMS,D_D[LOC],$A27),0)) ->  | I27: =IF(ISNA($A27),"",IFERROR(SUMIFS(D_D[ADCM],D_D[MT],6,D_D[CAT],SMS,D_D[LOC],$A27),0)) ->  | J27: =IF(ISNA($A27),"",IFERROR(SUMIFS(D_D[PROD_FYTD],D_D[MT],6,D_D[CAT],SMS,D_D[LOC],$A27),0)) ->  | K27: =IF(ISNA($A27),"",IFERROR(SUMIFS(D_D[ADCF],D_D[MT],6,D_D[CAT],SMS,D_D[LOC],$A27),0)) -> 
B28: 16 | D28: =IF(ISNA($A28),"",IFERROR(SUMIFS(D_D[INV],D_D[MT],6,D_D[CAT],SMS,D_D[LOC],$A28),0)) ->  | E28: =IF(ISNA($A28),"",IFERROR(SUMIFS(D_D[BL],D_D[MT],6,D_D[CAT],SMS,D_D[LOC],$A28),0)) ->  | G28: =IF(ISNA($A28),"",IFERROR(SUMIFS(D_D[ADP],D_D[MT],6,D_D[CAT],SMS,D_D[LOC],$A28),0)) ->  | H28: =IF(ISNA($A28),"",IFERROR(SUMIFS(D_D[PROD_MTD],D_D[MT],6,D_D[CAT],SMS,D_D[LOC],$A28),0)) ->  | I28: =IF(ISNA($A28),"",IFERROR(SUMIFS(D_D[ADCM],D_D[MT],6,D_D[CAT],SMS,D_D[LOC],$A28),0)) ->  | J28: =IF(ISNA($A28),"",IFERROR(SUMIFS(D_D[PROD_FYTD],D_D[MT],6,D_D[CAT],SMS,D_D[LOC],$A28),0)) ->  | K28: =IF(ISNA($A28),"",IFERROR(SUMIFS(D_D[ADCF],D_D[MT],6,D_D[CAT],SMS,D_D[LOC],$A28),0)) -> 
B29: 17 | D29: =IF(ISNA($A29),"",IFERROR(SUMIFS(D_D[INV],D_D[MT],6,D_D[CAT],SMS,D_D[LOC],$A29),0)) ->  | E29: =IF(ISNA($A29),"",IFERROR(SUMIFS(D_D[BL],D_D[MT],6,D_D[CAT],SMS,D_D[LOC],$A29),0)) ->  | G29: =IF(ISNA($A29),"",IFERROR(SUMIFS(D_D[ADP],D_D[MT],6,D_D[CAT],SMS,D_D[LOC],$A29),0)) ->  | H29: =IF(ISNA($A29),"",IFERROR(SUMIFS(D_D[PROD_MTD],D_D[MT],6,D_D[CAT],SMS,D_D[LOC],$A29),0)) ->  | I29: =IF(ISNA($A29),"",IFERROR(SUMIFS(D_D[ADCM],D_D[MT],6,D_D[CAT],SMS,D_D[LOC],$A29),0)) ->  | J29: =IF(ISNA($A29),"",IFERROR(SUMIFS(D_D[PROD_FYTD],D_D[MT],6,D_D[CAT],SMS,D_D[LOC],$A29),0)) ->  | K29: =IF(ISNA($A29),"",IFERROR(SUMIFS(D_D[ADCF],D_D[MT],6,D_D[CAT],SMS,D_D[LOC],$A29),0)) -> 
B30: 18 | D30: =IF(ISNA($A30),"",IFERROR(SUMIFS(D_D[INV],D_D[MT],6,D_D[CAT],SMS,D_D[LOC],$A30),0)) ->  | E30: =IF(ISNA($A30),"",IFERROR(SUMIFS(D_D[BL],D_D[MT],6,D_D[CAT],SMS,D_D[LOC],$A30),0)) ->  | G30: =IF(ISNA($A30),"",IFERROR(SUMIFS(D_D[ADP],D_D[MT],6,D_D[CAT],SMS,D_D[LOC],$A30),0)) ->  | H30: =IF(ISNA($A30),"",IFERROR(SUMIFS(D_D[PROD_MTD],D_D[MT],6,D_D[CAT],SMS,D_D[LOC],$A30),0)) ->  | I30: =IF(ISNA($A30),"",IFERROR(SUMIFS(D_D[ADCM],D_D[MT],6,D_D[CAT],SMS,D_D[LOC],$A30),0)) ->  | J30: =IF(ISNA($A30),"",IFERROR(SUMIFS(D_D[PROD_FYTD],D_D[MT],6,D_D[CAT],SMS,D_D[LOC],$A30),0)) ->  | K30: =IF(ISNA($A30),"",IFERROR(SUMIFS(D_D[ADCF],D_D[MT],6,D_D[CAT],SMS,D_D[LOC],$A30),0)) -> 
B31: 19 | D31: =IF(ISNA($A31),"",IFERROR(SUMIFS(D_D[INV],D_D[MT],6,D_D[CAT],SMS,D_D[LOC],$A31),0)) ->  | E31: =IF(ISNA($A31),"",IFERROR(SUMIFS(D_D[BL],D_D[MT],6,D_D[CAT],SMS,D_D[LOC],$A31),0)) ->  | G31: =IF(ISNA($A31),"",IFERROR(SUMIFS(D_D[ADP],D_D[MT],6,D_D[CAT],SMS,D_D[LOC],$A31),0)) ->  | H31: =IF(ISNA($A31),"",IFERROR(SUMIFS(D_D[PROD_MTD],D_D[MT],6,D_D[CAT],SMS,D_D[LOC],$A31),0)) ->  | I31: =IF(ISNA($A31),"",IFERROR(SUMIFS(D_D[ADCM],D_D[MT],6,D_D[CAT],SMS,D_D[LOC],$A31),0)) ->  | J31: =IF(ISNA($A31),"",IFERROR(SUMIFS(D_D[PROD_FYTD],D_D[MT],6,D_D[CAT],SMS,D_D[LOC],$A31),0)) ->  | K31: =IF(ISNA($A31),"",IFERROR(SUMIFS(D_D[ADCF],D_D[MT],6,D_D[CAT],SMS,D_D[LOC],$A31),0)) -> 
B32: 20 | D32: =IF(ISNA($A32),"",IFERROR(SUMIFS(D_D[INV],D_D[MT],6,D_D[CAT],SMS,D_D[LOC],$A32),0)) ->  | E32: =IF(ISNA($A32),"",IFERROR(SUMIFS(D_D[BL],D_D[MT],6,D_D[CAT],SMS,D_D[LOC],$A32),0)) ->  | G32: =IF(ISNA($A32),"",IFERROR(SUMIFS(D_D[ADP],D_D[MT],6,D_D[CAT],SMS,D_D[LOC],$A32),0)) ->  | H32: =IF(ISNA($A32),"",IFERROR(SUMIFS(D_D[PROD_MTD],D_D[MT],6,D_D[CAT],SMS,D_D[LOC],$A32),0)) ->  | I32: =IF(ISNA($A32),"",IFERROR(SUMIFS(D_D[ADCM],D_D[MT],6,D_D[CAT],SMS,D_D[LOC],$A32),0)) ->  | J32: =IF(ISNA($A32),"",IFERROR(SUMIFS(D_D[PROD_FYTD],D_D[MT],6,D_D[CAT],SMS,D_D[LOC],$A32),0)) ->  | K32: =IF(ISNA($A32),"",IFERROR(SUMIFS(D_D[ADCF],D_D[MT],6,D_D[CAT],SMS,D_D[LOC],$A32),0)) -> 
B33: 21 | D33: =IF(ISNA($A33),"",IFERROR(SUMIFS(D_D[INV],D_D[MT],6,D_D[CAT],SMS,D_D[LOC],$A33),0)) ->  | E33: =IF(ISNA($A33),"",IFERROR(SUMIFS(D_D[BL],D_D[MT],6,D_D[CAT],SMS,D_D[LOC],$A33),0)) ->  | G33: =IF(ISNA($A33),"",IFERROR(SUMIFS(D_D[ADP],D_D[MT],6,D_D[CAT],SMS,D_D[LOC],$A33),0)) ->  | H33: =IF(ISNA($A33),"",IFERROR(SUMIFS(D_D[PROD_MTD],D_D[MT],6,D_D[CAT],SMS,D_D[LOC],$A33),0)) ->  | I33: =IF(ISNA($A33),"",IFERROR(SUMIFS(D_D[ADCM],D_D[MT],6,D_D[CAT],SMS,D_D[LOC],$A33),0)) ->  | J33: =IF(ISNA($A33),"",IFERROR(SUMIFS(D_D[PROD_FYTD],D_D[MT],6,D_D[CAT],SMS,D_D[LOC],$A33),0)) ->  | K33: =IF(ISNA($A33),"",IFERROR(SUMIFS(D_D[ADCF],D_D[MT],6,D_D[CAT],SMS,D_D[LOC],$A33),0)) -> 
B34: 22 | D34: =IF(ISNA($A34),"",IFERROR(SUMIFS(D_D[INV],D_D[MT],6,D_D[CAT],SMS,D_D[LOC],$A34),0)) ->  | E34: =IF(ISNA($A34),"",IFERROR(SUMIFS(D_D[BL],D_D[MT],6,D_D[CAT],SMS,D_D[LOC],$A34),0)) ->  | G34: =IF(ISNA($A34),"",IFERROR(SUMIFS(D_D[ADP],D_D[MT],6,D_D[CAT],SMS,D_D[LOC],$A34),0)) ->  | H34: =IF(ISNA($A34),"",IFERROR(SUMIFS(D_D[PROD_MTD],D_D[MT],6,D_D[CAT],SMS,D_D[LOC],$A34),0)) ->  | I34: =IF(ISNA($A34),"",IFERROR(SUMIFS(D_D[ADCM],D_D[MT],6,D_D[CAT],SMS,D_D[LOC],$A34),0)) ->  | J34: =IF(ISNA($A34),"",IFERROR(SUMIFS(D_D[PROD_FYTD],D_D[MT],6,D_D[CAT],SMS,D_D[LOC],$A34),0)) ->  | K34: =IF(ISNA($A34),"",IFERROR(SUMIFS(D_D[ADCF],D_D[MT],6,D_D[CAT],SMS,D_D[LOC],$A34),0)) -> 
B35: 23 | D35: =IF(ISNA($A35),"",IFERROR(SUMIFS(D_D[INV],D_D[MT],6,D_D[CAT],SMS,D_D[LOC],$A35),0)) ->  | E35: =IF(ISNA($A35),"",IFERROR(SUMIFS(D_D[BL],D_D[MT],6,D_D[CAT],SMS,D_D[LOC],$A35),0)) ->  | G35: =IF(ISNA($A35),"",IFERROR(SUMIFS(D_D[ADP],D_D[MT],6,D_D[CAT],SMS,D_D[LOC],$A35),0)) ->  | H35: =IF(ISNA($A35),"",IFERROR(SUMIFS(D_D[PROD_MTD],D_D[MT],6,D_D[CAT],SMS,D_D[LOC],$A35),0)) ->  | I35: =IF(ISNA($A35),"",IFERROR(SUMIFS(D_D[ADCM],D_D[MT],6,D_D[CAT],SMS,D_D[LOC],$A35),0)) ->  | J35: =IF(ISNA($A35),"",IFERROR(SUMIFS(D_D[PROD_FYTD],D_D[MT],6,D_D[CAT],SMS,D_D[LOC],$A35),0)) ->  | K35: =IF(ISNA($A35),"",IFERROR(SUMIFS(D_D[ADCF],D_D[MT],6,D_D[CAT],SMS,D_D[LOC],$A35),0)) -> 

Sheet Rating Bundle - SOJ - NWQ
C2: DISTRICT SELECTOR | D2: Compensation and Pension Rating Bundle Metrics | J2: Report through
D3: NWQ-Station of Jurisdiction View | J3: =D_DT[] -> 2021-12-25
D4: The Station of Jurisdiction (SOJ) is the regional office assigned to work the claim | J4: ADP = Average Days Pending
D5: Each Special Mission has distinct claim counts
D6: When Special Mission is set to Pension, BDD, or Quickstart, the District Selector has | J6: Life Cycle Metrics defined on Legend tab
D7: no impact
D8: CLAIM METRICS | H8: LIFE CYCLE METRICS (as Percent of # Pending)
C9: SPECIAL MISSION SELECTOR | D9: # Pending | E9: # Pending > 125 Days | F9: % Pending > 125 Days | G9: ADP | H9: Pending Development | I9: Pending Evidence | J9: Pending Decision | K9: Pending Award | L9: Pending Authorization
A12: 100 | C12: =Driver!$C$20& " Total" -> USA - All Missions Total | D12: =IF(ISNA($A12),"",IFERROR(SUMIFS(D_D[INV],D_D[MT],5,D_D[CAT],SMS, D_D[EP],-1,D_D[LOC],$A12),0)) -> 624186 | E12: =IF(ISNA($A12),"",IFERROR(SUMIFS(D_D[BL],D_D[MT],5,D_D[CAT],SMS, D_D[EP],-1,D_D[LOC],$A12),0)) -> 257614 | F12: =IF(ISNA($A12),"",IFERROR(E12/D12,0)) -> 0.4127199264 | G12: =IF(ISNA($A12),"",IFERROR(SUMIFS(D_D[ADP],D_D[MT],5,D_D[CAT],SMS, D_D[EP],-1,D_D[LOC],$A12),0)) -> 153.88 | H12: =IF(ISNA($A12),"",IFERROR(SUMIFS(D_D[DEV],D_D[MT],5,D_D[CAT],SMS, D_D[EP],-1,D_D[LOC],$A12)/$D12,0)) -> 0.01839675994 | I12: =IF(ISNA($A12),"",IFERROR(SUMIFS(D_D[EVD],D_D[MT],5,D_D[CAT],SMS, D_D[EP],-1,D_D[LOC],$A12)/$D12,0)) -> 0.6290961348 | J12: =IF(ISNA($A12),"",IFERROR(SUMIFS(D_D[DEC],D_D[MT],5,D_D[CAT],SMS, D_D[EP],-1,D_D[LOC],$A12)/$D12,0)) -> 0.3460282672 | K12: =IF(ISNA($A12),"",IFERROR(SUMIFS(D_D[AWD],D_D[MT],5,D_D[CAT],SMS, D_D[EP],-1,D_D[LOC],$A12)/$D12,0)) -> 0.004790238807 | L12: =IF(ISNA($A12),"",IFERROR(SUMIFS(D_D[AUT],D_D[MT],5,D_D[CAT],SMS, D_D[EP],-1,D_D[LOC],$A12)/$D12,0)) -> 0.001686997145
A13: 499 | C13: ="NWQ-"&Driver!$C$20& " Total" -> NWQ-USA - All Missions Total | D13: =IF(ISNA($A13),"",IFERROR(SUMIFS(D_D[INV],D_D[MT],5,D_D[CAT],SMS, D_D[EP],-1,D_D[LOC],$A13),0)) -> 544730 | E13: =IF(ISNA($A13),"",IFERROR(SUMIFS(D_D[BL],D_D[MT],5,D_D[CAT],SMS, D_D[EP],-1,D_D[LOC],$A13),0)) -> 223944 | F13: =IF(ISNA($A13),"",IFERROR(E13/D13,0)) -> 0.4111100912 | G13: =IF(ISNA($A13),"",IFERROR(SUMIFS(D_D[ADP],D_D[MT],5,D_D[CAT],SMS, D_D[EP],-1,D_D[LOC],$A13),0)) -> 150.97 | H13: =IF(ISNA($A13),"",IFERROR(SUMIFS(D_D[DEV],D_D[MT],5,D_D[CAT],SMS, D_D[EP],-1,D_D[LOC],$A13)/$D13,0)) -> 0.003689901419 | I13: =IF(ISNA($A13),"",IFERROR(SUMIFS(D_D[EVD],D_D[MT],5,D_D[CAT],SMS, D_D[EP],-1,D_D[LOC],$A13)/$D13,0)) -> 0.6414480568 | J13: =IF(ISNA($A13),"",IFERROR(SUMIFS(D_D[DEC],D_D[MT],5,D_D[CAT],SMS, D_D[EP],-1,D_D[LOC],$A13)/$D13,0)) -> 0.3547408808 | K13: =IF(ISNA($A13),"",IFERROR(SUMIFS(D_D[AWD],D_D[MT],5,D_D[CAT],SMS, D_D[EP],-1,D_D[LOC],$A13)/$D13,0)) -> 0.0001174893984 | L13: =IF(ISNA($A13),"",IFERROR(SUMIFS(D_D[AUT],D_D[MT],5,D_D[CAT],SMS, D_D[EP],-1,D_D[LOC],$A13)/$D13,0)) -> 3.671543701e-06
A14: =INDEX(RO,(MATCH($C14,RO_D,0))) -> 395 | B14: 1 | C14: =IFERROR(INDEX(INDIRECT(DS_RO),B14),"") -> Pacific District | D14: =IF(ISNA($A14),"",IFERROR(SUMIFS(D_D[INV],D_D[MT],5,D_D[CAT],SMS, D_D[EP],-1,D_D[LOC],$A14),0)) -> 14237 | E14: =IF(ISNA($A14),"",IFERROR(SUMIFS(D_D[BL],D_D[MT],5,D_D[CAT],SMS, D_D[EP],-1,D_D[LOC],$A14),0)) -> 5255 | F14: =IF(ISNA($A14),"",IFERROR(E14/D14,0)) -> 0.3691086605 | G14: =IF(ISNA($A14),"",IFERROR(SUMIFS(D_D[ADP],D_D[MT],5,D_D[CAT],SMS, D_D[EP],-1,D_D[LOC],$A14),0)) -> 134.87 | H14: =IF(ISNA($A14),"",IFERROR(SUMIFS(D_D[DEV],D_D[MT],5,D_D[CAT],SMS, D_D[EP],-1,D_D[LOC],$A14)/$D14,0)) -> 0.09671981457 | I14: =IF(ISNA($A14),"",IFERROR(SUMIFS(D_D[EVD],D_D[MT],5,D_D[CAT],SMS, D_D[EP],-1,D_D[LOC],$A14)/$D14,0)) -> 0.4675142235 | J14: =IF(ISNA($A14),"",IFERROR(SUMIFS(D_D[DEC],D_D[MT],5,D_D[CAT],SMS, D_D[EP],-1,D_D[LOC],$A14)/$D14,0)) -> 0.3705134509 | K14: =IF(ISNA($A14),"",IFERROR(SUMIFS(D_D[AWD],D_D[MT],5,D_D[CAT],SMS, D_D[EP],-1,D_D[LOC],$A14)/$D14,0)) -> 0.05380346983 | L14: =IF(ISNA($A14),"",IFERROR(SUMIFS(D_D[AUT],D_D[MT],5,D_D[CAT],SMS, D_D[EP],-1,D_D[LOC],$A14)/$D14,0)) -> 0.01144904123
A15: 340 | B15: 2 | C15: =IFERROR(INDEX(INDIRECT(DS_RO),B15),"") -> Albuquerque | D15: =IF(ISNA($A15),"",IFERROR(SUMIFS(D_D[INV],D_D[MT],5,D_D[CAT],SMS, D_D[EP],-1,D_D[LOC],$A15),0)) -> 454 | E15: =IF(ISNA($A15),"",IFERROR(SUMIFS(D_D[BL],D_D[MT],5,D_D[CAT],SMS, D_D[EP],-1,D_D[LOC],$A15),0)) -> 146 | F15: =IF(ISNA($A15),"",IFERROR(E15/D15,0)) -> 0.3215859031 | G15: =IF(ISNA($A15),"",IFERROR(SUMIFS(D_D[ADP],D_D[MT],5,D_D[CAT],SMS, D_D[EP],-1,D_D[LOC],$A15),0)) -> 124.47 | H15: =IF(ISNA($A15),"",IFERROR(SUMIFS(D_D[DEV],D_D[MT],5,D_D[CAT],SMS, D_D[EP],-1,D_D[LOC],$A15)/$D15,0)) -> 0.09911894273 | I15: =IF(ISNA($A15),"",IFERROR(SUMIFS(D_D[EVD],D_D[MT],5,D_D[CAT],SMS, D_D[EP],-1,D_D[LOC],$A15)/$D15,0)) -> 0.563876652 | J15: =IF(ISNA($A15),"",IFERROR(SUMIFS(D_D[DEC],D_D[MT],5,D_D[CAT],SMS, D_D[EP],-1,D_D[LOC],$A15)/$D15,0)) -> 0.2797356828 | K15: =IF(ISNA($A15),"",IFERROR(SUMIFS(D_D[AWD],D_D[MT],5,D_D[CAT],SMS, D_D[EP],-1,D_D[LOC],$A15)/$D15,0)) -> 0.0550660793 | L15: =IF(ISNA($A15),"",IFERROR(SUMIFS(D_D[AUT],D_D[MT],5,D_D[CAT],SMS, D_D[EP],-1,D_D[LOC],$A15)/$D15,0)) -> 0.002202643172
A16: 463 | B16: 3 | C16: Anchorage | D16: =IF(ISNA($A16),"",IFERROR(SUMIFS(D_D[INV],D_D[MT],5,D_D[CAT],SMS, D_D[EP],-1,D_D[LOC],$A16),0)) -> 102 | E16: =IF(ISNA($A16),"",IFERROR(SUMIFS(D_D[BL],D_D[MT],5,D_D[CAT],SMS, D_D[EP],-1,D_D[LOC],$A16),0)) -> 43 | F16: 0.4215686275 | G16: =IF(ISNA($A16),"",IFERROR(SUMIFS(D_D[ADP],D_D[MT],5,D_D[CAT],SMS, D_D[EP],-1,D_D[LOC],$A16),0)) -> 158.15 | H16: =IF(ISNA($A16),"",IFERROR(SUMIFS(D_D[DEV],D_D[MT],5,D_D[CAT],SMS, D_D[EP],-1,D_D[LOC],$A16)/$D16,0)) -> 0.06862745098 | I16: =IF(ISNA($A16),"",IFERROR(SUMIFS(D_D[EVD],D_D[MT],5,D_D[CAT],SMS, D_D[EP],-1,D_D[LOC],$A16)/$D16,0)) -> 0.5392156863 | J16: =IF(ISNA($A16),"",IFERROR(SUMIFS(D_D[DEC],D_D[MT],5,D_D[CAT],SMS, D_D[EP],-1,D_D[LOC],$A16)/$D16,0)) -> 0.3823529412 | K16: =IF(ISNA($A16),"",IFERROR(SUMIFS(D_D[AWD],D_D[MT],5,D_D[CAT],SMS, D_D[EP],-1,D_D[LOC],$A16)/$D16,0)) -> 0.009803921569 | L16: =IF(ISNA($A16),"",IFERROR(SUMIFS(D_D[AUT],D_D[MT],5,D_D[CAT],SMS, D_D[EP],-1,D_D[LOC],$A16)/$D16,0)) -> 0
A17: 347 | B17: 4 | C17: Boise | D17: =IF(ISNA($A17),"",IFERROR(SUMIFS(D_D[INV],D_D[MT],5,D_D[CAT],SMS, D_D[EP],-1,D_D[LOC],$A17),0)) -> 462 | E17: =IF(ISNA($A17),"",IFERROR(SUMIFS(D_D[BL],D_D[MT],5,D_D[CAT],SMS, D_D[EP],-1,D_D[LOC],$A17),0)) -> 103 | F17: 0.2229437229 | G17: =IF(ISNA($A17),"",IFERROR(SUMIFS(D_D[ADP],D_D[MT],5,D_D[CAT],SMS, D_D[EP],-1,D_D[LOC],$A17),0)) -> 129.59 | H17: =IF(ISNA($A17),"",IFERROR(SUMIFS(D_D[DEV],D_D[MT],5,D_D[CAT],SMS, D_D[EP],-1,D_D[LOC],$A17)/$D17,0)) -> 0.1515151515 | I17: =IF(ISNA($A17),"",IFERROR(SUMIFS(D_D[EVD],D_D[MT],5,D_D[CAT],SMS, D_D[EP],-1,D_D[LOC],$A17)/$D17,0)) -> 0.4264069264 | J17: =IF(ISNA($A17),"",IFERROR(SUMIFS(D_D[DEC],D_D[MT],5,D_D[CAT],SMS, D_D[EP],-1,D_D[LOC],$A17)/$D17,0)) -> 0.3073593074 | K17: =IF(ISNA($A17),"",IFERROR(SUMIFS(D_D[AWD],D_D[MT],5,D_D[CAT],SMS, D_D[EP],-1,D_D[LOC],$A17)/$D17,0)) -> 0.0367965368 | L17: =IF(ISNA($A17),"",IFERROR(SUMIFS(D_D[AUT],D_D[MT],5,D_D[CAT],SMS, D_D[EP],-1,D_D[LOC],$A17)/$D17,0)) -> 0.07792207792
A18: 459 | B18: 5 | C18: Honolulu | D18: =IF(ISNA($A18),"",IFERROR(SUMIFS(D_D[INV],D_D[MT],5,D_D[CAT],SMS, D_D[EP],-1,D_D[LOC],$A18),0)) -> 245 | E18: =IF(ISNA($A18),"",IFERROR(SUMIFS(D_D[BL],D_D[MT],5,D_D[CAT],SMS, D_D[EP],-1,D_D[LOC],$A18),0)) -> 93 | F18: 0.3795918367 | G18: =IF(ISNA($A18),"",IFERROR(SUMIFS(D_D[ADP],D_D[MT],5,D_D[CAT],SMS, D_D[EP],-1,D_D[LOC],$A18),0)) -> 128.11 | H18: =IF(ISNA($A18),"",IFERROR(SUMIFS(D_D[DEV],D_D[MT],5,D_D[CAT],SMS, D_D[EP],-1,D_D[LOC],$A18)/$D18,0)) -> 0.187755102 | I18: =IF(ISNA($A18),"",IFERROR(SUMIFS(D_D[EVD],D_D[MT],5,D_D[CAT],SMS, D_D[EP],-1,D_D[LOC],$A18)/$D18,0)) -> 0.4244897959 | J18: =IF(ISNA($A18),"",IFERROR(SUMIFS(D_D[DEC],D_D[MT],5,D_D[CAT],SMS, D_D[EP],-1,D_D[LOC],$A18)/$D18,0)) -> 0.3428571429 | K18: =IF(ISNA($A18),"",IFERROR(SUMIFS(D_D[AWD],D_D[MT],5,D_D[CAT],SMS, D_D[EP],-1,D_D[LOC],$A18)/$D18,0)) -> 0.04489795918 | L18: =IF(ISNA($A18),"",IFERROR(SUMIFS(D_D[AUT],D_D[MT],5,D_D[CAT],SMS, D_D[EP],-1,D_D[LOC],$A18)/$D18,0)) -> 0
A19: 344 | B19: 6 | C19: Los Angeles | D19: =IF(ISNA($A19),"",IFERROR(SUMIFS(D_D[INV],D_D[MT],5,D_D[CAT],SMS, D_D[EP],-1,D_D[LOC],$A19),0)) -> 1256 | E19: =IF(ISNA($A19),"",IFERROR(SUMIFS(D_D[BL],D_D[MT],5,D_D[CAT],SMS, D_D[EP],-1,D_D[LOC],$A19),0)) -> 414 | F19: 0.3296178344 | G19: =IF(ISNA($A19),"",IFERROR(SUMIFS(D_D[ADP],D_D[MT],5,D_D[CAT],SMS, D_D[EP],-1,D_D[LOC],$A19),0)) -> 126.43 | H19: =IF(ISNA($A19),"",IFERROR(SUMIFS(D_D[DEV],D_D[MT],5,D_D[CAT],SMS, D_D[EP],-1,D_D[LOC],$A19)/$D19,0)) -> 0.1297770701 | I19: =IF(ISNA($A19),"",IFERROR(SUMIFS(D_D[EVD],D_D[MT],5,D_D[CAT],SMS, D_D[EP],-1,D_D[LOC],$A19)/$D19,0)) -> 0.5039808917 | J19: =IF(ISNA($A19),"",IFERROR(SUMIFS(D_D[DEC],D_D[MT],5,D_D[CAT],SMS, D_D[EP],-1,D_D[LOC],$A19)/$D19,0)) -> 0.3447452229 | K19: =IF(ISNA($A19),"",IFERROR(SUMIFS(D_D[AWD],D_D[MT],5,D_D[CAT],SMS, D_D[EP],-1,D_D[LOC],$A19)/$D19,0)) -> 0.01910828025 | L19: =IF(ISNA($A19),"",IFERROR(SUMIFS(D_D[AUT],D_D[MT],5,D_D[CAT],SMS, D_D[EP],-1,D_D[LOC],$A19)/$D19,0)) -> 0.002388535032
A20: 358 | B20: 7 | C20: Manila | D20: =IF(ISNA($A20),"",IFERROR(SUMIFS(D_D[INV],D_D[MT],5,D_D[CAT],SMS, D_D[EP],-1,D_D[LOC],$A20),0)) -> 266 | E20: =IF(ISNA($A20),"",IFERROR(SUMIFS(D_D[BL],D_D[MT],5,D_D[CAT],SMS, D_D[EP],-1,D_D[LOC],$A20),0)) -> 98 | F20: 0.3684210526 | G20: =IF(ISNA($A20),"",IFERROR(SUMIFS(D_D[ADP],D_D[MT],5,D_D[CAT],SMS, D_D[EP],-1,D_D[LOC],$A20),0)) -> 151.6 | H20: =IF(ISNA($A20),"",IFERROR(SUMIFS(D_D[DEV],D_D[MT],5,D_D[CAT],SMS, D_D[EP],-1,D_D[LOC],$A20)/$D20,0)) -> 0.08270676692 | I20: =IF(ISNA($A20),"",IFERROR(SUMIFS(D_D[EVD],D_D[MT],5,D_D[CAT],SMS, D_D[EP],-1,D_D[LOC],$A20)/$D20,0)) -> 0.2932330827 | J20: =IF(ISNA($A20),"",IFERROR(SUMIFS(D_D[DEC],D_D[MT],5,D_D[CAT],SMS, D_D[EP],-1,D_D[LOC],$A20)/$D20,0)) -> 0.5112781955 | K20: =IF(ISNA($A20),"",IFERROR(SUMIFS(D_D[AWD],D_D[MT],5,D_D[CAT],SMS, D_D[EP],-1,D_D[LOC],$A20)/$D20,0)) -> 0.09022556391 | L20: =IF(ISNA($A20),"",IFERROR(SUMIFS(D_D[AUT],D_D[MT],5,D_D[CAT],SMS, D_D[EP],-1,D_D[LOC],$A20)/$D20,0)) -> 0.02255639098
A21: 343 | B21: 8 | C21: Oakland | D21: =IF(ISNA($A21),"",IFERROR(SUMIFS(D_D[INV],D_D[MT],5,D_D[CAT],SMS, D_D[EP],-1,D_D[LOC],$A21),0)) -> 1143 | E21: =IF(ISNA($A21),"",IFERROR(SUMIFS(D_D[BL],D_D[MT],5,D_D[CAT],SMS, D_D[EP],-1,D_D[LOC],$A21),0)) -> 594 | F21: 0.5196850394 | G21: =IF(ISNA($A21),"",IFERROR(SUMIFS(D_D[ADP],D_D[MT],5,D_D[CAT],SMS, D_D[EP],-1,D_D[LOC],$A21),0)) -> 136.36 | H21: =IF(ISNA($A21),"",IFERROR(SUMIFS(D_D[DEV],D_D[MT],5,D_D[CAT],SMS, D_D[EP],-1,D_D[LOC],$A21)/$D21,0)) -> 0.176727909 | I21: =IF(ISNA($A21),"",IFERROR(SUMIFS(D_D[EVD],D_D[MT],5,D_D[CAT],SMS, D_D[EP],-1,D_D[LOC],$A21)/$D21,0)) -> 0.3884514436 | J21: =IF(ISNA($A21),"",IFERROR(SUMIFS(D_D[DEC],D_D[MT],5,D_D[CAT],SMS, D_D[EP],-1,D_D[LOC],$A21)/$D21,0)) -> 0.4190726159 | K21: =IF(ISNA($A21),"",IFERROR(SUMIFS(D_D[AWD],D_D[MT],5,D_D[CAT],SMS, D_D[EP],-1,D_D[LOC],$A21)/$D21,0)) -> 0.01487314086 | L21: =IF(ISNA($A21),"",IFERROR(SUMIFS(D_D[AUT],D_D[MT],5,D_D[CAT],SMS, D_D[EP],-1,D_D[LOC],$A21)/$D21,0)) -> 0.0008748906387
A22: 345 | B22: 9 | C22: Phoenix | D22: =IF(ISNA($A22),"",IFERROR(SUMIFS(D_D[INV],D_D[MT],5,D_D[CAT],SMS, D_D[EP],-1,D_D[LOC],$A22),0)) -> 1804 | E22: =IF(ISNA($A22),"",IFERROR(SUMIFS(D_D[BL],D_D[MT],5,D_D[CAT],SMS, D_D[EP],-1,D_D[LOC],$A22),0)) -> 999 | F22: 0.5537694013 | G22: =IF(ISNA($A22),"",IFERROR(SUMIFS(D_D[ADP],D_D[MT],5,D_D[CAT],SMS, D_D[EP],-1,D_D[LOC],$A22),0)) -> 173.97 | H22: =IF(ISNA($A22),"",IFERROR(SUMIFS(D_D[DEV],D_D[MT],5,D_D[CAT],SMS, D_D[EP],-1,D_D[LOC],$A22)/$D22,0)) -> 0.08536585366 | I22: =IF(ISNA($A22),"",IFERROR(SUMIFS(D_D[EVD],D_D[MT],5,D_D[CAT],SMS, D_D[EP],-1,D_D[LOC],$A22)/$D22,0)) -> 0.4972283814 | J22: =IF(ISNA($A22),"",IFERROR(SUMIFS(D_D[DEC],D_D[MT],5,D_D[CAT],SMS, D_D[EP],-1,D_D[LOC],$A22)/$D22,0)) -> 0.3941241685 | K22: =IF(ISNA($A22),"",IFERROR(SUMIFS(D_D[AWD],D_D[MT],5,D_D[CAT],SMS, D_D[EP],-1,D_D[LOC],$A22)/$D22,0)) -> 0.0199556541 | L22: =IF(ISNA($A22),"",IFERROR(SUMIFS(D_D[AUT],D_D[MT],5,D_D[CAT],SMS, D_D[EP],-1,D_D[LOC],$A22)/$D22,0)) -> 0.00332594235
A23: 348 | B23: 10 | C23: Portland | D23: =IF(ISNA($A23),"",IFERROR(SUMIFS(D_D[INV],D_D[MT],5,D_D[CAT],SMS, D_D[EP],-1,D_D[LOC],$A23),0)) -> 1556 | E23: =IF(ISNA($A23),"",IFERROR(SUMIFS(D_D[BL],D_D[MT],5,D_D[CAT],SMS, D_D[EP],-1,D_D[LOC],$A23),0)) -> 693 | F23: 0.4453727506 | G23: =IF(ISNA($A23),"",IFERROR(SUMIFS(D_D[ADP],D_D[MT],5,D_D[CAT],SMS, D_D[EP],-1,D_D[LOC],$A23),0)) -> 172.12 | H23: =IF(ISNA($A23),"",IFERROR(SUMIFS(D_D[DEV],D_D[MT],5,D_D[CAT],SMS, D_D[EP],-1,D_D[LOC],$A23)/$D23,0)) -> 0.07197943445 | I23: =IF(ISNA($A23),"",IFERROR(SUMIFS(D_D[EVD],D_D[MT],5,D_D[CAT],SMS, D_D[EP],-1,D_D[LOC],$A23)/$D23,0)) -> 0.7262210797 | J23: =IF(ISNA($A23),"",IFERROR(SUMIFS(D_D[DEC],D_D[MT],5,D_D[CAT],SMS, D_D[EP],-1,D_D[LOC],$A23)/$D23,0)) -> 0.1883033419 | K23: =IF(ISNA($A23),"",IFERROR(SUMIFS(D_D[AWD],D_D[MT],5,D_D[CAT],SMS, D_D[EP],-1,D_D[LOC],$A23)/$D23,0)) -> 0.01156812339 | L23: =IF(ISNA($A23),"",IFERROR(SUMIFS(D_D[AUT],D_D[MT],5,D_D[CAT],SMS, D_D[EP],-1,D_D[LOC],$A23)/$D23,0)) -> 0.001928020566
A24: 354 | B24: 11 | C24: Reno | D24: =IF(ISNA($A24),"",IFERROR(SUMIFS(D_D[INV],D_D[MT],5,D_D[CAT],SMS, D_D[EP],-1,D_D[LOC],$A24),0)) -> 326 | E24: =IF(ISNA($A24),"",IFERROR(SUMIFS(D_D[BL],D_D[MT],5,D_D[CAT],SMS, D_D[EP],-1,D_D[LOC],$A24),0)) -> 138 | F24: 0.4233128834 | G24: =IF(ISNA($A24),"",IFERROR(SUMIFS(D_D[ADP],D_D[MT],5,D_D[CAT],SMS, D_D[EP],-1,D_D[LOC],$A24),0)) -> 163.54 | H24: =IF(ISNA($A24),"",IFERROR(SUMIFS(D_D[DEV],D_D[MT],5,D_D[CAT],SMS, D_D[EP],-1,D_D[LOC],$A24)/$D24,0)) -> 0.1349693252 | I24: =IF(ISNA($A24),"",IFERROR(SUMIFS(D_D[EVD],D_D[MT],5,D_D[CAT],SMS, D_D[EP],-1,D_D[LOC],$A24)/$D24,0)) -> 0.3680981595 | J24: =IF(ISNA($A24),"",IFERROR(SUMIFS(D_D[DEC],D_D[MT],5,D_D[CAT],SMS, D_D[EP],-1,D_D[LOC],$A24)/$D24,0)) -> 0.4447852761 | K24: =IF(ISNA($A24),"",IFERROR(SUMIFS(D_D[AWD],D_D[MT],5,D_D[CAT],SMS, D_D[EP],-1,D_D[LOC],$A24)/$D24,0)) -> 0.03680981595 | L24: =IF(ISNA($A24),"",IFERROR(SUMIFS(D_D[AUT],D_D[MT],5,D_D[CAT],SMS, D_D[EP],-1,D_D[LOC],$A24)/$D24,0)) -> 0.01533742331
A25: 341 | B25: 12 | C25: Salt Lake City | D25: =IF(ISNA($A25),"",IFERROR(SUMIFS(D_D[INV],D_D[MT],5,D_D[CAT],SMS, D_D[EP],-1,D_D[LOC],$A25),0)) -> 1294 | E25: =IF(ISNA($A25),"",IFERROR(SUMIFS(D_D[BL],D_D[MT],5,D_D[CAT],SMS, D_D[EP],-1,D_D[LOC],$A25),0)) -> 656 | F25: 0.5069551777 | G25: =IF(ISNA($A25),"",IFERROR(SUMIFS(D_D[ADP],D_D[MT],5,D_D[CAT],SMS, D_D[EP],-1,D_D[LOC],$A25),0)) -> 153.62 | H25: =IF(ISNA($A25),"",IFERROR(SUMIFS(D_D[DEV],D_D[MT],5,D_D[CAT],SMS, D_D[EP],-1,D_D[LOC],$A25)/$D25,0)) -> 0.04327666151 | I25: =IF(ISNA($A25),"",IFERROR(SUMIFS(D_D[EVD],D_D[MT],5,D_D[CAT],SMS, D_D[EP],-1,D_D[LOC],$A25)/$D25,0)) -> 0.5540958269 | J25: =IF(ISNA($A25),"",IFERROR(SUMIFS(D_D[DEC],D_D[MT],5,D_D[CAT],SMS, D_D[EP],-1,D_D[LOC],$A25)/$D25,0)) -> 0.2596599691 | K25: =IF(ISNA($A25),"",IFERROR(SUMIFS(D_D[AWD],D_D[MT],5,D_D[CAT],SMS, D_D[EP],-1,D_D[LOC],$A25)/$D25,0)) -> 0.1336939722 | L25: =IF(ISNA($A25),"",IFERROR(SUMIFS(D_D[AUT],D_D[MT],5,D_D[CAT],SMS, D_D[EP],-1,D_D[LOC],$A25)/$D25,0)) -> 0.009273570325
A26: 377 | B26: 13 | C26: San Diego | D26: =IF(ISNA($A26),"",IFERROR(SUMIFS(D_D[INV],D_D[MT],5,D_D[CAT],SMS, D_D[EP],-1,D_D[LOC],$A26),0)) -> 2234 | E26: =IF(ISNA($A26),"",IFERROR(SUMIFS(D_D[BL],D_D[MT],5,D_D[CAT],SMS, D_D[EP],-1,D_D[LOC],$A26),0)) -> 538 | F26: 0.2408236347 | G26: =IF(ISNA($A26),"",IFERROR(SUMIFS(D_D[ADP],D_D[MT],5,D_D[CAT],SMS, D_D[EP],-1,D_D[LOC],$A26),0)) -> 108.1 | H26: =IF(ISNA($A26),"",IFERROR(SUMIFS(D_D[DEV],D_D[MT],5,D_D[CAT],SMS, D_D[EP],-1,D_D[LOC],$A26)/$D26,0)) -> 0.08236347359 | I26: =IF(ISNA($A26),"",IFERROR(SUMIFS(D_D[EVD],D_D[MT],5,D_D[CAT],SMS, D_D[EP],-1,D_D[LOC],$A26)/$D26,0)) -> 0.4386750224 | J26: =IF(ISNA($A26),"",IFERROR(SUMIFS(D_D[DEC],D_D[MT],5,D_D[CAT],SMS, D_D[EP],-1,D_D[LOC],$A26)/$D26,0)) -> 0.4140555058 | K26: =IF(ISNA($A26),"",IFERROR(SUMIFS(D_D[AWD],D_D[MT],5,D_D[CAT],SMS, D_D[EP],-1,D_D[LOC],$A26)/$D26,0)) -> 0.05013428827 | L26: =IF(ISNA($A26),"",IFERROR(SUMIFS(D_D[AUT],D_D[MT],5,D_D[CAT],SMS, D_D[EP],-1,D_D[LOC],$A26)/$D26,0)) -> 0.01477170994
A27: 346 | B27: 14 | C27: Seattle | D27: =IF(ISNA($A27),"",IFERROR(SUMIFS(D_D[INV],D_D[MT],5,D_D[CAT],SMS, D_D[EP],-1,D_D[LOC],$A27),0)) -> 3095 | E27: =IF(ISNA($A27),"",IFERROR(SUMIFS(D_D[BL],D_D[MT],5,D_D[CAT],SMS, D_D[EP],-1,D_D[LOC],$A27),0)) -> 740 | F27: 0.239095315 | G27: =IF(ISNA($A27),"",IFERROR(SUMIFS(D_D[ADP],D_D[MT],5,D_D[CAT],SMS, D_D[EP],-1,D_D[LOC],$A27),0)) -> 105.32 | H27: =IF(ISNA($A27),"",IFERROR(SUMIFS(D_D[DEV],D_D[MT],5,D_D[CAT],SMS, D_D[EP],-1,D_D[LOC],$A27)/$D27,0)) -> 0.08788368336 | I27: =IF(ISNA($A27),"",IFERROR(SUMIFS(D_D[EVD],D_D[MT],5,D_D[CAT],SMS, D_D[EP],-1,D_D[LOC],$A27)/$D27,0)) -> 0.337641357 | J27: =IF(ISNA($A27),"",IFERROR(SUMIFS(D_D[DEC],D_D[MT],5,D_D[CAT],SMS, D_D[EP],-1,D_D[LOC],$A27)/$D27,0)) -> 0.4604200323 | K27: =IF(ISNA($A27),"",IFERROR(SUMIFS(D_D[AWD],D_D[MT],5,D_D[CAT],SMS, D_D[EP],-1,D_D[LOC],$A27)/$D27,0)) -> 0.09563812601 | L27: =IF(ISNA($A27),"",IFERROR(SUMIFS(D_D[AUT],D_D[MT],5,D_D[CAT],SMS, D_D[EP],-1,D_D[LOC],$A27)/$D27,0)) -> 0.01841680129
B28: 15 | D28: =IF(ISNA($A28),"",IFERROR(SUMIFS(D_D[INV],D_D[MT],5,D_D[CAT],SMS, D_D[EP],-1,D_D[LOC],$A28),0)) ->  | E28: =IF(ISNA($A28),"",IFERROR(SUMIFS(D_D[BL],D_D[MT],5,D_D[CAT],SMS, D_D[EP],-1,D_D[LOC],$A28),0)) ->  | G28: =IF(ISNA($A28),"",IFERROR(SUMIFS(D_D[ADP],D_D[MT],5,D_D[CAT],SMS, D_D[EP],-1,D_D[LOC],$A28),0)) ->  | H28: =IF(ISNA($A28),"",IFERROR(SUMIFS(D_D[DEV],D_D[MT],5,D_D[CAT],SMS, D_D[EP],-1,D_D[LOC],$A28)/$D28,0)) ->  | I28: =IF(ISNA($A28),"",IFERROR(SUMIFS(D_D[EVD],D_D[MT],5,D_D[CAT],SMS, D_D[EP],-1,D_D[LOC],$A28)/$D28,0)) ->  | J28: =IF(ISNA($A28),"",IFERROR(SUMIFS(D_D[DEC],D_D[MT],5,D_D[CAT],SMS, D_D[EP],-1,D_D[LOC],$A28)/$D28,0)) ->  | K28: =IF(ISNA($A28),"",IFERROR(SUMIFS(D_D[AWD],D_D[MT],5,D_D[CAT],SMS, D_D[EP],-1,D_D[LOC],$A28)/$D28,0)) ->  | L28: =IF(ISNA($A28),"",IFERROR(SUMIFS(D_D[AUT],D_D[MT],5,D_D[CAT],SMS, D_D[EP],-1,D_D[LOC],$A28)/$D28,0)) -> 
B29: 16 | D29: =IF(ISNA($A29),"",IFERROR(SUMIFS(D_D[INV],D_D[MT],5,D_D[CAT],SMS, D_D[EP],-1,D_D[LOC],$A29),0)) ->  | E29: =IF(ISNA($A29),"",IFERROR(SUMIFS(D_D[BL],D_D[MT],5,D_D[CAT],SMS, D_D[EP],-1,D_D[LOC],$A29),0)) ->  | G29: =IF(ISNA($A29),"",IFERROR(SUMIFS(D_D[ADP],D_D[MT],5,D_D[CAT],SMS, D_D[EP],-1,D_D[LOC],$A29),0)) ->  | H29: =IF(ISNA($A29),"",IFERROR(SUMIFS(D_D[DEV],D_D[MT],5,D_D[CAT],SMS, D_D[EP],-1,D_D[LOC],$A29)/$D29,0)) ->  | I29: =IF(ISNA($A29),"",IFERROR(SUMIFS(D_D[EVD],D_D[MT],5,D_D[CAT],SMS, D_D[EP],-1,D_D[LOC],$A29)/$D29,0)) ->  | J29: =IF(ISNA($A29),"",IFERROR(SUMIFS(D_D[DEC],D_D[MT],5,D_D[CAT],SMS, D_D[EP],-1,D_D[LOC],$A29)/$D29,0)) ->  | K29: =IF(ISNA($A29),"",IFERROR(SUMIFS(D_D[AWD],D_D[MT],5,D_D[CAT],SMS, D_D[EP],-1,D_D[LOC],$A29)/$D29,0)) ->  | L29: =IF(ISNA($A29),"",IFERROR(SUMIFS(D_D[AUT],D_D[MT],5,D_D[CAT],SMS, D_D[EP],-1,D_D[LOC],$A29)/$D29,0)) -> 
B30: 17 | D30: =IF(ISNA($A30),"",IFERROR(SUMIFS(D_D[INV],D_D[MT],5,D_D[CAT],SMS, D_D[EP],-1,D_D[LOC],$A30),0)) ->  | E30: =IF(ISNA($A30),"",IFERROR(SUMIFS(D_D[BL],D_D[MT],5,D_D[CAT],SMS, D_D[EP],-1,D_D[LOC],$A30),0)) ->  | G30: =IF(ISNA($A30),"",IFERROR(SUMIFS(D_D[ADP],D_D[MT],5,D_D[CAT],SMS, D_D[EP],-1,D_D[LOC],$A30),0)) ->  | H30: =IF(ISNA($A30),"",IFERROR(SUMIFS(D_D[DEV],D_D[MT],5,D_D[CAT],SMS, D_D[EP],-1,D_D[LOC],$A30)/$D30,0)) ->  | I30: =IF(ISNA($A30),"",IFERROR(SUMIFS(D_D[EVD],D_D[MT],5,D_D[CAT],SMS, D_D[EP],-1,D_D[LOC],$A30)/$D30,0)) ->  | J30: =IF(ISNA($A30),"",IFERROR(SUMIFS(D_D[DEC],D_D[MT],5,D_D[CAT],SMS, D_D[EP],-1,D_D[LOC],$A30)/$D30,0)) ->  | K30: =IF(ISNA($A30),"",IFERROR(SUMIFS(D_D[AWD],D_D[MT],5,D_D[CAT],SMS, D_D[EP],-1,D_D[LOC],$A30)/$D30,0)) ->  | L30: =IF(ISNA($A30),"",IFERROR(SUMIFS(D_D[AUT],D_D[MT],5,D_D[CAT],SMS, D_D[EP],-1,D_D[LOC],$A30)/$D30,0)) -> 
B31: 18 | D31: =IF(ISNA($A31),"",IFERROR(SUMIFS(D_D[INV],D_D[MT],5,D_D[CAT],SMS, D_D[EP],-1,D_D[LOC],$A31),0)) ->  | E31: =IF(ISNA($A31),"",IFERROR(SUMIFS(D_D[BL],D_D[MT],5,D_D[CAT],SMS, D_D[EP],-1,D_D[LOC],$A31),0)) ->  | G31: =IF(ISNA($A31),"",IFERROR(SUMIFS(D_D[ADP],D_D[MT],5,D_D[CAT],SMS, D_D[EP],-1,D_D[LOC],$A31),0)) ->  | H31: =IF(ISNA($A31),"",IFERROR(SUMIFS(D_D[DEV],D_D[MT],5,D_D[CAT],SMS, D_D[EP],-1,D_D[LOC],$A31)/$D31,0)) ->  | I31: =IF(ISNA($A31),"",IFERROR(SUMIFS(D_D[EVD],D_D[MT],5,D_D[CAT],SMS, D_D[EP],-1,D_D[LOC],$A31)/$D31,0)) ->  | J31: =IF(ISNA($A31),"",IFERROR(SUMIFS(D_D[DEC],D_D[MT],5,D_D[CAT],SMS, D_D[EP],-1,D_D[LOC],$A31)/$D31,0)) ->  | K31: =IF(ISNA($A31),"",IFERROR(SUMIFS(D_D[AWD],D_D[MT],5,D_D[CAT],SMS, D_D[EP],-1,D_D[LOC],$A31)/$D31,0)) ->  | L31: =IF(ISNA($A31),"",IFERROR(SUMIFS(D_D[AUT],D_D[MT],5,D_D[CAT],SMS, D_D[EP],-1,D_D[LOC],$A31)/$D31,0)) -> 
B32: 19 | D32: =IF(ISNA($A32),"",IFERROR(SUMIFS(D_D[INV],D_D[MT],5,D_D[CAT],SMS, D_D[EP],-1,D_D[LOC],$A32),0)) ->  | E32: =IF(ISNA($A32),"",IFERROR(SUMIFS(D_D[BL],D_D[MT],5,D_D[CAT],SMS, D_D[EP],-1,D_D[LOC],$A32),0)) ->  | G32: =IF(ISNA($A32),"",IFERROR(SUMIFS(D_D[ADP],D_D[MT],5,D_D[CAT],SMS, D_D[EP],-1,D_D[LOC],$A32),0)) ->  | H32: =IF(ISNA($A32),"",IFERROR(SUMIFS(D_D[DEV],D_D[MT],5,D_D[CAT],SMS, D_D[EP],-1,D_D[LOC],$A32)/$D32,0)) ->  | I32: =IF(ISNA($A32),"",IFERROR(SUMIFS(D_D[EVD],D_D[MT],5,D_D[CAT],SMS, D_D[EP],-1,D_D[LOC],$A32)/$D32,0)) ->  | J32: =IF(ISNA($A32),"",IFERROR(SUMIFS(D_D[DEC],D_D[MT],5,D_D[CAT],SMS, D_D[EP],-1,D_D[LOC],$A32)/$D32,0)) ->  | K32: =IF(ISNA($A32),"",IFERROR(SUMIFS(D_D[AWD],D_D[MT],5,D_D[CAT],SMS, D_D[EP],-1,D_D[LOC],$A32)/$D32,0)) ->  | L32: =IF(ISNA($A32),"",IFERROR(SUMIFS(D_D[AUT],D_D[MT],5,D_D[CAT],SMS, D_D[EP],-1,D_D[LOC],$A32)/$D32,0)) -> 
B33: 20 | D33: =IF(ISNA($A33),"",IFERROR(SUMIFS(D_D[INV],D_D[MT],5,D_D[CAT],SMS, D_D[EP],-1,D_D[LOC],$A33),0)) ->  | E33: =IF(ISNA($A33),"",IFERROR(SUMIFS(D_D[BL],D_D[MT],5,D_D[CAT],SMS, D_D[EP],-1,D_D[LOC],$A33),0)) ->  | G33: =IF(ISNA($A33),"",IFERROR(SUMIFS(D_D[ADP],D_D[MT],5,D_D[CAT],SMS, D_D[EP],-1,D_D[LOC],$A33),0)) ->  | H33: =IF(ISNA($A33),"",IFERROR(SUMIFS(D_D[DEV],D_D[MT],5,D_D[CAT],SMS, D_D[EP],-1,D_D[LOC],$A33)/$D33,0)) ->  | I33: =IF(ISNA($A33),"",IFERROR(SUMIFS(D_D[EVD],D_D[MT],5,D_D[CAT],SMS, D_D[EP],-1,D_D[LOC],$A33)/$D33,0)) ->  | J33: =IF(ISNA($A33),"",IFERROR(SUMIFS(D_D[DEC],D_D[MT],5,D_D[CAT],SMS, D_D[EP],-1,D_D[LOC],$A33)/$D33,0)) ->  | K33: =IF(ISNA($A33),"",IFERROR(SUMIFS(D_D[AWD],D_D[MT],5,D_D[CAT],SMS, D_D[EP],-1,D_D[LOC],$A33)/$D33,0)) ->  | L33: =IF(ISNA($A33),"",IFERROR(SUMIFS(D_D[AUT],D_D[MT],5,D_D[CAT],SMS, D_D[EP],-1,D_D[LOC],$A33)/$D33,0)) -> 
B34: 21 | D34: =IF(ISNA($A34),"",IFERROR(SUMIFS(D_D[INV],D_D[MT],5,D_D[CAT],SMS, D_D[EP],-1,D_D[LOC],$A34),0)) ->  | E34: =IF(ISNA($A34),"",IFERROR(SUMIFS(D_D[BL],D_D[MT],5,D_D[CAT],SMS, D_D[EP],-1,D_D[LOC],$A34),0)) ->  | G34: =IF(ISNA($A34),"",IFERROR(SUMIFS(D_D[ADP],D_D[MT],5,D_D[CAT],SMS, D_D[EP],-1,D_D[LOC],$A34),0)) ->  | H34: =IF(ISNA($A34),"",IFERROR(SUMIFS(D_D[DEV],D_D[MT],5,D_D[CAT],SMS, D_D[EP],-1,D_D[LOC],$A34)/$D34,0)) ->  | I34: =IF(ISNA($A34),"",IFERROR(SUMIFS(D_D[EVD],D_D[MT],5,D_D[CAT],SMS, D_D[EP],-1,D_D[LOC],$A34)/$D34,0)) ->  | J34: =IF(ISNA($A34),"",IFERROR(SUMIFS(D_D[DEC],D_D[MT],5,D_D[CAT],SMS, D_D[EP],-1,D_D[LOC],$A34)/$D34,0)) ->  | K34: =IF(ISNA($A34),"",IFERROR(SUMIFS(D_D[AWD],D_D[MT],5,D_D[CAT],SMS, D_D[EP],-1,D_D[LOC],$A34)/$D34,0)) ->  | L34: =IF(ISNA($A34),"",IFERROR(SUMIFS(D_D[AUT],D_D[MT],5,D_D[CAT],SMS, D_D[EP],-1,D_D[LOC],$A34)/$D34,0)) -> 
B35: 22 | D35: =IF(ISNA($A35),"",IFERROR(SUMIFS(D_D[INV],D_D[MT],5,D_D[CAT],SMS, D_D[EP],-1,D_D[LOC],$A35),0)) ->  | E35: =IF(ISNA($A35),"",IFERROR(SUMIFS(D_D[BL],D_D[MT],5,D_D[CAT],SMS, D_D[EP],-1,D_D[LOC],$A35),0)) ->  | G35: =IF(ISNA($A35),"",IFERROR(SUMIFS(D_D[ADP],D_D[MT],5,D_D[CAT],SMS, D_D[EP],-1,D_D[LOC],$A35),0)) ->  | H35: =IF(ISNA($A35),"",IFERROR(SUMIFS(D_D[DEV],D_D[MT],5,D_D[CAT],SMS, D_D[EP],-1,D_D[LOC],$A35)/$D35,0)) ->  | I35: =IF(ISNA($A35),"",IFERROR(SUMIFS(D_D[EVD],D_D[MT],5,D_D[CAT],SMS, D_D[EP],-1,D_D[LOC],$A35)/$D35,0)) ->  | J35: =IF(ISNA($A35),"",IFERROR(SUMIFS(D_D[DEC],D_D[MT],5,D_D[CAT],SMS, D_D[EP],-1,D_D[LOC],$A35)/$D35,0)) ->  | K35: =IF(ISNA($A35),"",IFERROR(SUMIFS(D_D[AWD],D_D[MT],5,D_D[CAT],SMS, D_D[EP],-1,D_D[LOC],$A35)/$D35,0)) ->  | L35: =IF(ISNA($A35),"",IFERROR(SUMIFS(D_D[AUT],D_D[MT],5,D_D[CAT],SMS, D_D[EP],-1,D_D[LOC],$A35)/$D35,0)) -> 
B36: 23 | D36: =IF(ISNA($A36),"",IFERROR(SUMIFS(D_D[INV],D_D[MT],5,D_D[CAT],SMS, D_D[EP],-1,D_D[LOC],$A36),0)) ->  | E36: =IF(ISNA($A36),"",IFERROR(SUMIFS(D_D[BL],D_D[MT],5,D_D[CAT],SMS, D_D[EP],-1,D_D[LOC],$A36),0)) ->  | G36: =IF(ISNA($A36),"",IFERROR(SUMIFS(D_D[ADP],D_D[MT],5,D_D[CAT],SMS, D_D[EP],-1,D_D[LOC],$A36),0)) ->  | H36: =IF(ISNA($A36),"",IFERROR(SUMIFS(D_D[DEV],D_D[MT],5,D_D[CAT],SMS, D_D[EP],-1,D_D[LOC],$A36)/$D36,0)) ->  | I36: =IF(ISNA($A36),"",IFERROR(SUMIFS(D_D[EVD],D_D[MT],5,D_D[CAT],SMS, D_D[EP],-1,D_D[LOC],$A36)/$D36,0)) ->  | J36: =IF(ISNA($A36),"",IFERROR(SUMIFS(D_D[DEC],D_D[MT],5,D_D[CAT],SMS, D_D[EP],-1,D_D[LOC],$A36)/$D36,0)) ->  | K36: =IF(ISNA($A36),"",IFERROR(SUMIFS(D_D[AWD],D_D[MT],5,D_D[CAT],SMS, D_D[EP],-1,D_D[LOC],$A36)/$D36,0)) ->  | L36: =IF(ISNA($A36),"",IFERROR(SUMIFS(D_D[AUT],D_D[MT],5,D_D[CAT],SMS, D_D[EP],-1,D_D[LOC],$A36)/$D36,0)) -> 

Sheet Rating Bundle - NWQ - State
C2: DISTRICT SELECTOR | E2: Compensation and Pension Rating Bundle Metrics | J2: Report through
E3: NWQ State View | J3: =D_DT[] -> 2021-12-25
E4: The State listed is based on the address associated with the claim, not payment address
E6: Each Special Mission has distinct claim counts | J6: Life Cycle Metrics defined on Legend tab
E8: CLAIM METRICS | H8: LIFE CYCLE METRICS (as Percent of # Pending)
C9: SPECIAL MISSION SELECTOR | E9: # Pending | F9: # Pending > 125 Days | G9: % Pending > 125 Days | H9: Pending Development | I9: Pending Evidence | J9: Pending Decision | K9: Pending Award | L9: Pending Authorization
A12: 100 | C12: =Driver!$C$20 -> USA - All Missions | D12: Total | E12: =IF(ISNA($A12),"",IFERROR(SUMIFS(D_D[INV],D_D[MT],5,D_D[CAT],SMS, D_D[EP],-1,D_D[LOC],$A12),0)) -> 624186 | F12: =IF(ISNA($A12),"",IFERROR(SUMIFS(D_D[BL],D_D[MT],5,D_D[CAT],SMS, D_D[EP],-1,D_D[LOC],$A12),0)) -> 257614 | G12: =IF(ISNA($A12),"",IFERROR(F12/E12,0)) -> 0.4127199264 | H12: =IF(ISNA($A12),"",IFERROR(SUMIFS(D_D[DEV],D_D[MT],5,D_D[CAT],SMS, D_D[EP],-1,D_D[LOC],$A12)/$E12,0)) -> 0.01839675994 | I12: =IF(ISNA($A12),"",IFERROR(SUMIFS(D_D[EVD],D_D[MT],5,D_D[CAT],SMS, D_D[EP],-1,D_D[LOC],$A12)/$E12,0)) -> 0.6290961348 | J12: =IF(ISNA($A12),"",IFERROR(SUMIFS(D_D[DEC],D_D[MT],5,D_D[CAT],SMS, D_D[EP],-1,D_D[LOC],$A12)/$E12,0)) -> 0.3460282672 | K12: =IF(ISNA($A12),"",IFERROR(SUMIFS(D_D[AWD],D_D[MT],5,D_D[CAT],SMS, D_D[EP],-1,D_D[LOC],$A12)/$E12,0)) -> 0.004790238807 | L12: =IF(ISNA($A12),"",IFERROR(SUMIFS(D_D[AUT],D_D[MT],5,D_D[CAT],SMS, D_D[EP],-1,D_D[LOC],$A12)/$E12,0)) -> 0.001686997145
A13: 499 | C13: ="NWQ-"&Driver!$C$20 -> NWQ-USA - All Missions | D13: Total | E13: =IF(ISNA($A13),"",IFERROR(SUMIFS(D_D[INV],D_D[MT],5,D_D[CAT],SMS, D_D[EP],-1,D_D[LOC],$A13),0)) -> 544730 | F13: =IF(ISNA($A13),"",IFERROR(SUMIFS(D_D[BL],D_D[MT],5,D_D[CAT],SMS, D_D[EP],-1,D_D[LOC],$A13),0)) -> 223944 | G13: =IF(ISNA($A13),"",IFERROR(F13/E13,0)) -> 0.4111100912 | H13: =IF(ISNA($A13),"",IFERROR(SUMIFS(D_D[DEV],D_D[MT],5,D_D[CAT],SMS, D_D[EP],-1,D_D[LOC],$A13)/$E13,0)) -> 0.003689901419 | I13: =IF(ISNA($A13),"",IFERROR(SUMIFS(D_D[EVD],D_D[MT],5,D_D[CAT],SMS, D_D[EP],-1,D_D[LOC],$A13)/$E13,0)) -> 0.6414480568 | J13: =IF(ISNA($A13),"",IFERROR(SUMIFS(D_D[DEC],D_D[MT],5,D_D[CAT],SMS, D_D[EP],-1,D_D[LOC],$A13)/$E13,0)) -> 0.3547408808 | K13: =IF(ISNA($A13),"",IFERROR(SUMIFS(D_D[AWD],D_D[MT],5,D_D[CAT],SMS, D_D[EP],-1,D_D[LOC],$A13)/$E13,0)) -> 0.0001174893984 | L13: =IF(ISNA($A13),"",IFERROR(SUMIFS(D_D[AUT],D_D[MT],5,D_D[CAT],SMS, D_D[EP],-1,D_D[LOC],$A13)/$E13,0)) -> 3.671543701e-06
A14: =INDEX(STATE,(MATCH($C14,STATE_D,0))) -> 395 | B14: 1 | C14: =IFERROR(INDEX(INDIRECT(DS_NWQ),B14),"") -> Pacific District | D14: =IFERROR(INDEX(INDIRECT(DS_NWQD),B14),"") ->  | E14: =IF(ISNA($A14),"",IFERROR(SUMIFS(D_D[INV],D_D[MT],5,D_D[CAT],SMS, D_D[EP],499,D_D[LOC],$A14),0)) -> 112572 | F14: =IF(ISNA($A14),"",IFERROR(SUMIFS(D_D[BL],D_D[MT],5,D_D[CAT],SMS, D_D[EP],499,D_D[LOC],$A14),0)) -> 47038 | G14: =IF(ISNA($A14),"",IFERROR(F14/E14,0)) -> 0.4178481328 | H14: =IF(ISNA($A14),"",IFERROR(SUMIFS(D_D[DEV],D_D[MT],5,D_D[CAT],SMS, D_D[EP],499,D_D[LOC],$A14)/$E14,0)) -> 0.01810396902 | I14: =IF(ISNA($A14),"",IFERROR(SUMIFS(D_D[EVD],D_D[MT],5,D_D[CAT],SMS, D_D[EP],499,D_D[LOC],$A14)/$E14,0)) -> 0.6430551114 | J14: =IF(ISNA($A14),"",IFERROR(SUMIFS(D_D[DEC],D_D[MT],5,D_D[CAT],SMS, D_D[EP],499,D_D[LOC],$A14)/$E14,0)) -> 0.3326404434 | K14: =IF(ISNA($A14),"",IFERROR(SUMIFS(D_D[AWD],D_D[MT],5,D_D[CAT],SMS, D_D[EP],499,D_D[LOC],$A14)/$E14,0)) -> 0.00456596667 | L14: =IF(ISNA($A14),"",IFERROR(SUMIFS(D_D[AUT],D_D[MT],5,D_D[CAT],SMS, D_D[EP],499,D_D[LOC],$A14)/$E14,0)) -> 0.001634509469
A15: =IFERROR(INDEX(INDIRECT(DS_NWQI),B15),#N/A) -> AK100 | B15: 2 | C15: Alaska | D15: =IFERROR(INDEX(INDIRECT(DS_NWQD),B15),"") -> Alaska-Total | E15: =IF(ISNA($A15),"",IFERROR(SUMIFS(D_D[INV],D_D[MT],5,D_D[CAT],SMS, D_D[EP],499,D_D[LOC],$A15),0)) -> 1946 | F15: =IF(ISNA($A15),"",IFERROR(SUMIFS(D_D[BL],D_D[MT],5,D_D[CAT],SMS, D_D[EP],499,D_D[LOC],$A15),0)) -> 788 | G15: 0.4049331963 | H15: =IF(ISNA($A15),"",IFERROR(SUMIFS(D_D[DEV],D_D[MT],5,D_D[CAT],SMS, D_D[EP],499,D_D[LOC],$A15)/$E15,0)) -> 0.01541623844 | I15: =IF(ISNA($A15),"",IFERROR(SUMIFS(D_D[EVD],D_D[MT],5,D_D[CAT],SMS, D_D[EP],499,D_D[LOC],$A15)/$E15,0)) -> 0.7528263104 | J15: =IF(ISNA($A15),"",IFERROR(SUMIFS(D_D[DEC],D_D[MT],5,D_D[CAT],SMS, D_D[EP],499,D_D[LOC],$A15)/$E15,0)) -> 0.2225077081 | K15: =IF(ISNA($A15),"",IFERROR(SUMIFS(D_D[AWD],D_D[MT],5,D_D[CAT],SMS, D_D[EP],499,D_D[LOC],$A15)/$E15,0)) -> 0.006166495375 | L15: =IF(ISNA($A15),"",IFERROR(SUMIFS(D_D[AUT],D_D[MT],5,D_D[CAT],SMS, D_D[EP],499,D_D[LOC],$A15)/$E15,0)) -> 0.003083247688
A16: AK463 | B16: 3 | C16: 0 | D16: Anchorage RO | E16: =IF(ISNA($A16),"",IFERROR(SUMIFS(D_D[INV],D_D[MT],5,D_D[CAT],SMS, D_D[EP],499,D_D[LOC],$A16),0)) -> 8 | F16: =IF(ISNA($A16),"",IFERROR(SUMIFS(D_D[BL],D_D[MT],5,D_D[CAT],SMS, D_D[EP],499,D_D[LOC],$A16),0)) -> 4 | G16: 0.5 | H16: =IF(ISNA($A16),"",IFERROR(SUMIFS(D_D[DEV],D_D[MT],5,D_D[CAT],SMS, D_D[EP],499,D_D[LOC],$A16)/$E16,0)) -> 0.25 | I16: =IF(ISNA($A16),"",IFERROR(SUMIFS(D_D[EVD],D_D[MT],5,D_D[CAT],SMS, D_D[EP],499,D_D[LOC],$A16)/$E16,0)) -> 0.375 | J16: =IF(ISNA($A16),"",IFERROR(SUMIFS(D_D[DEC],D_D[MT],5,D_D[CAT],SMS, D_D[EP],499,D_D[LOC],$A16)/$E16,0)) -> 0.375 | K16: =IF(ISNA($A16),"",IFERROR(SUMIFS(D_D[AWD],D_D[MT],5,D_D[CAT],SMS, D_D[EP],499,D_D[LOC],$A16)/$E16,0)) -> 0 | L16: =IF(ISNA($A16),"",IFERROR(SUMIFS(D_D[AUT],D_D[MT],5,D_D[CAT],SMS, D_D[EP],499,D_D[LOC],$A16)/$E16,0)) -> 0
A17: AK-1 | B17: 4 | D17: Alaska-Other RO | E17: =IF(ISNA($A17),"",IFERROR(SUMIFS(D_D[INV],D_D[MT],5,D_D[CAT],SMS, D_D[EP],499,D_D[LOC],$A17),0)) -> 229 | F17: =IF(ISNA($A17),"",IFERROR(SUMIFS(D_D[BL],D_D[MT],5,D_D[CAT],SMS, D_D[EP],499,D_D[LOC],$A17),0)) -> 82 | G17: 0.3580786026 | H17: =IF(ISNA($A17),"",IFERROR(SUMIFS(D_D[DEV],D_D[MT],5,D_D[CAT],SMS, D_D[EP],499,D_D[LOC],$A17)/$E17,0)) -> 0.1135371179 | I17: =IF(ISNA($A17),"",IFERROR(SUMIFS(D_D[EVD],D_D[MT],5,D_D[CAT],SMS, D_D[EP],499,D_D[LOC],$A17)/$E17,0)) -> 0.5283842795 | J17: =IF(ISNA($A17),"",IFERROR(SUMIFS(D_D[DEC],D_D[MT],5,D_D[CAT],SMS, D_D[EP],499,D_D[LOC],$A17)/$E17,0)) -> 0.2794759825 | K17: =IF(ISNA($A17),"",IFERROR(SUMIFS(D_D[AWD],D_D[MT],5,D_D[CAT],SMS, D_D[EP],499,D_D[LOC],$A17)/$E17,0)) -> 0.05240174672 | L17: =IF(ISNA($A17),"",IFERROR(SUMIFS(D_D[AUT],D_D[MT],5,D_D[CAT],SMS, D_D[EP],499,D_D[LOC],$A17)/$E17,0)) -> 0.02620087336
A18: AK499 | B18: 5 | D18: Alaska-NWQ | E18: =IF(ISNA($A18),"",IFERROR(SUMIFS(D_D[INV],D_D[MT],5,D_D[CAT],SMS, D_D[EP],499,D_D[LOC],$A18),0)) -> 1709 | F18: =IF(ISNA($A18),"",IFERROR(SUMIFS(D_D[BL],D_D[MT],5,D_D[CAT],SMS, D_D[EP],499,D_D[LOC],$A18),0)) -> 702 | G18: 0.4107665301 | H18: =IF(ISNA($A18),"",IFERROR(SUMIFS(D_D[DEV],D_D[MT],5,D_D[CAT],SMS, D_D[EP],499,D_D[LOC],$A18)/$E18,0)) -> 0.001170275015 | I18: =IF(ISNA($A18),"",IFERROR(SUMIFS(D_D[EVD],D_D[MT],5,D_D[CAT],SMS, D_D[EP],499,D_D[LOC],$A18)/$E18,0)) -> 0.7846693973 | J18: =IF(ISNA($A18),"",IFERROR(SUMIFS(D_D[DEC],D_D[MT],5,D_D[CAT],SMS, D_D[EP],499,D_D[LOC],$A18)/$E18,0)) -> 0.2141603277 | K18: =IF(ISNA($A18),"",IFERROR(SUMIFS(D_D[AWD],D_D[MT],5,D_D[CAT],SMS, D_D[EP],499,D_D[LOC],$A18)/$E18,0)) -> 0 | L18: =IF(ISNA($A18),"",IFERROR(SUMIFS(D_D[AUT],D_D[MT],5,D_D[CAT],SMS, D_D[EP],499,D_D[LOC],$A18)/$E18,0)) -> 0
A19: AZ100 | B19: 6 | C19: Arizona | D19: Arizona-Total | E19: =IF(ISNA($A19),"",IFERROR(SUMIFS(D_D[INV],D_D[MT],5,D_D[CAT],SMS, D_D[EP],499,D_D[LOC],$A19),0)) -> 14240 | F19: =IF(ISNA($A19),"",IFERROR(SUMIFS(D_D[BL],D_D[MT],5,D_D[CAT],SMS, D_D[EP],499,D_D[LOC],$A19),0)) -> 6176 | G19: 0.4337078652 | H19: =IF(ISNA($A19),"",IFERROR(SUMIFS(D_D[DEV],D_D[MT],5,D_D[CAT],SMS, D_D[EP],499,D_D[LOC],$A19)/$E19,0)) -> 0.02078651685 | I19: =IF(ISNA($A19),"",IFERROR(SUMIFS(D_D[EVD],D_D[MT],5,D_D[CAT],SMS, D_D[EP],499,D_D[LOC],$A19)/$E19,0)) -> 0.616994382 | J19: =IF(ISNA($A19),"",IFERROR(SUMIFS(D_D[DEC],D_D[MT],5,D_D[CAT],SMS, D_D[EP],499,D_D[LOC],$A19)/$E19,0)) -> 0.3549859551 | K19: =IF(ISNA($A19),"",IFERROR(SUMIFS(D_D[AWD],D_D[MT],5,D_D[CAT],SMS, D_D[EP],499,D_D[LOC],$A19)/$E19,0)) -> 0.005758426966 | L19: =IF(ISNA($A19),"",IFERROR(SUMIFS(D_D[AUT],D_D[MT],5,D_D[CAT],SMS, D_D[EP],499,D_D[LOC],$A19)/$E19,0)) -> 0.001474719101
A20: AZ345 | B20: 7 | C20: 0 | D20: Phoenix RO | E20: =IF(ISNA($A20),"",IFERROR(SUMIFS(D_D[INV],D_D[MT],5,D_D[CAT],SMS, D_D[EP],499,D_D[LOC],$A20),0)) -> 284 | F20: =IF(ISNA($A20),"",IFERROR(SUMIFS(D_D[BL],D_D[MT],5,D_D[CAT],SMS, D_D[EP],499,D_D[LOC],$A20),0)) -> 58 | G20: 0.2042253521 | H20: =IF(ISNA($A20),"",IFERROR(SUMIFS(D_D[DEV],D_D[MT],5,D_D[CAT],SMS, D_D[EP],499,D_D[LOC],$A20)/$E20,0)) -> 0.3521126761 | I20: =IF(ISNA($A20),"",IFERROR(SUMIFS(D_D[EVD],D_D[MT],5,D_D[CAT],SMS, D_D[EP],499,D_D[LOC],$A20)/$E20,0)) -> 0.4295774648 | J20: =IF(ISNA($A20),"",IFERROR(SUMIFS(D_D[DEC],D_D[MT],5,D_D[CAT],SMS, D_D[EP],499,D_D[LOC],$A20)/$E20,0)) -> 0.2007042254 | K20: =IF(ISNA($A20),"",IFERROR(SUMIFS(D_D[AWD],D_D[MT],5,D_D[CAT],SMS, D_D[EP],499,D_D[LOC],$A20)/$E20,0)) -> 0.01056338028 | L20: =IF(ISNA($A20),"",IFERROR(SUMIFS(D_D[AUT],D_D[MT],5,D_D[CAT],SMS, D_D[EP],499,D_D[LOC],$A20)/$E20,0)) -> 0.007042253521
A21: AZ-1 | B21: 8 | D21: Arizona-Other RO | E21: =IF(ISNA($A21),"",IFERROR(SUMIFS(D_D[INV],D_D[MT],5,D_D[CAT],SMS, D_D[EP],499,D_D[LOC],$A21),0)) -> 1695 | F21: =IF(ISNA($A21),"",IFERROR(SUMIFS(D_D[BL],D_D[MT],5,D_D[CAT],SMS, D_D[EP],499,D_D[LOC],$A21),0)) -> 766 | G21: 0.4519174041 | H21: =IF(ISNA($A21),"",IFERROR(SUMIFS(D_D[DEV],D_D[MT],5,D_D[CAT],SMS, D_D[EP],499,D_D[LOC],$A21)/$E21,0)) -> 0.0808259587 | I21: =IF(ISNA($A21),"",IFERROR(SUMIFS(D_D[EVD],D_D[MT],5,D_D[CAT],SMS, D_D[EP],499,D_D[LOC],$A21)/$E21,0)) -> 0.5734513274 | J21: =IF(ISNA($A21),"",IFERROR(SUMIFS(D_D[DEC],D_D[MT],5,D_D[CAT],SMS, D_D[EP],499,D_D[LOC],$A21)/$E21,0)) -> 0.2879056047 | K21: =IF(ISNA($A21),"",IFERROR(SUMIFS(D_D[AWD],D_D[MT],5,D_D[CAT],SMS, D_D[EP],499,D_D[LOC],$A21)/$E21,0)) -> 0.04660766962 | L21: =IF(ISNA($A21),"",IFERROR(SUMIFS(D_D[AUT],D_D[MT],5,D_D[CAT],SMS, D_D[EP],499,D_D[LOC],$A21)/$E21,0)) -> 0.01120943953
A22: AZ499 | B22: 9 | D22: =IFERROR(INDEX(INDIRECT(DS_NWQD),B22),"") -> Arizona-NWQ | E22: =IF(ISNA($A22),"",IFERROR(SUMIFS(D_D[INV],D_D[MT],5,D_D[CAT],SMS, D_D[EP],499,D_D[LOC],$A22),0)) -> 12261 | F22: =IF(ISNA($A22),"",IFERROR(SUMIFS(D_D[BL],D_D[MT],5,D_D[CAT],SMS, D_D[EP],499,D_D[LOC],$A22),0)) -> 5352 | G22: =IF(ISNA($A22),"",IFERROR(F22/E22,0)) -> 0.4365059946 | H22: =IF(ISNA($A22),"",IFERROR(SUMIFS(D_D[DEV],D_D[MT],5,D_D[CAT],SMS, D_D[EP],499,D_D[LOC],$A22)/$E22,0)) -> 0.004812005546 | I22: =IF(ISNA($A22),"",IFERROR(SUMIFS(D_D[EVD],D_D[MT],5,D_D[CAT],SMS, D_D[EP],499,D_D[LOC],$A22)/$E22,0)) -> 0.6273550281 | J22: =IF(ISNA($A22),"",IFERROR(SUMIFS(D_D[DEC],D_D[MT],5,D_D[CAT],SMS, D_D[EP],499,D_D[LOC],$A22)/$E22,0)) -> 0.3678329663 | K22: =IF(ISNA($A22),"",IFERROR(SUMIFS(D_D[AWD],D_D[MT],5,D_D[CAT],SMS, D_D[EP],499,D_D[LOC],$A22)/$E22,0)) -> 0 | L22: =IF(ISNA($A22),"",IFERROR(SUMIFS(D_D[AUT],D_D[MT],5,D_D[CAT],SMS, D_D[EP],499,D_D[LOC],$A22)/$E22,0)) -> 0
A23: CA100 | B23: 10 | C23: California | D23: California-Total | E23: =IF(ISNA($A23),"",IFERROR(SUMIFS(D_D[INV],D_D[MT],5,D_D[CAT],SMS, D_D[EP],499,D_D[LOC],$A23),0)) -> 50178 | F23: =IF(ISNA($A23),"",IFERROR(SUMIFS(D_D[BL],D_D[MT],5,D_D[CAT],SMS, D_D[EP],499,D_D[LOC],$A23),0)) -> 19739 | G23: 0.3933795687 | H23: =IF(ISNA($A23),"",IFERROR(SUMIFS(D_D[DEV],D_D[MT],5,D_D[CAT],SMS, D_D[EP],499,D_D[LOC],$A23)/$E23,0)) -> 0.01939096815 | I23: =IF(ISNA($A23),"",IFERROR(SUMIFS(D_D[EVD],D_D[MT],5,D_D[CAT],SMS, D_D[EP],499,D_D[LOC],$A23)/$E23,0)) -> 0.6542508669 | J23: =IF(ISNA($A23),"",IFERROR(SUMIFS(D_D[DEC],D_D[MT],5,D_D[CAT],SMS, D_D[EP],499,D_D[LOC],$A23)/$E23,0)) -> 0.3204790944 | K23: =IF(ISNA($A23),"",IFERROR(SUMIFS(D_D[AWD],D_D[MT],5,D_D[CAT],SMS, D_D[EP],499,D_D[LOC],$A23)/$E23,0)) -> 0.004284746303 | L23: =IF(ISNA($A23),"",IFERROR(SUMIFS(D_D[AUT],D_D[MT],5,D_D[CAT],SMS, D_D[EP],499,D_D[LOC],$A23)/$E23,0)) -> 0.001594324206
A24: CA344 | B24: 11 | C24: 0 | D24: Los Angeles RO | E24: =IF(ISNA($A24),"",IFERROR(SUMIFS(D_D[INV],D_D[MT],5,D_D[CAT],SMS, D_D[EP],499,D_D[LOC],$A24),0)) -> 453 | F24: =IF(ISNA($A24),"",IFERROR(SUMIFS(D_D[BL],D_D[MT],5,D_D[CAT],SMS, D_D[EP],499,D_D[LOC],$A24),0)) -> 92 | G24: 0.2030905077 | H24: =IF(ISNA($A24),"",IFERROR(SUMIFS(D_D[DEV],D_D[MT],5,D_D[CAT],SMS, D_D[EP],499,D_D[LOC],$A24)/$E24,0)) -> 0.2428256071 | I24: =IF(ISNA($A24),"",IFERROR(SUMIFS(D_D[EVD],D_D[MT],5,D_D[CAT],SMS, D_D[EP],499,D_D[LOC],$A24)/$E24,0)) -> 0.4790286976 | J24: =IF(ISNA($A24),"",IFERROR(SUMIFS(D_D[DEC],D_D[MT],5,D_D[CAT],SMS, D_D[EP],499,D_D[LOC],$A24)/$E24,0)) -> 0.2538631347 | K24: =IF(ISNA($A24),"",IFERROR(SUMIFS(D_D[AWD],D_D[MT],5,D_D[CAT],SMS, D_D[EP],499,D_D[LOC],$A24)/$E24,0)) -> 0.01986754967 | L24: =IF(ISNA($A24),"",IFERROR(SUMIFS(D_D[AUT],D_D[MT],5,D_D[CAT],SMS, D_D[EP],499,D_D[LOC],$A24)/$E24,0)) -> 0.004415011038
A25: CA343 | B25: 12 | C25: 0 | D25: Oakland RO | E25: =IF(ISNA($A25),"",IFERROR(SUMIFS(D_D[INV],D_D[MT],5,D_D[CAT],SMS, D_D[EP],499,D_D[LOC],$A25),0)) -> 357 | F25: =IF(ISNA($A25),"",IFERROR(SUMIFS(D_D[BL],D_D[MT],5,D_D[CAT],SMS, D_D[EP],499,D_D[LOC],$A25),0)) -> 94 | G25: 0.2633053221 | H25: =IF(ISNA($A25),"",IFERROR(SUMIFS(D_D[DEV],D_D[MT],5,D_D[CAT],SMS, D_D[EP],499,D_D[LOC],$A25)/$E25,0)) -> 0.3865546218 | I25: =IF(ISNA($A25),"",IFERROR(SUMIFS(D_D[EVD],D_D[MT],5,D_D[CAT],SMS, D_D[EP],499,D_D[LOC],$A25)/$E25,0)) -> 0.380952381 | J25: =IF(ISNA($A25),"",IFERROR(SUMIFS(D_D[DEC],D_D[MT],5,D_D[CAT],SMS, D_D[EP],499,D_D[LOC],$A25)/$E25,0)) -> 0.2128851541 | K25: =IF(ISNA($A25),"",IFERROR(SUMIFS(D_D[AWD],D_D[MT],5,D_D[CAT],SMS, D_D[EP],499,D_D[LOC],$A25)/$E25,0)) -> 0.01960784314 | L25: =IF(ISNA($A25),"",IFERROR(SUMIFS(D_D[AUT],D_D[MT],5,D_D[CAT],SMS, D_D[EP],499,D_D[LOC],$A25)/$E25,0)) -> 0
A26: CA377 | B26: 13 | D26: San Diego RO | E26: =IF(ISNA($A26),"",IFERROR(SUMIFS(D_D[INV],D_D[MT],5,D_D[CAT],SMS, D_D[EP],499,D_D[LOC],$A26),0)) -> 542 | F26: =IF(ISNA($A26),"",IFERROR(SUMIFS(D_D[BL],D_D[MT],5,D_D[CAT],SMS, D_D[EP],499,D_D[LOC],$A26),0)) -> 77 | G26: 0.1420664207 | H26: =IF(ISNA($A26),"",IFERROR(SUMIFS(D_D[DEV],D_D[MT],5,D_D[CAT],SMS, D_D[EP],499,D_D[LOC],$A26)/$E26,0)) -> 0.2232472325 | I26: =IF(ISNA($A26),"",IFERROR(SUMIFS(D_D[EVD],D_D[MT],5,D_D[CAT],SMS, D_D[EP],499,D_D[LOC],$A26)/$E26,0)) -> 0.4095940959 | J26: =IF(ISNA($A26),"",IFERROR(SUMIFS(D_D[DEC],D_D[MT],5,D_D[CAT],SMS, D_D[EP],499,D_D[LOC],$A26)/$E26,0)) -> 0.3025830258 | K26: =IF(ISNA($A26),"",IFERROR(SUMIFS(D_D[AWD],D_D[MT],5,D_D[CAT],SMS, D_D[EP],499,D_D[LOC],$A26)/$E26,0)) -> 0.0479704797 | L26: =IF(ISNA($A26),"",IFERROR(SUMIFS(D_D[AUT],D_D[MT],5,D_D[CAT],SMS, D_D[EP],499,D_D[LOC],$A26)/$E26,0)) -> 0.01660516605
A27: CA-1 | B27: 14 | D27: California-Other RO | E27: =IF(ISNA($A27),"",IFERROR(SUMIFS(D_D[INV],D_D[MT],5,D_D[CAT],SMS, D_D[EP],499,D_D[LOC],$A27),0)) -> 5232 | F27: =IF(ISNA($A27),"",IFERROR(SUMIFS(D_D[BL],D_D[MT],5,D_D[CAT],SMS, D_D[EP],499,D_D[LOC],$A27),0)) -> 2526 | G27: 0.4827981651 | H27: =IF(ISNA($A27),"",IFERROR(SUMIFS(D_D[DEV],D_D[MT],5,D_D[CAT],SMS, D_D[EP],499,D_D[LOC],$A27)/$E27,0)) -> 0.08142201835 | I27: =IF(ISNA($A27),"",IFERROR(SUMIFS(D_D[EVD],D_D[MT],5,D_D[CAT],SMS, D_D[EP],499,D_D[LOC],$A27)/$E27,0)) -> 0.6213685015 | J27: =IF(ISNA($A27),"",IFERROR(SUMIFS(D_D[DEC],D_D[MT],5,D_D[CAT],SMS, D_D[EP],499,D_D[LOC],$A27)/$E27,0)) -> 0.251911315 | K27: =IF(ISNA($A27),"",IFERROR(SUMIFS(D_D[AWD],D_D[MT],5,D_D[CAT],SMS, D_D[EP],499,D_D[LOC],$A27)/$E27,0)) -> 0.03211009174 | L27: =IF(ISNA($A27),"",IFERROR(SUMIFS(D_D[AUT],D_D[MT],5,D_D[CAT],SMS, D_D[EP],499,D_D[LOC],$A27)/$E27,0)) -> 0.01318807339
A28: CA499 | B28: 15 | D28: =IFERROR(INDEX(INDIRECT(DS_NWQD),B28),"") -> California-NWQ | E28: =IF(ISNA($A28),"",IFERROR(SUMIFS(D_D[INV],D_D[MT],5,D_D[CAT],SMS, D_D[EP],499,D_D[LOC],$A28),0)) -> 43594 | F28: =IF(ISNA($A28),"",IFERROR(SUMIFS(D_D[BL],D_D[MT],5,D_D[CAT],SMS, D_D[EP],499,D_D[LOC],$A28),0)) -> 16950 | G28: =IF(ISNA($A28),"",IFERROR(F28/E28,0)) -> 0.3888149745 | H28: =IF(ISNA($A28),"",IFERROR(SUMIFS(D_D[DEV],D_D[MT],5,D_D[CAT],SMS, D_D[EP],499,D_D[LOC],$A28)/$E28,0)) -> 0.004083130706 | I28: =IF(ISNA($A28),"",IFERROR(SUMIFS(D_D[EVD],D_D[MT],5,D_D[CAT],SMS, D_D[EP],499,D_D[LOC],$A28)/$E28,0)) -> 0.6652979768 | J28: =IF(ISNA($A28),"",IFERROR(SUMIFS(D_D[DEC],D_D[MT],5,D_D[CAT],SMS, D_D[EP],499,D_D[LOC],$A28)/$E28,0)) -> 0.3305041978 | K28: =IF(ISNA($A28),"",IFERROR(SUMIFS(D_D[AWD],D_D[MT],5,D_D[CAT],SMS, D_D[EP],499,D_D[LOC],$A28)/$E28,0)) -> 0.0001146946828 | L28: =IF(ISNA($A28),"",IFERROR(SUMIFS(D_D[AUT],D_D[MT],5,D_D[CAT],SMS, D_D[EP],499,D_D[LOC],$A28)/$E28,0)) -> 0
A29: HI100 | B29: 16 | C29: Hawaii | D29: Hawaii-Total | E29: =IF(ISNA($A29),"",IFERROR(SUMIFS(D_D[INV],D_D[MT],5,D_D[CAT],SMS, D_D[EP],499,D_D[LOC],$A29),0)) -> 3748 | F29: =IF(ISNA($A29),"",IFERROR(SUMIFS(D_D[BL],D_D[MT],5,D_D[CAT],SMS, D_D[EP],499,D_D[LOC],$A29),0)) -> 1585 | G29: 0.4228922092 | H29: =IF(ISNA($A29),"",IFERROR(SUMIFS(D_D[DEV],D_D[MT],5,D_D[CAT],SMS, D_D[EP],499,D_D[LOC],$A29)/$E29,0)) -> 0.01814300961 | I29: =IF(ISNA($A29),"",IFERROR(SUMIFS(D_D[EVD],D_D[MT],5,D_D[CAT],SMS, D_D[EP],499,D_D[LOC],$A29)/$E29,0)) -> 0.7147812166 | J29: =IF(ISNA($A29),"",IFERROR(SUMIFS(D_D[DEC],D_D[MT],5,D_D[CAT],SMS, D_D[EP],499,D_D[LOC],$A29)/$E29,0)) -> 0.2641408751 | K29: =IF(ISNA($A29),"",IFERROR(SUMIFS(D_D[AWD],D_D[MT],5,D_D[CAT],SMS, D_D[EP],499,D_D[LOC],$A29)/$E29,0)) -> 0.001600853789 | L29: =IF(ISNA($A29),"",IFERROR(SUMIFS(D_D[AUT],D_D[MT],5,D_D[CAT],SMS, D_D[EP],499,D_D[LOC],$A29)/$E29,0)) -> 0.001334044824
A30: HI459 | B30: 17 | C30: 0 | D30: Honolulu RO | E30: =IF(ISNA($A30),"",IFERROR(SUMIFS(D_D[INV],D_D[MT],5,D_D[CAT],SMS, D_D[EP],499,D_D[LOC],$A30),0)) -> 44 | F30: =IF(ISNA($A30),"",IFERROR(SUMIFS(D_D[BL],D_D[MT],5,D_D[CAT],SMS, D_D[EP],499,D_D[LOC],$A30),0)) -> 9 | G30: 0.2045454545 | H30: =IF(ISNA($A30),"",IFERROR(SUMIFS(D_D[DEV],D_D[MT],5,D_D[CAT],SMS, D_D[EP],499,D_D[LOC],$A30)/$E30,0)) -> 0.4772727273 | I30: =IF(ISNA($A30),"",IFERROR(SUMIFS(D_D[EVD],D_D[MT],5,D_D[CAT],SMS, D_D[EP],499,D_D[LOC],$A30)/$E30,0)) -> 0.4090909091 | J30: =IF(ISNA($A30),"",IFERROR(SUMIFS(D_D[DEC],D_D[MT],5,D_D[CAT],SMS, D_D[EP],499,D_D[LOC],$A30)/$E30,0)) -> 0.1136363636 | K30: =IF(ISNA($A30),"",IFERROR(SUMIFS(D_D[AWD],D_D[MT],5,D_D[CAT],SMS, D_D[EP],499,D_D[LOC],$A30)/$E30,0)) -> 0 | L30: =IF(ISNA($A30),"",IFERROR(SUMIFS(D_D[AUT],D_D[MT],5,D_D[CAT],SMS, D_D[EP],499,D_D[LOC],$A30)/$E30,0)) -> 0
A31: HI-1 | B31: 18 | C31: 0 | D31: Hawaii-Other RO | E31: =IF(ISNA($A31),"",IFERROR(SUMIFS(D_D[INV],D_D[MT],5,D_D[CAT],SMS, D_D[EP],499,D_D[LOC],$A31),0)) -> 413 | F31: =IF(ISNA($A31),"",IFERROR(SUMIFS(D_D[BL],D_D[MT],5,D_D[CAT],SMS, D_D[EP],499,D_D[LOC],$A31),0)) -> 168 | G31: 0.406779661 | H31: =IF(ISNA($A31),"",IFERROR(SUMIFS(D_D[DEV],D_D[MT],5,D_D[CAT],SMS, D_D[EP],499,D_D[LOC],$A31)/$E31,0)) -> 0.08958837772 | I31: =IF(ISNA($A31),"",IFERROR(SUMIFS(D_D[EVD],D_D[MT],5,D_D[CAT],SMS, D_D[EP],499,D_D[LOC],$A31)/$E31,0)) -> 0.617433414 | J31: =IF(ISNA($A31),"",IFERROR(SUMIFS(D_D[DEC],D_D[MT],5,D_D[CAT],SMS, D_D[EP],499,D_D[LOC],$A31)/$E31,0)) -> 0.2663438257 | K31: =IF(ISNA($A31),"",IFERROR(SUMIFS(D_D[AWD],D_D[MT],5,D_D[CAT],SMS, D_D[EP],499,D_D[LOC],$A31)/$E31,0)) -> 0.01452784504 | L31: =IF(ISNA($A31),"",IFERROR(SUMIFS(D_D[AUT],D_D[MT],5,D_D[CAT],SMS, D_D[EP],499,D_D[LOC],$A31)/$E31,0)) -> 0.01210653753
A32: HI499 | B32: 19 | C32: 0 | D32: Hawaii-NWQ | E32: =IF(ISNA($A32),"",IFERROR(SUMIFS(D_D[INV],D_D[MT],5,D_D[CAT],SMS, D_D[EP],499,D_D[LOC],$A32),0)) -> 3291 | F32: =IF(ISNA($A32),"",IFERROR(SUMIFS(D_D[BL],D_D[MT],5,D_D[CAT],SMS, D_D[EP],499,D_D[LOC],$A32),0)) -> 1408 | G32: 0.4278334853 | H32: =IF(ISNA($A32),"",IFERROR(SUMIFS(D_D[DEV],D_D[MT],5,D_D[CAT],SMS, D_D[EP],499,D_D[LOC],$A32)/$E32,0)) -> 0.003038590094 | I32: =IF(ISNA($A32),"",IFERROR(SUMIFS(D_D[EVD],D_D[MT],5,D_D[CAT],SMS, D_D[EP],499,D_D[LOC],$A32)/$E32,0)) -> 0.7310847767 | J32: =IF(ISNA($A32),"",IFERROR(SUMIFS(D_D[DEC],D_D[MT],5,D_D[CAT],SMS, D_D[EP],499,D_D[LOC],$A32)/$E32,0)) -> 0.2658766332 | K32: =IF(ISNA($A32),"",IFERROR(SUMIFS(D_D[AWD],D_D[MT],5,D_D[CAT],SMS, D_D[EP],499,D_D[LOC],$A32)/$E32,0)) -> 0 | L32: =IF(ISNA($A32),"",IFERROR(SUMIFS(D_D[AUT],D_D[MT],5,D_D[CAT],SMS, D_D[EP],499,D_D[LOC],$A32)/$E32,0)) -> 0
A33: ID100 | B33: 20 | C33: Idaho | D33: Idaho-Total | E33: =IF(ISNA($A33),"",IFERROR(SUMIFS(D_D[INV],D_D[MT],5,D_D[CAT],SMS, D_D[EP],499,D_D[LOC],$A33),0)) -> 3876 | F33: =IF(ISNA($A33),"",IFERROR(SUMIFS(D_D[BL],D_D[MT],5,D_D[CAT],SMS, D_D[EP],499,D_D[LOC],$A33),0)) -> 1693 | G33: 0.4367905057 | H33: =IF(ISNA($A33),"",IFERROR(SUMIFS(D_D[DEV],D_D[MT],5,D_D[CAT],SMS, D_D[EP],499,D_D[LOC],$A33)/$E33,0)) -> 0.01264189886 | I33: =IF(ISNA($A33),"",IFERROR(SUMIFS(D_D[EVD],D_D[MT],5,D_D[CAT],SMS, D_D[EP],499,D_D[LOC],$A33)/$E33,0)) -> 0.6359649123 | J33: =IF(ISNA($A33),"",IFERROR(SUMIFS(D_D[DEC],D_D[MT],5,D_D[CAT],SMS, D_D[EP],499,D_D[LOC],$A33)/$E33,0)) -> 0.3470072239 | K33: =IF(ISNA($A33),"",IFERROR(SUMIFS(D_D[AWD],D_D[MT],5,D_D[CAT],SMS, D_D[EP],499,D_D[LOC],$A33)/$E33,0)) -> 0.002837977296 | L33: =IF(ISNA($A33),"",IFERROR(SUMIFS(D_D[AUT],D_D[MT],5,D_D[CAT],SMS, D_D[EP],499,D_D[LOC],$A33)/$E33,0)) -> 0.001547987616
A34: ID347 | B34: 21 | C34: 0 | D34: Boise RO | E34: =IF(ISNA($A34),"",IFERROR(SUMIFS(D_D[INV],D_D[MT],5,D_D[CAT],SMS, D_D[EP],499,D_D[LOC],$A34),0)) -> 23 | F34: =IF(ISNA($A34),"",IFERROR(SUMIFS(D_D[BL],D_D[MT],5,D_D[CAT],SMS, D_D[EP],499,D_D[LOC],$A34),0)) -> 2 | G34: 0.08695652174 | H34: =IF(ISNA($A34),"",IFERROR(SUMIFS(D_D[DEV],D_D[MT],5,D_D[CAT],SMS, D_D[EP],499,D_D[LOC],$A34)/$E34,0)) -> 0.6086956522 | I34: =IF(ISNA($A34),"",IFERROR(SUMIFS(D_D[EVD],D_D[MT],5,D_D[CAT],SMS, D_D[EP],499,D_D[LOC],$A34)/$E34,0)) -> 0.3043478261 | J34: =IF(ISNA($A34),"",IFERROR(SUMIFS(D_D[DEC],D_D[MT],5,D_D[CAT],SMS, D_D[EP],499,D_D[LOC],$A34)/$E34,0)) -> 0.08695652174 | K34: =IF(ISNA($A34),"",IFERROR(SUMIFS(D_D[AWD],D_D[MT],5,D_D[CAT],SMS, D_D[EP],499,D_D[LOC],$A34)/$E34,0)) -> 0 | L34: =IF(ISNA($A34),"",IFERROR(SUMIFS(D_D[AUT],D_D[MT],5,D_D[CAT],SMS, D_D[EP],499,D_D[LOC],$A34)/$E34,0)) -> 0
A35: ID-1 | B35: 22 | C35: 0 | D35: Idaho-Other RO | E35: =IF(ISNA($A35),"",IFERROR(SUMIFS(D_D[INV],D_D[MT],5,D_D[CAT],SMS, D_D[EP],499,D_D[LOC],$A35),0)) -> 465 | F35: =IF(ISNA($A35),"",IFERROR(SUMIFS(D_D[BL],D_D[MT],5,D_D[CAT],SMS, D_D[EP],499,D_D[LOC],$A35),0)) -> 239 | G35: 0.5139784946 | H35: =IF(ISNA($A35),"",IFERROR(SUMIFS(D_D[DEV],D_D[MT],5,D_D[CAT],SMS, D_D[EP],499,D_D[LOC],$A35)/$E35,0)) -> 0.05161290323 | I35: =IF(ISNA($A35),"",IFERROR(SUMIFS(D_D[EVD],D_D[MT],5,D_D[CAT],SMS, D_D[EP],499,D_D[LOC],$A35)/$E35,0)) -> 0.6150537634 | J35: =IF(ISNA($A35),"",IFERROR(SUMIFS(D_D[DEC],D_D[MT],5,D_D[CAT],SMS, D_D[EP],499,D_D[LOC],$A35)/$E35,0)) -> 0.2967741935 | K35: =IF(ISNA($A35),"",IFERROR(SUMIFS(D_D[AWD],D_D[MT],5,D_D[CAT],SMS, D_D[EP],499,D_D[LOC],$A35)/$E35,0)) -> 0.02365591398 | L35: =IF(ISNA($A35),"",IFERROR(SUMIFS(D_D[AUT],D_D[MT],5,D_D[CAT],SMS, D_D[EP],499,D_D[LOC],$A35)/$E35,0)) -> 0.01290322581
A36: ID499 | B36: 23 | C36: 0 | D36: Idaho-NWQ | E36: =IF(ISNA($A36),"",IFERROR(SUMIFS(D_D[INV],D_D[MT],5,D_D[CAT],SMS, D_D[EP],499,D_D[LOC],$A36),0)) -> 3388 | F36: =IF(ISNA($A36),"",IFERROR(SUMIFS(D_D[BL],D_D[MT],5,D_D[CAT],SMS, D_D[EP],499,D_D[LOC],$A36),0)) -> 1452 | G36: 0.4285714286 | H36: =IF(ISNA($A36),"",IFERROR(SUMIFS(D_D[DEV],D_D[MT],5,D_D[CAT],SMS, D_D[EP],499,D_D[LOC],$A36)/$E36,0)) -> 0.003246753247 | I36: =IF(ISNA($A36),"",IFERROR(SUMIFS(D_D[EVD],D_D[MT],5,D_D[CAT],SMS, D_D[EP],499,D_D[LOC],$A36)/$E36,0)) -> 0.6410861865 | J36: =IF(ISNA($A36),"",IFERROR(SUMIFS(D_D[DEC],D_D[MT],5,D_D[CAT],SMS, D_D[EP],499,D_D[LOC],$A36)/$E36,0)) -> 0.3556670602 | K36: =IF(ISNA($A36),"",IFERROR(SUMIFS(D_D[AWD],D_D[MT],5,D_D[CAT],SMS, D_D[EP],499,D_D[LOC],$A36)/$E36,0)) -> 0 | L36: =IF(ISNA($A36),"",IFERROR(SUMIFS(D_D[AUT],D_D[MT],5,D_D[CAT],SMS, D_D[EP],499,D_D[LOC],$A36)/$E36,0)) -> 0
A37: NV100 | B37: 24 | C37: Nevada | D37: Nevada-Total | E37: =IF(ISNA($A37),"",IFERROR(SUMIFS(D_D[INV],D_D[MT],5,D_D[CAT],SMS, D_D[EP],499,D_D[LOC],$A37),0)) -> 8315 | F37: =IF(ISNA($A37),"",IFERROR(SUMIFS(D_D[BL],D_D[MT],5,D_D[CAT],SMS, D_D[EP],499,D_D[LOC],$A37),0)) -> 3370 | G37: 0.4052916416 | H37: =IF(ISNA($A37),"",IFERROR(SUMIFS(D_D[DEV],D_D[MT],5,D_D[CAT],SMS, D_D[EP],499,D_D[LOC],$A37)/$E37,0)) -> 0.01599518942 | I37: =IF(ISNA($A37),"",IFERROR(SUMIFS(D_D[EVD],D_D[MT],5,D_D[CAT],SMS, D_D[EP],499,D_D[LOC],$A37)/$E37,0)) -> 0.6465423933 | J37: =IF(ISNA($A37),"",IFERROR(SUMIFS(D_D[DEC],D_D[MT],5,D_D[CAT],SMS, D_D[EP],499,D_D[LOC],$A37)/$E37,0)) -> 0.3314491882 | K37: =IF(ISNA($A37),"",IFERROR(SUMIFS(D_D[AWD],D_D[MT],5,D_D[CAT],SMS, D_D[EP],499,D_D[LOC],$A37)/$E37,0)) -> 0.004209260373 | L37: =IF(ISNA($A37),"",IFERROR(SUMIFS(D_D[AUT],D_D[MT],5,D_D[CAT],SMS, D_D[EP],499,D_D[LOC],$A37)/$E37,0)) -> 0.001803968731
A38: NV354 | B38: 25 | C38: 0 | D38: Reno RO | E38: =IF(ISNA($A38),"",IFERROR(SUMIFS(D_D[INV],D_D[MT],5,D_D[CAT],SMS, D_D[EP],499,D_D[LOC],$A38),0)) -> 72 | F38: =IF(ISNA($A38),"",IFERROR(SUMIFS(D_D[BL],D_D[MT],5,D_D[CAT],SMS, D_D[EP],499,D_D[LOC],$A38),0)) -> 10 | G38: 0.1388888889 | H38: =IF(ISNA($A38),"",IFERROR(SUMIFS(D_D[DEV],D_D[MT],5,D_D[CAT],SMS, D_D[EP],499,D_D[LOC],$A38)/$E38,0)) -> 0.4861111111 | I38: =IF(ISNA($A38),"",IFERROR(SUMIFS(D_D[EVD],D_D[MT],5,D_D[CAT],SMS, D_D[EP],499,D_D[LOC],$A38)/$E38,0)) -> 0.2361111111 | J38: =IF(ISNA($A38),"",IFERROR(SUMIFS(D_D[DEC],D_D[MT],5,D_D[CAT],SMS, D_D[EP],499,D_D[LOC],$A38)/$E38,0)) -> 0.1944444444 | K38: =IF(ISNA($A38),"",IFERROR(SUMIFS(D_D[AWD],D_D[MT],5,D_D[CAT],SMS, D_D[EP],499,D_D[LOC],$A38)/$E38,0)) -> 0.02777777778 | L38: =IF(ISNA($A38),"",IFERROR(SUMIFS(D_D[AUT],D_D[MT],5,D_D[CAT],SMS, D_D[EP],499,D_D[LOC],$A38)/$E38,0)) -> 0.05555555556
A39: NV-1 | B39: 26 | C39: 0 | D39: Nevada-Other RO | E39: =IF(ISNA($A39),"",IFERROR(SUMIFS(D_D[INV],D_D[MT],5,D_D[CAT],SMS, D_D[EP],499,D_D[LOC],$A39),0)) -> 997 | F39: =IF(ISNA($A39),"",IFERROR(SUMIFS(D_D[BL],D_D[MT],5,D_D[CAT],SMS, D_D[EP],499,D_D[LOC],$A39),0)) -> 444 | G39: 0.445336008 | H39: =IF(ISNA($A39),"",IFERROR(SUMIFS(D_D[DEV],D_D[MT],5,D_D[CAT],SMS, D_D[EP],499,D_D[LOC],$A39)/$E39,0)) -> 0.07321965898 | I39: =IF(ISNA($A39),"",IFERROR(SUMIFS(D_D[EVD],D_D[MT],5,D_D[CAT],SMS, D_D[EP],499,D_D[LOC],$A39)/$E39,0)) -> 0.5767301906 | J39: =IF(ISNA($A39),"",IFERROR(SUMIFS(D_D[DEC],D_D[MT],5,D_D[CAT],SMS, D_D[EP],499,D_D[LOC],$A39)/$E39,0)) -> 0.3079237713 | K39: =IF(ISNA($A39),"",IFERROR(SUMIFS(D_D[AWD],D_D[MT],5,D_D[CAT],SMS, D_D[EP],499,D_D[LOC],$A39)/$E39,0)) -> 0.03109327984 | L39: =IF(ISNA($A39),"",IFERROR(SUMIFS(D_D[AUT],D_D[MT],5,D_D[CAT],SMS, D_D[EP],499,D_D[LOC],$A39)/$E39,0)) -> 0.0110330993
A40: NV499 | B40: 27 | C40: 0 | D40: Nevada-NWQ | E40: =IF(ISNA($A40),"",IFERROR(SUMIFS(D_D[INV],D_D[MT],5,D_D[CAT],SMS, D_D[EP],499,D_D[LOC],$A40),0)) -> 7246 | F40: =IF(ISNA($A40),"",IFERROR(SUMIFS(D_D[BL],D_D[MT],5,D_D[CAT],SMS, D_D[EP],499,D_D[LOC],$A40),0)) -> 2916 | G40: 0.4024289263 | H40: =IF(ISNA($A40),"",IFERROR(SUMIFS(D_D[DEV],D_D[MT],5,D_D[CAT],SMS, D_D[EP],499,D_D[LOC],$A40)/$E40,0)) -> 0.003450179409 | I40: =IF(ISNA($A40),"",IFERROR(SUMIFS(D_D[EVD],D_D[MT],5,D_D[CAT],SMS, D_D[EP],499,D_D[LOC],$A40)/$E40,0)) -> 0.6602263318 | J40: =IF(ISNA($A40),"",IFERROR(SUMIFS(D_D[DEC],D_D[MT],5,D_D[CAT],SMS, D_D[EP],499,D_D[LOC],$A40)/$E40,0)) -> 0.3360474745 | K40: =IF(ISNA($A40),"",IFERROR(SUMIFS(D_D[AWD],D_D[MT],5,D_D[CAT],SMS, D_D[EP],499,D_D[LOC],$A40)/$E40,0)) -> 0.0002760143527 | L40: =IF(ISNA($A40),"",IFERROR(SUMIFS(D_D[AUT],D_D[MT],5,D_D[CAT],SMS, D_D[EP],499,D_D[LOC],$A40)/$E40,0)) -> 0
A41: NM100 | B41: 28 | C41: New Mexico | D41: New Mexico-Total | E41: =IF(ISNA($A41),"",IFERROR(SUMIFS(D_D[INV],D_D[MT],5,D_D[CAT],SMS, D_D[EP],499,D_D[LOC],$A41),0)) -> 4450 | F41: =IF(ISNA($A41),"",IFERROR(SUMIFS(D_D[BL],D_D[MT],5,D_D[CAT],SMS, D_D[EP],499,D_D[LOC],$A41),0)) -> 2018 | G41: 0.4534831461 | H41: =IF(ISNA($A41),"",IFERROR(SUMIFS(D_D[DEV],D_D[MT],5,D_D[CAT],SMS, D_D[EP],499,D_D[LOC],$A41)/$E41,0)) -> 0.0208988764 | I41: =IF(ISNA($A41),"",IFERROR(SUMIFS(D_D[EVD],D_D[MT],5,D_D[CAT],SMS, D_D[EP],499,D_D[LOC],$A41)/$E41,0)) -> 0.6051685393 | J41: =IF(ISNA($A41),"",IFERROR(SUMIFS(D_D[DEC],D_D[MT],5,D_D[CAT],SMS, D_D[EP],499,D_D[LOC],$A41)/$E41,0)) -> 0.3662921348 | K41: =IF(ISNA($A41),"",IFERROR(SUMIFS(D_D[AWD],D_D[MT],5,D_D[CAT],SMS, D_D[EP],499,D_D[LOC],$A41)/$E41,0)) -> 0.005842696629 | L41: =IF(ISNA($A41),"",IFERROR(SUMIFS(D_D[AUT],D_D[MT],5,D_D[CAT],SMS, D_D[EP],499,D_D[LOC],$A41)/$E41,0)) -> 0.001797752809
A42: NM340 | B42: 29 | C42: 0 | D42: Albuquerque RO | E42: =IF(ISNA($A42),"",IFERROR(SUMIFS(D_D[INV],D_D[MT],5,D_D[CAT],SMS, D_D[EP],499,D_D[LOC],$A42),0)) -> 60 | F42: =IF(ISNA($A42),"",IFERROR(SUMIFS(D_D[BL],D_D[MT],5,D_D[CAT],SMS, D_D[EP],499,D_D[LOC],$A42),0)) -> 10 | G42: 0.1666666667 | H42: =IF(ISNA($A42),"",IFERROR(SUMIFS(D_D[DEV],D_D[MT],5,D_D[CAT],SMS, D_D[EP],499,D_D[LOC],$A42)/$E42,0)) -> 0.5666666667 | I42: =IF(ISNA($A42),"",IFERROR(SUMIFS(D_D[EVD],D_D[MT],5,D_D[CAT],SMS, D_D[EP],499,D_D[LOC],$A42)/$E42,0)) -> 0.2333333333 | J42: =IF(ISNA($A42),"",IFERROR(SUMIFS(D_D[DEC],D_D[MT],5,D_D[CAT],SMS, D_D[EP],499,D_D[LOC],$A42)/$E42,0)) -> 0.15 | K42: =IF(ISNA($A42),"",IFERROR(SUMIFS(D_D[AWD],D_D[MT],5,D_D[CAT],SMS, D_D[EP],499,D_D[LOC],$A42)/$E42,0)) -> 0.05 | L42: =IF(ISNA($A42),"",IFERROR(SUMIFS(D_D[AUT],D_D[MT],5,D_D[CAT],SMS, D_D[EP],499,D_D[LOC],$A42)/$E42,0)) -> 0
A43: NM-1 | B43: 30 | C43: 0 | D43: New Mexico-Other RO | E43: =IF(ISNA($A43),"",IFERROR(SUMIFS(D_D[INV],D_D[MT],5,D_D[CAT],SMS, D_D[EP],499,D_D[LOC],$A43),0)) -> 476 | F43: =IF(ISNA($A43),"",IFERROR(SUMIFS(D_D[BL],D_D[MT],5,D_D[CAT],SMS, D_D[EP],499,D_D[LOC],$A43),0)) -> 249 | G43: 0.5231092437 | H43: =IF(ISNA($A43),"",IFERROR(SUMIFS(D_D[DEV],D_D[MT],5,D_D[CAT],SMS, D_D[EP],499,D_D[LOC],$A43)/$E43,0)) -> 0.08823529412 | I43: =IF(ISNA($A43),"",IFERROR(SUMIFS(D_D[EVD],D_D[MT],5,D_D[CAT],SMS, D_D[EP],499,D_D[LOC],$A43)/$E43,0)) -> 0.5798319328 | J43: =IF(ISNA($A43),"",IFERROR(SUMIFS(D_D[DEC],D_D[MT],5,D_D[CAT],SMS, D_D[EP],499,D_D[LOC],$A43)/$E43,0)) -> 0.2710084034 | K43: =IF(ISNA($A43),"",IFERROR(SUMIFS(D_D[AWD],D_D[MT],5,D_D[CAT],SMS, D_D[EP],499,D_D[LOC],$A43)/$E43,0)) -> 0.04411764706 | L43: =IF(ISNA($A43),"",IFERROR(SUMIFS(D_D[AUT],D_D[MT],5,D_D[CAT],SMS, D_D[EP],499,D_D[LOC],$A43)/$E43,0)) -> 0.01680672269
A44: NM499 | B44: 31 | C44: 0 | D44: New Mexico-NWQ | E44: =IF(ISNA($A44),"",IFERROR(SUMIFS(D_D[INV],D_D[MT],5,D_D[CAT],SMS, D_D[EP],499,D_D[LOC],$A44),0)) -> 3914 | F44: =IF(ISNA($A44),"",IFERROR(SUMIFS(D_D[BL],D_D[MT],5,D_D[CAT],SMS, D_D[EP],499,D_D[LOC],$A44),0)) -> 1759 | G44: 0.4494123659 | H44: =IF(ISNA($A44),"",IFERROR(SUMIFS(D_D[DEV],D_D[MT],5,D_D[CAT],SMS, D_D[EP],499,D_D[LOC],$A44)/$E44,0)) -> 0.004343382729 | I44: =IF(ISNA($A44),"",IFERROR(SUMIFS(D_D[EVD],D_D[MT],5,D_D[CAT],SMS, D_D[EP],499,D_D[LOC],$A44)/$E44,0)) -> 0.6139499234 | J44: =IF(ISNA($A44),"",IFERROR(SUMIFS(D_D[DEC],D_D[MT],5,D_D[CAT],SMS, D_D[EP],499,D_D[LOC],$A44)/$E44,0)) -> 0.3811957077 | K44: =IF(ISNA($A44),"",IFERROR(SUMIFS(D_D[AWD],D_D[MT],5,D_D[CAT],SMS, D_D[EP],499,D_D[LOC],$A44)/$E44,0)) -> 0.0005109862034 | L44: =IF(ISNA($A44),"",IFERROR(SUMIFS(D_D[AUT],D_D[MT],5,D_D[CAT],SMS, D_D[EP],499,D_D[LOC],$A44)/$E44,0)) -> 0
A45: OR100 | B45: 32 | C45: Oregon | D45: Oregon-Total | E45: =IF(ISNA($A45),"",IFERROR(SUMIFS(D_D[INV],D_D[MT],5,D_D[CAT],SMS, D_D[EP],499,D_D[LOC],$A45),0)) -> 8094 | F45: =IF(ISNA($A45),"",IFERROR(SUMIFS(D_D[BL],D_D[MT],5,D_D[CAT],SMS, D_D[EP],499,D_D[LOC],$A45),0)) -> 4106 | G45: 0.5072893501 | H45: =IF(ISNA($A45),"",IFERROR(SUMIFS(D_D[DEV],D_D[MT],5,D_D[CAT],SMS, D_D[EP],499,D_D[LOC],$A45)/$E45,0)) -> 0.0133432172 | I45: =IF(ISNA($A45),"",IFERROR(SUMIFS(D_D[EVD],D_D[MT],5,D_D[CAT],SMS, D_D[EP],499,D_D[LOC],$A45)/$E45,0)) -> 0.6229305659 | J45: =IF(ISNA($A45),"",IFERROR(SUMIFS(D_D[DEC],D_D[MT],5,D_D[CAT],SMS, D_D[EP],499,D_D[LOC],$A45)/$E45,0)) -> 0.3581665431 | K45: =IF(ISNA($A45),"",IFERROR(SUMIFS(D_D[AWD],D_D[MT],5,D_D[CAT],SMS, D_D[EP],499,D_D[LOC],$A45)/$E45,0)) -> 0.004447739066 | L45: =IF(ISNA($A45),"",IFERROR(SUMIFS(D_D[AUT],D_D[MT],5,D_D[CAT],SMS, D_D[EP],499,D_D[LOC],$A45)/$E45,0)) -> 0.001111934766
A46: OR348 | B46: 33 | C46: 0 | D46: Portland RO | E46: =IF(ISNA($A46),"",IFERROR(SUMIFS(D_D[INV],D_D[MT],5,D_D[CAT],SMS, D_D[EP],499,D_D[LOC],$A46),0)) -> 122 | F46: =IF(ISNA($A46),"",IFERROR(SUMIFS(D_D[BL],D_D[MT],5,D_D[CAT],SMS, D_D[EP],499,D_D[LOC],$A46),0)) -> 34 | G46: 0.2786885246 | H46: =IF(ISNA($A46),"",IFERROR(SUMIFS(D_D[DEV],D_D[MT],5,D_D[CAT],SMS, D_D[EP],499,D_D[LOC],$A46)/$E46,0)) -> 0.2950819672 | I46: =IF(ISNA($A46),"",IFERROR(SUMIFS(D_D[EVD],D_D[MT],5,D_D[CAT],SMS, D_D[EP],499,D_D[LOC],$A46)/$E46,0)) -> 0.5 | J46: =IF(ISNA($A46),"",IFERROR(SUMIFS(D_D[DEC],D_D[MT],5,D_D[CAT],SMS, D_D[EP],499,D_D[LOC],$A46)/$E46,0)) -> 0.1967213115 | K46: =IF(ISNA($A46),"",IFERROR(SUMIFS(D_D[AWD],D_D[MT],5,D_D[CAT],SMS, D_D[EP],499,D_D[LOC],$A46)/$E46,0)) -> 0.008196721311 | L46: =IF(ISNA($A46),"",IFERROR(SUMIFS(D_D[AUT],D_D[MT],5,D_D[CAT],SMS, D_D[EP],499,D_D[LOC],$A46)/$E46,0)) -> 0
A47: =IFERROR(INDEX(INDIRECT(DS_NWQI),B47),#N/A) -> OR-1 | B47: 34 | C47: 0 | D47: Oregon-Other RO | E47: =IF(ISNA($A47),"",IFERROR(SUMIFS(D_D[INV],D_D[MT],5,D_D[CAT],SMS, D_D[EP],499,D_D[LOC],$A47),0)) -> 897 | F47: =IF(ISNA($A47),"",IFERROR(SUMIFS(D_D[BL],D_D[MT],5,D_D[CAT],SMS, D_D[EP],499,D_D[LOC],$A47),0)) -> 513 | G47: 0.5719063545 | H47: =IF(ISNA($A47),"",IFERROR(SUMIFS(D_D[DEV],D_D[MT],5,D_D[CAT],SMS, D_D[EP],499,D_D[LOC],$A47)/$E47,0)) -> 0.05685618729 | I47: =IF(ISNA($A47),"",IFERROR(SUMIFS(D_D[EVD],D_D[MT],5,D_D[CAT],SMS, D_D[EP],499,D_D[LOC],$A47)/$E47,0)) -> 0.6164994426 | J47: =IF(ISNA($A47),"",IFERROR(SUMIFS(D_D[DEC],D_D[MT],5,D_D[CAT],SMS, D_D[EP],499,D_D[LOC],$A47)/$E47,0)) -> 0.2775919732 | K47: =IF(ISNA($A47),"",IFERROR(SUMIFS(D_D[AWD],D_D[MT],5,D_D[CAT],SMS, D_D[EP],499,D_D[LOC],$A47)/$E47,0)) -> 0.03901895206 | L47: =IF(ISNA($A47),"",IFERROR(SUMIFS(D_D[AUT],D_D[MT],5,D_D[CAT],SMS, D_D[EP],499,D_D[LOC],$A47)/$E47,0)) -> 0.01003344482
A48: OR499 | B48: 35 | C48: 0 | D48: Oregon-NWQ | E48: =IF(ISNA($A48),"",IFERROR(SUMIFS(D_D[INV],D_D[MT],5,D_D[CAT],SMS, D_D[EP],499,D_D[LOC],$A48),0)) -> 7075 | F48: =IF(ISNA($A48),"",IFERROR(SUMIFS(D_D[BL],D_D[MT],5,D_D[CAT],SMS, D_D[EP],499,D_D[LOC],$A48),0)) -> 3559 | G48: 0.5030388693 | H48: =IF(ISNA($A48),"",IFERROR(SUMIFS(D_D[DEV],D_D[MT],5,D_D[CAT],SMS, D_D[EP],499,D_D[LOC],$A48)/$E48,0)) -> 0.00296819788 | I48: =IF(ISNA($A48),"",IFERROR(SUMIFS(D_D[EVD],D_D[MT],5,D_D[CAT],SMS, D_D[EP],499,D_D[LOC],$A48)/$E48,0)) -> 0.6258657244 | J48: =IF(ISNA($A48),"",IFERROR(SUMIFS(D_D[DEC],D_D[MT],5,D_D[CAT],SMS, D_D[EP],499,D_D[LOC],$A48)/$E48,0)) -> 0.3711660777 | K48: =IF(ISNA($A48),"",IFERROR(SUMIFS(D_D[AWD],D_D[MT],5,D_D[CAT],SMS, D_D[EP],499,D_D[LOC],$A48)/$E48,0)) -> 0 | L48: =IF(ISNA($A48),"",IFERROR(SUMIFS(D_D[AUT],D_D[MT],5,D_D[CAT],SMS, D_D[EP],499,D_D[LOC],$A48)/$E48,0)) -> 0
A49: PI100 | B49: 36 | C49: Philippines | D49: =IFERROR(INDEX(INDIRECT(DS_NWQD),B49),"") -> Philippines-Total | E49: =IF(ISNA($A49),"",IFERROR(SUMIFS(D_D[INV],D_D[MT],5,D_D[CAT],SMS, D_D[EP],499,D_D[LOC],$A49),0)) -> 0 | F49: =IF(ISNA($A49),"",IFERROR(SUMIFS(D_D[BL],D_D[MT],5,D_D[CAT],SMS, D_D[EP],499,D_D[LOC],$A49),0)) -> 0 | G49: =IF(ISNA($A49),"",IFERROR(F49/E49,0)) -> 0 | H49: =IF(ISNA($A49),"",IFERROR(SUMIFS(D_D[DEV],D_D[MT],5,D_D[CAT],SMS, D_D[EP],499,D_D[LOC],$A49)/$E49,0)) -> 0 | I49: =IF(ISNA($A49),"",IFERROR(SUMIFS(D_D[EVD],D_D[MT],5,D_D[CAT],SMS, D_D[EP],499,D_D[LOC],$A49)/$E49,0)) -> 0 | J49: =IF(ISNA($A49),"",IFERROR(SUMIFS(D_D[DEC],D_D[MT],5,D_D[CAT],SMS, D_D[EP],499,D_D[LOC],$A49)/$E49,0)) -> 0 | K49: =IF(ISNA($A49),"",IFERROR(SUMIFS(D_D[AWD],D_D[MT],5,D_D[CAT],SMS, D_D[EP],499,D_D[LOC],$A49)/$E49,0)) -> 0 | L49: =IF(ISNA($A49),"",IFERROR(SUMIFS(D_D[AUT],D_D[MT],5,D_D[CAT],SMS, D_D[EP],499,D_D[LOC],$A49)/$E49,0)) -> 0
A50: PI358 | B50: 37 | C50: 0 | D50: Manila RO | E50: =IF(ISNA($A50),"",IFERROR(SUMIFS(D_D[INV],D_D[MT],5,D_D[CAT],SMS, D_D[EP],499,D_D[LOC],$A50),0)) -> 0 | F50: =IF(ISNA($A50),"",IFERROR(SUMIFS(D_D[BL],D_D[MT],5,D_D[CAT],SMS, D_D[EP],499,D_D[LOC],$A50),0)) -> 0 | G50: 0 | H50: =IF(ISNA($A50),"",IFERROR(SUMIFS(D_D[DEV],D_D[MT],5,D_D[CAT],SMS, D_D[EP],499,D_D[LOC],$A50)/$E50,0)) -> 0 | I50: =IF(ISNA($A50),"",IFERROR(SUMIFS(D_D[EVD],D_D[MT],5,D_D[CAT],SMS, D_D[EP],499,D_D[LOC],$A50)/$E50,0)) -> 0 | J50: =IF(ISNA($A50),"",IFERROR(SUMIFS(D_D[DEC],D_D[MT],5,D_D[CAT],SMS, D_D[EP],499,D_D[LOC],$A50)/$E50,0)) -> 0 | K50: =IF(ISNA($A50),"",IFERROR(SUMIFS(D_D[AWD],D_D[MT],5,D_D[CAT],SMS, D_D[EP],499,D_D[LOC],$A50)/$E50,0)) -> 0 | L50: =IF(ISNA($A50),"",IFERROR(SUMIFS(D_D[AUT],D_D[MT],5,D_D[CAT],SMS, D_D[EP],499,D_D[LOC],$A50)/$E50,0)) -> 0
A51: PI-1 | B51: 38 | C51: 0 | D51: Philippines-Other RO | E51: =IF(ISNA($A51),"",IFERROR(SUMIFS(D_D[INV],D_D[MT],5,D_D[CAT],SMS, D_D[EP],499,D_D[LOC],$A51),0)) -> 0 | F51: =IF(ISNA($A51),"",IFERROR(SUMIFS(D_D[BL],D_D[MT],5,D_D[CAT],SMS, D_D[EP],499,D_D[LOC],$A51),0)) -> 0 | G51: 0 | H51: =IF(ISNA($A51),"",IFERROR(SUMIFS(D_D[DEV],D_D[MT],5,D_D[CAT],SMS, D_D[EP],499,D_D[LOC],$A51)/$E51,0)) -> 0 | I51: =IF(ISNA($A51),"",IFERROR(SUMIFS(D_D[EVD],D_D[MT],5,D_D[CAT],SMS, D_D[EP],499,D_D[LOC],$A51)/$E51,0)) -> 0 | J51: =IF(ISNA($A51),"",IFERROR(SUMIFS(D_D[DEC],D_D[MT],5,D_D[CAT],SMS, D_D[EP],499,D_D[LOC],$A51)/$E51,0)) -> 0 | K51: =IF(ISNA($A51),"",IFERROR(SUMIFS(D_D[AWD],D_D[MT],5,D_D[CAT],SMS, D_D[EP],499,D_D[LOC],$A51)/$E51,0)) -> 0 | L51: =IF(ISNA($A51),"",IFERROR(SUMIFS(D_D[AUT],D_D[MT],5,D_D[CAT],SMS, D_D[EP],499,D_D[LOC],$A51)/$E51,0)) -> 0
A52: PI499 | B52: 39 | C52: 0 | D52: Philippines-NWQ | E52: =IF(ISNA($A52),"",IFERROR(SUMIFS(D_D[INV],D_D[MT],5,D_D[CAT],SMS, D_D[EP],499,D_D[LOC],$A52),0)) -> 0 | F52: =IF(ISNA($A52),"",IFERROR(SUMIFS(D_D[BL],D_D[MT],5,D_D[CAT],SMS, D_D[EP],499,D_D[LOC],$A52),0)) -> 0 | G52: 0 | H52: =IF(ISNA($A52),"",IFERROR(SUMIFS(D_D[DEV],D_D[MT],5,D_D[CAT],SMS, D_D[EP],499,D_D[LOC],$A52)/$E52,0)) -> 0 | I52: =IF(ISNA($A52),"",IFERROR(SUMIFS(D_D[EVD],D_D[MT],5,D_D[CAT],SMS, D_D[EP],499,D_D[LOC],$A52)/$E52,0)) -> 0 | J52: =IF(ISNA($A52),"",IFERROR(SUMIFS(D_D[DEC],D_D[MT],5,D_D[CAT],SMS, D_D[EP],499,D_D[LOC],$A52)/$E52,0)) -> 0 | K52: =IF(ISNA($A52),"",IFERROR(SUMIFS(D_D[AWD],D_D[MT],5,D_D[CAT],SMS, D_D[EP],499,D_D[LOC],$A52)/$E52,0)) -> 0 | L52: =IF(ISNA($A52),"",IFERROR(SUMIFS(D_D[AUT],D_D[MT],5,D_D[CAT],SMS, D_D[EP],499,D_D[LOC],$A52)/$E52,0)) -> 0
A53: UT100 | B53: 40 | C53: Utah | D53: Utah-Total | E53: =IF(ISNA($A53),"",IFERROR(SUMIFS(D_D[INV],D_D[MT],5,D_D[CAT],SMS, D_D[EP],499,D_D[LOC],$A53),0)) -> 3584 | F53: =IF(ISNA($A53),"",IFERROR(SUMIFS(D_D[BL],D_D[MT],5,D_D[CAT],SMS, D_D[EP],499,D_D[LOC],$A53),0)) -> 1469 | G53: 0.4098772321 | H53: =IF(ISNA($A53),"",IFERROR(SUMIFS(D_D[DEV],D_D[MT],5,D_D[CAT],SMS, D_D[EP],499,D_D[LOC],$A53)/$E53,0)) -> 0.01618303571 | I53: =IF(ISNA($A53),"",IFERROR(SUMIFS(D_D[EVD],D_D[MT],5,D_D[CAT],SMS, D_D[EP],499,D_D[LOC],$A53)/$E53,0)) -> 0.6171875 | J53: =IF(ISNA($A53),"",IFERROR(SUMIFS(D_D[DEC],D_D[MT],5,D_D[CAT],SMS, D_D[EP],499,D_D[LOC],$A53)/$E53,0)) -> 0.3571428571 | K53: =IF(ISNA($A53),"",IFERROR(SUMIFS(D_D[AWD],D_D[MT],5,D_D[CAT],SMS, D_D[EP],499,D_D[LOC],$A53)/$E53,0)) -> 0.006696428571 | L53: =IF(ISNA($A53),"",IFERROR(SUMIFS(D_D[AUT],D_D[MT],5,D_D[CAT],SMS, D_D[EP],499,D_D[LOC],$A53)/$E53,0)) -> 0.002790178571
A54: UT341 | B54: 41 | C54: 0 | D54: Salt Lake City RO | E54: =IF(ISNA($A54),"",IFERROR(SUMIFS(D_D[INV],D_D[MT],5,D_D[CAT],SMS, D_D[EP],499,D_D[LOC],$A54),0)) -> 45 | F54: =IF(ISNA($A54),"",IFERROR(SUMIFS(D_D[BL],D_D[MT],5,D_D[CAT],SMS, D_D[EP],499,D_D[LOC],$A54),0)) -> 9 | G54: 0.2 | H54: =IF(ISNA($A54),"",IFERROR(SUMIFS(D_D[DEV],D_D[MT],5,D_D[CAT],SMS, D_D[EP],499,D_D[LOC],$A54)/$E54,0)) -> 0.3777777778 | I54: =IF(ISNA($A54),"",IFERROR(SUMIFS(D_D[EVD],D_D[MT],5,D_D[CAT],SMS, D_D[EP],499,D_D[LOC],$A54)/$E54,0)) -> 0.4222222222 | J54: =IF(ISNA($A54),"",IFERROR(SUMIFS(D_D[DEC],D_D[MT],5,D_D[CAT],SMS, D_D[EP],499,D_D[LOC],$A54)/$E54,0)) -> 0.08888888889 | K54: =IF(ISNA($A54),"",IFERROR(SUMIFS(D_D[AWD],D_D[MT],5,D_D[CAT],SMS, D_D[EP],499,D_D[LOC],$A54)/$E54,0)) -> 0.04444444444 | L54: =IF(ISNA($A54),"",IFERROR(SUMIFS(D_D[AUT],D_D[MT],5,D_D[CAT],SMS, D_D[EP],499,D_D[LOC],$A54)/$E54,0)) -> 0.06666666667
A55: UT-1 | B55: 42 | C55: 0 | D55: Utah-Other RO | E55: =IF(ISNA($A55),"",IFERROR(SUMIFS(D_D[INV],D_D[MT],5,D_D[CAT],SMS, D_D[EP],499,D_D[LOC],$A55),0)) -> 414 | F55: =IF(ISNA($A55),"",IFERROR(SUMIFS(D_D[BL],D_D[MT],5,D_D[CAT],SMS, D_D[EP],499,D_D[LOC],$A55),0)) -> 189 | G55: 0.4565217391 | H55: =IF(ISNA($A55),"",IFERROR(SUMIFS(D_D[DEV],D_D[MT],5,D_D[CAT],SMS, D_D[EP],499,D_D[LOC],$A55)/$E55,0)) -> 0.06763285024 | I55: =IF(ISNA($A55),"",IFERROR(SUMIFS(D_D[EVD],D_D[MT],5,D_D[CAT],SMS, D_D[EP],499,D_D[LOC],$A55)/$E55,0)) -> 0.5797101449 | J55: =IF(ISNA($A55),"",IFERROR(SUMIFS(D_D[DEC],D_D[MT],5,D_D[CAT],SMS, D_D[EP],499,D_D[LOC],$A55)/$E55,0)) -> 0.2850241546 | K55: =IF(ISNA($A55),"",IFERROR(SUMIFS(D_D[AWD],D_D[MT],5,D_D[CAT],SMS, D_D[EP],499,D_D[LOC],$A55)/$E55,0)) -> 0.05072463768 | L55: =IF(ISNA($A55),"",IFERROR(SUMIFS(D_D[AUT],D_D[MT],5,D_D[CAT],SMS, D_D[EP],499,D_D[LOC],$A55)/$E55,0)) -> 0.01690821256
A56: UT499 | B56: 43 | C56: 0 | D56: Utah-NWQ | E56: =IF(ISNA($A56),"",IFERROR(SUMIFS(D_D[INV],D_D[MT],5,D_D[CAT],SMS, D_D[EP],499,D_D[LOC],$A56),0)) -> 3125 | F56: =IF(ISNA($A56),"",IFERROR(SUMIFS(D_D[BL],D_D[MT],5,D_D[CAT],SMS, D_D[EP],499,D_D[LOC],$A56),0)) -> 1271 | G56: 0.40672 | H56: =IF(ISNA($A56),"",IFERROR(SUMIFS(D_D[DEV],D_D[MT],5,D_D[CAT],SMS, D_D[EP],499,D_D[LOC],$A56)/$E56,0)) -> 0.00416 | I56: =IF(ISNA($A56),"",IFERROR(SUMIFS(D_D[EVD],D_D[MT],5,D_D[CAT],SMS, D_D[EP],499,D_D[LOC],$A56)/$E56,0)) -> 0.62496 | J56: =IF(ISNA($A56),"",IFERROR(SUMIFS(D_D[DEC],D_D[MT],5,D_D[CAT],SMS, D_D[EP],499,D_D[LOC],$A56)/$E56,0)) -> 0.37056 | K56: =IF(ISNA($A56),"",IFERROR(SUMIFS(D_D[AWD],D_D[MT],5,D_D[CAT],SMS, D_D[EP],499,D_D[LOC],$A56)/$E56,0)) -> 0.00032 | L56: =IF(ISNA($A56),"",IFERROR(SUMIFS(D_D[AUT],D_D[MT],5,D_D[CAT],SMS, D_D[EP],499,D_D[LOC],$A56)/$E56,0)) -> 0
A57: WA100 | B57: 44 | C57: Washington | D57: Washington-Total | E57: =IF(ISNA($A57),"",IFERROR(SUMIFS(D_D[INV],D_D[MT],5,D_D[CAT],SMS, D_D[EP],499,D_D[LOC],$A57),0)) -> 14141 | F57: =IF(ISNA($A57),"",IFERROR(SUMIFS(D_D[BL],D_D[MT],5,D_D[CAT],SMS, D_D[EP],499,D_D[LOC],$A57),0)) -> 6094 | G57: 0.4309454777 | H57: =IF(ISNA($A57),"",IFERROR(SUMIFS(D_D[DEV],D_D[MT],5,D_D[CAT],SMS, D_D[EP],499,D_D[LOC],$A57)/$E57,0)) -> 0.01626476204 | I57: =IF(ISNA($A57),"",IFERROR(SUMIFS(D_D[EVD],D_D[MT],5,D_D[CAT],SMS, D_D[EP],499,D_D[LOC],$A57)/$E57,0)) -> 0.6253447422 | J57: =IF(ISNA($A57),"",IFERROR(SUMIFS(D_D[DEC],D_D[MT],5,D_D[CAT],SMS, D_D[EP],499,D_D[LOC],$A57)/$E57,0)) -> 0.3519553073 | K57: =IF(ISNA($A57),"",IFERROR(SUMIFS(D_D[AWD],D_D[MT],5,D_D[CAT],SMS, D_D[EP],499,D_D[LOC],$A57)/$E57,0)) -> 0.004737995898 | L57: =IF(ISNA($A57),"",IFERROR(SUMIFS(D_D[AUT],D_D[MT],5,D_D[CAT],SMS, D_D[EP],499,D_D[LOC],$A57)/$E57,0)) -> 0.001697192561
A58: WA346 | B58: 45 | C58: 0 | D58: Seattle RO | E58: =IF(ISNA($A58),"",IFERROR(SUMIFS(D_D[INV],D_D[MT],5,D_D[CAT],SMS, D_D[EP],499,D_D[LOC],$A58),0)) -> 282 | F58: =IF(ISNA($A58),"",IFERROR(SUMIFS(D_D[BL],D_D[MT],5,D_D[CAT],SMS, D_D[EP],499,D_D[LOC],$A58),0)) -> 30 | G58: 0.1063829787 | H58: =IF(ISNA($A58),"",IFERROR(SUMIFS(D_D[DEV],D_D[MT],5,D_D[CAT],SMS, D_D[EP],499,D_D[LOC],$A58)/$E58,0)) -> 0.280141844 | I58: =IF(ISNA($A58),"",IFERROR(SUMIFS(D_D[EVD],D_D[MT],5,D_D[CAT],SMS, D_D[EP],499,D_D[LOC],$A58)/$E58,0)) -> 0.329787234 | J58: =IF(ISNA($A58),"",IFERROR(SUMIFS(D_D[DEC],D_D[MT],5,D_D[CAT],SMS, D_D[EP],499,D_D[LOC],$A58)/$E58,0)) -> 0.3191489362 | K58: =IF(ISNA($A58),"",IFERROR(SUMIFS(D_D[AWD],D_D[MT],5,D_D[CAT],SMS, D_D[EP],499,D_D[LOC],$A58)/$E58,0)) -> 0.06028368794 | L58: =IF(ISNA($A58),"",IFERROR(SUMIFS(D_D[AUT],D_D[MT],5,D_D[CAT],SMS, D_D[EP],499,D_D[LOC],$A58)/$E58,0)) -> 0.01063829787
A59: WA-1 | B59: 46 | C59: 0 | D59: Washington-Other RO | E59: =IF(ISNA($A59),"",IFERROR(SUMIFS(D_D[INV],D_D[MT],5,D_D[CAT],SMS, D_D[EP],499,D_D[LOC],$A59),0)) -> 1605 | F59: =IF(ISNA($A59),"",IFERROR(SUMIFS(D_D[BL],D_D[MT],5,D_D[CAT],SMS, D_D[EP],499,D_D[LOC],$A59),0)) -> 827 | G59: 0.5152647975 | H59: =IF(ISNA($A59),"",IFERROR(SUMIFS(D_D[DEV],D_D[MT],5,D_D[CAT],SMS, D_D[EP],499,D_D[LOC],$A59)/$E59,0)) -> 0.07289719626 | I59: =IF(ISNA($A59),"",IFERROR(SUMIFS(D_D[EVD],D_D[MT],5,D_D[CAT],SMS, D_D[EP],499,D_D[LOC],$A59)/$E59,0)) -> 0.6031152648 | J59: =IF(ISNA($A59),"",IFERROR(SUMIFS(D_D[DEC],D_D[MT],5,D_D[CAT],SMS, D_D[EP],499,D_D[LOC],$A59)/$E59,0)) -> 0.2816199377 | K59: =IF(ISNA($A59),"",IFERROR(SUMIFS(D_D[AWD],D_D[MT],5,D_D[CAT],SMS, D_D[EP],499,D_D[LOC],$A59)/$E59,0)) -> 0.02990654206 | L59: =IF(ISNA($A59),"",IFERROR(SUMIFS(D_D[AUT],D_D[MT],5,D_D[CAT],SMS, D_D[EP],499,D_D[LOC],$A59)/$E59,0)) -> 0.01246105919
A60: WA499 | B60: 47 | C60: 0 | D60: =IFERROR(INDEX(INDIRECT(DS_NWQD),B60),"") -> Washington-NWQ | E60: =IF(ISNA($A60),"",IFERROR(SUMIFS(D_D[INV],D_D[MT],5,D_D[CAT],SMS, D_D[EP],499,D_D[LOC],$A60),0)) -> 12254 | F60: =IF(ISNA($A60),"",IFERROR(SUMIFS(D_D[BL],D_D[MT],5,D_D[CAT],SMS, D_D[EP],499,D_D[LOC],$A60),0)) -> 5237 | G60: =IF(ISNA($A60),"",IFERROR(F60/E60,0)) -> 0.4273706545 | H60: =IF(ISNA($A60),"",IFERROR(SUMIFS(D_D[DEV],D_D[MT],5,D_D[CAT],SMS, D_D[EP],499,D_D[LOC],$A60)/$E60,0)) -> 0.002774604211 | I60: =IF(ISNA($A60),"",IFERROR(SUMIFS(D_D[EVD],D_D[MT],5,D_D[CAT],SMS, D_D[EP],499,D_D[LOC],$A60)/$E60,0)) -> 0.6350579403 | J60: =IF(ISNA($A60),"",IFERROR(SUMIFS(D_D[DEC],D_D[MT],5,D_D[CAT],SMS, D_D[EP],499,D_D[LOC],$A60)/$E60,0)) -> 0.3619226375 | K60: =IF(ISNA($A60),"",IFERROR(SUMIFS(D_D[AWD],D_D[MT],5,D_D[CAT],SMS, D_D[EP],499,D_D[LOC],$A60)/$E60,0)) -> 0.0001632120124 | L60: =IF(ISNA($A60),"",IFERROR(SUMIFS(D_D[AUT],D_D[MT],5,D_D[CAT],SMS, D_D[EP],499,D_D[LOC],$A60)/$E60,0)) -> 8.16060062e-05
B61: 48 | E61: =IF(ISNA($A61),"",IFERROR(SUMIFS(D_D[INV],D_D[MT],5,D_D[CAT],SMS, D_D[EP],499,D_D[LOC],$A61),0)) ->  | F61: =IF(ISNA($A61),"",IFERROR(SUMIFS(D_D[BL],D_D[MT],5,D_D[CAT],SMS, D_D[EP],499,D_D[LOC],$A61),0)) ->  | H61: =IF(ISNA($A61),"",IFERROR(SUMIFS(D_D[DEV],D_D[MT],5,D_D[CAT],SMS, D_D[EP],499,D_D[LOC],$A61)/$E61,0)) ->  | I61: =IF(ISNA($A61),"",IFERROR(SUMIFS(D_D[EVD],D_D[MT],5,D_D[CAT],SMS, D_D[EP],499,D_D[LOC],$A61)/$E61,0)) ->  | J61: =IF(ISNA($A61),"",IFERROR(SUMIFS(D_D[DEC],D_D[MT],5,D_D[CAT],SMS, D_D[EP],499,D_D[LOC],$A61)/$E61,0)) ->  | K61: =IF(ISNA($A61),"",IFERROR(SUMIFS(D_D[AWD],D_D[MT],5,D_D[CAT],SMS, D_D[EP],499,D_D[LOC],$A61)/$E61,0)) ->  | L61: =IF(ISNA($A61),"",IFERROR(SUMIFS(D_D[AUT],D_D[MT],5,D_D[CAT],SMS, D_D[EP],499,D_D[LOC],$A61)/$E61,0)) -> 
B62: 49 | E62: =IF(ISNA($A62),"",IFERROR(SUMIFS(D_D[INV],D_D[MT],5,D_D[CAT],SMS, D_D[EP],499,D_D[LOC],$A62),0)) ->  | F62: =IF(ISNA($A62),"",IFERROR(SUMIFS(D_D[BL],D_D[MT],5,D_D[CAT],SMS, D_D[EP],499,D_D[LOC],$A62),0)) ->  | H62: =IF(ISNA($A62),"",IFERROR(SUMIFS(D_D[DEV],D_D[MT],5,D_D[CAT],SMS, D_D[EP],499,D_D[LOC],$A62)/$E62,0)) ->  | I62: =IF(ISNA($A62),"",IFERROR(SUMIFS(D_D[EVD],D_D[MT],5,D_D[CAT],SMS, D_D[EP],499,D_D[LOC],$A62)/$E62,0)) ->  | J62: =IF(ISNA($A62),"",IFERROR(SUMIFS(D_D[DEC],D_D[MT],5,D_D[CAT],SMS, D_D[EP],499,D_D[LOC],$A62)/$E62,0)) ->  | K62: =IF(ISNA($A62),"",IFERROR(SUMIFS(D_D[AWD],D_D[MT],5,D_D[CAT],SMS, D_D[EP],499,D_D[LOC],$A62)/$E62,0)) ->  | L62: =IF(ISNA($A62),"",IFERROR(SUMIFS(D_D[AUT],D_D[MT],5,D_D[CAT],SMS, D_D[EP],499,D_D[LOC],$A62)/$E62,0)) -> 
B63: 50 | C63: =IFERROR(INDEX(INDIRECT(DS_NWQ),B63),"") ->  | E63: =IF(ISNA($A63),"",IFERROR(SUMIFS(D_D[INV],D_D[MT],5,D_D[CAT],SMS, D_D[EP],499,D_D[LOC],$A63),0)) ->  | F63: =IF(ISNA($A63),"",IFERROR(SUMIFS(D_D[BL],D_D[MT],5,D_D[CAT],SMS, D_D[EP],499,D_D[LOC],$A63),0)) ->  | H63: =IF(ISNA($A63),"",IFERROR(SUMIFS(D_D[DEV],D_D[MT],5,D_D[CAT],SMS, D_D[EP],499,D_D[LOC],$A63)/$E63,0)) ->  | I63: =IF(ISNA($A63),"",IFERROR(SUMIFS(D_D[EVD],D_D[MT],5,D_D[CAT],SMS, D_D[EP],499,D_D[LOC],$A63)/$E63,0)) ->  | J63: =IF(ISNA($A63),"",IFERROR(SUMIFS(D_D[DEC],D_D[MT],5,D_D[CAT],SMS, D_D[EP],499,D_D[LOC],$A63)/$E63,0)) ->  | K63: =IF(ISNA($A63),"",IFERROR(SUMIFS(D_D[AWD],D_D[MT],5,D_D[CAT],SMS, D_D[EP],499,D_D[LOC],$A63)/$E63,0)) ->  | L63: =IF(ISNA($A63),"",IFERROR(SUMIFS(D_D[AUT],D_D[MT],5,D_D[CAT],SMS, D_D[EP],499,D_D[LOC],$A63)/$E63,0)) -> 
B64: 51 | D64: =IFERROR(INDEX(INDIRECT(DS_NWQD),B64),"") ->  | E64: =IF(ISNA($A64),"",IFERROR(SUMIFS(D_D[INV],D_D[MT],5,D_D[CAT],SMS, D_D[EP],499,D_D[LOC],$A64),0)) ->  | F64: =IF(ISNA($A64),"",IFERROR(SUMIFS(D_D[BL],D_D[MT],5,D_D[CAT],SMS, D_D[EP],499,D_D[LOC],$A64),0)) ->  | G64: =IF(ISNA($A64),"",IFERROR(F64/E64,0)) ->  | H64: =IF(ISNA($A64),"",IFERROR(SUMIFS(D_D[DEV],D_D[MT],5,D_D[CAT],SMS, D_D[EP],499,D_D[LOC],$A64)/$E64,0)) ->  | I64: =IF(ISNA($A64),"",IFERROR(SUMIFS(D_D[EVD],D_D[MT],5,D_D[CAT],SMS, D_D[EP],499,D_D[LOC],$A64)/$E64,0)) ->  | J64: =IF(ISNA($A64),"",IFERROR(SUMIFS(D_D[DEC],D_D[MT],5,D_D[CAT],SMS, D_D[EP],499,D_D[LOC],$A64)/$E64,0)) ->  | K64: =IF(ISNA($A64),"",IFERROR(SUMIFS(D_D[AWD],D_D[MT],5,D_D[CAT],SMS, D_D[EP],499,D_D[LOC],$A64)/$E64,0)) ->  | L64: =IF(ISNA($A64),"",IFERROR(SUMIFS(D_D[AUT],D_D[MT],5,D_D[CAT],SMS, D_D[EP],499,D_D[LOC],$A64)/$E64,0)) -> 
B65: 52 | E65: =IF(ISNA($A65),"",IFERROR(SUMIFS(D_D[INV],D_D[MT],5,D_D[CAT],SMS, D_D[EP],499,D_D[LOC],$A65),0)) ->  | F65: =IF(ISNA($A65),"",IFERROR(SUMIFS(D_D[BL],D_D[MT],5,D_D[CAT],SMS, D_D[EP],499,D_D[LOC],$A65),0)) ->  | H65: =IF(ISNA($A65),"",IFERROR(SUMIFS(D_D[DEV],D_D[MT],5,D_D[CAT],SMS, D_D[EP],499,D_D[LOC],$A65)/$E65,0)) ->  | I65: =IF(ISNA($A65),"",IFERROR(SUMIFS(D_D[EVD],D_D[MT],5,D_D[CAT],SMS, D_D[EP],499,D_D[LOC],$A65)/$E65,0)) ->  | J65: =IF(ISNA($A65),"",IFERROR(SUMIFS(D_D[DEC],D_D[MT],5,D_D[CAT],SMS, D_D[EP],499,D_D[LOC],$A65)/$E65,0)) ->  | K65: =IF(ISNA($A65),"",IFERROR(SUMIFS(D_D[AWD],D_D[MT],5,D_D[CAT],SMS, D_D[EP],499,D_D[LOC],$A65)/$E65,0)) ->  | L65: =IF(ISNA($A65),"",IFERROR(SUMIFS(D_D[AUT],D_D[MT],5,D_D[CAT],SMS, D_D[EP],499,D_D[LOC],$A65)/$E65,0)) -> 
B66: 53 | E66: =IF(ISNA($A66),"",IFERROR(SUMIFS(D_D[INV],D_D[MT],5,D_D[CAT],SMS, D_D[EP],499,D_D[LOC],$A66),0)) ->  | F66: =IF(ISNA($A66),"",IFERROR(SUMIFS(D_D[BL],D_D[MT],5,D_D[CAT],SMS, D_D[EP],499,D_D[LOC],$A66),0)) ->  | H66: =IF(ISNA($A66),"",IFERROR(SUMIFS(D_D[DEV],D_D[MT],5,D_D[CAT],SMS, D_D[EP],499,D_D[LOC],$A66)/$E66,0)) ->  | I66: =IF(ISNA($A66),"",IFERROR(SUMIFS(D_D[EVD],D_D[MT],5,D_D[CAT],SMS, D_D[EP],499,D_D[LOC],$A66)/$E66,0)) ->  | J66: =IF(ISNA($A66),"",IFERROR(SUMIFS(D_D[DEC],D_D[MT],5,D_D[CAT],SMS, D_D[EP],499,D_D[LOC],$A66)/$E66,0)) ->  | K66: =IF(ISNA($A66),"",IFERROR(SUMIFS(D_D[AWD],D_D[MT],5,D_D[CAT],SMS, D_D[EP],499,D_D[LOC],$A66)/$E66,0)) ->  | L66: =IF(ISNA($A66),"",IFERROR(SUMIFS(D_D[AUT],D_D[MT],5,D_D[CAT],SMS, D_D[EP],499,D_D[LOC],$A66)/$E66,0)) -> 
B67: 54 | E67: =IF(ISNA($A67),"",IFERROR(SUMIFS(D_D[INV],D_D[MT],5,D_D[CAT],SMS, D_D[EP],499,D_D[LOC],$A67),0)) ->  | F67: =IF(ISNA($A67),"",IFERROR(SUMIFS(D_D[BL],D_D[MT],5,D_D[CAT],SMS, D_D[EP],499,D_D[LOC],$A67),0)) ->  | H67: =IF(ISNA($A67),"",IFERROR(SUMIFS(D_D[DEV],D_D[MT],5,D_D[CAT],SMS, D_D[EP],499,D_D[LOC],$A67)/$E67,0)) ->  | I67: =IF(ISNA($A67),"",IFERROR(SUMIFS(D_D[EVD],D_D[MT],5,D_D[CAT],SMS, D_D[EP],499,D_D[LOC],$A67)/$E67,0)) ->  | J67: =IF(ISNA($A67),"",IFERROR(SUMIFS(D_D[DEC],D_D[MT],5,D_D[CAT],SMS, D_D[EP],499,D_D[LOC],$A67)/$E67,0)) ->  | K67: =IF(ISNA($A67),"",IFERROR(SUMIFS(D_D[AWD],D_D[MT],5,D_D[CAT],SMS, D_D[EP],499,D_D[LOC],$A67)/$E67,0)) ->  | L67: =IF(ISNA($A67),"",IFERROR(SUMIFS(D_D[AUT],D_D[MT],5,D_D[CAT],SMS, D_D[EP],499,D_D[LOC],$A67)/$E67,0)) -> 
B68: 55 | E68: =IF(ISNA($A68),"",IFERROR(SUMIFS(D_D[INV],D_D[MT],5,D_D[CAT],SMS, D_D[EP],499,D_D[LOC],$A68),0)) ->  | F68: =IF(ISNA($A68),"",IFERROR(SUMIFS(D_D[BL],D_D[MT],5,D_D[CAT],SMS, D_D[EP],499,D_D[LOC],$A68),0)) ->  | H68: =IF(ISNA($A68),"",IFERROR(SUMIFS(D_D[DEV],D_D[MT],5,D_D[CAT],SMS, D_D[EP],499,D_D[LOC],$A68)/$E68,0)) ->  | I68: =IF(ISNA($A68),"",IFERROR(SUMIFS(D_D[EVD],D_D[MT],5,D_D[CAT],SMS, D_D[EP],499,D_D[LOC],$A68)/$E68,0)) ->  | J68: =IF(ISNA($A68),"",IFERROR(SUMIFS(D_D[DEC],D_D[MT],5,D_D[CAT],SMS, D_D[EP],499,D_D[LOC],$A68)/$E68,0)) ->  | K68: =IF(ISNA($A68),"",IFERROR(SUMIFS(D_D[AWD],D_D[MT],5,D_D[CAT],SMS, D_D[EP],499,D_D[LOC],$A68)/$E68,0)) ->  | L68: =IF(ISNA($A68),"",IFERROR(SUMIFS(D_D[AUT],D_D[MT],5,D_D[CAT],SMS, D_D[EP],499,D_D[LOC],$A68)/$E68,0)) -> 
B69: 56 | E69: =IF(ISNA($A69),"",IFERROR(SUMIFS(D_D[INV],D_D[MT],5,D_D[CAT],SMS, D_D[EP],499,D_D[LOC],$A69),0)) ->  | F69: =IF(ISNA($A69),"",IFERROR(SUMIFS(D_D[BL],D_D[MT],5,D_D[CAT],SMS, D_D[EP],499,D_D[LOC],$A69),0)) ->  | H69: =IF(ISNA($A69),"",IFERROR(SUMIFS(D_D[DEV],D_D[MT],5,D_D[CAT],SMS, D_D[EP],499,D_D[LOC],$A69)/$E69,0)) ->  | I69: =IF(ISNA($A69),"",IFERROR(SUMIFS(D_D[EVD],D_D[MT],5,D_D[CAT],SMS, D_D[EP],499,D_D[LOC],$A69)/$E69,0)) ->  | J69: =IF(ISNA($A69),"",IFERROR(SUMIFS(D_D[DEC],D_D[MT],5,D_D[CAT],SMS, D_D[EP],499,D_D[LOC],$A69)/$E69,0)) ->  | K69: =IF(ISNA($A69),"",IFERROR(SUMIFS(D_D[AWD],D_D[MT],5,D_D[CAT],SMS, D_D[EP],499,D_D[LOC],$A69)/$E69,0)) ->  | L69: =IF(ISNA($A69),"",IFERROR(SUMIFS(D_D[AUT],D_D[MT],5,D_D[CAT],SMS, D_D[EP],499,D_D[LOC],$A69)/$E69,0)) -> 
B70: 57 | E70: =IF(ISNA($A70),"",IFERROR(SUMIFS(D_D[INV],D_D[MT],5,D_D[CAT],SMS, D_D[EP],499,D_D[LOC],$A70),0)) ->  | F70: =IF(ISNA($A70),"",IFERROR(SUMIFS(D_D[BL],D_D[MT],5,D_D[CAT],SMS, D_D[EP],499,D_D[LOC],$A70),0)) ->  | H70: =IF(ISNA($A70),"",IFERROR(SUMIFS(D_D[DEV],D_D[MT],5,D_D[CAT],SMS, D_D[EP],499,D_D[LOC],$A70)/$E70,0)) ->  | I70: =IF(ISNA($A70),"",IFERROR(SUMIFS(D_D[EVD],D_D[MT],5,D_D[CAT],SMS, D_D[EP],499,D_D[LOC],$A70)/$E70,0)) ->  | J70: =IF(ISNA($A70),"",IFERROR(SUMIFS(D_D[DEC],D_D[MT],5,D_D[CAT],SMS, D_D[EP],499,D_D[LOC],$A70)/$E70,0)) ->  | K70: =IF(ISNA($A70),"",IFERROR(SUMIFS(D_D[AWD],D_D[MT],5,D_D[CAT],SMS, D_D[EP],499,D_D[LOC],$A70)/$E70,0)) ->  | L70: =IF(ISNA($A70),"",IFERROR(SUMIFS(D_D[AUT],D_D[MT],5,D_D[CAT],SMS, D_D[EP],499,D_D[LOC],$A70)/$E70,0)) -> 
B71: 58 | E71: =IF(ISNA($A71),"",IFERROR(SUMIFS(D_D[INV],D_D[MT],5,D_D[CAT],SMS, D_D[EP],499,D_D[LOC],$A71),0)) ->  | F71: =IF(ISNA($A71),"",IFERROR(SUMIFS(D_D[BL],D_D[MT],5,D_D[CAT],SMS, D_D[EP],499,D_D[LOC],$A71),0)) ->  | H71: =IF(ISNA($A71),"",IFERROR(SUMIFS(D_D[DEV],D_D[MT],5,D_D[CAT],SMS, D_D[EP],499,D_D[LOC],$A71)/$E71,0)) ->  | I71: =IF(ISNA($A71),"",IFERROR(SUMIFS(D_D[EVD],D_D[MT],5,D_D[CAT],SMS, D_D[EP],499,D_D[LOC],$A71)/$E71,0)) ->  | J71: =IF(ISNA($A71),"",IFERROR(SUMIFS(D_D[DEC],D_D[MT],5,D_D[CAT],SMS, D_D[EP],499,D_D[LOC],$A71)/$E71,0)) ->  | K71: =IF(ISNA($A71),"",IFERROR(SUMIFS(D_D[AWD],D_D[MT],5,D_D[CAT],SMS, D_D[EP],499,D_D[LOC],$A71)/$E71,0)) ->  | L71: =IF(ISNA($A71),"",IFERROR(SUMIFS(D_D[AUT],D_D[MT],5,D_D[CAT],SMS, D_D[EP],499,D_D[LOC],$A71)/$E71,0)) -> 
B72: 59 | E72: =IF(ISNA($A72),"",IFERROR(SUMIFS(D_D[INV],D_D[MT],5,D_D[CAT],SMS, D_D[EP],499,D_D[LOC],$A72),0)) ->  | F72: =IF(ISNA($A72),"",IFERROR(SUMIFS(D_D[BL],D_D[MT],5,D_D[CAT],SMS, D_D[EP],499,D_D[LOC],$A72),0)) ->  | H72: =IF(ISNA($A72),"",IFERROR(SUMIFS(D_D[DEV],D_D[MT],5,D_D[CAT],SMS, D_D[EP],499,D_D[LOC],$A72)/$E72,0)) ->  | I72: =IF(ISNA($A72),"",IFERROR(SUMIFS(D_D[EVD],D_D[MT],5,D_D[CAT],SMS, D_D[EP],499,D_D[LOC],$A72)/$E72,0)) ->  | J72: =IF(ISNA($A72),"",IFERROR(SUMIFS(D_D[DEC],D_D[MT],5,D_D[CAT],SMS, D_D[EP],499,D_D[LOC],$A72)/$E72,0)) ->  | K72: =IF(ISNA($A72),"",IFERROR(SUMIFS(D_D[AWD],D_D[MT],5,D_D[CAT],SMS, D_D[EP],499,D_D[LOC],$A72)/$E72,0)) ->  | L72: =IF(ISNA($A72),"",IFERROR(SUMIFS(D_D[AUT],D_D[MT],5,D_D[CAT],SMS, D_D[EP],499,D_D[LOC],$A72)/$E72,0)) -> 
B73: 60 | E73: =IF(ISNA($A73),"",IFERROR(SUMIFS(D_D[INV],D_D[MT],5,D_D[CAT],SMS, D_D[EP],499,D_D[LOC],$A73),0)) ->  | F73: =IF(ISNA($A73),"",IFERROR(SUMIFS(D_D[BL],D_D[MT],5,D_D[CAT],SMS, D_D[EP],499,D_D[LOC],$A73),0)) ->  | H73: =IF(ISNA($A73),"",IFERROR(SUMIFS(D_D[DEV],D_D[MT],5,D_D[CAT],SMS, D_D[EP],499,D_D[LOC],$A73)/$E73,0)) ->  | I73: =IF(ISNA($A73),"",IFERROR(SUMIFS(D_D[EVD],D_D[MT],5,D_D[CAT],SMS, D_D[EP],499,D_D[LOC],$A73)/$E73,0)) ->  | J73: =IF(ISNA($A73),"",IFERROR(SUMIFS(D_D[DEC],D_D[MT],5,D_D[CAT],SMS, D_D[EP],499,D_D[LOC],$A73)/$E73,0)) ->  | K73: =IF(ISNA($A73),"",IFERROR(SUMIFS(D_D[AWD],D_D[MT],5,D_D[CAT],SMS, D_D[EP],499,D_D[LOC],$A73)/$E73,0)) ->  | L73: =IF(ISNA($A73),"",IFERROR(SUMIFS(D_D[AUT],D_D[MT],5,D_D[CAT],SMS, D_D[EP],499,D_D[LOC],$A73)/$E73,0)) -> 
B74: 61 | E74: =IF(ISNA($A74),"",IFERROR(SUMIFS(D_D[INV],D_D[MT],5,D_D[CAT],SMS, D_D[EP],499,D_D[LOC],$A74),0)) ->  | F74: =IF(ISNA($A74),"",IFERROR(SUMIFS(D_D[BL],D_D[MT],5,D_D[CAT],SMS, D_D[EP],499,D_D[LOC],$A74),0)) ->  | H74: =IF(ISNA($A74),"",IFERROR(SUMIFS(D_D[DEV],D_D[MT],5,D_D[CAT],SMS, D_D[EP],499,D_D[LOC],$A74)/$E74,0)) ->  | I74: =IF(ISNA($A74),"",IFERROR(SUMIFS(D_D[EVD],D_D[MT],5,D_D[CAT],SMS, D_D[EP],499,D_D[LOC],$A74)/$E74,0)) ->  | J74: =IF(ISNA($A74),"",IFERROR(SUMIFS(D_D[DEC],D_D[MT],5,D_D[CAT],SMS, D_D[EP],499,D_D[LOC],$A74)/$E74,0)) ->  | K74: =IF(ISNA($A74),"",IFERROR(SUMIFS(D_D[AWD],D_D[MT],5,D_D[CAT],SMS, D_D[EP],499,D_D[LOC],$A74)/$E74,0)) ->  | L74: =IF(ISNA($A74),"",IFERROR(SUMIFS(D_D[AUT],D_D[MT],5,D_D[CAT],SMS, D_D[EP],499,D_D[LOC],$A74)/$E74,0)) -> 
B75: 62 | E75: =IF(ISNA($A75),"",IFERROR(SUMIFS(D_D[INV],D_D[MT],5,D_D[CAT],SMS, D_D[EP],499,D_D[LOC],$A75),0)) ->  | F75: =IF(ISNA($A75),"",IFERROR(SUMIFS(D_D[BL],D_D[MT],5,D_D[CAT],SMS, D_D[EP],499,D_D[LOC],$A75),0)) ->  | H75: =IF(ISNA($A75),"",IFERROR(SUMIFS(D_D[DEV],D_D[MT],5,D_D[CAT],SMS, D_D[EP],499,D_D[LOC],$A75)/$E75,0)) ->  | I75: =IF(ISNA($A75),"",IFERROR(SUMIFS(D_D[EVD],D_D[MT],5,D_D[CAT],SMS, D_D[EP],499,D_D[LOC],$A75)/$E75,0)) ->  | J75: =IF(ISNA($A75),"",IFERROR(SUMIFS(D_D[DEC],D_D[MT],5,D_D[CAT],SMS, D_D[EP],499,D_D[LOC],$A75)/$E75,0)) ->  | K75: =IF(ISNA($A75),"",IFERROR(SUMIFS(D_D[AWD],D_D[MT],5,D_D[CAT],SMS, D_D[EP],499,D_D[LOC],$A75)/$E75,0)) ->  | L75: =IF(ISNA($A75),"",IFERROR(SUMIFS(D_D[AUT],D_D[MT],5,D_D[CAT],SMS, D_D[EP],499,D_D[LOC],$A75)/$E75,0)) -> 
B76: 63 | E76: =IF(ISNA($A76),"",IFERROR(SUMIFS(D_D[INV],D_D[MT],5,D_D[CAT],SMS, D_D[EP],499,D_D[LOC],$A76),0)) ->  | F76: =IF(ISNA($A76),"",IFERROR(SUMIFS(D_D[BL],D_D[MT],5,D_D[CAT],SMS, D_D[EP],499,D_D[LOC],$A76),0)) ->  | H76: =IF(ISNA($A76),"",IFERROR(SUMIFS(D_D[DEV],D_D[MT],5,D_D[CAT],SMS, D_D[EP],499,D_D[LOC],$A76)/$E76,0)) ->  | I76: =IF(ISNA($A76),"",IFERROR(SUMIFS(D_D[EVD],D_D[MT],5,D_D[CAT],SMS, D_D[EP],499,D_D[LOC],$A76)/$E76,0)) ->  | J76: =IF(ISNA($A76),"",IFERROR(SUMIFS(D_D[DEC],D_D[MT],5,D_D[CAT],SMS, D_D[EP],499,D_D[LOC],$A76)/$E76,0)) ->  | K76: =IF(ISNA($A76),"",IFERROR(SUMIFS(D_D[AWD],D_D[MT],5,D_D[CAT],SMS, D_D[EP],499,D_D[LOC],$A76)/$E76,0)) ->  | L76: =IF(ISNA($A76),"",IFERROR(SUMIFS(D_D[AUT],D_D[MT],5,D_D[CAT],SMS, D_D[EP],499,D_D[LOC],$A76)/$E76,0)) -> 
B77: 64 | E77: =IF(ISNA($A77),"",IFERROR(SUMIFS(D_D[INV],D_D[MT],5,D_D[CAT],SMS, D_D[EP],499,D_D[LOC],$A77),0)) ->  | F77: =IF(ISNA($A77),"",IFERROR(SUMIFS(D_D[BL],D_D[MT],5,D_D[CAT],SMS, D_D[EP],499,D_D[LOC],$A77),0)) ->  | H77: =IF(ISNA($A77),"",IFERROR(SUMIFS(D_D[DEV],D_D[MT],5,D_D[CAT],SMS, D_D[EP],499,D_D[LOC],$A77)/$E77,0)) ->  | I77: =IF(ISNA($A77),"",IFERROR(SUMIFS(D_D[EVD],D_D[MT],5,D_D[CAT],SMS, D_D[EP],499,D_D[LOC],$A77)/$E77,0)) ->  | J77: =IF(ISNA($A77),"",IFERROR(SUMIFS(D_D[DEC],D_D[MT],5,D_D[CAT],SMS, D_D[EP],499,D_D[LOC],$A77)/$E77,0)) ->  | K77: =IF(ISNA($A77),"",IFERROR(SUMIFS(D_D[AWD],D_D[MT],5,D_D[CAT],SMS, D_D[EP],499,D_D[LOC],$A77)/$E77,0)) ->  | L77: =IF(ISNA($A77),"",IFERROR(SUMIFS(D_D[AUT],D_D[MT],5,D_D[CAT],SMS, D_D[EP],499,D_D[LOC],$A77)/$E77,0)) -> 
B78: 65 | E78: =IF(ISNA($A78),"",IFERROR(SUMIFS(D_D[INV],D_D[MT],5,D_D[CAT],SMS, D_D[EP],499,D_D[LOC],$A78),0)) ->  | F78: =IF(ISNA($A78),"",IFERROR(SUMIFS(D_D[BL],D_D[MT],5,D_D[CAT],SMS, D_D[EP],499,D_D[LOC],$A78),0)) ->  | H78: =IF(ISNA($A78),"",IFERROR(SUMIFS(D_D[DEV],D_D[MT],5,D_D[CAT],SMS, D_D[EP],499,D_D[LOC],$A78)/$E78,0)) ->  | I78: =IF(ISNA($A78),"",IFERROR(SUMIFS(D_D[EVD],D_D[MT],5,D_D[CAT],SMS, D_D[EP],499,D_D[LOC],$A78)/$E78,0)) ->  | J78: =IF(ISNA($A78),"",IFERROR(SUMIFS(D_D[DEC],D_D[MT],5,D_D[CAT],SMS, D_D[EP],499,D_D[LOC],$A78)/$E78,0)) ->  | K78: =IF(ISNA($A78),"",IFERROR(SUMIFS(D_D[AWD],D_D[MT],5,D_D[CAT],SMS, D_D[EP],499,D_D[LOC],$A78)/$E78,0)) ->  | L78: =IF(ISNA($A78),"",IFERROR(SUMIFS(D_D[AUT],D_D[MT],5,D_D[CAT],SMS, D_D[EP],499,D_D[LOC],$A78)/$E78,0)) -> 
B79: 66 | E79: =IF(ISNA($A79),"",IFERROR(SUMIFS(D_D[INV],D_D[MT],5,D_D[CAT],SMS, D_D[EP],499,D_D[LOC],$A79),0)) ->  | F79: =IF(ISNA($A79),"",IFERROR(SUMIFS(D_D[BL],D_D[MT],5,D_D[CAT],SMS, D_D[EP],499,D_D[LOC],$A79),0)) ->  | H79: =IF(ISNA($A79),"",IFERROR(SUMIFS(D_D[DEV],D_D[MT],5,D_D[CAT],SMS, D_D[EP],499,D_D[LOC],$A79)/$E79,0)) ->  | I79: =IF(ISNA($A79),"",IFERROR(SUMIFS(D_D[EVD],D_D[MT],5,D_D[CAT],SMS, D_D[EP],499,D_D[LOC],$A79)/$E79,0)) ->  | J79: =IF(ISNA($A79),"",IFERROR(SUMIFS(D_D[DEC],D_D[MT],5,D_D[CAT],SMS, D_D[EP],499,D_D[LOC],$A79)/$E79,0)) ->  | K79: =IF(ISNA($A79),"",IFERROR(SUMIFS(D_D[AWD],D_D[MT],5,D_D[CAT],SMS, D_D[EP],499,D_D[LOC],$A79)/$E79,0)) ->  | L79: =IF(ISNA($A79),"",IFERROR(SUMIFS(D_D[AUT],D_D[MT],5,D_D[CAT],SMS, D_D[EP],499,D_D[LOC],$A79)/$E79,0)) -> 
B80: 67 | E80: =IF(ISNA($A80),"",IFERROR(SUMIFS(D_D[INV],D_D[MT],5,D_D[CAT],SMS, D_D[EP],499,D_D[LOC],$A80),0)) ->  | F80: =IF(ISNA($A80),"",IFERROR(SUMIFS(D_D[BL],D_D[MT],5,D_D[CAT],SMS, D_D[EP],499,D_D[LOC],$A80),0)) ->  | H80: =IF(ISNA($A80),"",IFERROR(SUMIFS(D_D[DEV],D_D[MT],5,D_D[CAT],SMS, D_D[EP],499,D_D[LOC],$A80)/$E80,0)) ->  | I80: =IF(ISNA($A80),"",IFERROR(SUMIFS(D_D[EVD],D_D[MT],5,D_D[CAT],SMS, D_D[EP],499,D_D[LOC],$A80)/$E80,0)) ->  | J80: =IF(ISNA($A80),"",IFERROR(SUMIFS(D_D[DEC],D_D[MT],5,D_D[CAT],SMS, D_D[EP],499,D_D[LOC],$A80)/$E80,0)) ->  | K80: =IF(ISNA($A80),"",IFERROR(SUMIFS(D_D[AWD],D_D[MT],5,D_D[CAT],SMS, D_D[EP],499,D_D[LOC],$A80)/$E80,0)) ->  | L80: =IF(ISNA($A80),"",IFERROR(SUMIFS(D_D[AUT],D_D[MT],5,D_D[CAT],SMS, D_D[EP],499,D_D[LOC],$A80)/$E80,0)) -> 
B81: 68 | C81: =IFERROR(INDEX(INDIRECT(DS_NWQ),B81),"") ->  | E81: =IF(ISNA($A81),"",IFERROR(SUMIFS(D_D[INV],D_D[MT],5,D_D[CAT],SMS, D_D[EP],499,D_D[LOC],$A81),0)) ->  | F81: =IF(ISNA($A81),"",IFERROR(SUMIFS(D_D[BL],D_D[MT],5,D_D[CAT],SMS, D_D[EP],499,D_D[LOC],$A81),0)) ->  | H81: =IF(ISNA($A81),"",IFERROR(SUMIFS(D_D[DEV],D_D[MT],5,D_D[CAT],SMS, D_D[EP],499,D_D[LOC],$A81)/$E81,0)) ->  | I81: =IF(ISNA($A81),"",IFERROR(SUMIFS(D_D[EVD],D_D[MT],5,D_D[CAT],SMS, D_D[EP],499,D_D[LOC],$A81)/$E81,0)) ->  | J81: =IF(ISNA($A81),"",IFERROR(SUMIFS(D_D[DEC],D_D[MT],5,D_D[CAT],SMS, D_D[EP],499,D_D[LOC],$A81)/$E81,0)) ->  | K81: =IF(ISNA($A81),"",IFERROR(SUMIFS(D_D[AWD],D_D[MT],5,D_D[CAT],SMS, D_D[EP],499,D_D[LOC],$A81)/$E81,0)) ->  | L81: =IF(ISNA($A81),"",IFERROR(SUMIFS(D_D[AUT],D_D[MT],5,D_D[CAT],SMS, D_D[EP],499,D_D[LOC],$A81)/$E81,0)) -> 
B82: 69 | D82: =IFERROR(INDEX(INDIRECT(DS_NWQD),B82),"") ->  | E82: =IF(ISNA($A82),"",IFERROR(SUMIFS(D_D[INV],D_D[MT],5,D_D[CAT],SMS, D_D[EP],499,D_D[LOC],$A82),0)) ->  | F82: =IF(ISNA($A82),"",IFERROR(SUMIFS(D_D[BL],D_D[MT],5,D_D[CAT],SMS, D_D[EP],499,D_D[LOC],$A82),0)) ->  | G82: =IF(ISNA($A82),"",IFERROR(F82/E82,0)) ->  | H82: =IF(ISNA($A82),"",IFERROR(SUMIFS(D_D[DEV],D_D[MT],5,D_D[CAT],SMS, D_D[EP],499,D_D[LOC],$A82)/$E82,0)) ->  | I82: =IF(ISNA($A82),"",IFERROR(SUMIFS(D_D[EVD],D_D[MT],5,D_D[CAT],SMS, D_D[EP],499,D_D[LOC],$A82)/$E82,0)) ->  | J82: =IF(ISNA($A82),"",IFERROR(SUMIFS(D_D[DEC],D_D[MT],5,D_D[CAT],SMS, D_D[EP],499,D_D[LOC],$A82)/$E82,0)) ->  | K82: =IF(ISNA($A82),"",IFERROR(SUMIFS(D_D[AWD],D_D[MT],5,D_D[CAT],SMS, D_D[EP],499,D_D[LOC],$A82)/$E82,0)) ->  | L82: =IF(ISNA($A82),"",IFERROR(SUMIFS(D_D[AUT],D_D[MT],5,D_D[CAT],SMS, D_D[EP],499,D_D[LOC],$A82)/$E82,0)) -> 
B83: 70 | E83: =IF(ISNA($A83),"",IFERROR(SUMIFS(D_D[INV],D_D[MT],5,D_D[CAT],SMS, D_D[EP],499,D_D[LOC],$A83),0)) ->  | F83: =IF(ISNA($A83),"",IFERROR(SUMIFS(D_D[BL],D_D[MT],5,D_D[CAT],SMS, D_D[EP],499,D_D[LOC],$A83),0)) ->  | H83: =IF(ISNA($A83),"",IFERROR(SUMIFS(D_D[DEV],D_D[MT],5,D_D[CAT],SMS, D_D[EP],499,D_D[LOC],$A83)/$E83,0)) ->  | I83: =IF(ISNA($A83),"",IFERROR(SUMIFS(D_D[EVD],D_D[MT],5,D_D[CAT],SMS, D_D[EP],499,D_D[LOC],$A83)/$E83,0)) ->  | J83: =IF(ISNA($A83),"",IFERROR(SUMIFS(D_D[DEC],D_D[MT],5,D_D[CAT],SMS, D_D[EP],499,D_D[LOC],$A83)/$E83,0)) ->  | K83: =IF(ISNA($A83),"",IFERROR(SUMIFS(D_D[AWD],D_D[MT],5,D_D[CAT],SMS, D_D[EP],499,D_D[LOC],$A83)/$E83,0)) ->  | L83: =IF(ISNA($A83),"",IFERROR(SUMIFS(D_D[AUT],D_D[MT],5,D_D[CAT],SMS, D_D[EP],499,D_D[LOC],$A83)/$E83,0)) -> 
B84: 71 | E84: =IF(ISNA($A84),"",IFERROR(SUMIFS(D_D[INV],D_D[MT],5,D_D[CAT],SMS, D_D[EP],499,D_D[LOC],$A84),0)) ->  | F84: =IF(ISNA($A84),"",IFERROR(SUMIFS(D_D[BL],D_D[MT],5,D_D[CAT],SMS, D_D[EP],499,D_D[LOC],$A84),0)) ->  | H84: =IF(ISNA($A84),"",IFERROR(SUMIFS(D_D[DEV],D_D[MT],5,D_D[CAT],SMS, D_D[EP],499,D_D[LOC],$A84)/$E84,0)) ->  | I84: =IF(ISNA($A84),"",IFERROR(SUMIFS(D_D[EVD],D_D[MT],5,D_D[CAT],SMS, D_D[EP],499,D_D[LOC],$A84)/$E84,0)) ->  | J84: =IF(ISNA($A84),"",IFERROR(SUMIFS(D_D[DEC],D_D[MT],5,D_D[CAT],SMS, D_D[EP],499,D_D[LOC],$A84)/$E84,0)) ->  | K84: =IF(ISNA($A84),"",IFERROR(SUMIFS(D_D[AWD],D_D[MT],5,D_D[CAT],SMS, D_D[EP],499,D_D[LOC],$A84)/$E84,0)) ->  | L84: =IF(ISNA($A84),"",IFERROR(SUMIFS(D_D[AUT],D_D[MT],5,D_D[CAT],SMS, D_D[EP],499,D_D[LOC],$A84)/$E84,0)) -> 
B85: 72 | E85: =IF(ISNA($A85),"",IFERROR(SUMIFS(D_D[INV],D_D[MT],5,D_D[CAT],SMS, D_D[EP],499,D_D[LOC],$A85),0)) ->  | F85: =IF(ISNA($A85),"",IFERROR(SUMIFS(D_D[BL],D_D[MT],5,D_D[CAT],SMS, D_D[EP],499,D_D[LOC],$A85),0)) ->  | H85: =IF(ISNA($A85),"",IFERROR(SUMIFS(D_D[DEV],D_D[MT],5,D_D[CAT],SMS, D_D[EP],499,D_D[LOC],$A85)/$E85,0)) ->  | I85: =IF(ISNA($A85),"",IFERROR(SUMIFS(D_D[EVD],D_D[MT],5,D_D[CAT],SMS, D_D[EP],499,D_D[LOC],$A85)/$E85,0)) ->  | J85: =IF(ISNA($A85),"",IFERROR(SUMIFS(D_D[DEC],D_D[MT],5,D_D[CAT],SMS, D_D[EP],499,D_D[LOC],$A85)/$E85,0)) ->  | K85: =IF(ISNA($A85),"",IFERROR(SUMIFS(D_D[AWD],D_D[MT],5,D_D[CAT],SMS, D_D[EP],499,D_D[LOC],$A85)/$E85,0)) ->  | L85: =IF(ISNA($A85),"",IFERROR(SUMIFS(D_D[AUT],D_D[MT],5,D_D[CAT],SMS, D_D[EP],499,D_D[LOC],$A85)/$E85,0)) -> 
B86: 73 | E86: =IF(ISNA($A86),"",IFERROR(SUMIFS(D_D[INV],D_D[MT],5,D_D[CAT],SMS, D_D[EP],499,D_D[LOC],$A86),0)) ->  | F86: =IF(ISNA($A86),"",IFERROR(SUMIFS(D_D[BL],D_D[MT],5,D_D[CAT],SMS, D_D[EP],499,D_D[LOC],$A86),0)) ->  | H86: =IF(ISNA($A86),"",IFERROR(SUMIFS(D_D[DEV],D_D[MT],5,D_D[CAT],SMS, D_D[EP],499,D_D[LOC],$A86)/$E86,0)) ->  | I86: =IF(ISNA($A86),"",IFERROR(SUMIFS(D_D[EVD],D_D[MT],5,D_D[CAT],SMS, D_D[EP],499,D_D[LOC],$A86)/$E86,0)) ->  | J86: =IF(ISNA($A86),"",IFERROR(SUMIFS(D_D[DEC],D_D[MT],5,D_D[CAT],SMS, D_D[EP],499,D_D[LOC],$A86)/$E86,0)) ->  | K86: =IF(ISNA($A86),"",IFERROR(SUMIFS(D_D[AWD],D_D[MT],5,D_D[CAT],SMS, D_D[EP],499,D_D[LOC],$A86)/$E86,0)) ->  | L86: =IF(ISNA($A86),"",IFERROR(SUMIFS(D_D[AUT],D_D[MT],5,D_D[CAT],SMS, D_D[EP],499,D_D[LOC],$A86)/$E86,0)) -> 
B87: 74 | E87: =IF(ISNA($A87),"",IFERROR(SUMIFS(D_D[INV],D_D[MT],5,D_D[CAT],SMS, D_D[EP],499,D_D[LOC],$A87),0)) ->  | F87: =IF(ISNA($A87),"",IFERROR(SUMIFS(D_D[BL],D_D[MT],5,D_D[CAT],SMS, D_D[EP],499,D_D[LOC],$A87),0)) ->  | H87: =IF(ISNA($A87),"",IFERROR(SUMIFS(D_D[DEV],D_D[MT],5,D_D[CAT],SMS, D_D[EP],499,D_D[LOC],$A87)/$E87,0)) ->  | I87: =IF(ISNA($A87),"",IFERROR(SUMIFS(D_D[EVD],D_D[MT],5,D_D[CAT],SMS, D_D[EP],499,D_D[LOC],$A87)/$E87,0)) ->  | J87: =IF(ISNA($A87),"",IFERROR(SUMIFS(D_D[DEC],D_D[MT],5,D_D[CAT],SMS, D_D[EP],499,D_D[LOC],$A87)/$E87,0)) ->  | K87: =IF(ISNA($A87),"",IFERROR(SUMIFS(D_D[AWD],D_D[MT],5,D_D[CAT],SMS, D_D[EP],499,D_D[LOC],$A87)/$E87,0)) ->  | L87: =IF(ISNA($A87),"",IFERROR(SUMIFS(D_D[AUT],D_D[MT],5,D_D[CAT],SMS, D_D[EP],499,D_D[LOC],$A87)/$E87,0)) -> 
B88: 75 | E88: =IF(ISNA($A88),"",IFERROR(SUMIFS(D_D[INV],D_D[MT],5,D_D[CAT],SMS, D_D[EP],499,D_D[LOC],$A88),0)) ->  | F88: =IF(ISNA($A88),"",IFERROR(SUMIFS(D_D[BL],D_D[MT],5,D_D[CAT],SMS, D_D[EP],499,D_D[LOC],$A88),0)) ->  | H88: =IF(ISNA($A88),"",IFERROR(SUMIFS(D_D[DEV],D_D[MT],5,D_D[CAT],SMS, D_D[EP],499,D_D[LOC],$A88)/$E88,0)) ->  | I88: =IF(ISNA($A88),"",IFERROR(SUMIFS(D_D[EVD],D_D[MT],5,D_D[CAT],SMS, D_D[EP],499,D_D[LOC],$A88)/$E88,0)) ->  | J88: =IF(ISNA($A88),"",IFERROR(SUMIFS(D_D[DEC],D_D[MT],5,D_D[CAT],SMS, D_D[EP],499,D_D[LOC],$A88)/$E88,0)) ->  | K88: =IF(ISNA($A88),"",IFERROR(SUMIFS(D_D[AWD],D_D[MT],5,D_D[CAT],SMS, D_D[EP],499,D_D[LOC],$A88)/$E88,0)) ->  | L88: =IF(ISNA($A88),"",IFERROR(SUMIFS(D_D[AUT],D_D[MT],5,D_D[CAT],SMS, D_D[EP],499,D_D[LOC],$A88)/$E88,0)) -> 
B89: 77 | D89: =IFERROR(INDEX(INDIRECT(DS_NWQD),B89),"") ->  | E89: =IF(ISNA($A89),"",IFERROR(SUMIFS(D_D[INV],D_D[MT],5,D_D[CAT],SMS, D_D[EP],499,D_D[LOC],$A89),0)) ->  | F89: =IF(ISNA($A89),"",IFERROR(SUMIFS(D_D[BL],D_D[MT],5,D_D[CAT],SMS, D_D[EP],499,D_D[LOC],$A89),0)) ->  | G89: =IF(ISNA($A89),"",IFERROR(F89/E89,0)) ->  | H89: =IF(ISNA($A89),"",IFERROR(SUMIFS(D_D[DEV],D_D[MT],5,D_D[CAT],SMS, D_D[EP],499,D_D[LOC],$A89)/$E89,0)) ->  | I89: =IF(ISNA($A89),"",IFERROR(SUMIFS(D_D[EVD],D_D[MT],5,D_D[CAT],SMS, D_D[EP],499,D_D[LOC],$A89)/$E89,0)) ->  | J89: =IF(ISNA($A89),"",IFERROR(SUMIFS(D_D[DEC],D_D[MT],5,D_D[CAT],SMS, D_D[EP],499,D_D[LOC],$A89)/$E89,0)) ->  | K89: =IF(ISNA($A89),"",IFERROR(SUMIFS(D_D[AWD],D_D[MT],5,D_D[CAT],SMS, D_D[EP],499,D_D[LOC],$A89)/$E89,0)) ->  | L89: =IF(ISNA($A89),"",IFERROR(SUMIFS(D_D[AUT],D_D[MT],5,D_D[CAT],SMS, D_D[EP],499,D_D[LOC],$A89)/$E89,0)) -> 

Sheet Traditional Aggregate (TA)
B2: ="Compensation and Pension National Inventory - Historical Reporting Bundles* - Data through " -> Compensation and Pension National Inventory - Historical Reporting Bundles* - Data through | H2: =D_DT[] -> 2021-12-25
B3: *The data on this page represents historical, alternative reporting on VBA claims processing. VBA actively measures and monitors these workloads, but the bundles are not specifically tied to VBA's strategic target 125 Days and 98% Accuracy. The Rating Bundle measures are the only claims processing bundle that is directly related to the strategic 2015 goals. End products which are included in the Rating Bundle group are highlighted in green.
B4: Compensation Entitlement | G4: Pension Entitlement | L4: Legacy Appeals
B5: Measurement | C5: Claims Pending | D5: Pending over 125 days | E5: Percent Pending over 125 days | G5: Measurement | H5: Claims Pending | I5: Pending over 125 days | J5: Percent Pending over 125 days | L5: Measurement | M5: Appeals Pending | N5: Average Days Pending
B6: Original Entitlement - Veterans1 | C6: =SUM(C7:C9) -> 139157 | D6: =SUM(D7:D9) -> 58527 | E6: =IFERROR(D6/C6,0) -> 0.4205825075 | G6: Original Entitlement | H6: =SUM(H7:H9) -> 10528 | I6: =SUM(I7:I9) -> 955 | J6: =IFERROR(I6/H6,0) -> 0.09071048632 | K6: 1 | L6: Notice of Disagreements | M6: =IFERROR(SUMIFS(D_D[INV],D_D[MT],7,D_D[CAT],1,D_D[EP],$K6),0) -> 1256 | N6: =IFERROR(SUMIFS(D_D[ADP],D_D[MT],7,D_D[CAT],1,D_D[EP],$K6),0) -> 1420.45
A7: 095 | B7: EP 095 - Initial entitlement decisions for Voc Rehab | C7: =IFERROR(SUMIFS(D_D[INV],D_D[MT],3,D_D[CAT],TA_21,D_D[EP],$A7),0) -> 5 | D7: =IFERROR(SUMIFS(D_D[BL],D_D[MT],3,D_D[CAT],TA_21,D_D[EP],$A7),0) -> 2 | E7: =IFERROR(D7/C7,0) -> 0.4 | F7: 180 | G7: EP 180 - Initial entitlement - Veteran | H7: =IFERROR(SUMIFS(D_D[INV],D_D[MT],3,D_D[CAT],TA_31,D_D[EP],$F7),0) -> 4404 | I7: =IFERROR(SUMIFS(D_D[BL],D_D[MT],3,D_D[CAT],TA_31,D_D[EP],$F7),0) -> 401 | J7: 0.09105358765 | K7: 9 | L7: Statement of the Case* | M7: =IFERROR(SUMIFS(D_D[INV],D_D[MT],7,D_D[CAT],1,D_D[EP],$K7),0) -> 355 | N7: =IFERROR(SUMIFS(D_D[ADP],D_D[MT],7,D_D[CAT],1,D_D[EP],$K7),0) -> 1611.85
A8: 010 | B8: EP 010 - Initial entitlement for service-connected disability (=>8) | C8: =IFERROR(SUMIFS(D_D[INV],D_D[MT],3,D_D[CAT],TA_21,D_D[EP],$A8),0) -> 47782 | D8: =IFERROR(SUMIFS(D_D[BL],D_D[MT],3,D_D[CAT],TA_21,D_D[EP],$A8),0) -> 20977 | E8: 0.4390146917 | F8: 120 | G8: EP 120 - Increased entitlement and/or reconsideration | H8: =IFERROR(SUMIFS(D_D[INV],D_D[MT],3,D_D[CAT],TA_31,D_D[EP],$F8),0) -> 2161 | I8: =IFERROR(SUMIFS(D_D[BL],D_D[MT],3,D_D[CAT],TA_31,D_D[EP],$F8),0) -> 198 | J8: 0.09162424803 | K8: 2 | L8: Form 9s | M8: =IFERROR(SUMIFS(D_D[INV],D_D[MT],7,D_D[CAT],1,D_D[EP],$K8),0) -> 525 | N8: =IFERROR(SUMIFS(D_D[ADP],D_D[MT],7,D_D[CAT],1,D_D[EP],$K8),0) -> 874.58
A9: 110 | B9: EP 110 - Initial entitlement for service-connected disability (<=7) | C9: =IFERROR(SUMIFS(D_D[INV],D_D[MT],3,D_D[CAT],TA_21,D_D[EP],$A9),0) -> 91370 | D9: =IFERROR(SUMIFS(D_D[BL],D_D[MT],3,D_D[CAT],TA_21,D_D[EP],$A9),0) -> 37548 | E9: 0.4109445113 | F9: 190 | G9: EP 190 - Initial entitlement - Survivor | H9: =IFERROR(SUMIFS(D_D[INV],D_D[MT],3,D_D[CAT],TA_31,D_D[EP],$F9),0) -> 3963 | I9: =IFERROR(SUMIFS(D_D[BL],D_D[MT],3,D_D[CAT],TA_31,D_D[EP],$F9),0) -> 356 | J9: 0.08983093616 | K9: 3 | L9: Remands | M9: =IFERROR(SUMIFS(D_D[INV],D_D[MT],7,D_D[CAT],1,D_D[EP],$K9),0) -> 27631 | N9: =IFERROR(SUMIFS(D_D[ADP],D_D[MT],7,D_D[CAT],1,D_D[EP],$K9),0) -> 292.12
B10: Original Entitlement - Survivors2 | C10: =SUM(C11:C12) -> 11673 | D10: =SUM(D11:D12) -> 3212 | E10: 0.2751649105 | G10: Pension Award Adjustments | H10: =SUM(H11:H16) -> 1997 | I10: =SUM(I11:I16) -> 168 | J10: 0.08412618928 | L10: Total Appeals Pending Under VBA control | M10: =M6+M7+M8+M9 -> 29767
A11: 140 | B11: EP 140 - Initial claims from surviving spouses, children or parents | C11: =IFERROR(SUMIFS(D_D[INV],D_D[MT],3,D_D[CAT],TA_21,D_D[EP],$A11),0) -> 11611 | D11: =IFERROR(SUMIFS(D_D[BL],D_D[MT],3,D_D[CAT],TA_21,D_D[EP],$A11),0) -> 3193 | E11: 0.2749978469 | F11: 135 | G11: EP 135 - Hospitalization adjustment (non-rating) | H11: =IFERROR(SUMIFS(D_D[INV],D_D[MT],3,D_D[CAT],TA_32,D_D[EP],$F11),0) -> 45 | I11: =IFERROR(SUMIFS(D_D[BL],D_D[MT],3,D_D[CAT],TA_32,D_D[EP],$F11),0) -> 2 | J11: =IFERROR(I11/H11,0) -> 0.04444444444 | L11: *the veteran has 60 days to respond to an SOC to continue onto the Form 9 stage
A12: 410 | B12: EP 410 - Initial claims from Veterans' children with Spina bifida and/or birth defects | C12: =IFERROR(SUMIFS(D_D[INV],D_D[MT],3,D_D[CAT],TA_21,D_D[EP],$A12),0) -> 62 | D12: =IFERROR(SUMIFS(D_D[BL],D_D[MT],3,D_D[CAT],TA_21,D_D[EP],$A12),0) -> 19 | E12: 0.3064516129 | F12: 137 | G12: EP 137 - Dependency | H12: =IFERROR(SUMIFS(D_D[INV],D_D[MT],3,D_D[CAT],TA_32,D_D[EP],$F12),0) -> 7 | I12: =IFERROR(SUMIFS(D_D[BL],D_D[MT],3,D_D[CAT],TA_32,D_D[EP],$F12),0) -> 1 | J12: 0.1428571429 | L12: RAMP (Rapid Appeals Modernization Program)
B13: Supplemental Entitlement | C13: =SUM(C14:C17) -> 334992 | D13: =SUM(D14:D17) -> 97500 | E13: 0.2910517266 | F13: 150G | G13: EP 150 - Income adjustments | H13: =IFERROR(SUMIFS(D_D[INV],D_D[MT],3,D_D[CAT],TA_32,D_D[EP],$F13),0) -> 1940 | I13: =IFERROR(SUMIFS(D_D[BL],D_D[MT],3,D_D[CAT],TA_32,D_D[EP],$F13),0) -> 160 | J13: 0.0824742268 | K13: 7 | L13: EP 682 - Higher Level Review | M13: =IFERROR(SUMIFS(D_D[INV],D_D[MT],7,D_D[CAT],1,D_D[EP],$K13),0) -> 0 | N13: =IFERROR(SUMIFS(D_D[ADP],D_D[MT],7,D_D[CAT],1,D_D[EP],$K13),0) -> 0
A14: 040 | B14: EP 040 - Supplemental Claims (AMA) | C14: =IFERROR(SUMIFS(D_D[INV],D_D[MT],3,D_D[CAT],TA_21,D_D[EP],$A14),0) -> 86855 | D14: =IFERROR(SUMIFS(D_D[BL],D_D[MT],3,D_D[CAT],TA_21,D_D[EP],$A14),0) -> 27409 | E14: 0.3155719302 | F14: 155 | G14: EP 155 - Annual eligibility verification reporting (EVRs) | H14: =IFERROR(SUMIFS(D_D[INV],D_D[MT],3,D_D[CAT],TA_32,D_D[EP],$F14),0) -> 0 | I14: =IFERROR(SUMIFS(D_D[BL],D_D[MT],3,D_D[CAT],TA_32,D_D[EP],$F14),0) -> 0 | J14: 0 | K14: 8 | L14: EP 683 - Supplemental Evidence | M14: =IFERROR(SUMIFS(D_D[INV],D_D[MT],7,D_D[CAT],1,D_D[EP],$K14),0) -> 16 | N14: =IFERROR(SUMIFS(D_D[ADP],D_D[MT],7,D_D[CAT],1,D_D[EP],$K14),0) -> 1000.25
A15: 020 | B15: EP 020 - Increased evaluation and/or additional claimed conditions | C15: =IFERROR(SUMIFS(D_D[INV],D_D[MT],3,D_D[CAT],TA_21,D_D[EP],$A15),0) -> 246736 | D15: =IFERROR(SUMIFS(D_D[BL],D_D[MT],3,D_D[CAT],TA_21,D_D[EP],$A15),0) -> 70033 | E15: 0.2838377861 | F15: 297 | G15: EP 297 - Misc determinations | H15: =IFERROR(SUMIFS(D_D[INV],D_D[MT],3,D_D[CAT],TA_32,D_D[EP],$F15),0) -> 1 | I15: =IFERROR(SUMIFS(D_D[BL],D_D[MT],3,D_D[CAT],TA_32,D_D[EP],$F15),0) -> 1 | J15: 1 | K15: 6 | L15: Total RAMP | M15: =IFERROR(SUMIFS(D_D[INV],D_D[MT],7,D_D[CAT],1,D_D[EP],$K15),0) -> 16 | N15: =IFERROR(SUMIFS(D_D[ADP],D_D[MT],7,D_D[CAT],1,D_D[EP],$K15),0) -> 1000.25
A16: 320 | B16: EP 320 -Increased entitlement due to hospitalization or surgery | C16: =IFERROR(SUMIFS(D_D[INV],D_D[MT],3,D_D[CAT],TA_21,D_D[EP],$A16),0) -> 1390 | D16: =IFERROR(SUMIFS(D_D[BL],D_D[MT],3,D_D[CAT],TA_21,D_D[EP],$A16),0) -> 52 | E16: 0.03741007194 | F16: 607 | G16: EP 607 - Due process | H16: =IFERROR(SUMIFS(D_D[INV],D_D[MT],3,D_D[CAT],TA_32,D_D[EP],$F16),0) -> 4 | I16: =IFERROR(SUMIFS(D_D[BL],D_D[MT],3,D_D[CAT],TA_32,D_D[EP],$F16),0) -> 4 | J16: 1
A17: 420 | B17: EP 420 - Spina bifida and/or birth defects reconsideration | C17: =IFERROR(SUMIFS(D_D[INV],D_D[MT],3,D_D[CAT],TA_21,D_D[EP],$A17),0) -> 11 | D17: =IFERROR(SUMIFS(D_D[BL],D_D[MT],3,D_D[CAT],TA_21,D_D[EP],$A17),0) -> 6 | E17: 0.5454545455 | G17: Program Reviews | H17: =SUM(H18:H20) -> 3202 | I17: =SUM(I18:I20) -> 3 | J17: =IFERROR(I17/H17,0) -> 0.0009369144285 | L17: DROC Decision Review Workload (AMA)
A18: 12 | B18: Award Adjustments | C18: =SUM(C19:C25) -> 166199 | D18: =SUM(D19:D25) -> 25435 | E18: 0.1530394286 | F18: 154 | G18: EP 154 - Income Verification Match | H18: =IFERROR(SUMIFS(D_D[INV],D_D[MT],3,D_D[CAT],TA_33,D_D[EP],$F18),0) -> 0 | I18: =IFERROR(SUMIFS(D_D[BL],D_D[MT],3,D_D[CAT],TA_33,D_D[EP],$F18),0) -> 0 | J18: 0 | M18: Claims Pending | N18: Average Days Pending
A19: 130G | B19: EP 130 - Dependency | C19: =IFERROR(SUMIFS(D_D[INV],D_D[MT],3,D_D[CAT],TA_22,D_D[EP],$A19),0) -> 20275 | D19: =IFERROR(SUMIFS(D_D[BL],D_D[MT],3,D_D[CAT],TA_22,D_D[EP],$A19),0) -> 2395 | E19: =IFERROR(D19/C19,0) -> 0.1181257707 | F19: 696 | G19: EP 696 - Cost of Living Adjustments | H19: =IFERROR(SUMIFS(D_D[INV],D_D[MT],3,D_D[CAT],TA_33,D_D[EP],$F19),0) -> 3202 | I19: =IFERROR(SUMIFS(D_D[BL],D_D[MT],3,D_D[CAT],TA_33,D_D[EP],$F19),0) -> 3 | J19: 0.0009369144285 | K19: 1 | L19: EP 030 - Higher-Level Reviews (HLR) | M19: =IFERROR(SUMIFS(D_D[INV],D_D[MT],12,D_D[CAT],9000,D_D[EP],$K19),0) -> 7305 | N19: =IFERROR(SUMIFS(D_D[ADP],D_D[MT],12,D_D[CAT],9000,D_D[EP],$K19),0) -> 23.13963039
A20: 133 | B20: EP 133 - Survivor restored entitlement | C20: =IFERROR(SUMIFS(D_D[INV],D_D[MT],3,D_D[CAT],TA_22,D_D[EP],$A20),0) -> 14 | D20: =IFERROR(SUMIFS(D_D[BL],D_D[MT],3,D_D[CAT],TA_22,D_D[EP],$A20),0) -> 3 | E20: 0.2142857143 | F20: 697 | G20: EP 697 - Non-entitlement reviews | H20: =IFERROR(SUMIFS(D_D[INV],D_D[MT],3,D_D[CAT],TA_33,D_D[EP],$F20),0) -> 0 | I20: =IFERROR(SUMIFS(D_D[BL],D_D[MT],3,D_D[CAT],TA_33,D_D[EP],$F20),0) -> 0 | J20: 0 | K20: 1.1 | L20: HLR - Compensation | M20: =IFERROR(SUMIFS(D_D[INV],D_D[MT],12,D_D[CAT],9000,D_D[EP],$K20),0) -> 6732 | N20: =IFERROR(SUMIFS(D_D[ADP],D_D[MT],12,D_D[CAT],9000,D_D[EP],$K20),0) -> 17.74168152
A21: 135 | B21: EP 135 - Hospitalization adjustment (non-rating) | C21: =IFERROR(SUMIFS(D_D[INV],D_D[MT],3,D_D[CAT],TA_22,D_D[EP],$A21),0) -> 88 | D21: =IFERROR(SUMIFS(D_D[BL],D_D[MT],3,D_D[CAT],TA_22,D_D[EP],$A21),0) -> 5 | E21: 0.05681818182 | G21: Pension Other | H21: =SUM(H22:H25) -> 98 | I21: =SUM(I22:I25) -> 15 | J21: =IFERROR(I21/H21,0) -> 0.1530612245 | K21: 1.2 | L21: HLR - Pension | M21: =IFERROR(SUMIFS(D_D[INV],D_D[MT],12,D_D[CAT],9000,D_D[EP],$K21),0) -> 573 | N21: =IFERROR(SUMIFS(D_D[ADP],D_D[MT],12,D_D[CAT],9000,D_D[EP],$K21),0) -> 86.55846422
A22: 290G | B22: EP 290 - Misc determinations | C22: =IFERROR(SUMIFS(D_D[INV],D_D[MT],3,D_D[CAT],TA_22,D_D[EP],$A22),0) -> 34769 | D22: =IFERROR(SUMIFS(D_D[BL],D_D[MT],3,D_D[CAT],TA_22,D_D[EP],$A22),0) -> 5522 | E22: 0.1588196382 | F22: 407 | G22: EP 407 - Correspondence | H22: =IFERROR(SUMIFS(D_D[INV],D_D[MT],3,D_D[CAT],TA_34,D_D[EP],$F22),0) -> 97 | I22: =IFERROR(SUMIFS(D_D[BL],D_D[MT],3,D_D[CAT],TA_34,D_D[EP],$F22),0) -> 14 | J22: 0.1443298969 | K22: 2 | L22: EP 040 - Higher-Level Review Returns (HLRR) | M22: =IFERROR(SUMIFS(D_D[INV],D_D[MT],12,D_D[CAT],9000,D_D[EP],$K22),0) -> 16402 | N22: =IFERROR(SUMIFS(D_D[ADP],D_D[MT],12,D_D[CAT],9000,D_D[EP],$K22),0) -> 105.1049262
A23: 450 | B23: EP 450 - Spina bifida and/or birth defects adjustments | C23: =IFERROR(SUMIFS(D_D[INV],D_D[MT],3,D_D[CAT],TA_22,D_D[EP],$A23),0) -> 7 | D23: =IFERROR(SUMIFS(D_D[BL],D_D[MT],3,D_D[CAT],TA_22,D_D[EP],$A23),0) -> 7 | E23: 1 | F23: 507 | G23: EP 507 - Congressional correspondence | H23: =IFERROR(SUMIFS(D_D[INV],D_D[MT],3,D_D[CAT],TA_34,D_D[EP],$F23),0) -> 0 | I23: =IFERROR(SUMIFS(D_D[BL],D_D[MT],3,D_D[CAT],TA_34,D_D[EP],$F23),0) -> 0 | J23: 0 | K23: 2.1 | L23: HLRR - Compensation | M23: =IFERROR(SUMIFS(D_D[INV],D_D[MT],12,D_D[CAT],9000,D_D[EP],$K23),0) -> 16149 | N23: =IFERROR(SUMIFS(D_D[ADP],D_D[MT],12,D_D[CAT],9000,D_D[EP],$K23),0) -> 104.8877949
A24: 310G | B24: EP 310 -Future examination for disabilities | C24: =IFERROR(SUMIFS(D_D[INV],D_D[MT],3,D_D[CAT],TA_22,D_D[EP],$A24),0) -> 15526 | D24: =IFERROR(SUMIFS(D_D[BL],D_D[MT],3,D_D[CAT],TA_22,D_D[EP],$A24),0) -> 4484 | E24: 0.288805874 | F24: 937 | G24: EP 937 - Internal quality reviews | H24: =IFERROR(SUMIFS(D_D[INV],D_D[MT],3,D_D[CAT],TA_34,D_D[EP],$F24),0) -> 1 | I24: =IFERROR(SUMIFS(D_D[BL],D_D[MT],3,D_D[CAT],TA_34,D_D[EP],$F24),0) -> 1 | J24: 1 | K24: 2.2 | L24: HLRR - Pension | M24: =IFERROR(SUMIFS(D_D[INV],D_D[MT],12,D_D[CAT],9000,D_D[EP],$K24),0) -> 253 | N24: =IFERROR(SUMIFS(D_D[ADP],D_D[MT],12,D_D[CAT],9000,D_D[EP],$K24),0) -> 118.9644269
A25: 600G | B25: EP 600 - Due process | C25: =IFERROR(SUMIFS(D_D[INV],D_D[MT],3,D_D[CAT],TA_22,D_D[EP],$A25),0) -> 95520 | D25: =IFERROR(SUMIFS(D_D[BL],D_D[MT],3,D_D[CAT],TA_22,D_D[EP],$A25),0) -> 13019 | E25: 0.1362960637 | F25: 967 | G25: EP 967 - Correction of errors | H25: =IFERROR(SUMIFS(D_D[INV],D_D[MT],3,D_D[CAT],TA_34,D_D[EP],$F25),0) -> 0 | I25: =IFERROR(SUMIFS(D_D[BL],D_D[MT],3,D_D[CAT],TA_34,D_D[EP],$F25),0) -> 0 | J25: 0 | K25: 3 | L25: EP 040 - Board AMA Returns (Remands) | M25: =IFERROR(SUMIFS(D_D[INV],D_D[MT],12,D_D[CAT],9000,D_D[EP],$K25),0) -> 3272 | N25: =IFERROR(SUMIFS(D_D[ADP],D_D[MT],12,D_D[CAT],9000,D_D[EP],$K25),0) -> 158.4889976
B26: Program Reviews | C26: =SUM(C27:C33) -> 762 | D26: =SUM(D27:D33) -> 233 | E26: =IFERROR(D26/C26,0) -> 0.3057742782 | G26: Pension Burial/Accrued | H26: =SUM(H27:H29) -> 2746 | I26: =SUM(I27:I29) -> 1664 | J26: =IFERROR(I26/H26,0) -> 0.6059723234 | K26: 3.1 | L26: Remands - Compensation | M26: =IFERROR(SUMIFS(D_D[INV],D_D[MT],12,D_D[CAT],9000,D_D[EP],$K26),0) -> 3192 | N26: =IFERROR(SUMIFS(D_D[ADP],D_D[MT],12,D_D[CAT],9000,D_D[EP],$K26),0) -> 159.3499373
A27: 314 | B27: EP 314 - Income verification for unemployability | C27: =IFERROR(SUMIFS(D_D[INV],D_D[MT],3,D_D[CAT],TA_23,D_D[EP],$A27),0) -> 0 | D27: =IFERROR(SUMIFS(D_D[BL],D_D[MT],3,D_D[CAT],TA_23,D_D[EP],$A27),0) -> 0 | E27: 0 | F27: 167 | G27: EP 167 - Burials | H27: =IFERROR(SUMIFS(D_D[INV],D_D[MT],3,D_D[CAT],TA_35,D_D[EP],$F27),0) -> 1 | I27: =IFERROR(SUMIFS(D_D[BL],D_D[MT],3,D_D[CAT],TA_35,D_D[EP],$F27),0) -> 0 | J27: 0 | K27: 3.2 | L27: Remands - Pension | M27: =IFERROR(SUMIFS(D_D[INV],D_D[MT],12,D_D[CAT],9000,D_D[EP],$K27),0) -> 80 | N27: =IFERROR(SUMIFS(D_D[ADP],D_D[MT],12,D_D[CAT],9000,D_D[EP],$K27),0) -> 124.1375
A28: 680G | B28: EP 680 - Review of Hemodialysis related cases/conditions | C28: =IFERROR(SUMIFS(D_D[INV],D_D[MT],3,D_D[CAT],TA_23,D_D[EP],$A28),0) -> 21 | D28: =IFERROR(SUMIFS(D_D[BL],D_D[MT],3,D_D[CAT],TA_23,D_D[EP],$A28),0) -> 19 | E28: 0.9047619048 | F28: 165 | G28: EP 165 - Accrued | H28: =IFERROR(SUMIFS(D_D[INV],D_D[MT],3,D_D[CAT],TA_36,D_D[EP],$F28),0) -> 2745 | I28: =IFERROR(SUMIFS(D_D[BL],D_D[MT],3,D_D[CAT],TA_36,D_D[EP],$F28),0) -> 1664 | J28: 0.6061930783 | K28: 4 | L28: EP 030 - Board AMA Full Grants | M28: =IFERROR(SUMIFS(D_D[INV],D_D[MT],12,D_D[CAT],9000,D_D[EP],$K28),0) -> 565 | N28: =IFERROR(SUMIFS(D_D[ADP],D_D[MT],12,D_D[CAT],9000,D_D[EP],$K28),0) -> 70.18938053
A29: 682 | B29: EP 682 - Review of Radiation related cases/conditions | C29: =IFERROR(SUMIFS(D_D[INV],D_D[MT],3,D_D[CAT],TA_23,D_D[EP],$A29),0) -> 1 | D29: =IFERROR(SUMIFS(D_D[BL],D_D[MT],3,D_D[CAT],TA_23,D_D[EP],$A29),0) -> 1 | E29: 1 | K29: 4.1 | L29: Grants - Compensation | M29: =IFERROR(SUMIFS(D_D[INV],D_D[MT],12,D_D[CAT],9000,D_D[EP],$K29),0) -> 529 | N29: =IFERROR(SUMIFS(D_D[ADP],D_D[MT],12,D_D[CAT],9000,D_D[EP],$K29),0) -> 68.59357278
A30: 684 | B30: EP 684 - Review of Misc cases referred to central office | C30: =IFERROR(SUMIFS(D_D[INV],D_D[MT],3,D_D[CAT],TA_23,D_D[EP],$A30),0) -> 2 | D30: =IFERROR(SUMIFS(D_D[BL],D_D[MT],3,D_D[CAT],TA_23,D_D[EP],$A30),0) -> 1 | E30: 0.5 | K30: 4.2 | L30: Grants - Pension | M30: =IFERROR(SUMIFS(D_D[INV],D_D[MT],12,D_D[CAT],9000,D_D[EP],$K30),0) -> 36 | N30: =IFERROR(SUMIFS(D_D[ADP],D_D[MT],12,D_D[CAT],9000,D_D[EP],$K30),0) -> 93.63888889
A31: 685 | B31: EP 685 - Review of effective date related to herbicide exposure | C31: =IFERROR(SUMIFS(D_D[INV],D_D[MT],3,D_D[CAT],TA_23,D_D[EP],$A31),0) -> 259 | D31: =IFERROR(SUMIFS(D_D[BL],D_D[MT],3,D_D[CAT],TA_23,D_D[EP],$A31),0) -> 187 | E31: 0.722007722
A32: 690G | B32: EP 690 - Cost of Living Adjustments (COLAs) and other reviews | C32: =IFERROR(SUMIFS(D_D[INV],D_D[MT],3,D_D[CAT],TA_23,D_D[EP],$A32),0) -> 478 | D32: =IFERROR(SUMIFS(D_D[BL],D_D[MT],3,D_D[CAT],TA_23,D_D[EP],$A32),0) -> 25 | E32: 0.05230125523 | L32: Integrated Disability Evaluation System (IDES)
A33: 690 | B33: EP 690 - Social Security number verification | C33: =IFERROR(SUMIFS(D_D[INV],D_D[MT],3,D_D[CAT],TA_23,D_D[EP],$A33),0) -> 1 | D33: =IFERROR(SUMIFS(D_D[BL],D_D[MT],3,D_D[CAT],TA_23,D_D[EP],$A33),0) -> 0 | E33: 0 | L33: Number of IDES claims pending | N33: =IFERROR(SUMIFS(D_D[INV],D_D[MT],10,D_D[CAT],1,D_D[EP],-1),0) -> 22112
B34: Compensation Other | C34: =SUM(C35:C45) -> 161064 | D34: =SUM(D35:D45) -> 111273 | E34: =IFERROR(D34/C34,0) -> 0.6908620176
A35: 335 | B35: EP 335 - Blue Water Navy (Agent Orange) | C35: =IFERROR(SUMIFS(D_D[INV],D_D[MT],3,D_D[CAT],TA_24,D_D[EP],$A35),0) -> 20038 | D35: =IFERROR(SUMIFS(D_D[BL],D_D[MT],3,D_D[CAT],TA_24,D_D[EP],$A35),0) -> 18241 | E35: =IFERROR(D35/C35,0) -> 0.9103203913
A36: 400G | B36: EP 400 - Correspondence | C36: =IFERROR(SUMIFS(D_D[INV],D_D[MT],3,D_D[CAT],TA_24,D_D[EP],$A36),0) -> 13716 | D36: =IFERROR(SUMIFS(D_D[BL],D_D[MT],3,D_D[CAT],TA_24,D_D[EP],$A36),0) -> 2747 | E36: 0.2002770487
A37: 500G | B37: EP 500 - Congressional correspondence | C37: =IFERROR(SUMIFS(D_D[INV],D_D[MT],3,D_D[CAT],TA_24,D_D[EP],$A37),0) -> 307 | D37: =IFERROR(SUMIFS(D_D[BL],D_D[MT],3,D_D[CAT],TA_24,D_D[EP],$A37),0) -> 31 | E37: 0.1009771987
A38: 510 | B38: EP 510 - Freedom of Information Act (FOIA) requests | C38: =IFERROR(SUMIFS(D_D[INV],D_D[MT],3,D_D[CAT],TA_24,D_D[EP],$A38),0) -> 39112 | D38: =IFERROR(SUMIFS(D_D[BL],D_D[MT],3,D_D[CAT],TA_24,D_D[EP],$A38),0) -> 6967 | E38: 0.1781294743
A39: 930G | B39: EP 930 - Review, including quality assurance | C39: =IFERROR(SUMIFS(D_D[INV],D_D[MT],3,D_D[CAT],TA_24,D_D[EP],$A39),0) -> 10501 | D39: =IFERROR(SUMIFS(D_D[BL],D_D[MT],3,D_D[CAT],TA_24,D_D[EP],$A39),0) -> 8008 | E39: 0.7625940387
A40: 960G | B40: EP 960 - Correction of errors | C40: =IFERROR(SUMIFS(D_D[INV],D_D[MT],3,D_D[CAT],TA_24,D_D[EP],$A40),0) -> 751 | D40: =IFERROR(SUMIFS(D_D[BL],D_D[MT],3,D_D[CAT],TA_24,D_D[EP],$A40),0) -> 201 | E40: 0.2676431425
A41: 681 | B41: EP 681 - Used to control claims under the Nehmer Agent Orange stipulation | C41: =IFERROR(SUMIFS(D_D[INV],D_D[MT],3,D_D[CAT],TA_24,D_D[EP],$A41),0) -> 1005 | D41: =IFERROR(SUMIFS(D_D[BL],D_D[MT],3,D_D[CAT],TA_24,D_D[EP],$A41),0) -> 711 | E41: =IFERROR(D41/C41,0) -> 0.7074626866
A42: 687 | B42: EP 687 - Blue Water Navy Agent Orange Nehmer Reviews | C42: =IFERROR(SUMIFS(D_D[INV],D_D[MT],3,D_D[CAT],TA_24,D_D[EP],$A42),0) -> 11393 | D42: =IFERROR(SUMIFS(D_D[BL],D_D[MT],3,D_D[CAT],TA_24,D_D[EP],$A42),0) -> 11382 | E42: =IFERROR(D42/C42,0) -> 0.9990344949
A43: 688 | B43: EP 688 - NDAA Agent Orange Nehmer Reviews (3 new authorized AO disabilities) | C43: =IFERROR(SUMIFS(D_D[INV],D_D[MT],3,D_D[CAT],TA_24,D_D[EP],$A43),0) -> 64241 | D43: =IFERROR(SUMIFS(D_D[BL],D_D[MT],3,D_D[CAT],TA_24,D_D[EP],$A43),0) -> 62985 | E43: =IFERROR(D43/C43,0) -> 0.9804486232
A44: 405 | B44: EP 405 - Reopened or new Agent Orange claims between 9/01/10 and 10/24/2011 | C44: =IFERROR(SUMIFS(D_D[INV],D_D[MT],3,D_D[CAT],TA_24,D_D[EP],$A44),0) -> 0 | D44: =IFERROR(SUMIFS(D_D[BL],D_D[MT],3,D_D[CAT],TA_24,D_D[EP],$A44),0) -> 0 | E44: =IFERROR(D44/C44,0) -> 0
A45: 409 | B45: EP 409 - Agent Orange claims where an interim decision was provided; No longer used as of 10/24/2011 | C45: =IFERROR(SUMIFS(D_D[INV],D_D[MT],3,D_D[CAT],TA_24,D_D[EP],$A45),0) -> 0 | D45: =IFERROR(SUMIFS(D_D[BL],D_D[MT],3,D_D[CAT],TA_24,D_D[EP],$A45),0) -> 0 | E45: =IFERROR(D45/C45,0) -> 0
B46: Compensation Burial/Accrued | C46: =SUM(C47:C49) -> 20998 | D46: =SUM(D47:D49) -> 16631 | E46: =IFERROR(D46/C46,0) -> 0.7920278122
A47: 160G | B47: EP 160 - Burials | C47: =IFERROR(SUMIFS(D_D[INV],D_D[MT],3,D_D[CAT],TA_25,D_D[EP],$A47),0) -> 6032 | D47: =IFERROR(SUMIFS(D_D[BL],D_D[MT],3,D_D[CAT],TA_25,D_D[EP],$A47),0) -> 2236 | E47: 0.3706896552
A48: 165 | B48: EP 165 - Accrued | C48: =IFERROR(SUMIFS(D_D[INV],D_D[MT],3,D_D[CAT],TA_26,D_D[EP],$A48),0) -> 14966 | D48: =IFERROR(SUMIFS(D_D[BL],D_D[MT],3,D_D[CAT],TA_26,D_D[EP],$A48),0) -> 14395 | E48: 0.9618468529

Sheet Diarys and Future Claims
B1: Compensation and Pension Diary and Future Claims - Historical Reporting Bundles* - Data through | F1: =D_DT[] -> 2021-12-25
B2: The data on this page represents future claims that VA is aware of. A portion of these claims roll into the traditional Rating Bundle group of end-products (EP) once the date of claim matures.
B3: Compensation Entitlement | E3: Pension Entitlement
B4: Measurement | C4: Claims Pending | E4: Measurement | F4: Claims Pending
B5: Original Entitlement - Veterans1 | C5: =SUM(C6:C8) -> 12792 | E5: Original Entitlement | F5: =SUM(F6:F8) -> 0
A6: 095 | B6: EP 095 - Initial entitlement decisions for Voc Rehab | C6: =IFERROR(SUMIFS(D_D[INV],D_D[MT],11,D_D[CAT],TA_21,D_D[EP],$A6),0) -> 0 | D6: 180 | E6: EP 180 - Initial entitlement - Veteran | F6: =IFERROR(SUMIFS(D_D[INV],D_D[MT],11,D_D[CAT],TA_31,D_D[EP],$D6),0) -> 0
A7: 010 | B7: EP 010 - Initial entitlement for service-connected disability (=>8) | C7: =IFERROR(SUMIFS(D_D[INV],D_D[MT],11,D_D[CAT],TA_21,D_D[EP],$A7),0) -> 10859 | D7: 120 | E7: EP 120 - Increased entitlement and/or reconsideration | F7: =IFERROR(SUMIFS(D_D[INV],D_D[MT],11,D_D[CAT],TA_31,D_D[EP],$D7),0) -> 0
A8: 110 | B8: EP 110 - Initial entitlement for service-connected disability (<=7) | C8: =IFERROR(SUMIFS(D_D[INV],D_D[MT],11,D_D[CAT],TA_21,D_D[EP],$A8),0) -> 1933 | D8: 190 | E8: EP 190 - Initial entitlement - Survivor | F8: =IFERROR(SUMIFS(D_D[INV],D_D[MT],11,D_D[CAT],TA_31,D_D[EP],$D8),0) -> 0
B9: Original Entitlement - Survivors2 | C9: =SUM(C10:C11) -> 0 | E9: Pension Award Adjustments | F9: =SUM(F10:F15) -> 0
A10: 140 | B10: EP 140 - Initial claims from surviving spouses, children or parents | C10: =IFERROR(SUMIFS(D_D[INV],D_D[MT],11,D_D[CAT],TA_21,D_D[EP],$A10),0) -> 0 | D10: 135 | E10: EP 135 - Hospitalization adjustment (non-rating) | F10: =IFERROR(SUMIFS(D_D[INV],D_D[MT],11,D_D[CAT],TA_31,D_D[EP],$D10),0) -> 0
A11: 410 | B11: EP 410 - Initial claims from Veterans' children with Spina bifida and/or birth defects | C11: =IFERROR(SUMIFS(D_D[INV],D_D[MT],11,D_D[CAT],TA_21,D_D[EP],$A11),0) -> 0 | D11: 137 | E11: EP 137 - Dependency | F11: =IFERROR(SUMIFS(D_D[INV],D_D[MT],11,D_D[CAT],TA_31,D_D[EP],$D11),0) -> 0
B12: Supplemental Entitlement | C12: =SUM(C13:C16) -> 552 | D12: 150G | E12: EP 150 - Income adjustments | F12: =IFERROR(SUMIFS(D_D[INV],D_D[MT],11,D_D[CAT],TA_31,D_D[EP],$D12),0) -> 0
A13: 040 | B13: EP 040 - Decision Review Request | C13: =IFERROR(SUMIFS(D_D[INV],D_D[MT],11,D_D[CAT],TA_21,D_D[EP],$A13),0) -> 0 | D13: 155 | E13: EP 155 - Annual eligibility verification reporting (EVRs) | F13: =IFERROR(SUMIFS(D_D[INV],D_D[MT],11,D_D[CAT],TA_31,D_D[EP],$D13),0) -> 0
A14: 020 | B14: EP 020 - Increased evaluation and/or additional claimed conditions | C14: =IFERROR(SUMIFS(D_D[INV],D_D[MT],11,D_D[CAT],TA_21,D_D[EP],$A14),0) -> 552 | D14: 297 | E14: EP 297 - Misc determinations | F14: =IFERROR(SUMIFS(D_D[INV],D_D[MT],11,D_D[CAT],TA_31,D_D[EP],$D14),0) -> 0
A15: 320 | B15: EP 320 -Increased entitlement due to hospitalization or surgery | C15: =IFERROR(SUMIFS(D_D[INV],D_D[MT],11,D_D[CAT],TA_21,D_D[EP],$A15),0) -> 0 | D15: 607 | E15: EP 607 - Due process | F15: =IFERROR(SUMIFS(D_D[INV],D_D[MT],11,D_D[CAT],TA_31,D_D[EP],$D15),0) -> 0
A16: 420 | B16: EP 420 - Spina bifida and/or birth defects reconsideration | C16: =IFERROR(SUMIFS(D_D[INV],D_D[MT],11,D_D[CAT],TA_21,D_D[EP],$A16),0) -> 0 | E16: Program Reviews | F16: =SUM(F17:F19) -> 0
A17: 12 | B17: Award Adjustments | C17: =SUM(C18:C24) -> 27 | D17: 154 | E17: EP 154 - Income Verification Match | F17: =IFERROR(SUMIFS(D_D[INV],D_D[MT],11,D_D[CAT],TA_31,D_D[EP],$D17),0) -> 0
A18: 130G | B18: EP 130 - Dependency | C18: =IFERROR(SUMIFS(D_D[INV],D_D[MT],11,D_D[CAT],TA_22,D_D[EP],$A18),0) -> 24 | D18: 696 | E18: EP 696 - Cost of Living Adjustments | F18: =IFERROR(SUMIFS(D_D[INV],D_D[MT],11,D_D[CAT],TA_31,D_D[EP],$D18),0) -> 0
A19: 133 | B19: EP 133 - Survivor restored entitlement | C19: =IFERROR(SUMIFS(D_D[INV],D_D[MT],11,D_D[CAT],TA_22,D_D[EP],$A19),0) -> 0 | D19: 697 | E19: EP 697 - Non-entitlement reviews | F19: =IFERROR(SUMIFS(D_D[INV],D_D[MT],11,D_D[CAT],TA_31,D_D[EP],$D19),0) -> 0
A20: 135 | B20: EP 135 - Hospitalization adjustment (non-rating) | C20: =IFERROR(SUMIFS(D_D[INV],D_D[MT],11,D_D[CAT],TA_22,D_D[EP],$A20),0) -> 0 | E20: Pension Other | F20: =SUM(F21:F24) -> 0
A21: 290G | B21: EP 290 - Misc determinations | C21: =IFERROR(SUMIFS(D_D[INV],D_D[MT],11,D_D[CAT],TA_22,D_D[EP],$A21),0) -> 3 | D21: 407 | E21: EP 407 - Correspondence | F21: =IFERROR(SUMIFS(D_D[INV],D_D[MT],11,D_D[CAT],TA_31,D_D[EP],$D21),0) -> 0
A22: 450 | B22: EP 450 - Spina bifida and/or birth defects adjustments | C22: =IFERROR(SUMIFS(D_D[INV],D_D[MT],11,D_D[CAT],TA_22,D_D[EP],$A22),0) -> 0 | D22: 507 | E22: EP 507 - Congressional correspondence | F22: =IFERROR(SUMIFS(D_D[INV],D_D[MT],11,D_D[CAT],TA_31,D_D[EP],$D22),0) -> 0
A23: 310G | B23: EP 310 -Future examination for disabilities | C23: =IFERROR(SUMIFS(D_D[INV],D_D[MT],11,D_D[CAT],TA_22,D_D[EP],$A23),0) -> 0 | D23: 937 | E23: EP 937 - Internal quality reviews | F23: =IFERROR(SUMIFS(D_D[INV],D_D[MT],11,D_D[CAT],TA_31,D_D[EP],$D23),0) -> 0
A24: 600G | B24: EP 600 - Due process | C24: =IFERROR(SUMIFS(D_D[INV],D_D[MT],11,D_D[CAT],TA_22,D_D[EP],$A24),0) -> 0 | D24: 967 | E24: EP 967 - Correction of errors | F24: =IFERROR(SUMIFS(D_D[INV],D_D[MT],11,D_D[CAT],TA_31,D_D[EP],$D24),0) -> 0
B25: Program Reviews | C25: =SUM(C26:C33) -> 646 | E25: Pension Burial/Accrued | F25: =SUM(F26:F27) -> 0
A26: 314 | B26: EP 314 - Income verification for unemployability | C26: =IFERROR(SUMIFS(D_D[INV],D_D[MT],11,D_D[CAT],TA_23,D_D[EP],$A26),0) -> 0 | D26: 167 | E26: EP 167 - Burials | F26: =IFERROR(SUMIFS(D_D[INV],D_D[MT],11,D_D[CAT],TA_31,D_D[EP],$D26),0) -> 0
A27: 330 | B27: EP 330 - Reviews | C27: =IFERROR(SUMIFS(D_D[INV],D_D[MT],11,D_D[CAT],TA_23,D_D[EP],$A27),0) -> 646 | D27: 165 | E27: EP 165 - Accrued | F27: =IFERROR(SUMIFS(D_D[INV],D_D[MT],11,D_D[CAT],TA_31,D_D[EP],$D27),0) -> 0
A28: 680G | B28: EP 680 - Review of Hemodialysis related cases/conditions | C28: =IFERROR(SUMIFS(D_D[INV],D_D[MT],11,D_D[CAT],TA_23,D_D[EP],$A28),0) -> 0
A29: 682 | B29: EP 682 - Review of Radiation related cases/conditions | C29: =IFERROR(SUMIFS(D_D[INV],D_D[MT],11,D_D[CAT],TA_23,D_D[EP],$A29),0) -> 0
A30: 684 | B30: EP 684 - Review of Misc cases referred to central office | C30: =IFERROR(SUMIFS(D_D[INV],D_D[MT],11,D_D[CAT],TA_23,D_D[EP],$A30),0) -> 0 | E30: Integrated Disability Evaluation System (IDES)
A31: 685 | B31: EP 685 - Review of effective date related to herbicide exposure | C31: =IFERROR(SUMIFS(D_D[INV],D_D[MT],11,D_D[CAT],TA_23,D_D[EP],$A31),0) -> 0 | E31: EP 689 - IDES | F31: =IFERROR(SUMIFS(D_D[INV],D_D[MT],11,D_D[CAT],1,D_D[EP],-1),0) -> 0
A32: 690G | B32: EP 690 - Cost of Living Adjustments (COLAs) and other reviews | C32: =IFERROR(SUMIFS(D_D[INV],D_D[MT],11,D_D[CAT],TA_23,D_D[EP],$A32),0) -> 0
A33: 690 | B33: EP 690 - Social Security number verification | C33: =IFERROR(SUMIFS(D_D[INV],D_D[MT],11,D_D[CAT],TA_23,D_D[EP],$A33),0) -> 0
B34: Compensation Other | C34: =SUM(C35:C44) -> 44
A35: 335 | B35: EP 335 - Blue Water Navy (Agent Orange) | C35: =IFERROR(SUMIFS(D_D[INV],D_D[MT],11,D_D[CAT],TA_24,D_D[EP],$A35),0) -> 0
A36: 400G | B36: EP 400 - Correspondence | C36: =IFERROR(SUMIFS(D_D[INV],D_D[MT],11,D_D[CAT],TA_24,D_D[EP],$A36),0) -> 43
A37: 500G | B37: EP 500 - Congressional correspondence | C37: =IFERROR(SUMIFS(D_D[INV],D_D[MT],11,D_D[CAT],TA_24,D_D[EP],$A37),0) -> 0
A38: 510 | B38: EP 510 - Freedom of Information Act (FOIA) requests | C38: =IFERROR(SUMIFS(D_D[INV],D_D[MT],11,D_D[CAT],TA_24,D_D[EP],$A38),0) -> 0
A39: 930G | B39: EP 930 - Review, including quality assurance | C39: =IFERROR(SUMIFS(D_D[INV],D_D[MT],11,D_D[CAT],TA_24,D_D[EP],$A39),0) -> 1
A40: 960G | B40: EP 960 - Correction of errors | C40: =IFERROR(SUMIFS(D_D[INV],D_D[MT],11,D_D[CAT],TA_24,D_D[EP],$A40),0) -> 0
A41: 681 | B41: EP 681 - Used to control claims under the Nehmer Agent Orange stipulation | C41: =IFERROR(SUMIFS(D_D[INV],D_D[MT],11,D_D[CAT],TA_24,D_D[EP],$A41),0) -> 0
A42: 687 | B42: EP 687 - Previously used for Nehmer Agent Orange presumptive issues | C42: =IFERROR(SUMIFS(D_D[INV],D_D[MT],11,D_D[CAT],TA_24,D_D[EP],$A42),0) -> 0
A43: 405 | B43: EP 405 - Reopened or new Agent Orange claims between 9/01/10 and 10/24/2011 | C43: =IFERROR(SUMIFS(D_D[INV],D_D[MT],11,D_D[CAT],TA_24,D_D[EP],$A43),0) -> 0
A44: 409 | B44: EP 409 - Agent Orange claims where an interim decision was provided; No longer used as of 10/24/2011 | C44: =IFERROR(SUMIFS(D_D[INV],D_D[MT],11,D_D[CAT],TA_24,D_D[EP],$A44),0) -> 0
B45: Compensation Burial/Accrued | C45: =SUM(C46:C47) -> 0
A46: 160G | B46: EP 160 - Burials | C46: =IFERROR(SUMIFS(D_D[INV],D_D[MT],11,D_D[CAT],TA_25,D_D[EP],$A46),0) -> 0
A47: 165 | B47: EP 165 - Accrued | C47: =IFERROR(SUMIFS(D_D[INV],D_D[MT],11,D_D[CAT],TA_25,D_D[EP],$A47),0) -> 0

Sheet TA-Regional Office
C1: 2000 | D1: 2000 | E1: 11 | F1: 11 | H1: 12 | I1: 12 | K1: 13 | L1: 13 | N1: 14 | O1: 14 | Q1: 15 | R1: 16 | S1: 1
B2: Scroll down to see Pension | C2: =("Inventory by Regional Office - Data through ") -> Inventory by Regional Office - Data through | G2: =D_DT[] -> 2021-12-25
C3: *The claims pending under 'Non-Rating' are a subset of claims listed under the 'Award Adjustment' column and should not be counted twice when computing totals
C4: Non-Rating | E4: Entitlement | H4: Award Adjustment | K4: Program Review | N4: Other | Q4: Burial | R4: Accrued | S4: Legacy Appeals
C5: Claims Pending | D5: Avg. Days Pending | E5: Claims Pending | F5: Pending over 125 days | G5: Percent Pending over 125 days | H5: Claims Pending | I5: Pending over 125 days | J5: Percent Pending over 125 days | K5: Claims Pending | L5: Pending over 125 days | M5: Percent Pending over 125 days | N5: Claims Pending | O5: Pending over 125 days | P5: Percent Pending over 125 days | Q5: Claims Pending | R5: Claims Pending | S5: Appeals Pending
C6: Compensation
A7: 100 | B7: USA Compensation | C7: =IFERROR(SUMIFS(D_D[INV],D_D[MT],1,D_D[CAT],TA_20,D_D[EP],-1, D_D[LOC],$A7),0) -> 55044 | D7: =IFERROR(SUMIFS(D_D[ADP],D_D[MT],1,D_D[CAT],D$1,D_D[EP],-1, D_D[LOC],$A7),0) -> 88.71 | E7: =IFERROR(SUMIFS(D_D[INV],D_D[MT],2,D_D[CAT],TA_21,D_D[EP],-1, D_D[LOC],$A7),0) -> 505496 | F7: =IFERROR(SUMIFS(D_D[BL],D_D[MT],2,D_D[CAT],TA_21,D_D[EP],-1, D_D[LOC],$A7),0) -> 159239 | G7: =IFERROR(F7/E7,"0%") -> 0.3150153513 | H7: =IFERROR(SUMIFS(D_D[INV],D_D[MT],2,D_D[CAT],TA_22,D_D[EP],-1, D_D[LOC],$A7),0) -> 166199 | I7: =IFERROR(SUMIFS(D_D[BL],D_D[MT],2,D_D[CAT],TA_22,D_D[EP],-1, D_D[LOC],$A7),0) -> 25435 | J7: =IFERROR(I7/H7,"0%") -> 0.1530394286 | K7: =IFERROR(SUMIFS(D_D[INV],D_D[MT],2,D_D[CAT],TA_23,D_D[EP],-1, D_D[LOC],$A7),0) -> 3558 | L7: =IFERROR(SUMIFS(D_D[BL],D_D[MT],2,D_D[CAT],TA_23,D_D[EP],-1, D_D[LOC],$A7),0) -> 271 | M7: =IFERROR(L7/K7,"0%") -> 0.07616638561 | N7: =IFERROR(SUMIFS(D_D[INV],D_D[MT],2,D_D[CAT],TA_24,D_D[EP],-1, D_D[LOC],$A7),0) - 'Diarys and Future Claims'!C35 -> 161067 | O7: =IFERROR(SUMIFS(D_D[BL],D_D[MT],2,D_D[CAT],TA_24,D_D[EP],-1, D_D[LOC],$A7),0) -> 111274 | P7: =IFERROR(O7/N7,"0%") -> 0.6908553583 | Q7: =IFERROR(SUMIFS(D_D[INV],D_D[MT],2,D_D[CAT],TA_25,D_D[EP],-1, D_D[LOC],$A7),0) -> 6032 | R7: =IFERROR(SUMIFS(D_D[INV],D_D[MT],2,D_D[CAT],TA_26,D_D[EP],-1, D_D[LOC],$A7),0) -> 14966 | S7: =IFERROR(SUMIFS(D_D[INV],D_D[MT],7,D_D[CAT],2,D_D[EP],TA_20, D_D[LOC],$A7),0) -> 29030
A8: 394 | B8: Northeast | C8: =IFERROR(SUMIFS(D_D[INV],D_D[MT],1,D_D[CAT],TA_20,D_D[EP],-1, D_D[LOC],$A8),0) -> 13149 | D8: =IFERROR(SUMIFS(D_D[ADP],D_D[MT],1,D_D[CAT],D$1,D_D[EP],-1, D_D[LOC],$A8),0) -> 118.76 | E8: =IFERROR(SUMIFS(D_D[INV],D_D[MT],2,D_D[CAT],TA_21,D_D[EP],-1, D_D[LOC],$A8),0) -> 86384 | F8: =IFERROR(SUMIFS(D_D[BL],D_D[MT],2,D_D[CAT],TA_21,D_D[EP],-1, D_D[LOC],$A8),0) -> 29755 | G8: =IFERROR(F8/E8,"0%") -> 0.3444503612 | H8: =IFERROR(SUMIFS(D_D[INV],D_D[MT],2,D_D[CAT],TA_22,D_D[EP],-1, D_D[LOC],$A8),0) -> 51393 | I8: =IFERROR(SUMIFS(D_D[BL],D_D[MT],2,D_D[CAT],TA_22,D_D[EP],-1, D_D[LOC],$A8),0) -> 6810 | J8: =IFERROR(I8/H8,"0%") -> 0.1325083183 | K8: =IFERROR(SUMIFS(D_D[INV],D_D[MT],2,D_D[CAT],TA_23,D_D[EP],-1, D_D[LOC],$A8),0) -> 933 | L8: =IFERROR(SUMIFS(D_D[BL],D_D[MT],2,D_D[CAT],TA_23,D_D[EP],-1, D_D[LOC],$A8),0) -> 17 | M8: =IFERROR(L8/K8,"0%") -> 0.01822079314 | N8: =IFERROR(SUMIFS(D_D[INV],D_D[MT],2,D_D[CAT],TA_24,D_D[EP],-1, D_D[LOC],$A8),0) -> 23854 | O8: =IFERROR(SUMIFS(D_D[BL],D_D[MT],2,D_D[CAT],TA_24,D_D[EP],-1, D_D[LOC],$A8),0) -> 9764 | P8: =IFERROR(O8/N8,"0%") -> 0.4093233839 | Q8: =IFERROR(SUMIFS(D_D[INV],D_D[MT],2,D_D[CAT],TA_25,D_D[EP],-1, D_D[LOC],$A8),0) -> 2016 | R8: =IFERROR(SUMIFS(D_D[INV],D_D[MT],2,D_D[CAT],TA_26,D_D[EP],-1, D_D[LOC],$A8),0) -> 568 | S8: =IFERROR(SUMIFS(D_D[INV],D_D[MT],7,D_D[CAT],2,D_D[EP],TA_20, D_D[LOC],$A8),0) -> 177
A9: 313 | B9: Baltimore | C9: =IFERROR(SUMIFS(D_D[INV],D_D[MT],1,D_D[CAT],TA_20,D_D[EP],-1, D_D[LOC],$A9),0) -> 306 | D9: =IFERROR(SUMIFS(D_D[ADP],D_D[MT],1,D_D[CAT],D$1,D_D[EP],-1, D_D[LOC],$A9),0) -> 58.61 | E9: =IFERROR(SUMIFS(D_D[INV],D_D[MT],2,D_D[CAT],TA_21,D_D[EP],-1, D_D[LOC],$A9),0) -> 6612 | F9: =IFERROR(SUMIFS(D_D[BL],D_D[MT],2,D_D[CAT],TA_21,D_D[EP],-1, D_D[LOC],$A9),0) -> 1868 | G9: 0.2825166364 | H9: =IFERROR(SUMIFS(D_D[INV],D_D[MT],2,D_D[CAT],TA_22,D_D[EP],-1, D_D[LOC],$A9),0) -> 931 | I9: =IFERROR(SUMIFS(D_D[BL],D_D[MT],2,D_D[CAT],TA_22,D_D[EP],-1, D_D[LOC],$A9),0) -> 140 | J9: 0.1503759398 | K9: =IFERROR(SUMIFS(D_D[INV],D_D[MT],2,D_D[CAT],TA_23,D_D[EP],-1, D_D[LOC],$A9),0) -> 51 | L9: =IFERROR(SUMIFS(D_D[BL],D_D[MT],2,D_D[CAT],TA_23,D_D[EP],-1, D_D[LOC],$A9),0) -> 1 | M9: 0.01960784314 | N9: =IFERROR(SUMIFS(D_D[INV],D_D[MT],2,D_D[CAT],TA_24,D_D[EP],-1, D_D[LOC],$A9),0) -> 572 | O9: =IFERROR(SUMIFS(D_D[BL],D_D[MT],2,D_D[CAT],TA_24,D_D[EP],-1, D_D[LOC],$A9),0) -> 164 | P9: 0.2867132867 | Q9: =IFERROR(SUMIFS(D_D[INV],D_D[MT],2,D_D[CAT],TA_25,D_D[EP],-1, D_D[LOC],$A9),0) -> 24 | R9: =IFERROR(SUMIFS(D_D[INV],D_D[MT],2,D_D[CAT],TA_26,D_D[EP],-1, D_D[LOC],$A9),0) -> 4 | S9: =IFERROR(SUMIFS(D_D[INV],D_D[MT],7,D_D[CAT],2,D_D[EP],TA_20, D_D[LOC],$A9),0) -> 3
A10: 301 | B10: Boston | C10: =IFERROR(SUMIFS(D_D[INV],D_D[MT],1,D_D[CAT],TA_20,D_D[EP],-1, D_D[LOC],$A10),0) -> 98 | D10: =IFERROR(SUMIFS(D_D[ADP],D_D[MT],1,D_D[CAT],D$1,D_D[EP],-1, D_D[LOC],$A10),0) -> 52.6 | E10: =IFERROR(SUMIFS(D_D[INV],D_D[MT],2,D_D[CAT],TA_21,D_D[EP],-1, D_D[LOC],$A10),0) -> 2733 | F10: =IFERROR(SUMIFS(D_D[BL],D_D[MT],2,D_D[CAT],TA_21,D_D[EP],-1, D_D[LOC],$A10),0) -> 880 | G10: =IFERROR(F10/E10,"0%") -> 0.3219904866 | H10: =IFERROR(SUMIFS(D_D[INV],D_D[MT],2,D_D[CAT],TA_22,D_D[EP],-1, D_D[LOC],$A10),0) -> 623 | I10: =IFERROR(SUMIFS(D_D[BL],D_D[MT],2,D_D[CAT],TA_22,D_D[EP],-1, D_D[LOC],$A10),0) -> 116 | J10: =IFERROR(I10/H10,"0%") -> 0.1861958266 | K10: =IFERROR(SUMIFS(D_D[INV],D_D[MT],2,D_D[CAT],TA_23,D_D[EP],-1, D_D[LOC],$A10),0) -> 36 | L10: =IFERROR(SUMIFS(D_D[BL],D_D[MT],2,D_D[CAT],TA_23,D_D[EP],-1, D_D[LOC],$A10),0) -> 0 | M10: =IFERROR(L10/K10,"0%") -> 0 | N10: =IFERROR(SUMIFS(D_D[INV],D_D[MT],2,D_D[CAT],TA_24,D_D[EP],-1, D_D[LOC],$A10),0) -> 175 | O10: =IFERROR(SUMIFS(D_D[BL],D_D[MT],2,D_D[CAT],TA_24,D_D[EP],-1, D_D[LOC],$A10),0) -> 123 | P10: =IFERROR(O10/N10,"0%") -> 0.7028571429 | Q10: =IFERROR(SUMIFS(D_D[INV],D_D[MT],2,D_D[CAT],TA_25,D_D[EP],-1, D_D[LOC],$A10),0) -> 21 | R10: =IFERROR(SUMIFS(D_D[INV],D_D[MT],2,D_D[CAT],TA_26,D_D[EP],-1, D_D[LOC],$A10),0) -> 1 | S10: =IFERROR(SUMIFS(D_D[INV],D_D[MT],7,D_D[CAT],2,D_D[EP],TA_20, D_D[LOC],$A10),0) -> 0
A11: 307 | B11: Buffalo | C11: =IFERROR(SUMIFS(D_D[INV],D_D[MT],1,D_D[CAT],TA_20,D_D[EP],-1, D_D[LOC],$A11),0) -> 143 | D11: =IFERROR(SUMIFS(D_D[ADP],D_D[MT],1,D_D[CAT],D$1,D_D[EP],-1, D_D[LOC],$A11),0) -> 79.98 | E11: =IFERROR(SUMIFS(D_D[INV],D_D[MT],2,D_D[CAT],TA_21,D_D[EP],-1, D_D[LOC],$A11),0) -> 3355 | F11: =IFERROR(SUMIFS(D_D[BL],D_D[MT],2,D_D[CAT],TA_21,D_D[EP],-1, D_D[LOC],$A11),0) -> 1087 | G11: 0.3239940387 | H11: =IFERROR(SUMIFS(D_D[INV],D_D[MT],2,D_D[CAT],TA_22,D_D[EP],-1, D_D[LOC],$A11),0) -> 775 | I11: =IFERROR(SUMIFS(D_D[BL],D_D[MT],2,D_D[CAT],TA_22,D_D[EP],-1, D_D[LOC],$A11),0) -> 175 | J11: 0.2258064516 | K11: =IFERROR(SUMIFS(D_D[INV],D_D[MT],2,D_D[CAT],TA_23,D_D[EP],-1, D_D[LOC],$A11),0) -> 44 | L11: =IFERROR(SUMIFS(D_D[BL],D_D[MT],2,D_D[CAT],TA_23,D_D[EP],-1, D_D[LOC],$A11),0) -> 0 | M11: 0 | N11: =IFERROR(SUMIFS(D_D[INV],D_D[MT],2,D_D[CAT],TA_24,D_D[EP],-1, D_D[LOC],$A11),0) -> 250 | O11: =IFERROR(SUMIFS(D_D[BL],D_D[MT],2,D_D[CAT],TA_24,D_D[EP],-1, D_D[LOC],$A11),0) -> 182 | P11: 0.728 | Q11: =IFERROR(SUMIFS(D_D[INV],D_D[MT],2,D_D[CAT],TA_25,D_D[EP],-1, D_D[LOC],$A11),0) -> 25 | R11: =IFERROR(SUMIFS(D_D[INV],D_D[MT],2,D_D[CAT],TA_26,D_D[EP],-1, D_D[LOC],$A11),0) -> 2 | S11: =IFERROR(SUMIFS(D_D[INV],D_D[MT],7,D_D[CAT],2,D_D[EP],TA_20, D_D[LOC],$A11),0) -> 2
A12: 328 | B12: Chicago | C12: =IFERROR(SUMIFS(D_D[INV],D_D[MT],1,D_D[CAT],TA_20,D_D[EP],-1, D_D[LOC],$A12),0) -> 338 | D12: =IFERROR(SUMIFS(D_D[ADP],D_D[MT],1,D_D[CAT],D$1,D_D[EP],-1, D_D[LOC],$A12),0) -> 63.87 | E12: =IFERROR(SUMIFS(D_D[INV],D_D[MT],2,D_D[CAT],TA_21,D_D[EP],-1, D_D[LOC],$A12),0) -> 7833 | F12: =IFERROR(SUMIFS(D_D[BL],D_D[MT],2,D_D[CAT],TA_21,D_D[EP],-1, D_D[LOC],$A12),0) -> 2440 | G12: 0.3115026171 | H12: =IFERROR(SUMIFS(D_D[INV],D_D[MT],2,D_D[CAT],TA_22,D_D[EP],-1, D_D[LOC],$A12),0) -> 1470 | I12: =IFERROR(SUMIFS(D_D[BL],D_D[MT],2,D_D[CAT],TA_22,D_D[EP],-1, D_D[LOC],$A12),0) -> 247 | J12: 0.1680272109 | K12: =IFERROR(SUMIFS(D_D[INV],D_D[MT],2,D_D[CAT],TA_23,D_D[EP],-1, D_D[LOC],$A12),0) -> 83 | L12: =IFERROR(SUMIFS(D_D[BL],D_D[MT],2,D_D[CAT],TA_23,D_D[EP],-1, D_D[LOC],$A12),0) -> 0 | M12: 0 | N12: =IFERROR(SUMIFS(D_D[INV],D_D[MT],2,D_D[CAT],TA_24,D_D[EP],-1, D_D[LOC],$A12),0) -> 597 | O12: =IFERROR(SUMIFS(D_D[BL],D_D[MT],2,D_D[CAT],TA_24,D_D[EP],-1, D_D[LOC],$A12),0) -> 345 | P12: 0.5778894472 | Q12: =IFERROR(SUMIFS(D_D[INV],D_D[MT],2,D_D[CAT],TA_25,D_D[EP],-1, D_D[LOC],$A12),0) -> 59 | R12: =IFERROR(SUMIFS(D_D[INV],D_D[MT],2,D_D[CAT],TA_26,D_D[EP],-1, D_D[LOC],$A12),0) -> 4 | S12: =IFERROR(SUMIFS(D_D[INV],D_D[MT],7,D_D[CAT],2,D_D[EP],TA_20, D_D[LOC],$A12),0) -> 1
A13: 325 | B13: Cleveland | C13: =IFERROR(SUMIFS(D_D[INV],D_D[MT],1,D_D[CAT],TA_20,D_D[EP],-1, D_D[LOC],$A13),0) -> 708 | D13: =IFERROR(SUMIFS(D_D[ADP],D_D[MT],1,D_D[CAT],D$1,D_D[EP],-1, D_D[LOC],$A13),0) -> 93.09 | E13: =IFERROR(SUMIFS(D_D[INV],D_D[MT],2,D_D[CAT],TA_21,D_D[EP],-1, D_D[LOC],$A13),0) -> 9559 | F13: =IFERROR(SUMIFS(D_D[BL],D_D[MT],2,D_D[CAT],TA_21,D_D[EP],-1, D_D[LOC],$A13),0) -> 3563 | G13: 0.3727377341 | H13: =IFERROR(SUMIFS(D_D[INV],D_D[MT],2,D_D[CAT],TA_22,D_D[EP],-1, D_D[LOC],$A13),0) -> 1899 | I13: =IFERROR(SUMIFS(D_D[BL],D_D[MT],2,D_D[CAT],TA_22,D_D[EP],-1, D_D[LOC],$A13),0) -> 407 | J13: 0.2143233281 | K13: =IFERROR(SUMIFS(D_D[INV],D_D[MT],2,D_D[CAT],TA_23,D_D[EP],-1, D_D[LOC],$A13),0) -> 70 | L13: =IFERROR(SUMIFS(D_D[BL],D_D[MT],2,D_D[CAT],TA_23,D_D[EP],-1, D_D[LOC],$A13),0) -> 4 | M13: 0.05714285714 | N13: =IFERROR(SUMIFS(D_D[INV],D_D[MT],2,D_D[CAT],TA_24,D_D[EP],-1, D_D[LOC],$A13),0) -> 2094 | O13: =IFERROR(SUMIFS(D_D[BL],D_D[MT],2,D_D[CAT],TA_24,D_D[EP],-1, D_D[LOC],$A13),0) -> 1632 | P13: 0.7793696275 | Q13: =IFERROR(SUMIFS(D_D[INV],D_D[MT],2,D_D[CAT],TA_25,D_D[EP],-1, D_D[LOC],$A13),0) -> 67 | R13: =IFERROR(SUMIFS(D_D[INV],D_D[MT],2,D_D[CAT],TA_26,D_D[EP],-1, D_D[LOC],$A13),0) -> 11 | S13: =IFERROR(SUMIFS(D_D[INV],D_D[MT],7,D_D[CAT],2,D_D[EP],TA_20, D_D[LOC],$A13),0) -> 1
A14: 329 | B14: Detroit | C14: =IFERROR(SUMIFS(D_D[INV],D_D[MT],1,D_D[CAT],TA_20,D_D[EP],-1, D_D[LOC],$A14),0) -> 1697 | D14: =IFERROR(SUMIFS(D_D[ADP],D_D[MT],1,D_D[CAT],D$1,D_D[EP],-1, D_D[LOC],$A14),0) -> 57.1 | E14: =IFERROR(SUMIFS(D_D[INV],D_D[MT],2,D_D[CAT],TA_21,D_D[EP],-1, D_D[LOC],$A14),0) -> 6301 | F14: =IFERROR(SUMIFS(D_D[BL],D_D[MT],2,D_D[CAT],TA_21,D_D[EP],-1, D_D[LOC],$A14),0) -> 2163 | G14: 0.3432788446 | H14: =IFERROR(SUMIFS(D_D[INV],D_D[MT],2,D_D[CAT],TA_22,D_D[EP],-1, D_D[LOC],$A14),0) -> 6241 | I14: =IFERROR(SUMIFS(D_D[BL],D_D[MT],2,D_D[CAT],TA_22,D_D[EP],-1, D_D[LOC],$A14),0) -> 923 | J14: 0.1478929659 | K14: =IFERROR(SUMIFS(D_D[INV],D_D[MT],2,D_D[CAT],TA_23,D_D[EP],-1, D_D[LOC],$A14),0) -> 79 | L14: =IFERROR(SUMIFS(D_D[BL],D_D[MT],2,D_D[CAT],TA_23,D_D[EP],-1, D_D[LOC],$A14),0) -> 4 | M14: 0.05063291139 | N14: =IFERROR(SUMIFS(D_D[INV],D_D[MT],2,D_D[CAT],TA_24,D_D[EP],-1, D_D[LOC],$A14),0) -> 834 | O14: =IFERROR(SUMIFS(D_D[BL],D_D[MT],2,D_D[CAT],TA_24,D_D[EP],-1, D_D[LOC],$A14),0) -> 443 | P14: 0.53117506 | Q14: =IFERROR(SUMIFS(D_D[INV],D_D[MT],2,D_D[CAT],TA_25,D_D[EP],-1, D_D[LOC],$A14),0) -> 55 | R14: =IFERROR(SUMIFS(D_D[INV],D_D[MT],2,D_D[CAT],TA_26,D_D[EP],-1, D_D[LOC],$A14),0) -> 5 | S14: =IFERROR(SUMIFS(D_D[INV],D_D[MT],7,D_D[CAT],2,D_D[EP],TA_20, D_D[LOC],$A14),0) -> 1
A15: 308 | B15: Hartford | C15: =IFERROR(SUMIFS(D_D[INV],D_D[MT],1,D_D[CAT],TA_20,D_D[EP],-1, D_D[LOC],$A15),0) -> 73 | D15: =IFERROR(SUMIFS(D_D[ADP],D_D[MT],1,D_D[CAT],D$1,D_D[EP],-1, D_D[LOC],$A15),0) -> 64.89 | E15: =IFERROR(SUMIFS(D_D[INV],D_D[MT],2,D_D[CAT],TA_21,D_D[EP],-1, D_D[LOC],$A15),0) -> 1944 | F15: =IFERROR(SUMIFS(D_D[BL],D_D[MT],2,D_D[CAT],TA_21,D_D[EP],-1, D_D[LOC],$A15),0) -> 719 | G15: 0.3698559671 | H15: =IFERROR(SUMIFS(D_D[INV],D_D[MT],2,D_D[CAT],TA_22,D_D[EP],-1, D_D[LOC],$A15),0) -> 492 | I15: =IFERROR(SUMIFS(D_D[BL],D_D[MT],2,D_D[CAT],TA_22,D_D[EP],-1, D_D[LOC],$A15),0) -> 129 | J15: 0.262195122 | K15: =IFERROR(SUMIFS(D_D[INV],D_D[MT],2,D_D[CAT],TA_23,D_D[EP],-1, D_D[LOC],$A15),0) -> 24 | L15: =IFERROR(SUMIFS(D_D[BL],D_D[MT],2,D_D[CAT],TA_23,D_D[EP],-1, D_D[LOC],$A15),0) -> 0 | M15: 0 | N15: =IFERROR(SUMIFS(D_D[INV],D_D[MT],2,D_D[CAT],TA_24,D_D[EP],-1, D_D[LOC],$A15),0) -> 245 | O15: =IFERROR(SUMIFS(D_D[BL],D_D[MT],2,D_D[CAT],TA_24,D_D[EP],-1, D_D[LOC],$A15),0) -> 132 | P15: 0.5387755102 | Q15: =IFERROR(SUMIFS(D_D[INV],D_D[MT],2,D_D[CAT],TA_25,D_D[EP],-1, D_D[LOC],$A15),0) -> 8 | R15: =IFERROR(SUMIFS(D_D[INV],D_D[MT],2,D_D[CAT],TA_26,D_D[EP],-1, D_D[LOC],$A15),0) -> 1 | S15: =IFERROR(SUMIFS(D_D[INV],D_D[MT],7,D_D[CAT],2,D_D[EP],TA_20, D_D[LOC],$A15),0) -> 0
A16: 326 | B16: Indianapolis | C16: =IFERROR(SUMIFS(D_D[INV],D_D[MT],1,D_D[CAT],TA_20,D_D[EP],-1, D_D[LOC],$A16),0) -> 3827 | D16: =IFERROR(SUMIFS(D_D[ADP],D_D[MT],1,D_D[CAT],D$1,D_D[EP],-1, D_D[LOC],$A16),0) -> 76.03 | E16: =IFERROR(SUMIFS(D_D[INV],D_D[MT],2,D_D[CAT],TA_21,D_D[EP],-1, D_D[LOC],$A16),0) -> 5596 | F16: =IFERROR(SUMIFS(D_D[BL],D_D[MT],2,D_D[CAT],TA_21,D_D[EP],-1, D_D[LOC],$A16),0) -> 1894 | G16: 0.33845604 | H16: =IFERROR(SUMIFS(D_D[INV],D_D[MT],2,D_D[CAT],TA_22,D_D[EP],-1, D_D[LOC],$A16),0) -> 4774 | I16: =IFERROR(SUMIFS(D_D[BL],D_D[MT],2,D_D[CAT],TA_22,D_D[EP],-1, D_D[LOC],$A16),0) -> 1018 | J16: 0.2132383745 | K16: =IFERROR(SUMIFS(D_D[INV],D_D[MT],2,D_D[CAT],TA_23,D_D[EP],-1, D_D[LOC],$A16),0) -> 49 | L16: =IFERROR(SUMIFS(D_D[BL],D_D[MT],2,D_D[CAT],TA_23,D_D[EP],-1, D_D[LOC],$A16),0) -> 2 | M16: 0.04081632653 | N16: =IFERROR(SUMIFS(D_D[INV],D_D[MT],2,D_D[CAT],TA_24,D_D[EP],-1, D_D[LOC],$A16),0) -> 479 | O16: =IFERROR(SUMIFS(D_D[BL],D_D[MT],2,D_D[CAT],TA_24,D_D[EP],-1, D_D[LOC],$A16),0) -> 308 | P16: 0.643006263 | Q16: =IFERROR(SUMIFS(D_D[INV],D_D[MT],2,D_D[CAT],TA_25,D_D[EP],-1, D_D[LOC],$A16),0) -> 41 | R16: =IFERROR(SUMIFS(D_D[INV],D_D[MT],2,D_D[CAT],TA_26,D_D[EP],-1, D_D[LOC],$A16),0) -> 10 | S16: =IFERROR(SUMIFS(D_D[INV],D_D[MT],7,D_D[CAT],2,D_D[EP],TA_20, D_D[LOC],$A16),0) -> 0
A17: 373 | B17: Manchester | C17: =IFERROR(SUMIFS(D_D[INV],D_D[MT],1,D_D[CAT],TA_20,D_D[EP],-1, D_D[LOC],$A17),0) -> 148 | D17: =IFERROR(SUMIFS(D_D[ADP],D_D[MT],1,D_D[CAT],D$1,D_D[EP],-1, D_D[LOC],$A17),0) -> 73.54 | E17: =IFERROR(SUMIFS(D_D[INV],D_D[MT],2,D_D[CAT],TA_21,D_D[EP],-1, D_D[LOC],$A17),0) -> 1005 | F17: =IFERROR(SUMIFS(D_D[BL],D_D[MT],2,D_D[CAT],TA_21,D_D[EP],-1, D_D[LOC],$A17),0) -> 330 | G17: 0.328358209 | H17: =IFERROR(SUMIFS(D_D[INV],D_D[MT],2,D_D[CAT],TA_22,D_D[EP],-1, D_D[LOC],$A17),0) -> 364 | I17: =IFERROR(SUMIFS(D_D[BL],D_D[MT],2,D_D[CAT],TA_22,D_D[EP],-1, D_D[LOC],$A17),0) -> 67 | J17: 0.1840659341 | K17: =IFERROR(SUMIFS(D_D[INV],D_D[MT],2,D_D[CAT],TA_23,D_D[EP],-1, D_D[LOC],$A17),0) -> 9 | L17: =IFERROR(SUMIFS(D_D[BL],D_D[MT],2,D_D[CAT],TA_23,D_D[EP],-1, D_D[LOC],$A17),0) -> 0 | M17: 0 | N17: =IFERROR(SUMIFS(D_D[INV],D_D[MT],2,D_D[CAT],TA_24,D_D[EP],-1, D_D[LOC],$A17),0) -> 121 | O17: =IFERROR(SUMIFS(D_D[BL],D_D[MT],2,D_D[CAT],TA_24,D_D[EP],-1, D_D[LOC],$A17),0) -> 70 | P17: 0.5785123967 | Q17: =IFERROR(SUMIFS(D_D[INV],D_D[MT],2,D_D[CAT],TA_25,D_D[EP],-1, D_D[LOC],$A17),0) -> 10 | R17: =IFERROR(SUMIFS(D_D[INV],D_D[MT],2,D_D[CAT],TA_26,D_D[EP],-1, D_D[LOC],$A17),0) -> 1 | S17: =IFERROR(SUMIFS(D_D[INV],D_D[MT],7,D_D[CAT],2,D_D[EP],TA_20, D_D[LOC],$A17),0) -> 0
A18: 330 | B18: Milwaukee | C18: =IFERROR(SUMIFS(D_D[INV],D_D[MT],1,D_D[CAT],TA_20,D_D[EP],-1, D_D[LOC],$A18),0) -> 2892 | D18: =IFERROR(SUMIFS(D_D[ADP],D_D[MT],1,D_D[CAT],D$1,D_D[EP],-1, D_D[LOC],$A18),0) -> 58.64 | E18: =IFERROR(SUMIFS(D_D[INV],D_D[MT],2,D_D[CAT],TA_21,D_D[EP],-1, D_D[LOC],$A18),0) -> 6797 | F18: =IFERROR(SUMIFS(D_D[BL],D_D[MT],2,D_D[CAT],TA_21,D_D[EP],-1, D_D[LOC],$A18),0) -> 2666 | G18: 0.392231867 | H18: =IFERROR(SUMIFS(D_D[INV],D_D[MT],2,D_D[CAT],TA_22,D_D[EP],-1, D_D[LOC],$A18),0) -> 16974 | I18: =IFERROR(SUMIFS(D_D[BL],D_D[MT],2,D_D[CAT],TA_22,D_D[EP],-1, D_D[LOC],$A18),0) -> 1382 | J18: 0.08141864027 | K18: =IFERROR(SUMIFS(D_D[INV],D_D[MT],2,D_D[CAT],TA_23,D_D[EP],-1, D_D[LOC],$A18),0) -> 96 | L18: =IFERROR(SUMIFS(D_D[BL],D_D[MT],2,D_D[CAT],TA_23,D_D[EP],-1, D_D[LOC],$A18),0) -> 2 | M18: 0.02083333333 | N18: =IFERROR(SUMIFS(D_D[INV],D_D[MT],2,D_D[CAT],TA_24,D_D[EP],-1, D_D[LOC],$A18),0) -> 1300 | O18: =IFERROR(SUMIFS(D_D[BL],D_D[MT],2,D_D[CAT],TA_24,D_D[EP],-1, D_D[LOC],$A18),0) -> 935 | P18: 0.7192307692 | Q18: =IFERROR(SUMIFS(D_D[INV],D_D[MT],2,D_D[CAT],TA_25,D_D[EP],-1, D_D[LOC],$A18),0) -> 613 | R18: =IFERROR(SUMIFS(D_D[INV],D_D[MT],2,D_D[CAT],TA_26,D_D[EP],-1, D_D[LOC],$A18),0) -> 0 | S18: =IFERROR(SUMIFS(D_D[INV],D_D[MT],7,D_D[CAT],2,D_D[EP],TA_20, D_D[LOC],$A18),0) -> 3
A19: 306 | B19: New York | C19: =IFERROR(SUMIFS(D_D[INV],D_D[MT],1,D_D[CAT],TA_20,D_D[EP],-1, D_D[LOC],$A19),0) -> 250 | D19: =IFERROR(SUMIFS(D_D[ADP],D_D[MT],1,D_D[CAT],D$1,D_D[EP],-1, D_D[LOC],$A19),0) -> 69.31 | E19: =IFERROR(SUMIFS(D_D[INV],D_D[MT],2,D_D[CAT],TA_21,D_D[EP],-1, D_D[LOC],$A19),0) -> 5093 | F19: =IFERROR(SUMIFS(D_D[BL],D_D[MT],2,D_D[CAT],TA_21,D_D[EP],-1, D_D[LOC],$A19),0) -> 1671 | G19: 0.3280973886 | H19: =IFERROR(SUMIFS(D_D[INV],D_D[MT],2,D_D[CAT],TA_22,D_D[EP],-1, D_D[LOC],$A19),0) -> 1203 | I19: =IFERROR(SUMIFS(D_D[BL],D_D[MT],2,D_D[CAT],TA_22,D_D[EP],-1, D_D[LOC],$A19),0) -> 239 | J19: 0.1986699917 | K19: =IFERROR(SUMIFS(D_D[INV],D_D[MT],2,D_D[CAT],TA_23,D_D[EP],-1, D_D[LOC],$A19),0) -> 87 | L19: =IFERROR(SUMIFS(D_D[BL],D_D[MT],2,D_D[CAT],TA_23,D_D[EP],-1, D_D[LOC],$A19),0) -> 1 | M19: 0.01149425287 | N19: =IFERROR(SUMIFS(D_D[INV],D_D[MT],2,D_D[CAT],TA_24,D_D[EP],-1, D_D[LOC],$A19),0) -> 290 | O19: =IFERROR(SUMIFS(D_D[BL],D_D[MT],2,D_D[CAT],TA_24,D_D[EP],-1, D_D[LOC],$A19),0) -> 172 | P19: 0.5931034483 | Q19: =IFERROR(SUMIFS(D_D[INV],D_D[MT],2,D_D[CAT],TA_25,D_D[EP],-1, D_D[LOC],$A19),0) -> 45 | R19: =IFERROR(SUMIFS(D_D[INV],D_D[MT],2,D_D[CAT],TA_26,D_D[EP],-1, D_D[LOC],$A19),0) -> 0 | S19: =IFERROR(SUMIFS(D_D[INV],D_D[MT],7,D_D[CAT],2,D_D[EP],TA_20, D_D[LOC],$A19),0) -> 1
A20: 309 | B20: Newark | C20: =IFERROR(SUMIFS(D_D[INV],D_D[MT],1,D_D[CAT],TA_20,D_D[EP],-1, D_D[LOC],$A20),0) -> 124 | D20: =IFERROR(SUMIFS(D_D[ADP],D_D[MT],1,D_D[CAT],D$1,D_D[EP],-1, D_D[LOC],$A20),0) -> 60.29 | E20: =IFERROR(SUMIFS(D_D[INV],D_D[MT],2,D_D[CAT],TA_21,D_D[EP],-1, D_D[LOC],$A20),0) -> 3221 | F20: =IFERROR(SUMIFS(D_D[BL],D_D[MT],2,D_D[CAT],TA_21,D_D[EP],-1, D_D[LOC],$A20),0) -> 1119 | G20: 0.3474076374 | H20: =IFERROR(SUMIFS(D_D[INV],D_D[MT],2,D_D[CAT],TA_22,D_D[EP],-1, D_D[LOC],$A20),0) -> 596 | I20: =IFERROR(SUMIFS(D_D[BL],D_D[MT],2,D_D[CAT],TA_22,D_D[EP],-1, D_D[LOC],$A20),0) -> 117 | J20: 0.1963087248 | K20: =IFERROR(SUMIFS(D_D[INV],D_D[MT],2,D_D[CAT],TA_23,D_D[EP],-1, D_D[LOC],$A20),0) -> 26 | L20: =IFERROR(SUMIFS(D_D[BL],D_D[MT],2,D_D[CAT],TA_23,D_D[EP],-1, D_D[LOC],$A20),0) -> 0 | M20: 0 | N20: =IFERROR(SUMIFS(D_D[INV],D_D[MT],2,D_D[CAT],TA_24,D_D[EP],-1, D_D[LOC],$A20),0) -> 206 | O20: =IFERROR(SUMIFS(D_D[BL],D_D[MT],2,D_D[CAT],TA_24,D_D[EP],-1, D_D[LOC],$A20),0) -> 127 | P20: 0.6165048544 | Q20: =IFERROR(SUMIFS(D_D[INV],D_D[MT],2,D_D[CAT],TA_25,D_D[EP],-1, D_D[LOC],$A20),0) -> 13 | R20: =IFERROR(SUMIFS(D_D[INV],D_D[MT],2,D_D[CAT],TA_26,D_D[EP],-1, D_D[LOC],$A20),0) -> 3 | S20: =IFERROR(SUMIFS(D_D[INV],D_D[MT],7,D_D[CAT],2,D_D[EP],TA_20, D_D[LOC],$A20),0) -> 1
A21: 310 | B21: Philadelphia | C21: =IFERROR(SUMIFS(D_D[INV],D_D[MT],1,D_D[CAT],TA_20,D_D[EP],-1, D_D[LOC],$A21),0) -> 977 | D21: =IFERROR(SUMIFS(D_D[ADP],D_D[MT],1,D_D[CAT],D$1,D_D[EP],-1, D_D[LOC],$A21),0) -> 60.02 | E21: =IFERROR(SUMIFS(D_D[INV],D_D[MT],2,D_D[CAT],TA_21,D_D[EP],-1, D_D[LOC],$A21),0) -> 8363 | F21: =IFERROR(SUMIFS(D_D[BL],D_D[MT],2,D_D[CAT],TA_21,D_D[EP],-1, D_D[LOC],$A21),0) -> 3053 | G21: 0.365060385 | H21: =IFERROR(SUMIFS(D_D[INV],D_D[MT],2,D_D[CAT],TA_22,D_D[EP],-1, D_D[LOC],$A21),0) -> 10911 | I21: =IFERROR(SUMIFS(D_D[BL],D_D[MT],2,D_D[CAT],TA_22,D_D[EP],-1, D_D[LOC],$A21),0) -> 968 | J21: 0.08871780772 | K21: =IFERROR(SUMIFS(D_D[INV],D_D[MT],2,D_D[CAT],TA_23,D_D[EP],-1, D_D[LOC],$A21),0) -> 99 | L21: =IFERROR(SUMIFS(D_D[BL],D_D[MT],2,D_D[CAT],TA_23,D_D[EP],-1, D_D[LOC],$A21),0) -> 1 | M21: 0.0101010101 | N21: =IFERROR(SUMIFS(D_D[INV],D_D[MT],2,D_D[CAT],TA_24,D_D[EP],-1, D_D[LOC],$A21),0) -> 1411 | O21: =IFERROR(SUMIFS(D_D[BL],D_D[MT],2,D_D[CAT],TA_24,D_D[EP],-1, D_D[LOC],$A21),0) -> 1161 | P21: 0.8228206945 | Q21: =IFERROR(SUMIFS(D_D[INV],D_D[MT],2,D_D[CAT],TA_25,D_D[EP],-1, D_D[LOC],$A21),0) -> 724 | R21: =IFERROR(SUMIFS(D_D[INV],D_D[MT],2,D_D[CAT],TA_26,D_D[EP],-1, D_D[LOC],$A21),0) -> 0 | S21: =IFERROR(SUMIFS(D_D[INV],D_D[MT],7,D_D[CAT],2,D_D[EP],TA_20, D_D[LOC],$A21),0) -> 9
A22: 311 | B22: Pittsburgh | C22: =IFERROR(SUMIFS(D_D[INV],D_D[MT],1,D_D[CAT],TA_20,D_D[EP],-1, D_D[LOC],$A22),0) -> 271 | D22: =IFERROR(SUMIFS(D_D[ADP],D_D[MT],1,D_D[CAT],D$1,D_D[EP],-1, D_D[LOC],$A22),0) -> 84.83 | E22: =IFERROR(SUMIFS(D_D[INV],D_D[MT],2,D_D[CAT],TA_21,D_D[EP],-1, D_D[LOC],$A22),0) -> 6029 | F22: =IFERROR(SUMIFS(D_D[BL],D_D[MT],2,D_D[CAT],TA_21,D_D[EP],-1, D_D[LOC],$A22),0) -> 2101 | G22: 0.3484823354 | H22: =IFERROR(SUMIFS(D_D[INV],D_D[MT],2,D_D[CAT],TA_22,D_D[EP],-1, D_D[LOC],$A22),0) -> 982 | I22: =IFERROR(SUMIFS(D_D[BL],D_D[MT],2,D_D[CAT],TA_22,D_D[EP],-1, D_D[LOC],$A22),0) -> 187 | J22: 0.1904276986 | K22: =IFERROR(SUMIFS(D_D[INV],D_D[MT],2,D_D[CAT],TA_23,D_D[EP],-1, D_D[LOC],$A22),0) -> 55 | L22: =IFERROR(SUMIFS(D_D[BL],D_D[MT],2,D_D[CAT],TA_23,D_D[EP],-1, D_D[LOC],$A22),0) -> 2 | M22: 0.03636363636 | N22: =IFERROR(SUMIFS(D_D[INV],D_D[MT],2,D_D[CAT],TA_24,D_D[EP],-1, D_D[LOC],$A22),0) -> 396 | O22: =IFERROR(SUMIFS(D_D[BL],D_D[MT],2,D_D[CAT],TA_24,D_D[EP],-1, D_D[LOC],$A22),0) -> 213 | P22: 0.5378787879 | Q22: =IFERROR(SUMIFS(D_D[INV],D_D[MT],2,D_D[CAT],TA_25,D_D[EP],-1, D_D[LOC],$A22),0) -> 31 | R22: =IFERROR(SUMIFS(D_D[INV],D_D[MT],2,D_D[CAT],TA_26,D_D[EP],-1, D_D[LOC],$A22),0) -> 0 | S22: =IFERROR(SUMIFS(D_D[INV],D_D[MT],7,D_D[CAT],2,D_D[EP],TA_20, D_D[LOC],$A22),0) -> 153
A23: 304 | B23: Providence | C23: =IFERROR(SUMIFS(D_D[INV],D_D[MT],1,D_D[CAT],TA_20,D_D[EP],-1, D_D[LOC],$A23),0) -> 355 | D23: =IFERROR(SUMIFS(D_D[ADP],D_D[MT],1,D_D[CAT],D$1,D_D[EP],-1, D_D[LOC],$A23),0) -> 59.97 | E23: =IFERROR(SUMIFS(D_D[INV],D_D[MT],2,D_D[CAT],TA_21,D_D[EP],-1, D_D[LOC],$A23),0) -> 2132 | F23: =IFERROR(SUMIFS(D_D[BL],D_D[MT],2,D_D[CAT],TA_21,D_D[EP],-1, D_D[LOC],$A23),0) -> 590 | G23: 0.2767354597 | H23: =IFERROR(SUMIFS(D_D[INV],D_D[MT],2,D_D[CAT],TA_22,D_D[EP],-1, D_D[LOC],$A23),0) -> 878 | I23: =IFERROR(SUMIFS(D_D[BL],D_D[MT],2,D_D[CAT],TA_22,D_D[EP],-1, D_D[LOC],$A23),0) -> 173 | J23: 0.1970387244 | K23: =IFERROR(SUMIFS(D_D[INV],D_D[MT],2,D_D[CAT],TA_23,D_D[EP],-1, D_D[LOC],$A23),0) -> 21 | L23: =IFERROR(SUMIFS(D_D[BL],D_D[MT],2,D_D[CAT],TA_23,D_D[EP],-1, D_D[LOC],$A23),0) -> 0 | M23: 0 | N23: =IFERROR(SUMIFS(D_D[INV],D_D[MT],2,D_D[CAT],TA_24,D_D[EP],-1, D_D[LOC],$A23),0) -> 243 | O23: =IFERROR(SUMIFS(D_D[BL],D_D[MT],2,D_D[CAT],TA_24,D_D[EP],-1, D_D[LOC],$A23),0) -> 158 | P23: 0.6502057613 | Q23: =IFERROR(SUMIFS(D_D[INV],D_D[MT],2,D_D[CAT],TA_25,D_D[EP],-1, D_D[LOC],$A23),0) -> 9 | R23: =IFERROR(SUMIFS(D_D[INV],D_D[MT],2,D_D[CAT],TA_26,D_D[EP],-1, D_D[LOC],$A23),0) -> 3 | S23: =IFERROR(SUMIFS(D_D[INV],D_D[MT],7,D_D[CAT],2,D_D[EP],TA_20, D_D[LOC],$A23),0) -> 1
A24: 376 | B24: St. Louis RMC | C24: =IFERROR(SUMIFS(D_D[INV],D_D[MT],1,D_D[CAT],TA_20,D_D[EP],-1, D_D[LOC],$A24),0) -> 4 | D24: =IFERROR(SUMIFS(D_D[ADP],D_D[MT],1,D_D[CAT],D$1,D_D[EP],-1, D_D[LOC],$A24),0) -> 178.5 | E24: =IFERROR(SUMIFS(D_D[INV],D_D[MT],2,D_D[CAT],TA_21,D_D[EP],-1, D_D[LOC],$A24),0) -> 500 | F24: =IFERROR(SUMIFS(D_D[BL],D_D[MT],2,D_D[CAT],TA_21,D_D[EP],-1, D_D[LOC],$A24),0) -> 497 | G24: 0.994 | H24: =IFERROR(SUMIFS(D_D[INV],D_D[MT],2,D_D[CAT],TA_22,D_D[EP],-1, D_D[LOC],$A24),0) -> 4 | I24: =IFERROR(SUMIFS(D_D[BL],D_D[MT],2,D_D[CAT],TA_22,D_D[EP],-1, D_D[LOC],$A24),0) -> 3 | J24: 0.75 | K24: =IFERROR(SUMIFS(D_D[INV],D_D[MT],2,D_D[CAT],TA_23,D_D[EP],-1, D_D[LOC],$A24),0) -> 0 | L24: =IFERROR(SUMIFS(D_D[BL],D_D[MT],2,D_D[CAT],TA_23,D_D[EP],-1, D_D[LOC],$A24),0) -> 0 | M24: 0% | N24: =IFERROR(SUMIFS(D_D[INV],D_D[MT],2,D_D[CAT],TA_24,D_D[EP],-1, D_D[LOC],$A24),0) -> 12684 | O24: =IFERROR(SUMIFS(D_D[BL],D_D[MT],2,D_D[CAT],TA_24,D_D[EP],-1, D_D[LOC],$A24),0) -> 1973 | P24: 0.1555502996 | Q24: =IFERROR(SUMIFS(D_D[INV],D_D[MT],2,D_D[CAT],TA_25,D_D[EP],-1, D_D[LOC],$A24),0) -> 5 | R24: =IFERROR(SUMIFS(D_D[INV],D_D[MT],2,D_D[CAT],TA_26,D_D[EP],-1, D_D[LOC],$A24),0) -> 0 | S24: =IFERROR(SUMIFS(D_D[INV],D_D[MT],7,D_D[CAT],2,D_D[EP],TA_20, D_D[LOC],$A24),0) -> 0
A25: 331 | B25: St. Louis | C25: =IFERROR(SUMIFS(D_D[INV],D_D[MT],1,D_D[CAT],TA_20,D_D[EP],-1, D_D[LOC],$A25),0) -> 480 | D25: =IFERROR(SUMIFS(D_D[ADP],D_D[MT],1,D_D[CAT],D$1,D_D[EP],-1, D_D[LOC],$A25),0) -> 89.46 | E25: =IFERROR(SUMIFS(D_D[INV],D_D[MT],2,D_D[CAT],TA_21,D_D[EP],-1, D_D[LOC],$A25),0) -> 6410 | F25: =IFERROR(SUMIFS(D_D[BL],D_D[MT],2,D_D[CAT],TA_21,D_D[EP],-1, D_D[LOC],$A25),0) -> 2159 | G25: 0.3368174727 | H25: =IFERROR(SUMIFS(D_D[INV],D_D[MT],2,D_D[CAT],TA_22,D_D[EP],-1, D_D[LOC],$A25),0) -> 1220 | I25: =IFERROR(SUMIFS(D_D[BL],D_D[MT],2,D_D[CAT],TA_22,D_D[EP],-1, D_D[LOC],$A25),0) -> 270 | J25: 0.2213114754 | K25: =IFERROR(SUMIFS(D_D[INV],D_D[MT],2,D_D[CAT],TA_23,D_D[EP],-1, D_D[LOC],$A25),0) -> 64 | L25: =IFERROR(SUMIFS(D_D[BL],D_D[MT],2,D_D[CAT],TA_23,D_D[EP],-1, D_D[LOC],$A25),0) -> 0 | M25: 0 | N25: =IFERROR(SUMIFS(D_D[INV],D_D[MT],2,D_D[CAT],TA_24,D_D[EP],-1, D_D[LOC],$A25),0) -> 1247 | O25: =IFERROR(SUMIFS(D_D[BL],D_D[MT],2,D_D[CAT],TA_24,D_D[EP],-1, D_D[LOC],$A25),0) -> 991 | P25: 0.7947072975 | Q25: =IFERROR(SUMIFS(D_D[INV],D_D[MT],2,D_D[CAT],TA_25,D_D[EP],-1, D_D[LOC],$A25),0) -> 52 | R25: =IFERROR(SUMIFS(D_D[INV],D_D[MT],2,D_D[CAT],TA_26,D_D[EP],-1, D_D[LOC],$A25),0) -> 4 | S25: =IFERROR(SUMIFS(D_D[INV],D_D[MT],7,D_D[CAT],2,D_D[EP],TA_20, D_D[LOC],$A25),0) -> 1
A26: 402 | B26: Togus | C26: =IFERROR(SUMIFS(D_D[INV],D_D[MT],1,D_D[CAT],TA_20,D_D[EP],-1, D_D[LOC],$A26),0) -> 84 | D26: =IFERROR(SUMIFS(D_D[ADP],D_D[MT],1,D_D[CAT],D$1,D_D[EP],-1, D_D[LOC],$A26),0) -> 124.4 | E26: =IFERROR(SUMIFS(D_D[INV],D_D[MT],2,D_D[CAT],TA_21,D_D[EP],-1, D_D[LOC],$A26),0) -> 1437 | F26: =IFERROR(SUMIFS(D_D[BL],D_D[MT],2,D_D[CAT],TA_21,D_D[EP],-1, D_D[LOC],$A26),0) -> 513 | G26: 0.356993737 | H26: =IFERROR(SUMIFS(D_D[INV],D_D[MT],2,D_D[CAT],TA_22,D_D[EP],-1, D_D[LOC],$A26),0) -> 395 | I26: =IFERROR(SUMIFS(D_D[BL],D_D[MT],2,D_D[CAT],TA_22,D_D[EP],-1, D_D[LOC],$A26),0) -> 158 | J26: 0.4 | K26: =IFERROR(SUMIFS(D_D[INV],D_D[MT],2,D_D[CAT],TA_23,D_D[EP],-1, D_D[LOC],$A26),0) -> 16 | L26: =IFERROR(SUMIFS(D_D[BL],D_D[MT],2,D_D[CAT],TA_23,D_D[EP],-1, D_D[LOC],$A26),0) -> 0 | M26: 0 | N26: =IFERROR(SUMIFS(D_D[INV],D_D[MT],2,D_D[CAT],TA_24,D_D[EP],-1, D_D[LOC],$A26),0) -> 632 | O26: =IFERROR(SUMIFS(D_D[BL],D_D[MT],2,D_D[CAT],TA_24,D_D[EP],-1, D_D[LOC],$A26),0) -> 586 | P26: 0.9272151899 | Q26: =IFERROR(SUMIFS(D_D[INV],D_D[MT],2,D_D[CAT],TA_25,D_D[EP],-1, D_D[LOC],$A26),0) -> 203 | R26: =IFERROR(SUMIFS(D_D[INV],D_D[MT],2,D_D[CAT],TA_26,D_D[EP],-1, D_D[LOC],$A26),0) -> 515 | S26: =IFERROR(SUMIFS(D_D[INV],D_D[MT],7,D_D[CAT],2,D_D[EP],TA_20, D_D[LOC],$A26),0) -> 0
A27: 372 | B27: Washington | C27: =IFERROR(SUMIFS(D_D[INV],D_D[MT],1,D_D[CAT],TA_20,D_D[EP],-1, D_D[LOC],$A27),0) -> 289 | D27: =IFERROR(SUMIFS(D_D[ADP],D_D[MT],1,D_D[CAT],D$1,D_D[EP],-1, D_D[LOC],$A27),0) -> 2349.14 | E27: =IFERROR(SUMIFS(D_D[INV],D_D[MT],2,D_D[CAT],TA_21,D_D[EP],-1, D_D[LOC],$A27),0) -> 219 | F27: =IFERROR(SUMIFS(D_D[BL],D_D[MT],2,D_D[CAT],TA_21,D_D[EP],-1, D_D[LOC],$A27),0) -> 69 | G27: 0.3150684932 | H27: =IFERROR(SUMIFS(D_D[INV],D_D[MT],2,D_D[CAT],TA_22,D_D[EP],-1, D_D[LOC],$A27),0) -> 352 | I27: =IFERROR(SUMIFS(D_D[BL],D_D[MT],2,D_D[CAT],TA_22,D_D[EP],-1, D_D[LOC],$A27),0) -> 28 | J27: 0.07954545455 | K27: =IFERROR(SUMIFS(D_D[INV],D_D[MT],2,D_D[CAT],TA_23,D_D[EP],-1, D_D[LOC],$A27),0) -> 9 | L27: =IFERROR(SUMIFS(D_D[BL],D_D[MT],2,D_D[CAT],TA_23,D_D[EP],-1, D_D[LOC],$A27),0) -> 0 | M27: 0 | N27: =IFERROR(SUMIFS(D_D[INV],D_D[MT],2,D_D[CAT],TA_24,D_D[EP],-1, D_D[LOC],$A27),0) -> 13 | O27: =IFERROR(SUMIFS(D_D[BL],D_D[MT],2,D_D[CAT],TA_24,D_D[EP],-1, D_D[LOC],$A27),0) -> 4 | P27: 0.3076923077 | Q27: =IFERROR(SUMIFS(D_D[INV],D_D[MT],2,D_D[CAT],TA_25,D_D[EP],-1, D_D[LOC],$A27),0) -> 0 | R27: =IFERROR(SUMIFS(D_D[INV],D_D[MT],2,D_D[CAT],TA_26,D_D[EP],-1, D_D[LOC],$A27),0) -> 0 | S27: =IFERROR(SUMIFS(D_D[INV],D_D[MT],7,D_D[CAT],2,D_D[EP],TA_20, D_D[LOC],$A27),0) -> 0
A28: 405 | B28: White River Junction | C28: =IFERROR(SUMIFS(D_D[INV],D_D[MT],1,D_D[CAT],TA_20,D_D[EP],-1, D_D[LOC],$A28),0) -> 29 | D28: =IFERROR(SUMIFS(D_D[ADP],D_D[MT],1,D_D[CAT],D$1,D_D[EP],-1, D_D[LOC],$A28),0) -> 78.28 | E28: =IFERROR(SUMIFS(D_D[INV],D_D[MT],2,D_D[CAT],TA_21,D_D[EP],-1, D_D[LOC],$A28),0) -> 392 | F28: =IFERROR(SUMIFS(D_D[BL],D_D[MT],2,D_D[CAT],TA_21,D_D[EP],-1, D_D[LOC],$A28),0) -> 139 | G28: 0.3545918367 | H28: =IFERROR(SUMIFS(D_D[INV],D_D[MT],2,D_D[CAT],TA_22,D_D[EP],-1, D_D[LOC],$A28),0) -> 137 | I28: =IFERROR(SUMIFS(D_D[BL],D_D[MT],2,D_D[CAT],TA_22,D_D[EP],-1, D_D[LOC],$A28),0) -> 34 | J28: 0.2481751825 | K28: =IFERROR(SUMIFS(D_D[INV],D_D[MT],2,D_D[CAT],TA_23,D_D[EP],-1, D_D[LOC],$A28),0) -> 2 | L28: =IFERROR(SUMIFS(D_D[BL],D_D[MT],2,D_D[CAT],TA_23,D_D[EP],-1, D_D[LOC],$A28),0) -> 0 | M28: 0 | N28: =IFERROR(SUMIFS(D_D[INV],D_D[MT],2,D_D[CAT],TA_24,D_D[EP],-1, D_D[LOC],$A28),0) -> 24 | O28: =IFERROR(SUMIFS(D_D[BL],D_D[MT],2,D_D[CAT],TA_24,D_D[EP],-1, D_D[LOC],$A28),0) -> 19 | P28: 0.7916666667 | Q28: =IFERROR(SUMIFS(D_D[INV],D_D[MT],2,D_D[CAT],TA_25,D_D[EP],-1, D_D[LOC],$A28),0) -> 6 | R28: =IFERROR(SUMIFS(D_D[INV],D_D[MT],2,D_D[CAT],TA_26,D_D[EP],-1, D_D[LOC],$A28),0) -> 4 | S28: =IFERROR(SUMIFS(D_D[INV],D_D[MT],7,D_D[CAT],2,D_D[EP],TA_20, D_D[LOC],$A28),0) -> 0
A29: 460 | B29: Wilmington | C29: =IFERROR(SUMIFS(D_D[INV],D_D[MT],1,D_D[CAT],TA_20,D_D[EP],-1, D_D[LOC],$A29),0) -> 56 | D29: =IFERROR(SUMIFS(D_D[ADP],D_D[MT],1,D_D[CAT],D$1,D_D[EP],-1, D_D[LOC],$A29),0) -> 62.43 | E29: =IFERROR(SUMIFS(D_D[INV],D_D[MT],2,D_D[CAT],TA_21,D_D[EP],-1, D_D[LOC],$A29),0) -> 853 | F29: =IFERROR(SUMIFS(D_D[BL],D_D[MT],2,D_D[CAT],TA_21,D_D[EP],-1, D_D[LOC],$A29),0) -> 234 | G29: 0.2743259086 | H29: =IFERROR(SUMIFS(D_D[INV],D_D[MT],2,D_D[CAT],TA_22,D_D[EP],-1, D_D[LOC],$A29),0) -> 172 | I29: =IFERROR(SUMIFS(D_D[BL],D_D[MT],2,D_D[CAT],TA_22,D_D[EP],-1, D_D[LOC],$A29),0) -> 29 | J29: 0.1686046512 | K29: =IFERROR(SUMIFS(D_D[INV],D_D[MT],2,D_D[CAT],TA_23,D_D[EP],-1, D_D[LOC],$A29),0) -> 13 | L29: =IFERROR(SUMIFS(D_D[BL],D_D[MT],2,D_D[CAT],TA_23,D_D[EP],-1, D_D[LOC],$A29),0) -> 0 | M29: 0 | N29: =IFERROR(SUMIFS(D_D[INV],D_D[MT],2,D_D[CAT],TA_24,D_D[EP],-1, D_D[LOC],$A29),0) -> 41 | O29: =IFERROR(SUMIFS(D_D[BL],D_D[MT],2,D_D[CAT],TA_24,D_D[EP],-1, D_D[LOC],$A29),0) -> 26 | P29: 0.6341463415 | Q29: =IFERROR(SUMIFS(D_D[INV],D_D[MT],2,D_D[CAT],TA_25,D_D[EP],-1, D_D[LOC],$A29),0) -> 5 | R29: =IFERROR(SUMIFS(D_D[INV],D_D[MT],2,D_D[CAT],TA_26,D_D[EP],-1, D_D[LOC],$A29),0) -> 0 | S29: =IFERROR(SUMIFS(D_D[INV],D_D[MT],7,D_D[CAT],2,D_D[EP],TA_20, D_D[LOC],$A29),0) -> 0
A30: 393 | B30: Southeast | C30: =IFERROR(SUMIFS(D_D[INV],D_D[MT],1,D_D[CAT],TA_20,D_D[EP],-1, D_D[LOC],$A30),0) -> 12144 | D30: =IFERROR(SUMIFS(D_D[ADP],D_D[MT],1,D_D[CAT],D$1,D_D[EP],-1, D_D[LOC],$A30),0) -> 78.95 | E30: =IFERROR(SUMIFS(D_D[INV],D_D[MT],2,D_D[CAT],TA_21,D_D[EP],-1, D_D[LOC],$A30),0) -> 127170 | F30: =IFERROR(SUMIFS(D_D[BL],D_D[MT],2,D_D[CAT],TA_21,D_D[EP],-1, D_D[LOC],$A30),0) -> 40714 | G30: 0.3201541244 | H30: =IFERROR(SUMIFS(D_D[INV],D_D[MT],2,D_D[CAT],TA_22,D_D[EP],-1, D_D[LOC],$A30),0) -> 38538 | I30: =IFERROR(SUMIFS(D_D[BL],D_D[MT],2,D_D[CAT],TA_22,D_D[EP],-1, D_D[LOC],$A30),0) -> 6661 | J30: 0.1728423893 | K30: =IFERROR(SUMIFS(D_D[INV],D_D[MT],2,D_D[CAT],TA_23,D_D[EP],-1, D_D[LOC],$A30),0) -> 1243 | L30: =IFERROR(SUMIFS(D_D[BL],D_D[MT],2,D_D[CAT],TA_23,D_D[EP],-1, D_D[LOC],$A30),0) -> 204 | M30: 0.1641190668 | N30: =IFERROR(SUMIFS(D_D[INV],D_D[MT],2,D_D[CAT],TA_24,D_D[EP],-1, D_D[LOC],$A30),0) -> 15630 | O30: =IFERROR(SUMIFS(D_D[BL],D_D[MT],2,D_D[CAT],TA_24,D_D[EP],-1, D_D[LOC],$A30),0) -> 9335 | P30: 0.5972488804 | Q30: =IFERROR(SUMIFS(D_D[INV],D_D[MT],2,D_D[CAT],TA_25,D_D[EP],-1, D_D[LOC],$A30),0) -> 830 | R30: =IFERROR(SUMIFS(D_D[INV],D_D[MT],2,D_D[CAT],TA_26,D_D[EP],-1, D_D[LOC],$A30),0) -> 531 | S30: =IFERROR(SUMIFS(D_D[INV],D_D[MT],7,D_D[CAT],2,D_D[EP],TA_20, D_D[LOC],$A30),0) -> 476
A31: 316 | B31: Atlanta | C31: =IFERROR(SUMIFS(D_D[INV],D_D[MT],1,D_D[CAT],TA_20,D_D[EP],-1, D_D[LOC],$A31),0) -> 707 | D31: =IFERROR(SUMIFS(D_D[ADP],D_D[MT],1,D_D[CAT],D$1,D_D[EP],-1, D_D[LOC],$A31),0) -> 102.11 | E31: =IFERROR(SUMIFS(D_D[INV],D_D[MT],2,D_D[CAT],TA_21,D_D[EP],-1, D_D[LOC],$A31),0) -> 17295 | F31: =IFERROR(SUMIFS(D_D[BL],D_D[MT],2,D_D[CAT],TA_21,D_D[EP],-1, D_D[LOC],$A31),0) -> 5521 | G31: 0.3192252096 | H31: =IFERROR(SUMIFS(D_D[INV],D_D[MT],2,D_D[CAT],TA_22,D_D[EP],-1, D_D[LOC],$A31),0) -> 2598 | I31: =IFERROR(SUMIFS(D_D[BL],D_D[MT],2,D_D[CAT],TA_22,D_D[EP],-1, D_D[LOC],$A31),0) -> 553 | J31: 0.2128560431 | K31: =IFERROR(SUMIFS(D_D[INV],D_D[MT],2,D_D[CAT],TA_23,D_D[EP],-1, D_D[LOC],$A31),0) -> 93 | L31: =IFERROR(SUMIFS(D_D[BL],D_D[MT],2,D_D[CAT],TA_23,D_D[EP],-1, D_D[LOC],$A31),0) -> 1 | M31: 0.01075268817 | N31: =IFERROR(SUMIFS(D_D[INV],D_D[MT],2,D_D[CAT],TA_24,D_D[EP],-1, D_D[LOC],$A31),0) -> 861 | O31: =IFERROR(SUMIFS(D_D[BL],D_D[MT],2,D_D[CAT],TA_24,D_D[EP],-1, D_D[LOC],$A31),0) -> 550 | P31: 0.6387921022 | Q31: =IFERROR(SUMIFS(D_D[INV],D_D[MT],2,D_D[CAT],TA_25,D_D[EP],-1, D_D[LOC],$A31),0) -> 100 | R31: =IFERROR(SUMIFS(D_D[INV],D_D[MT],2,D_D[CAT],TA_26,D_D[EP],-1, D_D[LOC],$A31),0) -> 3 | S31: =IFERROR(SUMIFS(D_D[INV],D_D[MT],7,D_D[CAT],2,D_D[EP],TA_20, D_D[LOC],$A31),0) -> 0
A32: 319 | B32: Columbia | C32: =IFERROR(SUMIFS(D_D[INV],D_D[MT],1,D_D[CAT],TA_20,D_D[EP],-1, D_D[LOC],$A32),0) -> 2541 | D32: =IFERROR(SUMIFS(D_D[ADP],D_D[MT],1,D_D[CAT],D$1,D_D[EP],-1, D_D[LOC],$A32),0) -> 104.6 | E32: =IFERROR(SUMIFS(D_D[INV],D_D[MT],2,D_D[CAT],TA_21,D_D[EP],-1, D_D[LOC],$A32),0) -> 8911 | F32: =IFERROR(SUMIFS(D_D[BL],D_D[MT],2,D_D[CAT],TA_21,D_D[EP],-1, D_D[LOC],$A32),0) -> 2658 | G32: =IFERROR(F32/E32,"0%") -> 0.298283021 | H32: =IFERROR(SUMIFS(D_D[INV],D_D[MT],2,D_D[CAT],TA_22,D_D[EP],-1, D_D[LOC],$A32),0) -> 3891 | I32: =IFERROR(SUMIFS(D_D[BL],D_D[MT],2,D_D[CAT],TA_22,D_D[EP],-1, D_D[LOC],$A32),0) -> 881 | J32: =IFERROR(I32/H32,"0%") -> 0.2264199435 | K32: =IFERROR(SUMIFS(D_D[INV],D_D[MT],2,D_D[CAT],TA_23,D_D[EP],-1, D_D[LOC],$A32),0) -> 60 | L32: =IFERROR(SUMIFS(D_D[BL],D_D[MT],2,D_D[CAT],TA_23,D_D[EP],-1, D_D[LOC],$A32),0) -> 0 | M32: =IFERROR(L32/K32,"0%") -> 0 | N32: =IFERROR(SUMIFS(D_D[INV],D_D[MT],2,D_D[CAT],TA_24,D_D[EP],-1, D_D[LOC],$A32),0) -> 694 | O32: =IFERROR(SUMIFS(D_D[BL],D_D[MT],2,D_D[CAT],TA_24,D_D[EP],-1, D_D[LOC],$A32),0) -> 396 | P32: =IFERROR(O32/N32,"0%") -> 0.5706051873 | Q32: =IFERROR(SUMIFS(D_D[INV],D_D[MT],2,D_D[CAT],TA_25,D_D[EP],-1, D_D[LOC],$A32),0) -> 56 | R32: =IFERROR(SUMIFS(D_D[INV],D_D[MT],2,D_D[CAT],TA_26,D_D[EP],-1, D_D[LOC],$A32),0) -> 4 | S32: =IFERROR(SUMIFS(D_D[INV],D_D[MT],7,D_D[CAT],2,D_D[EP],TA_20, D_D[LOC],$A32),0) -> 0
A33: 315 | B33: Huntington | C33: =IFERROR(SUMIFS(D_D[INV],D_D[MT],1,D_D[CAT],TA_20,D_D[EP],-1, D_D[LOC],$A33),0) -> 98 | D33: =IFERROR(SUMIFS(D_D[ADP],D_D[MT],1,D_D[CAT],D$1,D_D[EP],-1, D_D[LOC],$A33),0) -> 145.34 | E33: =IFERROR(SUMIFS(D_D[INV],D_D[MT],2,D_D[CAT],TA_21,D_D[EP],-1, D_D[LOC],$A33),0) -> 2154 | F33: =IFERROR(SUMIFS(D_D[BL],D_D[MT],2,D_D[CAT],TA_21,D_D[EP],-1, D_D[LOC],$A33),0) -> 724 | G33: 0.3361188487 | H33: =IFERROR(SUMIFS(D_D[INV],D_D[MT],2,D_D[CAT],TA_22,D_D[EP],-1, D_D[LOC],$A33),0) -> 419 | I33: =IFERROR(SUMIFS(D_D[BL],D_D[MT],2,D_D[CAT],TA_22,D_D[EP],-1, D_D[LOC],$A33),0) -> 118 | J33: 0.2816229117 | K33: =IFERROR(SUMIFS(D_D[INV],D_D[MT],2,D_D[CAT],TA_23,D_D[EP],-1, D_D[LOC],$A33),0) -> 27 | L33: =IFERROR(SUMIFS(D_D[BL],D_D[MT],2,D_D[CAT],TA_23,D_D[EP],-1, D_D[LOC],$A33),0) -> 1 | M33: 0.03703703704 | N33: =IFERROR(SUMIFS(D_D[INV],D_D[MT],2,D_D[CAT],TA_24,D_D[EP],-1, D_D[LOC],$A33),0) -> 770 | O33: =IFERROR(SUMIFS(D_D[BL],D_D[MT],2,D_D[CAT],TA_24,D_D[EP],-1, D_D[LOC],$A33),0) -> 692 | P33: 0.8987012987 | Q33: =IFERROR(SUMIFS(D_D[INV],D_D[MT],2,D_D[CAT],TA_25,D_D[EP],-1, D_D[LOC],$A33),0) -> 49 | R33: =IFERROR(SUMIFS(D_D[INV],D_D[MT],2,D_D[CAT],TA_26,D_D[EP],-1, D_D[LOC],$A33),0) -> 395 | S33: =IFERROR(SUMIFS(D_D[INV],D_D[MT],7,D_D[CAT],2,D_D[EP],TA_20, D_D[LOC],$A33),0) -> 1
A34: 323 | B34: Jackson | C34: =IFERROR(SUMIFS(D_D[INV],D_D[MT],1,D_D[CAT],TA_20,D_D[EP],-1, D_D[LOC],$A34),0) -> 255 | D34: =IFERROR(SUMIFS(D_D[ADP],D_D[MT],1,D_D[CAT],D$1,D_D[EP],-1, D_D[LOC],$A34),0) -> 76.48 | E34: =IFERROR(SUMIFS(D_D[INV],D_D[MT],2,D_D[CAT],TA_21,D_D[EP],-1, D_D[LOC],$A34),0) -> 4436 | F34: =IFERROR(SUMIFS(D_D[BL],D_D[MT],2,D_D[CAT],TA_21,D_D[EP],-1, D_D[LOC],$A34),0) -> 1532 | G34: 0.3453561767 | H34: =IFERROR(SUMIFS(D_D[INV],D_D[MT],2,D_D[CAT],TA_22,D_D[EP],-1, D_D[LOC],$A34),0) -> 813 | I34: =IFERROR(SUMIFS(D_D[BL],D_D[MT],2,D_D[CAT],TA_22,D_D[EP],-1, D_D[LOC],$A34),0) -> 163 | J34: 0.2004920049 | K34: =IFERROR(SUMIFS(D_D[INV],D_D[MT],2,D_D[CAT],TA_23,D_D[EP],-1, D_D[LOC],$A34),0) -> 45 | L34: =IFERROR(SUMIFS(D_D[BL],D_D[MT],2,D_D[CAT],TA_23,D_D[EP],-1, D_D[LOC],$A34),0) -> 1 | M34: 0.02222222222 | N34: =IFERROR(SUMIFS(D_D[INV],D_D[MT],2,D_D[CAT],TA_24,D_D[EP],-1, D_D[LOC],$A34),0) -> 563 | O34: =IFERROR(SUMIFS(D_D[BL],D_D[MT],2,D_D[CAT],TA_24,D_D[EP],-1, D_D[LOC],$A34),0) -> 247 | P34: 0.4387211368 | Q34: =IFERROR(SUMIFS(D_D[INV],D_D[MT],2,D_D[CAT],TA_25,D_D[EP],-1, D_D[LOC],$A34),0) -> 24 | R34: =IFERROR(SUMIFS(D_D[INV],D_D[MT],2,D_D[CAT],TA_26,D_D[EP],-1, D_D[LOC],$A34),0) -> 2 | S34: =IFERROR(SUMIFS(D_D[INV],D_D[MT],7,D_D[CAT],2,D_D[EP],TA_20, D_D[LOC],$A34),0) -> 140
A35: 350 | B35: Little Rock | C35: =IFERROR(SUMIFS(D_D[INV],D_D[MT],1,D_D[CAT],TA_20,D_D[EP],-1, D_D[LOC],$A35),0) -> 497 | D35: =IFERROR(SUMIFS(D_D[ADP],D_D[MT],1,D_D[CAT],D$1,D_D[EP],-1, D_D[LOC],$A35),0) -> 79.16 | E35: =IFERROR(SUMIFS(D_D[INV],D_D[MT],2,D_D[CAT],TA_21,D_D[EP],-1, D_D[LOC],$A35),0) -> 4049 | F35: =IFERROR(SUMIFS(D_D[BL],D_D[MT],2,D_D[CAT],TA_21,D_D[EP],-1, D_D[LOC],$A35),0) -> 1378 | G35: 0.3403309459 | H35: =IFERROR(SUMIFS(D_D[INV],D_D[MT],2,D_D[CAT],TA_22,D_D[EP],-1, D_D[LOC],$A35),0) -> 2780 | I35: =IFERROR(SUMIFS(D_D[BL],D_D[MT],2,D_D[CAT],TA_22,D_D[EP],-1, D_D[LOC],$A35),0) -> 397 | J35: 0.1428057554 | K35: =IFERROR(SUMIFS(D_D[INV],D_D[MT],2,D_D[CAT],TA_23,D_D[EP],-1, D_D[LOC],$A35),0) -> 37 | L35: =IFERROR(SUMIFS(D_D[BL],D_D[MT],2,D_D[CAT],TA_23,D_D[EP],-1, D_D[LOC],$A35),0) -> 0 | M35: 0 | N35: =IFERROR(SUMIFS(D_D[INV],D_D[MT],2,D_D[CAT],TA_24,D_D[EP],-1, D_D[LOC],$A35),0) -> 611 | O35: =IFERROR(SUMIFS(D_D[BL],D_D[MT],2,D_D[CAT],TA_24,D_D[EP],-1, D_D[LOC],$A35),0) -> 304 | P35: 0.4975450082 | Q35: =IFERROR(SUMIFS(D_D[INV],D_D[MT],2,D_D[CAT],TA_25,D_D[EP],-1, D_D[LOC],$A35),0) -> 37 | R35: =IFERROR(SUMIFS(D_D[INV],D_D[MT],2,D_D[CAT],TA_26,D_D[EP],-1, D_D[LOC],$A35),0) -> 1 | S35: =IFERROR(SUMIFS(D_D[INV],D_D[MT],7,D_D[CAT],2,D_D[EP],TA_20, D_D[LOC],$A35),0) -> 0
A36: 327 | B36: Louisville | C36: =IFERROR(SUMIFS(D_D[INV],D_D[MT],1,D_D[CAT],TA_20,D_D[EP],-1, D_D[LOC],$A36),0) -> 2472 | D36: =IFERROR(SUMIFS(D_D[ADP],D_D[MT],1,D_D[CAT],D$1,D_D[EP],-1, D_D[LOC],$A36),0) -> 63.04 | E36: =IFERROR(SUMIFS(D_D[INV],D_D[MT],2,D_D[CAT],TA_21,D_D[EP],-1, D_D[LOC],$A36),0) -> 4529 | F36: =IFERROR(SUMIFS(D_D[BL],D_D[MT],2,D_D[CAT],TA_21,D_D[EP],-1, D_D[LOC],$A36),0) -> 1509 | G36: 0.3331861338 | H36: =IFERROR(SUMIFS(D_D[INV],D_D[MT],2,D_D[CAT],TA_22,D_D[EP],-1, D_D[LOC],$A36),0) -> 3345 | I36: =IFERROR(SUMIFS(D_D[BL],D_D[MT],2,D_D[CAT],TA_22,D_D[EP],-1, D_D[LOC],$A36),0) -> 522 | J36: 0.1560538117 | K36: =IFERROR(SUMIFS(D_D[INV],D_D[MT],2,D_D[CAT],TA_23,D_D[EP],-1, D_D[LOC],$A36),0) -> 311 | L36: =IFERROR(SUMIFS(D_D[BL],D_D[MT],2,D_D[CAT],TA_23,D_D[EP],-1, D_D[LOC],$A36),0) -> 184 | M36: 0.5916398714 | N36: =IFERROR(SUMIFS(D_D[INV],D_D[MT],2,D_D[CAT],TA_24,D_D[EP],-1, D_D[LOC],$A36),0) -> 442 | O36: =IFERROR(SUMIFS(D_D[BL],D_D[MT],2,D_D[CAT],TA_24,D_D[EP],-1, D_D[LOC],$A36),0) -> 321 | P36: 0.7262443439 | Q36: =IFERROR(SUMIFS(D_D[INV],D_D[MT],2,D_D[CAT],TA_25,D_D[EP],-1, D_D[LOC],$A36),0) -> 33 | R36: =IFERROR(SUMIFS(D_D[INV],D_D[MT],2,D_D[CAT],TA_26,D_D[EP],-1, D_D[LOC],$A36),0) -> 9 | S36: =IFERROR(SUMIFS(D_D[INV],D_D[MT],7,D_D[CAT],2,D_D[EP],TA_20, D_D[LOC],$A36),0) -> 317
A37: 322 | B37: Montgomery | C37: =IFERROR(SUMIFS(D_D[INV],D_D[MT],1,D_D[CAT],TA_20,D_D[EP],-1, D_D[LOC],$A37),0) -> 394 | D37: =IFERROR(SUMIFS(D_D[ADP],D_D[MT],1,D_D[CAT],D$1,D_D[EP],-1, D_D[LOC],$A37),0) -> 63.22 | E37: =IFERROR(SUMIFS(D_D[INV],D_D[MT],2,D_D[CAT],TA_21,D_D[EP],-1, D_D[LOC],$A37),0) -> 7590 | F37: =IFERROR(SUMIFS(D_D[BL],D_D[MT],2,D_D[CAT],TA_21,D_D[EP],-1, D_D[LOC],$A37),0) -> 2376 | G37: 0.3130434783 | H37: =IFERROR(SUMIFS(D_D[INV],D_D[MT],2,D_D[CAT],TA_22,D_D[EP],-1, D_D[LOC],$A37),0) -> 1201 | I37: =IFERROR(SUMIFS(D_D[BL],D_D[MT],2,D_D[CAT],TA_22,D_D[EP],-1, D_D[LOC],$A37),0) -> 216 | J37: 0.1798501249 | K37: =IFERROR(SUMIFS(D_D[INV],D_D[MT],2,D_D[CAT],TA_23,D_D[EP],-1, D_D[LOC],$A37),0) -> 39 | L37: =IFERROR(SUMIFS(D_D[BL],D_D[MT],2,D_D[CAT],TA_23,D_D[EP],-1, D_D[LOC],$A37),0) -> 1 | M37: 0.02564102564 | N37: =IFERROR(SUMIFS(D_D[INV],D_D[MT],2,D_D[CAT],TA_24,D_D[EP],-1, D_D[LOC],$A37),0) -> 764 | O37: =IFERROR(SUMIFS(D_D[BL],D_D[MT],2,D_D[CAT],TA_24,D_D[EP],-1, D_D[LOC],$A37),0) -> 258 | P37: 0.3376963351 | Q37: =IFERROR(SUMIFS(D_D[INV],D_D[MT],2,D_D[CAT],TA_25,D_D[EP],-1, D_D[LOC],$A37),0) -> 71 | R37: =IFERROR(SUMIFS(D_D[INV],D_D[MT],2,D_D[CAT],TA_26,D_D[EP],-1, D_D[LOC],$A37),0) -> 4 | S37: =IFERROR(SUMIFS(D_D[INV],D_D[MT],7,D_D[CAT],2,D_D[EP],TA_20, D_D[LOC],$A37),0) -> 1
A38: 320 | B38: Nashville | C38: =IFERROR(SUMIFS(D_D[INV],D_D[MT],1,D_D[CAT],TA_20,D_D[EP],-1, D_D[LOC],$A38),0) -> 1132 | D38: =IFERROR(SUMIFS(D_D[ADP],D_D[MT],1,D_D[CAT],D$1,D_D[EP],-1, D_D[LOC],$A38),0) -> 72.63 | E38: =IFERROR(SUMIFS(D_D[INV],D_D[MT],2,D_D[CAT],TA_21,D_D[EP],-1, D_D[LOC],$A38),0) -> 8901 | F38: =IFERROR(SUMIFS(D_D[BL],D_D[MT],2,D_D[CAT],TA_21,D_D[EP],-1, D_D[LOC],$A38),0) -> 2770 | G38: 0.3112009887 | H38: =IFERROR(SUMIFS(D_D[INV],D_D[MT],2,D_D[CAT],TA_22,D_D[EP],-1, D_D[LOC],$A38),0) -> 6826 | I38: =IFERROR(SUMIFS(D_D[BL],D_D[MT],2,D_D[CAT],TA_22,D_D[EP],-1, D_D[LOC],$A38),0) -> 901 | J38: 0.131995312 | K38: =IFERROR(SUMIFS(D_D[INV],D_D[MT],2,D_D[CAT],TA_23,D_D[EP],-1, D_D[LOC],$A38),0) -> 85 | L38: =IFERROR(SUMIFS(D_D[BL],D_D[MT],2,D_D[CAT],TA_23,D_D[EP],-1, D_D[LOC],$A38),0) -> 4 | M38: 0.04705882353 | N38: =IFERROR(SUMIFS(D_D[INV],D_D[MT],2,D_D[CAT],TA_24,D_D[EP],-1, D_D[LOC],$A38),0) -> 865 | O38: =IFERROR(SUMIFS(D_D[BL],D_D[MT],2,D_D[CAT],TA_24,D_D[EP],-1, D_D[LOC],$A38),0) -> 479 | P38: 0.5537572254 | Q38: =IFERROR(SUMIFS(D_D[INV],D_D[MT],2,D_D[CAT],TA_25,D_D[EP],-1, D_D[LOC],$A38),0) -> 63 | R38: =IFERROR(SUMIFS(D_D[INV],D_D[MT],2,D_D[CAT],TA_26,D_D[EP],-1, D_D[LOC],$A38),0) -> 5 | S38: =IFERROR(SUMIFS(D_D[INV],D_D[MT],7,D_D[CAT],2,D_D[EP],TA_20, D_D[LOC],$A38),0) -> 1
A39: 321 | B39: New Orleans | C39: =IFERROR(SUMIFS(D_D[INV],D_D[MT],1,D_D[CAT],TA_20,D_D[EP],-1, D_D[LOC],$A39),0) -> 182 | D39: =IFERROR(SUMIFS(D_D[ADP],D_D[MT],1,D_D[CAT],D$1,D_D[EP],-1, D_D[LOC],$A39),0) -> 69.66 | E39: =IFERROR(SUMIFS(D_D[INV],D_D[MT],2,D_D[CAT],TA_21,D_D[EP],-1, D_D[LOC],$A39),0) -> 5779 | F39: =IFERROR(SUMIFS(D_D[BL],D_D[MT],2,D_D[CAT],TA_21,D_D[EP],-1, D_D[LOC],$A39),0) -> 1746 | G39: 0.3021283959 | H39: =IFERROR(SUMIFS(D_D[INV],D_D[MT],2,D_D[CAT],TA_22,D_D[EP],-1, D_D[LOC],$A39),0) -> 885 | I39: =IFERROR(SUMIFS(D_D[BL],D_D[MT],2,D_D[CAT],TA_22,D_D[EP],-1, D_D[LOC],$A39),0) -> 171 | J39: 0.193220339 | K39: =IFERROR(SUMIFS(D_D[INV],D_D[MT],2,D_D[CAT],TA_23,D_D[EP],-1, D_D[LOC],$A39),0) -> 35 | L39: =IFERROR(SUMIFS(D_D[BL],D_D[MT],2,D_D[CAT],TA_23,D_D[EP],-1, D_D[LOC],$A39),0) -> 0 | M39: 0 | N39: =IFERROR(SUMIFS(D_D[INV],D_D[MT],2,D_D[CAT],TA_24,D_D[EP],-1, D_D[LOC],$A39),0) -> 315 | O39: =IFERROR(SUMIFS(D_D[BL],D_D[MT],2,D_D[CAT],TA_24,D_D[EP],-1, D_D[LOC],$A39),0) -> 153 | P39: 0.4857142857 | Q39: =IFERROR(SUMIFS(D_D[INV],D_D[MT],2,D_D[CAT],TA_25,D_D[EP],-1, D_D[LOC],$A39),0) -> 21 | R39: =IFERROR(SUMIFS(D_D[INV],D_D[MT],2,D_D[CAT],TA_26,D_D[EP],-1, D_D[LOC],$A39),0) -> 2 | S39: =IFERROR(SUMIFS(D_D[INV],D_D[MT],7,D_D[CAT],2,D_D[EP],TA_20, D_D[LOC],$A39),0) -> 0
A40: 314 | B40: Roanoke | C40: =IFERROR(SUMIFS(D_D[INV],D_D[MT],1,D_D[CAT],TA_20,D_D[EP],-1, D_D[LOC],$A40),0) -> 803 | D40: =IFERROR(SUMIFS(D_D[ADP],D_D[MT],1,D_D[CAT],D$1,D_D[EP],-1, D_D[LOC],$A40),0) -> 64 | E40: =IFERROR(SUMIFS(D_D[INV],D_D[MT],2,D_D[CAT],TA_21,D_D[EP],-1, D_D[LOC],$A40),0) -> 15453 | F40: =IFERROR(SUMIFS(D_D[BL],D_D[MT],2,D_D[CAT],TA_21,D_D[EP],-1, D_D[LOC],$A40),0) -> 4705 | G40: 0.3044716236 | H40: =IFERROR(SUMIFS(D_D[INV],D_D[MT],2,D_D[CAT],TA_22,D_D[EP],-1, D_D[LOC],$A40),0) -> 2155 | I40: =IFERROR(SUMIFS(D_D[BL],D_D[MT],2,D_D[CAT],TA_22,D_D[EP],-1, D_D[LOC],$A40),0) -> 414 | J40: 0.1921113689 | K40: =IFERROR(SUMIFS(D_D[INV],D_D[MT],2,D_D[CAT],TA_23,D_D[EP],-1, D_D[LOC],$A40),0) -> 82 | L40: =IFERROR(SUMIFS(D_D[BL],D_D[MT],2,D_D[CAT],TA_23,D_D[EP],-1, D_D[LOC],$A40),0) -> 0 | M40: 0 | N40: =IFERROR(SUMIFS(D_D[INV],D_D[MT],2,D_D[CAT],TA_24,D_D[EP],-1, D_D[LOC],$A40),0) -> 1901 | O40: =IFERROR(SUMIFS(D_D[BL],D_D[MT],2,D_D[CAT],TA_24,D_D[EP],-1, D_D[LOC],$A40),0) -> 1305 | P40: 0.6864807996 | Q40: =IFERROR(SUMIFS(D_D[INV],D_D[MT],2,D_D[CAT],TA_25,D_D[EP],-1, D_D[LOC],$A40),0) -> 69 | R40: =IFERROR(SUMIFS(D_D[INV],D_D[MT],2,D_D[CAT],TA_26,D_D[EP],-1, D_D[LOC],$A40),0) -> 7 | S40: =IFERROR(SUMIFS(D_D[INV],D_D[MT],7,D_D[CAT],2,D_D[EP],TA_20, D_D[LOC],$A40),0) -> 0
A41: 355 | B41: San Juan | C41: =IFERROR(SUMIFS(D_D[INV],D_D[MT],1,D_D[CAT],TA_20,D_D[EP],-1, D_D[LOC],$A41),0) -> 123 | D41: =IFERROR(SUMIFS(D_D[ADP],D_D[MT],1,D_D[CAT],D$1,D_D[EP],-1, D_D[LOC],$A41),0) -> 51.78 | E41: =IFERROR(SUMIFS(D_D[INV],D_D[MT],2,D_D[CAT],TA_21,D_D[EP],-1, D_D[LOC],$A41),0) -> 1898 | F41: =IFERROR(SUMIFS(D_D[BL],D_D[MT],2,D_D[CAT],TA_21,D_D[EP],-1, D_D[LOC],$A41),0) -> 637 | G41: 0.3356164384 | H41: =IFERROR(SUMIFS(D_D[INV],D_D[MT],2,D_D[CAT],TA_22,D_D[EP],-1, D_D[LOC],$A41),0) -> 552 | I41: =IFERROR(SUMIFS(D_D[BL],D_D[MT],2,D_D[CAT],TA_22,D_D[EP],-1, D_D[LOC],$A41),0) -> 89 | J41: 0.1612318841 | K41: =IFERROR(SUMIFS(D_D[INV],D_D[MT],2,D_D[CAT],TA_23,D_D[EP],-1, D_D[LOC],$A41),0) -> 61 | L41: =IFERROR(SUMIFS(D_D[BL],D_D[MT],2,D_D[CAT],TA_23,D_D[EP],-1, D_D[LOC],$A41),0) -> 1 | M41: 0.01639344262 | N41: =IFERROR(SUMIFS(D_D[INV],D_D[MT],2,D_D[CAT],TA_24,D_D[EP],-1, D_D[LOC],$A41),0) -> 190 | O41: =IFERROR(SUMIFS(D_D[BL],D_D[MT],2,D_D[CAT],TA_24,D_D[EP],-1, D_D[LOC],$A41),0) -> 115 | P41: 0.6052631579 | Q41: =IFERROR(SUMIFS(D_D[INV],D_D[MT],2,D_D[CAT],TA_25,D_D[EP],-1, D_D[LOC],$A41),0) -> 11 | R41: =IFERROR(SUMIFS(D_D[INV],D_D[MT],2,D_D[CAT],TA_26,D_D[EP],-1, D_D[LOC],$A41),0) -> 1 | S41: =IFERROR(SUMIFS(D_D[INV],D_D[MT],7,D_D[CAT],2,D_D[EP],TA_20, D_D[LOC],$A41),0) -> 2
A42: 317 | B42: St. Petersburg | C42: =IFERROR(SUMIFS(D_D[INV],D_D[MT],1,D_D[CAT],TA_20,D_D[EP],-1, D_D[LOC],$A42),0) -> 1233 | D42: =IFERROR(SUMIFS(D_D[ADP],D_D[MT],1,D_D[CAT],D$1,D_D[EP],-1, D_D[LOC],$A42),0) -> 78.93 | E42: =IFERROR(SUMIFS(D_D[INV],D_D[MT],2,D_D[CAT],TA_21,D_D[EP],-1, D_D[LOC],$A42),0) -> 29036 | F42: =IFERROR(SUMIFS(D_D[BL],D_D[MT],2,D_D[CAT],TA_21,D_D[EP],-1, D_D[LOC],$A42),0) -> 10230 | G42: 0.3523212564 | H42: =IFERROR(SUMIFS(D_D[INV],D_D[MT],2,D_D[CAT],TA_22,D_D[EP],-1, D_D[LOC],$A42),0) -> 3758 | I42: =IFERROR(SUMIFS(D_D[BL],D_D[MT],2,D_D[CAT],TA_22,D_D[EP],-1, D_D[LOC],$A42),0) -> 799 | J42: 0.2126130921 | K42: =IFERROR(SUMIFS(D_D[INV],D_D[MT],2,D_D[CAT],TA_23,D_D[EP],-1, D_D[LOC],$A42),0) -> 244 | L42: =IFERROR(SUMIFS(D_D[BL],D_D[MT],2,D_D[CAT],TA_23,D_D[EP],-1, D_D[LOC],$A42),0) -> 8 | M42: 0.03278688525 | N42: =IFERROR(SUMIFS(D_D[INV],D_D[MT],2,D_D[CAT],TA_24,D_D[EP],-1, D_D[LOC],$A42),0) -> 6569 | O42: =IFERROR(SUMIFS(D_D[BL],D_D[MT],2,D_D[CAT],TA_24,D_D[EP],-1, D_D[LOC],$A42),0) -> 3859 | P42: 0.5874562338 | Q42: =IFERROR(SUMIFS(D_D[INV],D_D[MT],2,D_D[CAT],TA_25,D_D[EP],-1, D_D[LOC],$A42),0) -> 200 | R42: =IFERROR(SUMIFS(D_D[INV],D_D[MT],2,D_D[CAT],TA_26,D_D[EP],-1, D_D[LOC],$A42),0) -> 80 | S42: =IFERROR(SUMIFS(D_D[INV],D_D[MT],7,D_D[CAT],2,D_D[EP],TA_20, D_D[LOC],$A42),0) -> 13
A43: 318 | B43: Winston-Salem | C43: =IFERROR(SUMIFS(D_D[INV],D_D[MT],1,D_D[CAT],TA_20,D_D[EP],-1, D_D[LOC],$A43),0) -> 1707 | D43: =IFERROR(SUMIFS(D_D[ADP],D_D[MT],1,D_D[CAT],D$1,D_D[EP],-1, D_D[LOC],$A43),0) -> 68.51 | E43: =IFERROR(SUMIFS(D_D[INV],D_D[MT],2,D_D[CAT],TA_21,D_D[EP],-1, D_D[LOC],$A43),0) -> 17139 | F43: =IFERROR(SUMIFS(D_D[BL],D_D[MT],2,D_D[CAT],TA_21,D_D[EP],-1, D_D[LOC],$A43),0) -> 4928 | G43: 0.2875313612 | H43: =IFERROR(SUMIFS(D_D[INV],D_D[MT],2,D_D[CAT],TA_22,D_D[EP],-1, D_D[LOC],$A43),0) -> 9315 | I43: =IFERROR(SUMIFS(D_D[BL],D_D[MT],2,D_D[CAT],TA_22,D_D[EP],-1, D_D[LOC],$A43),0) -> 1437 | J43: 0.1542673108 | K43: =IFERROR(SUMIFS(D_D[INV],D_D[MT],2,D_D[CAT],TA_23,D_D[EP],-1, D_D[LOC],$A43),0) -> 124 | L43: =IFERROR(SUMIFS(D_D[BL],D_D[MT],2,D_D[CAT],TA_23,D_D[EP],-1, D_D[LOC],$A43),0) -> 3 | M43: 0.02419354839 | N43: =IFERROR(SUMIFS(D_D[INV],D_D[MT],2,D_D[CAT],TA_24,D_D[EP],-1, D_D[LOC],$A43),0) -> 1085 | O43: =IFERROR(SUMIFS(D_D[BL],D_D[MT],2,D_D[CAT],TA_24,D_D[EP],-1, D_D[LOC],$A43),0) -> 656 | P43: 0.6046082949 | Q43: =IFERROR(SUMIFS(D_D[INV],D_D[MT],2,D_D[CAT],TA_25,D_D[EP],-1, D_D[LOC],$A43),0) -> 96 | R43: =IFERROR(SUMIFS(D_D[INV],D_D[MT],2,D_D[CAT],TA_26,D_D[EP],-1, D_D[LOC],$A43),0) -> 18 | S43: =IFERROR(SUMIFS(D_D[INV],D_D[MT],7,D_D[CAT],2,D_D[EP],TA_20, D_D[LOC],$A43),0) -> 1
A44: 384 | B44: Continental | C44: =IFERROR(SUMIFS(D_D[INV],D_D[MT],1,D_D[CAT],TA_20,D_D[EP],-1, D_D[LOC],$A44),0) -> 7233 | D44: =IFERROR(SUMIFS(D_D[ADP],D_D[MT],1,D_D[CAT],D$1,D_D[EP],-1, D_D[LOC],$A44),0) -> 72.2 | E44: =IFERROR(SUMIFS(D_D[INV],D_D[MT],2,D_D[CAT],TA_21,D_D[EP],-1, D_D[LOC],$A44),0) -> 73065 | F44: =IFERROR(SUMIFS(D_D[BL],D_D[MT],2,D_D[CAT],TA_21,D_D[EP],-1, D_D[LOC],$A44),0) -> 22668 | G44: 0.310244303 | H44: =IFERROR(SUMIFS(D_D[INV],D_D[MT],2,D_D[CAT],TA_22,D_D[EP],-1, D_D[LOC],$A44),0) -> 35678 | I44: =IFERROR(SUMIFS(D_D[BL],D_D[MT],2,D_D[CAT],TA_22,D_D[EP],-1, D_D[LOC],$A44),0) -> 4693 | J44: 0.1315376422 | K44: =IFERROR(SUMIFS(D_D[INV],D_D[MT],2,D_D[CAT],TA_23,D_D[EP],-1, D_D[LOC],$A44),0) -> 638 | L44: =IFERROR(SUMIFS(D_D[BL],D_D[MT],2,D_D[CAT],TA_23,D_D[EP],-1, D_D[LOC],$A44),0) -> 12 | M44: 0.01880877743 | N44: =IFERROR(SUMIFS(D_D[INV],D_D[MT],2,D_D[CAT],TA_24,D_D[EP],-1, D_D[LOC],$A44),0) -> 11113 | O44: =IFERROR(SUMIFS(D_D[BL],D_D[MT],2,D_D[CAT],TA_24,D_D[EP],-1, D_D[LOC],$A44),0) -> 7590 | P44: 0.6829838927 | Q44: =IFERROR(SUMIFS(D_D[INV],D_D[MT],2,D_D[CAT],TA_25,D_D[EP],-1, D_D[LOC],$A44),0) -> 1037 | R44: =IFERROR(SUMIFS(D_D[INV],D_D[MT],2,D_D[CAT],TA_26,D_D[EP],-1, D_D[LOC],$A44),0) -> 2060 | S44: =IFERROR(SUMIFS(D_D[INV],D_D[MT],7,D_D[CAT],2,D_D[EP],TA_20, D_D[LOC],$A44),0) -> 280
